Workbook

Sheet ようこそ
B2: ① 使う前、設定を変更する際には「データリセット」ボタンを押してください。
B6: ② 以下の緑色セル部分に数値を入力、またはプルダウンから選択してください。 入力が完了すると水色セルに変わりますので、全て水色セルになるようにしてください。
B7: 下の「おすすめ」ボタンを押すと、推奨値が自動入力されます。（使用は任意）
B11: ③ 目的地（駅）を選んでください。
F13: =VLOOKUP($B$13,管理用!$B$9:$C$11,2,0) ->  | G13: =VLOOKUP($F$13,管理用!$C$9:$D$11,2,0) -> 
B16: ④ 住居タイプを選んでください。
F18: =VLOOKUP($B$18,管理用!$B$14:$C$16,2,0) ->  | G18: =$F$13&$F$18 -> 
F19: =VLOOKUP($F$18,管理用!$C$14:$D$16,2,0) ->  | G19: =VLOOKUP($G$18,管理用!$B$19:$C$27,2,0) -> 
B22: ⑤ 次の商業施設のうち重視したいものにウェイトを置き、全体として100%となるように調整してください。
B24: 格安スーパー | D24: 一般的に激安スーパー等で知られるスーパーマーケットがあるか | F24: =$E$51*$E24 -> 0
B25: 総合スーパー | D25: 食品のみならず、日用品や衣料品等も扱うスーパーマーケット（GMS）があるか | F25: =$E$51*$E25 -> 0
B26: ホームセンター | D26: 日用品や工具・園芸用品等を扱うホームセンターがあるか | F26: =$E$51*$E26 -> 0
B27: ショッピングモール | D27: 大規模商業施設（百貨店・駅ビル等含む）があるか | F27: =$E$51*$E27 -> 0
D28: =IF($E$28=1,"","エラー：合計は100%にするよう、ウェイトを調整！") -> エラー：合計は100%にするよう、ウェイトを調整！ | E28: =SUM(E24:E27) -> 0
B31: ⑥ 住環境の中で以下の要素を重視・考慮するか選択してください。（自治体別等の参考データ）
B33: 住民の平均年齢 | D33: 若年層が多い街か、高齢者が多い街か（ここでは若年層が多い街ほど高得点） | F33: =VLOOKUP($E33,管理用!$B$4:$C$6,2,0) ->  | G33: =$E$52*($F33/SUM($F$33:$F$43)) -> 
B34: 住宅地の人口密度 | D34: 人口密度が高い程、高層住宅が多かったり、狭い住宅が密集している（ここでは低い程高得点） | F34: =VLOOKUP($E34,管理用!$B$4:$C$6,2,0) -> 
B35: 単身世帯の多さ | D35: 単身世帯が多い街は、単身者向けの店や品物が多い（ここでは多いほど高得点） | F35: =VLOOKUP($E35,管理用!$B$4:$C$6,2,0) -> 
B36: ベッドタウン指数 | D36: 昼間に人が多いか、夜間に人が多いか（ここではベッドタウン化されている後者が高得点） | F36: =VLOOKUP($E36,管理用!$B$4:$C$6,2,0) -> 
B37: 住民の平均年収 | D37: 年収が低い街は、物価が安めに設定されている可能性が高い（ここでは低いほど高得点） | F37: =VLOOKUP($E37,管理用!$B$4:$C$6,2,0) -> 
B38: 犯罪認知率 | D38: 犯罪が発生し、警察に認知されている件数を住民人口を考慮し算出（低いほど高得点） | F38: =VLOOKUP($E38,管理用!$B$4:$C$6,2,0) -> 
B39: 図書館充実度 | D39: 住民１人あたりの図書館の蔵書数 | F39: =VLOOKUP($E39,管理用!$B$4:$C$6,2,0) -> 
B40: 医療充実度 | D40: 大病院・クリニック・病床数・医者数を独自の方法で算出 | F40: =VLOOKUP($E40,管理用!$B$4:$C$6,2,0) -> 
B41: 待機児童の少なさ | D41: 保育園への入園可能率を独自の方法で算出 | F41: =VLOOKUP($E41,管理用!$B$4:$C$6,2,0) -> 
B42: 人口増減率 | D42: 人口が増加傾向にある街か、減少傾向にある街か | F42: =VLOOKUP($E42,管理用!$B$4:$C$6,2,0) -> 
B43: 自動車利便性 | D43: 近くに高速道路等の出入口（IC）があるか、駅前ロータリーの使い勝手が良いか | F43: =VLOOKUP($E43,管理用!$B$4:$C$6,2,0) -> 
B46: ⑦ 街選びの中で重視したいものにウェイトを置き、全体として100%となるように調整してください。
B48: 所要時間 | D48: 目的地（東京駅/新宿駅)までの電車を使った移動時間の短さ | F48: =E48 -> 0
B49: 家賃相場 | D49: この街の賃貸物件の家賃相場の安さ | F49: =E49 -> 0
B50: 通勤快適性 | D50: 電車の混雑率がどのくらいか、始発電車があるか | F50: =E50 -> 0
B51: 商業施設 | D51: この街の買い物の利便性（⑤）
B52: 住環境 | D52: この街が属する市区町村の住環境（⑥）
D53: =IF($E$53=1,"","エラー：合計は100%にするよう、ウェイトを調整！") -> エラー：合計は100%にするよう、ウェイトを調整！ | E53: =SUM(E48:E52) -> 0
B57: ⑧ ③～⑧までの内容が正しければ、「確定」ボタンを押してください。
E58: 確定前
B64: あなたにオススメの街 BEST１０
A66: ① | B66: =ランキング!C5 -> 浦和 | D66: ="（"&ランキング!D5&ランキング!E5&"）" -> （埼玉県さいたま市浦和区） | E66: =VLOOKUP($B66,ランキング!$C:$BC,$G$13,0) ->  | F66: =VLOOKUP($B66,ランキング!$C:$BC,$F$19,0) -> 
B67: どんな街？ | D67: =IF(AND(VLOOKUP($B66,全データ!$C:$CJ,全データ!$CH$1,0)=0,VLOOKUP($B66,全データ!$C:$CJ,全データ!$CI$1,0)=0),HYPERLINK(全データ!$CI$3,全データ!$CH$2),IF(VLOOKUP($B66,全データ!$C:$CJ,全データ!$CH$1,0)=0,HYPERLINK(VLOOKUP($B66,全データ!$C:$CJ,全データ!$CI$1,0),全データ!$CI$2),HYPERLINK(VLOOKUP($B66,全データ!$C:$CJ,全データ!$CI$1,0),VLOOKUP($B66,全データ!$C:$CJ,全データ!$CH$1,0)))) -> 文教地区として有名で、高級住宅地とも言われている。栄えているが危ない感じではなく、落ち着いた生活を求める人にはおすすめ。 | E67: 所要時間（分） | F67: 家賃相場（万円）
A69: ② | B69: =ランキング!C6 -> 大宮 | D69: ="（"&ランキング!D6&ランキング!E6&"）" -> （埼玉県さいたま市大宮区） | E69: =VLOOKUP($B69,ランキング!$C:$BC,$G$13,0) ->  | F69: =VLOOKUP($B69,ランキング!$C:$BC,$F$19,0) -> 
B70: どんな街？ | D70: =IF(AND(VLOOKUP($B69,全データ!$C:$CJ,全データ!$CH$1,0)=0,VLOOKUP($B69,全データ!$C:$CJ,全データ!$CI$1,0)=0),HYPERLINK(全データ!$CI$3,全データ!$CH$2),IF(VLOOKUP($B69,全データ!$C:$CJ,全データ!$CH$1,0)=0,HYPERLINK(VLOOKUP($B69,全データ!$C:$CJ,全データ!$CI$1,0),全データ!$CI$2),HYPERLINK(VLOOKUP($B69,全データ!$C:$CJ,全データ!$CI$1,0),VLOOKUP($B69,全データ!$C:$CJ,全データ!$CH$1,0)))) -> このセルをクリックし,ご参照ください | E70: 所要時間（分） | F70: 家賃相場（万円）
A72: ③ | B72: =ランキング!C7 -> さいたま新都心 | D72: ="（"&ランキング!D7&ランキング!E7&"）" -> （埼玉県さいたま市大宮区） | E72: =VLOOKUP($B72,ランキング!$C:$BC,$G$13,0) ->  | F72: =VLOOKUP($B72,ランキング!$C:$BC,$F$19,0) -> 
B73: どんな街？ | D73: =IF(AND(VLOOKUP($B72,全データ!$C:$CJ,全データ!$CH$1,0)=0,VLOOKUP($B72,全データ!$C:$CJ,全データ!$CI$1,0)=0),HYPERLINK(全データ!$CI$3,全データ!$CH$2),IF(VLOOKUP($B72,全データ!$C:$CJ,全データ!$CH$1,0)=0,HYPERLINK(VLOOKUP($B72,全データ!$C:$CJ,全データ!$CI$1,0),全データ!$CI$2),HYPERLINK(VLOOKUP($B72,全データ!$C:$CJ,全データ!$CI$1,0),VLOOKUP($B72,全データ!$C:$CJ,全データ!$CH$1,0)))) -> 駅名通り、新都心の雰囲気があふれる街。官公庁が多いが、さいたまスーパーアリーナもあり、公私ともに充実できる近未来タウン。 | E73: 所要時間（分） | F73: 家賃相場（万円）
A75: ④ | B75: =ランキング!C8 -> 赤羽 | D75: ="（"&ランキング!D8&ランキング!E8&"）" -> （東京都北区） | E75: =VLOOKUP($B75,ランキング!$C:$BC,$G$13,0) ->  | F75: =VLOOKUP($B75,ランキング!$C:$BC,$F$19,0) -> 
B76: どんな街？ | D76: =IF(AND(VLOOKUP($B75,全データ!$C:$CJ,全データ!$CH$1,0)=0,VLOOKUP($B75,全データ!$C:$CJ,全データ!$CI$1,0)=0),HYPERLINK(全データ!$CI$3,全データ!$CH$2),IF(VLOOKUP($B75,全データ!$C:$CJ,全データ!$CH$1,0)=0,HYPERLINK(VLOOKUP($B75,全データ!$C:$CJ,全データ!$CI$1,0),全データ!$CI$2),HYPERLINK(VLOOKUP($B75,全データ!$C:$CJ,全データ!$CI$1,0),VLOOKUP($B75,全データ!$C:$CJ,全データ!$CH$1,0)))) -> 東京の東側にも西側にも１本で行ける「最強」の街。総合スーパーも充実し、最近話題沸騰の無敵の街。 | E76: 所要時間（分） | F76: 家賃相場（万円）
A78: ⑤ | B78: =ランキング!C9 -> 大船 | D78: ="（"&ランキング!D9&ランキング!E9&"）" -> （神奈川県鎌倉市） | E78: =VLOOKUP($B78,ランキング!$C:$BC,$G$13,0) ->  | F78: =VLOOKUP($B78,ランキング!$C:$BC,$F$19,0) -> 
B79: どんな街？ | D79: =IF(AND(VLOOKUP($B78,全データ!$C:$CJ,全データ!$CH$1,0)=0,VLOOKUP($B78,全データ!$C:$CJ,全データ!$CI$1,0)=0),HYPERLINK(全データ!$CI$3,全データ!$CH$2),IF(VLOOKUP($B78,全データ!$C:$CJ,全データ!$CH$1,0)=0,HYPERLINK(VLOOKUP($B78,全データ!$C:$CJ,全データ!$CI$1,0),全データ!$CI$2),HYPERLINK(VLOOKUP($B78,全データ!$C:$CJ,全データ!$CI$1,0),VLOOKUP($B78,全データ!$C:$CJ,全データ!$CH$1,0)))) -> このセルをクリックし,ご参照ください | E79: 所要時間（分） | F79: 家賃相場（万円）
A81: ⑥ | B81: =ランキング!C10 -> 川崎 | D81: ="（"&ランキング!D10&ランキング!E10&"）" -> （神奈川県川崎市川崎区） | E81: =VLOOKUP($B81,ランキング!$C:$BC,$G$13,0) ->  | F81: =VLOOKUP($B81,ランキング!$C:$BC,$F$19,0) -> 
B82: どんな街？ | D82: =IF(AND(VLOOKUP($B81,全データ!$C:$CJ,全データ!$CH$1,0)=0,VLOOKUP($B81,全データ!$C:$CJ,全データ!$CI$1,0)=0),HYPERLINK(全データ!$CI$3,全データ!$CH$2),IF(VLOOKUP($B81,全データ!$C:$CJ,全データ!$CH$1,0)=0,HYPERLINK(VLOOKUP($B81,全データ!$C:$CJ,全データ!$CI$1,0),全データ!$CI$2),HYPERLINK(VLOOKUP($B81,全データ!$C:$CJ,全データ!$CI$1,0),VLOOKUP($B81,全データ!$C:$CJ,全データ!$CH$1,0)))) -> このセルをクリックし,ご参照ください | E82: 所要時間（分） | F82: 家賃相場（万円）
A84: ⑦ | B84: =ランキング!C11 -> 横浜 | D84: ="（"&ランキング!D11&ランキング!E11&"）" -> （神奈川県横浜市西区） | E84: =VLOOKUP($B84,ランキング!$C:$BC,$G$13,0) ->  | F84: =VLOOKUP($B84,ランキング!$C:$BC,$F$19,0) -> 
B85: どんな街？ | D85: =IF(AND(VLOOKUP($B84,全データ!$C:$CJ,全データ!$CH$1,0)=0,VLOOKUP($B84,全データ!$C:$CJ,全データ!$CI$1,0)=0),HYPERLINK(全データ!$CI$3,全データ!$CH$2),IF(VLOOKUP($B84,全データ!$C:$CJ,全データ!$CH$1,0)=0,HYPERLINK(VLOOKUP($B84,全データ!$C:$CJ,全データ!$CI$1,0),全データ!$CI$2),HYPERLINK(VLOOKUP($B84,全データ!$C:$CJ,全データ!$CI$1,0),VLOOKUP($B84,全データ!$C:$CJ,全データ!$CH$1,0)))) -> このセルをクリックし,ご参照ください | E85: 所要時間（分） | F85: 家賃相場（万円）
A87: ⑧ | B87: =ランキング!C12 -> 昭島 | D87: ="（"&ランキング!D12&ランキング!E12&"）" -> （東京都昭島市） | E87: =VLOOKUP($B87,ランキング!$C:$BC,$G$13,0) ->  | F87: =VLOOKUP($B87,ランキング!$C:$BC,$F$19,0) -> 
B88: どんな街？ | D88: =IF(AND(VLOOKUP($B87,全データ!$C:$CJ,全データ!$CH$1,0)=0,VLOOKUP($B87,全データ!$C:$CJ,全データ!$CI$1,0)=0),HYPERLINK(全データ!$CI$3,全データ!$CH$2),IF(VLOOKUP($B87,全データ!$C:$CJ,全データ!$CH$1,0)=0,HYPERLINK(VLOOKUP($B87,全データ!$C:$CJ,全データ!$CI$1,0),全データ!$CI$2),HYPERLINK(VLOOKUP($B87,全データ!$C:$CJ,全データ!$CI$1,0),VLOOKUP($B87,全データ!$C:$CJ,全データ!$CH$1,0)))) -> 自然と開発が調和された街。山を間近に見ながらも買い物も通勤も便利な暮らしをしたい人にオススメしたい街。 | E88: 所要時間（分） | F88: 家賃相場（万円）
A90: ⑨ | B90: =ランキング!C13 -> 拝島 | D90: ="（"&ランキング!D13&ランキング!E13&"）" -> （東京都昭島市） | E90: =VLOOKUP($B90,ランキング!$C:$BC,$G$13,0) ->  | F90: =VLOOKUP($B90,ランキング!$C:$BC,$F$19,0) -> 
B91: どんな街？ | D91: =IF(AND(VLOOKUP($B90,全データ!$C:$CJ,全データ!$CH$1,0)=0,VLOOKUP($B90,全データ!$C:$CJ,全データ!$CI$1,0)=0),HYPERLINK(全データ!$CI$3,全データ!$CH$2),IF(VLOOKUP($B90,全データ!$C:$CJ,全データ!$CH$1,0)=0,HYPERLINK(VLOOKUP($B90,全データ!$C:$CJ,全データ!$CI$1,0),全データ!$CI$2),HYPERLINK(VLOOKUP($B90,全データ!$C:$CJ,全データ!$CI$1,0),VLOOKUP($B90,全データ!$C:$CJ,全データ!$CH$1,0)))) -> このセルをクリックし,ご参照ください | E91: 所要時間（分） | F91: 家賃相場（万円）
A93: ⑩ | B93: =ランキング!C14 -> 中神 | D93: ="（"&ランキング!D14&ランキング!E14&"）" -> （東京都昭島市） | E93: =VLOOKUP($B93,ランキング!$C:$BC,$G$13,0) ->  | F93: =VLOOKUP($B93,ランキング!$C:$BC,$F$19,0) -> 
B94: どんな街？ | D94: =IF(AND(VLOOKUP($B93,全データ!$C:$CJ,全データ!$CH$1,0)=0,VLOOKUP($B93,全データ!$C:$CJ,全データ!$CI$1,0)=0),HYPERLINK(全データ!$CI$3,全データ!$CH$2),IF(VLOOKUP($B93,全データ!$C:$CJ,全データ!$CH$1,0)=0,HYPERLINK(VLOOKUP($B93,全データ!$C:$CJ,全データ!$CI$1,0),全データ!$CI$2),HYPERLINK(VLOOKUP($B93,全データ!$C:$CJ,全データ!$CI$1,0),VLOOKUP($B93,全データ!$C:$CJ,全データ!$CH$1,0)))) -> このセルをクリックし,ご参照ください | E94: 所要時間（分） | F94: 家賃相場（万円）
B96: ⑨ ランキングを見る場合は、見たいランキングのボタンを押してください。
B103: ⑩ 設定を変更してやり直す際には「データリセット」ボタンを押してください。

Sheet ランキング
D1: 2 | E1: 3 | F1: =全データ!$AO$1 -> 39 | G1: =全データ!$AP$1 -> 40 | I1: =全データ!$AS$1 -> 43 | J1: =全データ!$AT$1 -> 44 | K1: =全データ!$AV$1 -> 46 | L1: =全データ!$AW$1 -> 47 | N1: 4 | O1: 6 | P1: 8 | Q1: 10 | R1: 12 | S1: 14 | T1: 16 | U1: 18 | V1: 20 | W1: 22 | X1: =全データ!Z1 -> 24 | Y1: =全データ!AA1 -> 25 | Z1: =全データ!AZ1 -> 50 | AA1: =全データ!BA1 -> 51 | AB1: =全データ!BB1 -> 52 | AC1: =全データ!BC1 -> 53 | AD1: =全データ!BD1 -> 54 | AE1: =全データ!BE1 -> 55 | AF1: =全データ!BF1 -> 56 | AG1: =全データ!BG1 -> 57 | AH1: =全データ!BH1 -> 58 | AI1: =全データ!BI1 -> 59 | AJ1: =全データ!BJ1 -> 60 | AK1: =全データ!BK1 -> 61 | AL1: =全データ!BL1 -> 62 | AM1: =全データ!BM1 -> 63 | AN1: =全データ!BN1 -> 64 | AO1: =全データ!BO1 -> 65 | AP1: =全データ!BP1 -> 66 | AQ1: =全データ!BQ1 -> 67 | AR1: =全データ!BR1 -> 68 | AS1: =全データ!BS1 -> 69 | AT1: =全データ!BT1 -> 70 | AU1: =全データ!BU1 -> 71 | AV1: =全データ!BV1 -> 72 | AW1: =全データ!BW1 -> 73
C2: 1 | D2: =C2+1 -> 2 | E2: =D2+1 -> 3 | F2: =E2+1 -> 4 | G2: =F2+1 -> 5 | H2: =G2+1 -> 6 | I2: =H2+1 -> 7 | J2: =I2+1 -> 8 | K2: =J2+1 -> 9 | L2: =K2+1 -> 10 | M2: =L2+1 -> 11 | N2: =M2+1 -> 12 | O2: =N2+1 -> 13 | P2: =O2+1 -> 14 | Q2: =P2+1 -> 15 | R2: =Q2+1 -> 16 | S2: =R2+1 -> 17 | T2: =S2+1 -> 18 | U2: =T2+1 -> 19 | V2: =U2+1 -> 20 | W2: =V2+1 -> 21 | X2: =W2+1 -> 22 | Y2: =X2+1 -> 23 | Z2: =Y2+1 -> 24 | AA2: =Z2+1 -> 25 | AB2: =AA2+1 -> 26 | AC2: =AB2+1 -> 27 | AD2: =AC2+1 -> 28 | AE2: =AD2+1 -> 29 | AF2: =AE2+1 -> 30 | AG2: =AF2+1 -> 31 | AH2: =AG2+1 -> 32 | AI2: =AH2+1 -> 33 | AJ2: =AI2+1 -> 34 | AK2: =AJ2+1 -> 35 | AL2: =AK2+1 -> 36 | AM2: =AL2+1 -> 37 | AN2: =AM2+1 -> 38 | AO2: =AN2+1 -> 39 | AP2: =AO2+1 -> 40 | AQ2: =AP2+1 -> 41 | AR2: =AQ2+1 -> 42 | AS2: =AR2+1 -> 43 | AT2: =AS2+1 -> 44 | AU2: =AT2+1 -> 45 | AV2: =AU2+1 -> 46 | AW2: =AV2+1 -> 47 | AX2: =AW2+1 -> 48 | AY2: =AX2+1 -> 49 | AZ2: =AY2+1 -> 50 | BA2: =AZ2+1 -> 51 | BB2: =BA2+1 -> 52 | BC2: =BB2+1 -> 53
F3: 平均所要時間（分） | K3: 家賃相場（万円） | Z3: 格安スーパー | AH3: 総合スーパー（GMS） | AL3: ホームセンター | AT3: ショッピングモール | AX3: 商業施設数
A4: 0 | B4: 鉄道路線 | C4: 駅名 | D4: 都道府県 | E4: 市区町村 | F4: 東京 | G4: 新宿 | H4: バランス | I4: 混雑率 （％） | J4: 始発あり | K4: 1K | L4: 2LDK | M4: 指定なし | N4: 住民の平均年齢 | O4: 住宅地の人口密度 | P4: 単身世帯の多さ | Q4: ベッドタウン指数 | R4: 住民の平均年収 | S4: 犯罪認知率 | T4: 図書館充実度 | U4: 医療充実度 | V4: 待機児童の少なさ | W4: 人口増減率 | X4: 自動車利便性 （高速IC） | Y4: ロータリー | Z4: OKストア | AA4: ロピア | AB4: TRIAL | AC4: ベイシア | AD4: ロヂャース | AE4: Big・A | AF4: マルエイ | AG4: ジャパンミート | AH4: イトーヨーカドー | AI4: イオン・ダイエー | AJ4: 西友 | AK4: MEGAドンキ・アピタ | AL4: カインズ | AM4: ビバホーム | AN4: ジョイフル本田 | AO4: 島忠 | AP4: DCM | AQ4: コメリ | AR4: コーナン | AS4: ロイヤル | AT4: イオンモール・タウン | AU4: アリオ | AV4: 大型商業施設 | AW4: 駅ビル等 | AX4: 格安スーパー | AY4: 総合スーパー | AZ4: ホームセンター | BA4: ショッピングモール | BB4: 合計 | BC4: 総合点
A5: =A4+1 -> 1 | B5: JR上野東京ライン | C5: 浦和 | D5: =IFERROR(VLOOKUP($C5,全データ!$C:$CI,D$1,0)&"","") -> 埼玉県 | E5: =IFERROR(VLOOKUP($C5,全データ!$C:$CI,E$1,0)&"","") -> さいたま市浦和区 | F5: =VLOOKUP($C5,全データ!$C:$CI,F$1,0) -> 30 | G5: =VLOOKUP($C5,全データ!$C:$CI,G$1,0) -> 30.66666667 | H5: =(VLOOKUP($C5,全データ!$C:$CI,F$1,0)+VLOOKUP($C5,全データ!$C:$CI,G$1,0))/2 -> 30.33333333 | I5: =VLOOKUP($C5,全データ!$C:$CI,I$1,0) -> 164 | J5: =VLOOKUP($C5,全データ!$C:$CI,J$1,0) -> × | K5: =VLOOKUP($C5,全データ!$C:$CI,K$1,0) -> 7.24 | L5: =VLOOKUP($C5,全データ!$C:$CI,L$1,0) -> 12.99 | M5: =(VLOOKUP($C5,全データ!$C:$CI,K$1,0)+VLOOKUP($C5,全データ!$C:$CI,L$1,0))/2 -> 10.115 | N5: =VLOOKUP($C5,全データ!$C:$CI,N$1,0) -> 43.98875997 | O5: =VLOOKUP($C5,全データ!$C:$CI,O$1,0) -> 14111.79159 | P5: =VLOOKUP($C5,全データ!$C:$CI,P$1,0) -> 0.3502631147 | Q5: =VLOOKUP($C5,全データ!$C:$CI,Q$1,0) -> -4.533209e-05 | R5: =VLOOKUP($C5,全データ!$C:$CI,R$1,0) -> 380.9352111 | S5: =VLOOKUP($C5,全データ!$C:$CI,S$1,0) -> 0.006748311303 | T5: =VLOOKUP($C5,全データ!$C:$CI,T$1,0) -> 4.811930111 | U5: =VLOOKUP($C5,全データ!$C:$CI,U$1,0) -> 1.886565161 | V5: =VLOOKUP($C5,全データ!$C:$CI,V$1,0) -> 0.06500747445 | W5: =VLOOKUP($C5,全データ!$C:$CI,W$1,0) -> 0.06651195558 | X5: =VLOOKUP($C5,全データ!$C:$CI,X$1,0) -> - | Y5: =VLOOKUP($C5,全データ!$C:$CI,Y$1,0) -> ○ | Z5: =IFERROR(VLOOKUP($C5,全データ!$C:$CI,Z$1,0)&"","") ->  | AA5: =IFERROR(VLOOKUP($C5,全データ!$C:$CI,AA$1,0)&"","") ->  | AB5: =IFERROR(VLOOKUP($C5,全データ!$C:$CI,AB$1,0)&"","") ->  | AC5: =IFERROR(VLOOKUP($C5,全データ!$C:$CI,AC$1,0)&"","") ->  | AD5: =IFERROR(VLOOKUP($C5,全データ!$C:$CI,AD$1,0)&"","") ->  | AE5: =IFERROR(VLOOKUP($C5,全データ!$C:$CI,AE$1,0)&"","") -> ○ | AF5: =IFERROR(VLOOKUP($C5,全データ!$C:$CI,AF$1,0)&"","") ->  | AG5: =IFERROR(VLOOKUP($C5,全データ!$C:$CI,AG$1,0)&"","") ->  | AH5: =IFERROR(VLOOKUP($C5,全データ!$C:$CI,AH$1,0)&"","") -> ○ | AI5: =IFERROR(VLOOKUP($C5,全データ!$C:$CI,AI$1,0)&"","") ->  | AJ5: =IFERROR(VLOOKUP($C5,全データ!$C:$CI,AJ$1,0)&"","") ->  | AK5: =IFERROR(VLOOKUP($C5,全データ!$C:$CI,AK$1,0)&"","") -> ○ | AL5: =IFERROR(VLOOKUP($C5,全データ!$C:$CI,AL$1,0)&"","") ->  | AM5: =IFERROR(VLOOKUP($C5,全データ!$C:$CI,AM$1,0)&"","") ->  | AN5: =IFERROR(VLOOKUP($C5,全データ!$C:$CI,AN$1,0)&"","") ->  | AO5: =IFERROR(VLOOKUP($C5,全データ!$C:$CI,AO$1,0)&"","") ->  | AP5: =IFERROR(VLOOKUP($C5,全データ!$C:$CI,AP$1,0)&"","") ->  | AQ5: =IFERROR(VLOOKUP($C5,全データ!$C:$CI,AQ$1,0)&"","") ->  | AR5: =IFERROR(VLOOKUP($C5,全データ!$C:$CI,AR$1,0)&"","") ->  | AS5: =IFERROR(VLOOKUP($C5,全データ!$C:$CI,AS$1,0)&"","") ->  | AT5: =IFERROR(VLOOKUP($C5,全データ!$C:$CI,AT$1,0)&"","") ->  | AU5: =IFERROR(VLOOKUP($C5,全データ!$C:$CI,AU$1,0)&"","") ->  | AV5: =IFERROR(VLOOKUP($C5,全データ!$C:$CI,AV$1,0)&"","") -> ○ | AW5: =IFERROR(VLOOKUP($C5,全データ!$C:$CI,AW$1,0)&"","") -> ◎ | AX5: =COUNTIF($Z5:$AG5,"○") -> 1 | AY5: =COUNTIF($AH5:$AK5,"○") -> 2 | AZ5: =COUNTIF($AL5:$AS5,"○") -> 0 | BA5: =COUNTIF(AT5:AW5,"○")+COUNTIF(AT5:AW5,"◎") -> 2 | BB5: =SUM(AX5:BA5) -> 5 | BC5: =VLOOKUP($C5,点数集計!$C:$CL,ようこそ!$G$19,0) -> 
A6: =A5+1 -> 2 | B6: JR上野東京ライン | C6: 大宮 | D6: =IFERROR(VLOOKUP($C6,全データ!$C:$CI,D$1,0)&"","") -> 埼玉県 | E6: =IFERROR(VLOOKUP($C6,全データ!$C:$CI,E$1,0)&"","") -> さいたま市大宮区 | F6: =VLOOKUP($C6,全データ!$C:$CI,F$1,0) -> 38 | G6: =VLOOKUP($C6,全データ!$C:$CI,G$1,0) -> 34.66666667 | H6: =(VLOOKUP($C6,全データ!$C:$CI,F$1,0)+VLOOKUP($C6,全データ!$C:$CI,G$1,0))/2 -> 36.33333333 | I6: =VLOOKUP($C6,全データ!$C:$CI,I$1,0) -> 164 | J6: =VLOOKUP($C6,全データ!$C:$CI,J$1,0) -> △ | K6: =VLOOKUP($C6,全データ!$C:$CI,K$1,0) -> 7.22 | L6: =VLOOKUP($C6,全データ!$C:$CI,L$1,0) -> 16.46 | M6: =(VLOOKUP($C6,全データ!$C:$CI,K$1,0)+VLOOKUP($C6,全データ!$C:$CI,L$1,0))/2 -> 11.84 | N6: =VLOOKUP($C6,全データ!$C:$CI,N$1,0) -> 45.65206186 | O6: =VLOOKUP($C6,全データ!$C:$CI,O$1,0) -> 9217.532468 | P6: =VLOOKUP($C6,全データ!$C:$CI,P$1,0) -> 0.4177738523 | Q6: =VLOOKUP($C6,全データ!$C:$CI,Q$1,0) -> 0.408223846 | R6: =VLOOKUP($C6,全データ!$C:$CI,R$1,0) -> 380.9352111 | S6: =VLOOKUP($C6,全データ!$C:$CI,S$1,0) -> 0.01208012673 | T6: =VLOOKUP($C6,全データ!$C:$CI,T$1,0) -> 2.97774538 | U6: =VLOOKUP($C6,全データ!$C:$CI,U$1,0) -> 6.358858967 | V6: =VLOOKUP($C6,全データ!$C:$CI,V$1,0) -> 0.06500747445 | W6: =VLOOKUP($C6,全データ!$C:$CI,W$1,0) -> 0.04955386771 | X6: =VLOOKUP($C6,全データ!$C:$CI,X$1,0) -> 新都心西 | Y6: =VLOOKUP($C6,全データ!$C:$CI,Y$1,0) -> ○ | Z6: =IFERROR(VLOOKUP($C6,全データ!$C:$CI,Z$1,0)&"","") ->  | AA6: =IFERROR(VLOOKUP($C6,全データ!$C:$CI,AA$1,0)&"","") ->  | AB6: =IFERROR(VLOOKUP($C6,全データ!$C:$CI,AB$1,0)&"","") -> ○ | AC6: =IFERROR(VLOOKUP($C6,全データ!$C:$CI,AC$1,0)&"","") ->  | AD6: =IFERROR(VLOOKUP($C6,全データ!$C:$CI,AD$1,0)&"","") ->  | AE6: =IFERROR(VLOOKUP($C6,全データ!$C:$CI,AE$1,0)&"","") ->  | AF6: =IFERROR(VLOOKUP($C6,全データ!$C:$CI,AF$1,0)&"","") ->  | AG6: =IFERROR(VLOOKUP($C6,全データ!$C:$CI,AG$1,0)&"","") ->  | AH6: =IFERROR(VLOOKUP($C6,全データ!$C:$CI,AH$1,0)&"","") ->  | AI6: =IFERROR(VLOOKUP($C6,全データ!$C:$CI,AI$1,0)&"","") -> ○ | AJ6: =IFERROR(VLOOKUP($C6,全データ!$C:$CI,AJ$1,0)&"","") ->  | AK6: =IFERROR(VLOOKUP($C6,全データ!$C:$CI,AK$1,0)&"","") ->  | AL6: =IFERROR(VLOOKUP($C6,全データ!$C:$CI,AL$1,0)&"","") ->  | AM6: =IFERROR(VLOOKUP($C6,全データ!$C:$CI,AM$1,0)&"","") ->  | AN6: =IFERROR(VLOOKUP($C6,全データ!$C:$CI,AN$1,0)&"","") ->  | AO6: =IFERROR(VLOOKUP($C6,全データ!$C:$CI,AO$1,0)&"","") -> ○ | AP6: =IFERROR(VLOOKUP($C6,全データ!$C:$CI,AP$1,0)&"","") ->  | AQ6: =IFERROR(VLOOKUP($C6,全データ!$C:$CI,AQ$1,0)&"","") ->  | AR6: =IFERROR(VLOOKUP($C6,全データ!$C:$CI,AR$1,0)&"","") ->  | AS6: =IFERROR(VLOOKUP($C6,全データ!$C:$CI,AS$1,0)&"","") ->  | AT6: =IFERROR(VLOOKUP($C6,全データ!$C:$CI,AT$1,0)&"","") ->  | AU6: =IFERROR(VLOOKUP($C6,全データ!$C:$CI,AU$1,0)&"","") ->  | AV6: =IFERROR(VLOOKUP($C6,全データ!$C:$CI,AV$1,0)&"","") -> ◎ | AW6: =IFERROR(VLOOKUP($C6,全データ!$C:$CI,AW$1,0)&"","") -> ◎ | AX6: =COUNTIF($Z6:$AG6,"○") -> 1 | AY6: =COUNTIF($AH6:$AK6,"○") -> 1 | AZ6: =COUNTIF($AL6:$AS6,"○") -> 1 | BA6: =COUNTIF(AT6:AW6,"○")+COUNTIF(AT6:AW6,"◎") -> 2 | BB6: =SUM(AX6:BA6) -> 5 | BC6: =VLOOKUP($C6,点数集計!$C:$CL,ようこそ!$G$19,0) -> 
A7: =A6+1 -> 3 | B7: JR上野東京ライン | C7: さいたま新都心 | D7: =IFERROR(VLOOKUP($C7,全データ!$C:$CI,D$1,0)&"","") -> 埼玉県 | E7: =IFERROR(VLOOKUP($C7,全データ!$C:$CI,E$1,0)&"","") -> さいたま市大宮区 | F7: =VLOOKUP($C7,全データ!$C:$CI,F$1,0) -> 35 | G7: =VLOOKUP($C7,全データ!$C:$CI,G$1,0) -> 37 | H7: =(VLOOKUP($C7,全データ!$C:$CI,F$1,0)+VLOOKUP($C7,全データ!$C:$CI,G$1,0))/2 -> 36 | I7: =VLOOKUP($C7,全データ!$C:$CI,I$1,0) -> 164 | J7: =VLOOKUP($C7,全データ!$C:$CI,J$1,0) -> × | K7: =VLOOKUP($C7,全データ!$C:$CI,K$1,0) -> 7.11 | L7: =VLOOKUP($C7,全データ!$C:$CI,L$1,0) -> 18.11 | M7: =(VLOOKUP($C7,全データ!$C:$CI,K$1,0)+VLOOKUP($C7,全データ!$C:$CI,L$1,0))/2 -> 12.61 | N7: =VLOOKUP($C7,全データ!$C:$CI,N$1,0) -> 45.65206186 | O7: =VLOOKUP($C7,全データ!$C:$CI,O$1,0) -> 9217.532468 | P7: =VLOOKUP($C7,全データ!$C:$CI,P$1,0) -> 0.4177738523 | Q7: =VLOOKUP($C7,全データ!$C:$CI,Q$1,0) -> 0.408223846 | R7: =VLOOKUP($C7,全データ!$C:$CI,R$1,0) -> 380.9352111 | S7: =VLOOKUP($C7,全データ!$C:$CI,S$1,0) -> 0.01208012673 | T7: =VLOOKUP($C7,全データ!$C:$CI,T$1,0) -> 2.97774538 | U7: =VLOOKUP($C7,全データ!$C:$CI,U$1,0) -> 6.358858967 | V7: =VLOOKUP($C7,全データ!$C:$CI,V$1,0) -> 0.06500747445 | W7: =VLOOKUP($C7,全データ!$C:$CI,W$1,0) -> 0.04955386771 | X7: =VLOOKUP($C7,全データ!$C:$CI,X$1,0) -> 新都心 | Y7: =VLOOKUP($C7,全データ!$C:$CI,Y$1,0) -> ○ | Z7: =IFERROR(VLOOKUP($C7,全データ!$C:$CI,Z$1,0)&"","") ->  | AA7: =IFERROR(VLOOKUP($C7,全データ!$C:$CI,AA$1,0)&"","") ->  | AB7: =IFERROR(VLOOKUP($C7,全データ!$C:$CI,AB$1,0)&"","") ->  | AC7: =IFERROR(VLOOKUP($C7,全データ!$C:$CI,AC$1,0)&"","") ->  | AD7: =IFERROR(VLOOKUP($C7,全データ!$C:$CI,AD$1,0)&"","") ->  | AE7: =IFERROR(VLOOKUP($C7,全データ!$C:$CI,AE$1,0)&"","") ->  | AF7: =IFERROR(VLOOKUP($C7,全データ!$C:$CI,AF$1,0)&"","") ->  | AG7: =IFERROR(VLOOKUP($C7,全データ!$C:$CI,AG$1,0)&"","") ->  | AH7: =IFERROR(VLOOKUP($C7,全データ!$C:$CI,AH$1,0)&"","") -> ○ | AI7: =IFERROR(VLOOKUP($C7,全データ!$C:$CI,AI$1,0)&"","") ->  | AJ7: =IFERROR(VLOOKUP($C7,全データ!$C:$CI,AJ$1,0)&"","") ->  | AK7: =IFERROR(VLOOKUP($C7,全データ!$C:$CI,AK$1,0)&"","") ->  | AL7: =IFERROR(VLOOKUP($C7,全データ!$C:$CI,AL$1,0)&"","") ->  | AM7: =IFERROR(VLOOKUP($C7,全データ!$C:$CI,AM$1,0)&"","") -> ○ | AN7: =IFERROR(VLOOKUP($C7,全データ!$C:$CI,AN$1,0)&"","") ->  | AO7: =IFERROR(VLOOKUP($C7,全データ!$C:$CI,AO$1,0)&"","") ->  | AP7: =IFERROR(VLOOKUP($C7,全データ!$C:$CI,AP$1,0)&"","") ->  | AQ7: =IFERROR(VLOOKUP($C7,全データ!$C:$CI,AQ$1,0)&"","") ->  | AR7: =IFERROR(VLOOKUP($C7,全データ!$C:$CI,AR$1,0)&"","") ->  | AS7: =IFERROR(VLOOKUP($C7,全データ!$C:$CI,AS$1,0)&"","") ->  | AT7: =IFERROR(VLOOKUP($C7,全データ!$C:$CI,AT$1,0)&"","") ->  | AU7: =IFERROR(VLOOKUP($C7,全データ!$C:$CI,AU$1,0)&"","") ->  | AV7: =IFERROR(VLOOKUP($C7,全データ!$C:$CI,AV$1,0)&"","") -> ◎ | AW7: =IFERROR(VLOOKUP($C7,全データ!$C:$CI,AW$1,0)&"","") -> ○ | AX7: =COUNTIF($Z7:$AG7,"○") -> 0 | AY7: =COUNTIF($AH7:$AK7,"○") -> 1 | AZ7: =COUNTIF($AL7:$AS7,"○") -> 1 | BA7: =COUNTIF(AT7:AW7,"○")+COUNTIF(AT7:AW7,"◎") -> 2 | BB7: =SUM(AX7:BA7) -> 4 | BC7: =VLOOKUP($C7,点数集計!$C:$CL,ようこそ!$G$19,0) -> 
A8: =A7+1 -> 4 | B8: JR上野東京ライン | C8: 赤羽 | D8: =IFERROR(VLOOKUP($C8,全データ!$C:$CI,D$1,0)&"","") -> 東京都 | E8: =IFERROR(VLOOKUP($C8,全データ!$C:$CI,E$1,0)&"","") -> 北区 | F8: =VLOOKUP($C8,全データ!$C:$CI,F$1,0) -> 21 | G8: =VLOOKUP($C8,全データ!$C:$CI,G$1,0) -> 16 | H8: =(VLOOKUP($C8,全データ!$C:$CI,F$1,0)+VLOOKUP($C8,全データ!$C:$CI,G$1,0))/2 -> 18.5 | I8: =VLOOKUP($C8,全データ!$C:$CI,I$1,0) -> 164 | J8: =VLOOKUP($C8,全データ!$C:$CI,J$1,0) -> △ | K8: =VLOOKUP($C8,全データ!$C:$CI,K$1,0) -> 9.28 | L8: =VLOOKUP($C8,全データ!$C:$CI,L$1,0) -> 16.75 | M8: =(VLOOKUP($C8,全データ!$C:$CI,K$1,0)+VLOOKUP($C8,全データ!$C:$CI,L$1,0))/2 -> 13.015 | N8: =VLOOKUP($C8,全データ!$C:$CI,N$1,0) -> 44.97053903 | O8: =VLOOKUP($C8,全データ!$C:$CI,O$1,0) -> 16549.05386 | P8: =VLOOKUP($C8,全データ!$C:$CI,P$1,0) -> 0.5054580558 | Q8: =VLOOKUP($C8,全データ!$C:$CI,Q$1,0) -> -0.03319787965 | R8: =VLOOKUP($C8,全データ!$C:$CI,R$1,0) -> 355.8315766 | S8: =VLOOKUP($C8,全データ!$C:$CI,S$1,0) -> 0.007172034826 | T8: =VLOOKUP($C8,全データ!$C:$CI,T$1,0) -> 3.998205678 | U8: =VLOOKUP($C8,全データ!$C:$CI,U$1,0) -> 17.41061097 | V8: =VLOOKUP($C8,全データ!$C:$CI,V$1,0) -> 0.04318672576 | W8: =VLOOKUP($C8,全データ!$C:$CI,W$1,0) -> 0.01648666047 | X8: =VLOOKUP($C8,全データ!$C:$CI,X$1,0) -> - | Y8: =VLOOKUP($C8,全データ!$C:$CI,Y$1,0) -> ○ | Z8: =IFERROR(VLOOKUP($C8,全データ!$C:$CI,Z$1,0)&"","") ->  | AA8: =IFERROR(VLOOKUP($C8,全データ!$C:$CI,AA$1,0)&"","") ->  | AB8: =IFERROR(VLOOKUP($C8,全データ!$C:$CI,AB$1,0)&"","") ->  | AC8: =IFERROR(VLOOKUP($C8,全データ!$C:$CI,AC$1,0)&"","") ->  | AD8: =IFERROR(VLOOKUP($C8,全データ!$C:$CI,AD$1,0)&"","") ->  | AE8: =IFERROR(VLOOKUP($C8,全データ!$C:$CI,AE$1,0)&"","") ->  | AF8: =IFERROR(VLOOKUP($C8,全データ!$C:$CI,AF$1,0)&"","") ->  | AG8: =IFERROR(VLOOKUP($C8,全データ!$C:$CI,AG$1,0)&"","") ->  | AH8: =IFERROR(VLOOKUP($C8,全データ!$C:$CI,AH$1,0)&"","") -> ○ | AI8: =IFERROR(VLOOKUP($C8,全データ!$C:$CI,AI$1,0)&"","") -> ○ | AJ8: =IFERROR(VLOOKUP($C8,全データ!$C:$CI,AJ$1,0)&"","") -> ○ | AK8: =IFERROR(VLOOKUP($C8,全データ!$C:$CI,AK$1,0)&"","") ->  | AL8: =IFERROR(VLOOKUP($C8,全データ!$C:$CI,AL$1,0)&"","") ->  | AM8: =IFERROR(VLOOKUP($C8,全データ!$C:$CI,AM$1,0)&"","") ->  | AN8: =IFERROR(VLOOKUP($C8,全データ!$C:$CI,AN$1,0)&"","") ->  | AO8: =IFERROR(VLOOKUP($C8,全データ!$C:$CI,AO$1,0)&"","") ->  | AP8: =IFERROR(VLOOKUP($C8,全データ!$C:$CI,AP$1,0)&"","") ->  | AQ8: =IFERROR(VLOOKUP($C8,全データ!$C:$CI,AQ$1,0)&"","") ->  | AR8: =IFERROR(VLOOKUP($C8,全データ!$C:$CI,AR$1,0)&"","") ->  | AS8: =IFERROR(VLOOKUP($C8,全データ!$C:$CI,AS$1,0)&"","") ->  | AT8: =IFERROR(VLOOKUP($C8,全データ!$C:$CI,AT$1,0)&"","") ->  | AU8: =IFERROR(VLOOKUP($C8,全データ!$C:$CI,AU$1,0)&"","") ->  | AV8: =IFERROR(VLOOKUP($C8,全データ!$C:$CI,AV$1,0)&"","") ->  | AW8: =IFERROR(VLOOKUP($C8,全データ!$C:$CI,AW$1,0)&"","") -> ○ | AX8: =COUNTIF($Z8:$AG8,"○") -> 0 | AY8: =COUNTIF($AH8:$AK8,"○") -> 3 | AZ8: =COUNTIF($AL8:$AS8,"○") -> 0 | BA8: =COUNTIF(AT8:AW8,"○")+COUNTIF(AT8:AW8,"◎") -> 1 | BB8: =SUM(AX8:BA8) -> 4 | BC8: =VLOOKUP($C8,点数集計!$C:$CL,ようこそ!$G$19,0) -> 
A9: =A8+1 -> 5 | B9: JR上野東京ライン | C9: 大船 | D9: =IFERROR(VLOOKUP($C9,全データ!$C:$CI,D$1,0)&"","") -> 神奈川県 | E9: =IFERROR(VLOOKUP($C9,全データ!$C:$CI,E$1,0)&"","") -> 鎌倉市 | F9: =VLOOKUP($C9,全データ!$C:$CI,F$1,0) -> 50.33333333 | G9: =VLOOKUP($C9,全データ!$C:$CI,G$1,0) -> 55 | H9: =(VLOOKUP($C9,全データ!$C:$CI,F$1,0)+VLOOKUP($C9,全データ!$C:$CI,G$1,0))/2 -> 52.66666667 | I9: =VLOOKUP($C9,全データ!$C:$CI,I$1,0) -> 191 | J9: =VLOOKUP($C9,全データ!$C:$CI,J$1,0) -> △ | K9: =VLOOKUP($C9,全データ!$C:$CI,K$1,0) -> 6.49 | L9: =VLOOKUP($C9,全データ!$C:$CI,L$1,0) -> 12.91 | M9: =(VLOOKUP($C9,全データ!$C:$CI,K$1,0)+VLOOKUP($C9,全データ!$C:$CI,L$1,0))/2 -> 9.7 | N9: =VLOOKUP($C9,全データ!$C:$CI,N$1,0) -> 49.26621735 | O9: =VLOOKUP($C9,全データ!$C:$CI,O$1,0) -> 6950.518888 | P9: =VLOOKUP($C9,全データ!$C:$CI,P$1,0) -> 0.2932552526 | Q9: =VLOOKUP($C9,全データ!$C:$CI,Q$1,0) -> -0.03043596368 | R9: =VLOOKUP($C9,全データ!$C:$CI,R$1,0) -> 450.385201 | S9: =VLOOKUP($C9,全データ!$C:$CI,S$1,0) -> 0.003904550142 | T9: =VLOOKUP($C9,全データ!$C:$CI,T$1,0) -> 3.16238679 | U9: =VLOOKUP($C9,全データ!$C:$CI,U$1,0) -> 15.31276341 | V9: =VLOOKUP($C9,全データ!$C:$CI,V$1,0) -> 0.04248366013 | W9: =VLOOKUP($C9,全データ!$C:$CI,W$1,0) -> -0.007429122159 | X9: =VLOOKUP($C9,全データ!$C:$CI,X$1,0) -> - | Y9: =VLOOKUP($C9,全データ!$C:$CI,Y$1,0) -> - | Z9: =IFERROR(VLOOKUP($C9,全データ!$C:$CI,Z$1,0)&"","") ->  | AA9: =IFERROR(VLOOKUP($C9,全データ!$C:$CI,AA$1,0)&"","") -> ○ | AB9: =IFERROR(VLOOKUP($C9,全データ!$C:$CI,AB$1,0)&"","") ->  | AC9: =IFERROR(VLOOKUP($C9,全データ!$C:$CI,AC$1,0)&"","") ->  | AD9: =IFERROR(VLOOKUP($C9,全データ!$C:$CI,AD$1,0)&"","") ->  | AE9: =IFERROR(VLOOKUP($C9,全データ!$C:$CI,AE$1,0)&"","") ->  | AF9: =IFERROR(VLOOKUP($C9,全データ!$C:$CI,AF$1,0)&"","") ->  | AG9: =IFERROR(VLOOKUP($C9,全データ!$C:$CI,AG$1,0)&"","") ->  | AH9: =IFERROR(VLOOKUP($C9,全データ!$C:$CI,AH$1,0)&"","") -> ○ | AI9: =IFERROR(VLOOKUP($C9,全データ!$C:$CI,AI$1,0)&"","") ->  | AJ9: =IFERROR(VLOOKUP($C9,全データ!$C:$CI,AJ$1,0)&"","") -> ○ | AK9: =IFERROR(VLOOKUP($C9,全データ!$C:$CI,AK$1,0)&"","") ->  | AL9: =IFERROR(VLOOKUP($C9,全データ!$C:$CI,AL$1,0)&"","") ->  | AM9: =IFERROR(VLOOKUP($C9,全データ!$C:$CI,AM$1,0)&"","") ->  | AN9: =IFERROR(VLOOKUP($C9,全データ!$C:$CI,AN$1,0)&"","") ->  | AO9: =IFERROR(VLOOKUP($C9,全データ!$C:$CI,AO$1,0)&"","") ->  | AP9: =IFERROR(VLOOKUP($C9,全データ!$C:$CI,AP$1,0)&"","") ->  | AQ9: =IFERROR(VLOOKUP($C9,全データ!$C:$CI,AQ$1,0)&"","") ->  | AR9: =IFERROR(VLOOKUP($C9,全データ!$C:$CI,AR$1,0)&"","") ->  | AS9: =IFERROR(VLOOKUP($C9,全データ!$C:$CI,AS$1,0)&"","") ->  | AT9: =IFERROR(VLOOKUP($C9,全データ!$C:$CI,AT$1,0)&"","") ->  | AU9: =IFERROR(VLOOKUP($C9,全データ!$C:$CI,AU$1,0)&"","") ->  | AV9: =IFERROR(VLOOKUP($C9,全データ!$C:$CI,AV$1,0)&"","") ->  | AW9: =IFERROR(VLOOKUP($C9,全データ!$C:$CI,AW$1,0)&"","") -> ○ | AX9: =COUNTIF($Z9:$AG9,"○") -> 1 | AY9: =COUNTIF($AH9:$AK9,"○") -> 2 | AZ9: =COUNTIF($AL9:$AS9,"○") -> 0 | BA9: =COUNTIF(AT9:AW9,"○")+COUNTIF(AT9:AW9,"◎") -> 1 | BB9: =SUM(AX9:BA9) -> 4 | BC9: =VLOOKUP($C9,点数集計!$C:$CL,ようこそ!$G$19,0) -> 
A10: =A9+1 -> 6 | B10: JR上野東京ライン | C10: 川崎 | D10: =IFERROR(VLOOKUP($C10,全データ!$C:$CI,D$1,0)&"","") -> 神奈川県 | E10: =IFERROR(VLOOKUP($C10,全データ!$C:$CI,E$1,0)&"","") -> 川崎市川崎区 | F10: =VLOOKUP($C10,全データ!$C:$CI,F$1,0) -> 23 | G10: =VLOOKUP($C10,全データ!$C:$CI,G$1,0) -> 40.66666667 | H10: =(VLOOKUP($C10,全データ!$C:$CI,F$1,0)+VLOOKUP($C10,全データ!$C:$CI,G$1,0))/2 -> 31.83333333 | I10: =VLOOKUP($C10,全データ!$C:$CI,I$1,0) -> 191 | J10: =VLOOKUP($C10,全データ!$C:$CI,J$1,0) -> △ | K10: =VLOOKUP($C10,全データ!$C:$CI,K$1,0) -> 8.21 | L10: =VLOOKUP($C10,全データ!$C:$CI,L$1,0) -> 16.08 | M10: =(VLOOKUP($C10,全データ!$C:$CI,K$1,0)+VLOOKUP($C10,全データ!$C:$CI,L$1,0))/2 -> 12.145 | N10: =VLOOKUP($C10,全データ!$C:$CI,N$1,0) -> 43.42266734 | O10: =VLOOKUP($C10,全データ!$C:$CI,O$1,0) -> 5650.847458 | P10: =VLOOKUP($C10,全データ!$C:$CI,P$1,0) -> 0.4773238243 | Q10: =VLOOKUP($C10,全データ!$C:$CI,Q$1,0) -> 0.1868715809 | R10: =VLOOKUP($C10,全データ!$C:$CI,R$1,0) -> 391.4043623 | S10: =VLOOKUP($C10,全データ!$C:$CI,S$1,0) -> 0.007879421095 | T10: =VLOOKUP($C10,全データ!$C:$CI,T$1,0) -> 1.223996992 | U10: =VLOOKUP($C10,全データ!$C:$CI,U$1,0) -> 13.10843698 | V10: =VLOOKUP($C10,全データ!$C:$CI,V$1,0) -> 0.04439664187 | W10: =VLOOKUP($C10,全データ!$C:$CI,W$1,0) -> 0.02783810646 | X10: =VLOOKUP($C10,全データ!$C:$CI,X$1,0) -> - | Y10: =VLOOKUP($C10,全データ!$C:$CI,Y$1,0) -> ○ | Z10: =IFERROR(VLOOKUP($C10,全データ!$C:$CI,Z$1,0)&"","") ->  | AA10: =IFERROR(VLOOKUP($C10,全データ!$C:$CI,AA$1,0)&"","") ->  | AB10: =IFERROR(VLOOKUP($C10,全データ!$C:$CI,AB$1,0)&"","") ->  | AC10: =IFERROR(VLOOKUP($C10,全データ!$C:$CI,AC$1,0)&"","") ->  | AD10: =IFERROR(VLOOKUP($C10,全データ!$C:$CI,AD$1,0)&"","") ->  | AE10: =IFERROR(VLOOKUP($C10,全データ!$C:$CI,AE$1,0)&"","") ->  | AF10: =IFERROR(VLOOKUP($C10,全データ!$C:$CI,AF$1,0)&"","") ->  | AG10: =IFERROR(VLOOKUP($C10,全データ!$C:$CI,AG$1,0)&"","") ->  | AH10: =IFERROR(VLOOKUP($C10,全データ!$C:$CI,AH$1,0)&"","") ->  | AI10: =IFERROR(VLOOKUP($C10,全データ!$C:$CI,AI$1,0)&"","") ->  | AJ10: =IFERROR(VLOOKUP($C10,全データ!$C:$CI,AJ$1,0)&"","") ->  | AK10: =IFERROR(VLOOKUP($C10,全データ!$C:$CI,AK$1,0)&"","") ->  | AL10: =IFERROR(VLOOKUP($C10,全データ!$C:$CI,AL$1,0)&"","") ->  | AM10: =IFERROR(VLOOKUP($C10,全データ!$C:$CI,AM$1,0)&"","") ->  | AN10: =IFERROR(VLOOKUP($C10,全データ!$C:$CI,AN$1,0)&"","") ->  | AO10: =IFERROR(VLOOKUP($C10,全データ!$C:$CI,AO$1,0)&"","") ->  | AP10: =IFERROR(VLOOKUP($C10,全データ!$C:$CI,AP$1,0)&"","") ->  | AQ10: =IFERROR(VLOOKUP($C10,全データ!$C:$CI,AQ$1,0)&"","") ->  | AR10: =IFERROR(VLOOKUP($C10,全データ!$C:$CI,AR$1,0)&"","") ->  | AS10: =IFERROR(VLOOKUP($C10,全データ!$C:$CI,AS$1,0)&"","") ->  | AT10: =IFERROR(VLOOKUP($C10,全データ!$C:$CI,AT$1,0)&"","") ->  | AU10: =IFERROR(VLOOKUP($C10,全データ!$C:$CI,AU$1,0)&"","") ->  | AV10: =IFERROR(VLOOKUP($C10,全データ!$C:$CI,AV$1,0)&"","") -> ◎ | AW10: =IFERROR(VLOOKUP($C10,全データ!$C:$CI,AW$1,0)&"","") -> ◎ | AX10: =COUNTIF($Z10:$AG10,"○") -> 0 | AY10: =COUNTIF($AH10:$AK10,"○") -> 0 | AZ10: =COUNTIF($AL10:$AS10,"○") -> 0 | BA10: =COUNTIF(AT10:AW10,"○")+COUNTIF(AT10:AW10,"◎") -> 2 | BB10: =SUM(AX10:BA10) -> 2 | BC10: =VLOOKUP($C10,点数集計!$C:$CL,ようこそ!$G$19,0) -> 
A11: =A10+1 -> 7 | B11: JR上野東京ライン | C11: 横浜 | D11: =IFERROR(VLOOKUP($C11,全データ!$C:$CI,D$1,0)&"","") -> 神奈川県 | E11: =IFERROR(VLOOKUP($C11,全データ!$C:$CI,E$1,0)&"","") -> 横浜市西区 | F11: =VLOOKUP($C11,全データ!$C:$CI,F$1,0) -> 32 | G11: =VLOOKUP($C11,全データ!$C:$CI,G$1,0) -> 37.66666667 | H11: =(VLOOKUP($C11,全データ!$C:$CI,F$1,0)+VLOOKUP($C11,全データ!$C:$CI,G$1,0))/2 -> 34.83333333 | I11: =VLOOKUP($C11,全データ!$C:$CI,I$1,0) -> 191 | J11: =VLOOKUP($C11,全データ!$C:$CI,J$1,0) -> △ | K11: =VLOOKUP($C11,全データ!$C:$CI,K$1,0) -> 9.06 | L11: =VLOOKUP($C11,全データ!$C:$CI,L$1,0) -> 22.73 | M11: =(VLOOKUP($C11,全データ!$C:$CI,K$1,0)+VLOOKUP($C11,全データ!$C:$CI,L$1,0))/2 -> 15.895 | N11: =VLOOKUP($C11,全データ!$C:$CI,N$1,0) -> 43.03544495 | O11: =VLOOKUP($C11,全データ!$C:$CI,O$1,0) -> 14015.93172 | P11: =VLOOKUP($C11,全データ!$C:$CI,P$1,0) -> 0.5096797854 | Q11: =VLOOKUP($C11,全データ!$C:$CI,Q$1,0) -> 0.8604615759 | R11: =VLOOKUP($C11,全データ!$C:$CI,R$1,0) -> 398.5368083 | S11: =VLOOKUP($C11,全データ!$C:$CI,S$1,0) -> 0.004369527862 | T11: =VLOOKUP($C11,全データ!$C:$CI,T$1,0) -> 17.56226404 | U11: =VLOOKUP($C11,全データ!$C:$CI,U$1,0) -> 2.412376947 | V11: =VLOOKUP($C11,全データ!$C:$CI,V$1,0) -> 0.03524703047 | W11: =VLOOKUP($C11,全データ!$C:$CI,W$1,0) -> 0.03863303361 | X11: =VLOOKUP($C11,全データ!$C:$CI,X$1,0) -> 横浜駅東口 | Y11: =VLOOKUP($C11,全データ!$C:$CI,Y$1,0) -> ◎ | Z11: =IFERROR(VLOOKUP($C11,全データ!$C:$CI,Z$1,0)&"","") ->  | AA11: =IFERROR(VLOOKUP($C11,全データ!$C:$CI,AA$1,0)&"","") ->  | AB11: =IFERROR(VLOOKUP($C11,全データ!$C:$CI,AB$1,0)&"","") ->  | AC11: =IFERROR(VLOOKUP($C11,全データ!$C:$CI,AC$1,0)&"","") ->  | AD11: =IFERROR(VLOOKUP($C11,全データ!$C:$CI,AD$1,0)&"","") ->  | AE11: =IFERROR(VLOOKUP($C11,全データ!$C:$CI,AE$1,0)&"","") ->  | AF11: =IFERROR(VLOOKUP($C11,全データ!$C:$CI,AF$1,0)&"","") ->  | AG11: =IFERROR(VLOOKUP($C11,全データ!$C:$CI,AG$1,0)&"","") ->  | AH11: =IFERROR(VLOOKUP($C11,全データ!$C:$CI,AH$1,0)&"","") ->  | AI11: =IFERROR(VLOOKUP($C11,全データ!$C:$CI,AI$1,0)&"","") ->  | AJ11: =IFERROR(VLOOKUP($C11,全データ!$C:$CI,AJ$1,0)&"","") ->  | AK11: =IFERROR(VLOOKUP($C11,全データ!$C:$CI,AK$1,0)&"","") ->  | AL11: =IFERROR(VLOOKUP($C11,全データ!$C:$CI,AL$1,0)&"","") ->  | AM11: =IFERROR(VLOOKUP($C11,全データ!$C:$CI,AM$1,0)&"","") ->  | AN11: =IFERROR(VLOOKUP($C11,全データ!$C:$CI,AN$1,0)&"","") ->  | AO11: =IFERROR(VLOOKUP($C11,全データ!$C:$CI,AO$1,0)&"","") ->  | AP11: =IFERROR(VLOOKUP($C11,全データ!$C:$CI,AP$1,0)&"","") ->  | AQ11: =IFERROR(VLOOKUP($C11,全データ!$C:$CI,AQ$1,0)&"","") ->  | AR11: =IFERROR(VLOOKUP($C11,全データ!$C:$CI,AR$1,0)&"","") ->  | AS11: =IFERROR(VLOOKUP($C11,全データ!$C:$CI,AS$1,0)&"","") ->  | AT11: =IFERROR(VLOOKUP($C11,全データ!$C:$CI,AT$1,0)&"","") ->  | AU11: =IFERROR(VLOOKUP($C11,全データ!$C:$CI,AU$1,0)&"","") ->  | AV11: =IFERROR(VLOOKUP($C11,全データ!$C:$CI,AV$1,0)&"","") -> ◎ | AW11: =IFERROR(VLOOKUP($C11,全データ!$C:$CI,AW$1,0)&"","") ->  | AX11: =COUNTIF($Z11:$AG11,"○") -> 0 | AY11: =COUNTIF($AH11:$AK11,"○") -> 0 | AZ11: =COUNTIF($AL11:$AS11,"○") -> 0 | BA11: =COUNTIF(AT11:AW11,"○")+COUNTIF(AT11:AW11,"◎") -> 1 | BB11: =SUM(AX11:BA11) -> 1 | BC11: =VLOOKUP($C11,点数集計!$C:$CL,ようこそ!$G$19,0) -> 
A12: =A11+1 -> 8 | B12: JR青梅線 | C12: 昭島 | D12: =IFERROR(VLOOKUP($C12,全データ!$C:$CI,D$1,0)&"","") -> 東京都 | E12: =IFERROR(VLOOKUP($C12,全データ!$C:$CI,E$1,0)&"","") -> 昭島市 | F12: =VLOOKUP($C12,全データ!$C:$CI,F$1,0) -> 66.66666667 | G12: =VLOOKUP($C12,全データ!$C:$CI,G$1,0) -> 52.33333333 | H12: =(VLOOKUP($C12,全データ!$C:$CI,F$1,0)+VLOOKUP($C12,全データ!$C:$CI,G$1,0))/2 -> 59.5 | I12: =VLOOKUP($C12,全データ!$C:$CI,I$1,0) -> 131 | J12: =VLOOKUP($C12,全データ!$C:$CI,J$1,0) -> × | K12: =VLOOKUP($C12,全データ!$C:$CI,K$1,0) -> 5.09 | L12: =VLOOKUP($C12,全データ!$C:$CI,L$1,0) -> 8.08 | M12: =(VLOOKUP($C12,全データ!$C:$CI,K$1,0)+VLOOKUP($C12,全データ!$C:$CI,L$1,0))/2 -> 6.585 | N12: =VLOOKUP($C12,全データ!$C:$CI,N$1,0) -> 45.61538462 | O12: =VLOOKUP($C12,全データ!$C:$CI,O$1,0) -> 7579.265806 | P12: =VLOOKUP($C12,全データ!$C:$CI,P$1,0) -> 0.3458347162 | Q12: =VLOOKUP($C12,全データ!$C:$CI,Q$1,0) -> -0.09043473583 | R12: =VLOOKUP($C12,全データ!$C:$CI,R$1,0) -> 332.57187 | S12: =VLOOKUP($C12,全データ!$C:$CI,S$1,0) -> 0.007412372353 | T12: =VLOOKUP($C12,全データ!$C:$CI,T$1,0) -> 3.763087351 | U12: =VLOOKUP($C12,全データ!$C:$CI,U$1,0) -> 1.959119584 | V12: =VLOOKUP($C12,全データ!$C:$CI,V$1,0) -> 0.0314171123 | W12: =VLOOKUP($C12,全データ!$C:$CI,W$1,0) -> -0.006749957701 | X12: =VLOOKUP($C12,全データ!$C:$CI,X$1,0) -> - | Y12: =VLOOKUP($C12,全データ!$C:$CI,Y$1,0) -> ◎ | Z12: =IFERROR(VLOOKUP($C12,全データ!$C:$CI,Z$1,0)&"","") -> ○ | AA12: =IFERROR(VLOOKUP($C12,全データ!$C:$CI,AA$1,0)&"","") ->  | AB12: =IFERROR(VLOOKUP($C12,全データ!$C:$CI,AB$1,0)&"","") ->  | AC12: =IFERROR(VLOOKUP($C12,全データ!$C:$CI,AC$1,0)&"","") ->  | AD12: =IFERROR(VLOOKUP($C12,全データ!$C:$CI,AD$1,0)&"","") ->  | AE12: =IFERROR(VLOOKUP($C12,全データ!$C:$CI,AE$1,0)&"","") ->  | AF12: =IFERROR(VLOOKUP($C12,全データ!$C:$CI,AF$1,0)&"","") ->  | AG12: =IFERROR(VLOOKUP($C12,全データ!$C:$CI,AG$1,0)&"","") ->  | AH12: =IFERROR(VLOOKUP($C12,全データ!$C:$CI,AH$1,0)&"","") -> ○ | AI12: =IFERROR(VLOOKUP($C12,全データ!$C:$CI,AI$1,0)&"","") ->  | AJ12: =IFERROR(VLOOKUP($C12,全データ!$C:$CI,AJ$1,0)&"","") ->  | AK12: =IFERROR(VLOOKUP($C12,全データ!$C:$CI,AK$1,0)&"","") ->  | AL12: =IFERROR(VLOOKUP($C12,全データ!$C:$CI,AL$1,0)&"","") -> ○ | AM12: =IFERROR(VLOOKUP($C12,全データ!$C:$CI,AM$1,0)&"","") ->  | AN12: =IFERROR(VLOOKUP($C12,全データ!$C:$CI,AN$1,0)&"","") ->  | AO12: =IFERROR(VLOOKUP($C12,全データ!$C:$CI,AO$1,0)&"","") -> ○ | AP12: =IFERROR(VLOOKUP($C12,全データ!$C:$CI,AP$1,0)&"","") ->  | AQ12: =IFERROR(VLOOKUP($C12,全データ!$C:$CI,AQ$1,0)&"","") ->  | AR12: =IFERROR(VLOOKUP($C12,全データ!$C:$CI,AR$1,0)&"","") ->  | AS12: =IFERROR(VLOOKUP($C12,全データ!$C:$CI,AS$1,0)&"","") ->  | AT12: =IFERROR(VLOOKUP($C12,全データ!$C:$CI,AT$1,0)&"","") ->  | AU12: =IFERROR(VLOOKUP($C12,全データ!$C:$CI,AU$1,0)&"","") ->  | AV12: =IFERROR(VLOOKUP($C12,全データ!$C:$CI,AV$1,0)&"","") -> ○ | AW12: =IFERROR(VLOOKUP($C12,全データ!$C:$CI,AW$1,0)&"","") ->  | AX12: =COUNTIF($Z12:$AG12,"○") -> 1 | AY12: =COUNTIF($AH12:$AK12,"○") -> 1 | AZ12: =COUNTIF($AL12:$AS12,"○") -> 2 | BA12: =COUNTIF(AT12:AW12,"○")+COUNTIF(AT12:AW12,"◎") -> 1 | BB12: =SUM(AX12:BA12) -> 5 | BC12: =VLOOKUP($C12,点数集計!$C:$CL,ようこそ!$G$19,0) -> 
A13: =A12+1 -> 9 | B13: JR青梅線 | C13: 拝島 | D13: =IFERROR(VLOOKUP($C13,全データ!$C:$CI,D$1,0)&"","") -> 東京都 | E13: =IFERROR(VLOOKUP($C13,全データ!$C:$CI,E$1,0)&"","") -> 昭島市 | F13: =VLOOKUP($C13,全データ!$C:$CI,F$1,0) -> 70.33333333 | G13: =VLOOKUP($C13,全データ!$C:$CI,G$1,0) -> 55.66666667 | H13: =(VLOOKUP($C13,全データ!$C:$CI,F$1,0)+VLOOKUP($C13,全データ!$C:$CI,G$1,0))/2 -> 63 | I13: =VLOOKUP($C13,全データ!$C:$CI,I$1,0) -> 131 | J13: =VLOOKUP($C13,全データ!$C:$CI,J$1,0) -> △ | K13: =VLOOKUP($C13,全データ!$C:$CI,K$1,0) -> 5.23 | L13: =VLOOKUP($C13,全データ!$C:$CI,L$1,0) -> 8.65 | M13: =(VLOOKUP($C13,全データ!$C:$CI,K$1,0)+VLOOKUP($C13,全データ!$C:$CI,L$1,0))/2 -> 6.94 | N13: =VLOOKUP($C13,全データ!$C:$CI,N$1,0) -> 45.61538462 | O13: =VLOOKUP($C13,全データ!$C:$CI,O$1,0) -> 7579.265806 | P13: =VLOOKUP($C13,全データ!$C:$CI,P$1,0) -> 0.3458347162 | Q13: =VLOOKUP($C13,全データ!$C:$CI,Q$1,0) -> -0.09043473583 | R13: =VLOOKUP($C13,全データ!$C:$CI,R$1,0) -> 332.57187 | S13: =VLOOKUP($C13,全データ!$C:$CI,S$1,0) -> 0.007412372353 | T13: =VLOOKUP($C13,全データ!$C:$CI,T$1,0) -> 3.763087351 | U13: =VLOOKUP($C13,全データ!$C:$CI,U$1,0) -> 1.959119584 | V13: =VLOOKUP($C13,全データ!$C:$CI,V$1,0) -> 0.0314171123 | W13: =VLOOKUP($C13,全データ!$C:$CI,W$1,0) -> -0.006749957701 | X13: =VLOOKUP($C13,全データ!$C:$CI,X$1,0) -> - | Y13: =VLOOKUP($C13,全データ!$C:$CI,Y$1,0) -> ◎ | Z13: =IFERROR(VLOOKUP($C13,全データ!$C:$CI,Z$1,0)&"","") ->  | AA13: =IFERROR(VLOOKUP($C13,全データ!$C:$CI,AA$1,0)&"","") ->  | AB13: =IFERROR(VLOOKUP($C13,全データ!$C:$CI,AB$1,0)&"","") ->  | AC13: =IFERROR(VLOOKUP($C13,全データ!$C:$CI,AC$1,0)&"","") ->  | AD13: =IFERROR(VLOOKUP($C13,全データ!$C:$CI,AD$1,0)&"","") ->  | AE13: =IFERROR(VLOOKUP($C13,全データ!$C:$CI,AE$1,0)&"","") ->  | AF13: =IFERROR(VLOOKUP($C13,全データ!$C:$CI,AF$1,0)&"","") ->  | AG13: =IFERROR(VLOOKUP($C13,全データ!$C:$CI,AG$1,0)&"","") ->  | AH13: =IFERROR(VLOOKUP($C13,全データ!$C:$CI,AH$1,0)&"","") -> ○ | AI13: =IFERROR(VLOOKUP($C13,全データ!$C:$CI,AI$1,0)&"","") ->  | AJ13: =IFERROR(VLOOKUP($C13,全データ!$C:$CI,AJ$1,0)&"","") ->  | AK13: =IFERROR(VLOOKUP($C13,全データ!$C:$CI,AK$1,0)&"","") ->  | AL13: =IFERROR(VLOOKUP($C13,全データ!$C:$CI,AL$1,0)&"","") ->  | AM13: =IFERROR(VLOOKUP($C13,全データ!$C:$CI,AM$1,0)&"","") ->  | AN13: =IFERROR(VLOOKUP($C13,全データ!$C:$CI,AN$1,0)&"","") ->  | AO13: =IFERROR(VLOOKUP($C13,全データ!$C:$CI,AO$1,0)&"","") ->  | AP13: =IFERROR(VLOOKUP($C13,全データ!$C:$CI,AP$1,0)&"","") ->  | AQ13: =IFERROR(VLOOKUP($C13,全データ!$C:$CI,AQ$1,0)&"","") ->  | AR13: =IFERROR(VLOOKUP($C13,全データ!$C:$CI,AR$1,0)&"","") ->  | AS13: =IFERROR(VLOOKUP($C13,全データ!$C:$CI,AS$1,0)&"","") ->  | AT13: =IFERROR(VLOOKUP($C13,全データ!$C:$CI,AT$1,0)&"","") ->  | AU13: =IFERROR(VLOOKUP($C13,全データ!$C:$CI,AU$1,0)&"","") ->  | AV13: =IFERROR(VLOOKUP($C13,全データ!$C:$CI,AV$1,0)&"","") ->  | AW13: =IFERROR(VLOOKUP($C13,全データ!$C:$CI,AW$1,0)&"","") -> ○ | AX13: =COUNTIF($Z13:$AG13,"○") -> 0 | AY13: =COUNTIF($AH13:$AK13,"○") -> 1 | AZ13: =COUNTIF($AL13:$AS13,"○") -> 0 | BA13: =COUNTIF(AT13:AW13,"○")+COUNTIF(AT13:AW13,"◎") -> 1 | BB13: =SUM(AX13:BA13) -> 2 | BC13: =VLOOKUP($C13,点数集計!$C:$CL,ようこそ!$G$19,0) -> 
A14: =A13+1 -> 10 | B14: JR青梅線 | C14: 中神 | D14: =IFERROR(VLOOKUP($C14,全データ!$C:$CI,D$1,0)&"","") -> 東京都 | E14: =IFERROR(VLOOKUP($C14,全データ!$C:$CI,E$1,0)&"","") -> 昭島市 | F14: =VLOOKUP($C14,全データ!$C:$CI,F$1,0) -> 64.66666667 | G14: =VLOOKUP($C14,全データ!$C:$CI,G$1,0) -> 49.66666667 | H14: =(VLOOKUP($C14,全データ!$C:$CI,F$1,0)+VLOOKUP($C14,全データ!$C:$CI,G$1,0))/2 -> 57.16666667 | I14: =VLOOKUP($C14,全データ!$C:$CI,I$1,0) -> 131 | J14: =VLOOKUP($C14,全データ!$C:$CI,J$1,0) -> × | K14: =VLOOKUP($C14,全データ!$C:$CI,K$1,0) -> 6.17 | L14: =VLOOKUP($C14,全データ!$C:$CI,L$1,0) -> 8.47 | M14: =(VLOOKUP($C14,全データ!$C:$CI,K$1,0)+VLOOKUP($C14,全データ!$C:$CI,L$1,0))/2 -> 7.32 | N14: =VLOOKUP($C14,全データ!$C:$CI,N$1,0) -> 45.61538462 | O14: =VLOOKUP($C14,全データ!$C:$CI,O$1,0) -> 7579.265806 | P14: =VLOOKUP($C14,全データ!$C:$CI,P$1,0) -> 0.3458347162 | Q14: =VLOOKUP($C14,全データ!$C:$CI,Q$1,0) -> -0.09043473583 | R14: =VLOOKUP($C14,全データ!$C:$CI,R$1,0) -> 332.57187 | S14: =VLOOKUP($C14,全データ!$C:$CI,S$1,0) -> 0.007412372353 | T14: =VLOOKUP($C14,全データ!$C:$CI,T$1,0) -> 3.763087351 | U14: =VLOOKUP($C14,全データ!$C:$CI,U$1,0) -> 1.959119584 | V14: =VLOOKUP($C14,全データ!$C:$CI,V$1,0) -> 0.0314171123 | W14: =VLOOKUP($C14,全データ!$C:$CI,W$1,0) -> -0.006749957701 | X14: =VLOOKUP($C14,全データ!$C:$CI,X$1,0) -> - | Y14: =VLOOKUP($C14,全データ!$C:$CI,Y$1,0) -> ◎ | Z14: =IFERROR(VLOOKUP($C14,全データ!$C:$CI,Z$1,0)&"","") ->  | AA14: =IFERROR(VLOOKUP($C14,全データ!$C:$CI,AA$1,0)&"","") ->  | AB14: =IFERROR(VLOOKUP($C14,全データ!$C:$CI,AB$1,0)&"","") ->  | AC14: =IFERROR(VLOOKUP($C14,全データ!$C:$CI,AC$1,0)&"","") ->  | AD14: =IFERROR(VLOOKUP($C14,全データ!$C:$CI,AD$1,0)&"","") ->  | AE14: =IFERROR(VLOOKUP($C14,全データ!$C:$CI,AE$1,0)&"","") -> ○ | AF14: =IFERROR(VLOOKUP($C14,全データ!$C:$CI,AF$1,0)&"","") ->  | AG14: =IFERROR(VLOOKUP($C14,全データ!$C:$CI,AG$1,0)&"","") ->  | AH14: =IFERROR(VLOOKUP($C14,全データ!$C:$CI,AH$1,0)&"","") ->  | AI14: =IFERROR(VLOOKUP($C14,全データ!$C:$CI,AI$1,0)&"","") ->  | AJ14: =IFERROR(VLOOKUP($C14,全データ!$C:$CI,AJ$1,0)&"","") ->  | AK14: =IFERROR(VLOOKUP($C14,全データ!$C:$CI,AK$1,0)&"","") ->  | AL14: =IFERROR(VLOOKUP($C14,全データ!$C:$CI,AL$1,0)&"","") ->  | AM14: =IFERROR(VLOOKUP($C14,全データ!$C:$CI,AM$1,0)&"","") ->  | AN14: =IFERROR(VLOOKUP($C14,全データ!$C:$CI,AN$1,0)&"","") ->  | AO14: =IFERROR(VLOOKUP($C14,全データ!$C:$CI,AO$1,0)&"","") ->  | AP14: =IFERROR(VLOOKUP($C14,全データ!$C:$CI,AP$1,0)&"","") ->  | AQ14: =IFERROR(VLOOKUP($C14,全データ!$C:$CI,AQ$1,0)&"","") ->  | AR14: =IFERROR(VLOOKUP($C14,全データ!$C:$CI,AR$1,0)&"","") ->  | AS14: =IFERROR(VLOOKUP($C14,全データ!$C:$CI,AS$1,0)&"","") ->  | AT14: =IFERROR(VLOOKUP($C14,全データ!$C:$CI,AT$1,0)&"","") ->  | AU14: =IFERROR(VLOOKUP($C14,全データ!$C:$CI,AU$1,0)&"","") ->  | AV14: =IFERROR(VLOOKUP($C14,全データ!$C:$CI,AV$1,0)&"","") ->  | AW14: =IFERROR(VLOOKUP($C14,全データ!$C:$CI,AW$1,0)&"","") ->  | AX14: =COUNTIF($Z14:$AG14,"○") -> 1 | AY14: =COUNTIF($AH14:$AK14,"○") -> 0 | AZ14: =COUNTIF($AL14:$AS14,"○") -> 0 | BA14: =COUNTIF(AT14:AW14,"○")+COUNTIF(AT14:AW14,"◎") -> 0 | BB14: =SUM(AX14:BA14) -> 1 | BC14: =VLOOKUP($C14,点数集計!$C:$CL,ようこそ!$G$19,0) -> 
A15: =A14+1 -> 11 | B15: JR京浜東北線 | C15: 蕨 | D15: =IFERROR(VLOOKUP($C15,全データ!$C:$CI,D$1,0)&"","") -> 埼玉県 | E15: =IFERROR(VLOOKUP($C15,全データ!$C:$CI,E$1,0)&"","") -> 蕨市 | F15: =VLOOKUP($C15,全データ!$C:$CI,F$1,0) -> 35.33333333 | G15: =VLOOKUP($C15,全データ!$C:$CI,G$1,0) -> 33 | H15: =(VLOOKUP($C15,全データ!$C:$CI,F$1,0)+VLOOKUP($C15,全データ!$C:$CI,G$1,0))/2 -> 34.16666667 | I15: =VLOOKUP($C15,全データ!$C:$CI,I$1,0) -> 171 | J15: =VLOOKUP($C15,全データ!$C:$CI,J$1,0) -> × | K15: =VLOOKUP($C15,全データ!$C:$CI,K$1,0) -> 6.41 | L15: =VLOOKUP($C15,全データ!$C:$CI,L$1,0) -> 11 | M15: =(VLOOKUP($C15,全データ!$C:$CI,K$1,0)+VLOOKUP($C15,全データ!$C:$CI,L$1,0))/2 -> 8.705 | N15: =VLOOKUP($C15,全データ!$C:$CI,N$1,0) -> 44.41086957 | O15: =VLOOKUP($C15,全データ!$C:$CI,O$1,0) -> 14140.9002 | P15: =VLOOKUP($C15,全データ!$C:$CI,P$1,0) -> 0.4262074217 | Q15: =VLOOKUP($C15,全データ!$C:$CI,Q$1,0) -> -0.167921395 | R15: =VLOOKUP($C15,全データ!$C:$CI,R$1,0) -> 328.3999802 | S15: =VLOOKUP($C15,全データ!$C:$CI,S$1,0) -> 0.01380434421 | T15: =VLOOKUP($C15,全データ!$C:$CI,T$1,0) -> 2.676487683 | U15: =VLOOKUP($C15,全データ!$C:$CI,U$1,0) -> 0.1435798157 | V15: =VLOOKUP($C15,全データ!$C:$CI,V$1,0) -> 0.07605633803 | W15: =VLOOKUP($C15,全データ!$C:$CI,W$1,0) -> 0.01060110207 | X15: =VLOOKUP($C15,全データ!$C:$CI,X$1,0) -> 川口西 | Y15: =VLOOKUP($C15,全データ!$C:$CI,Y$1,0) -> ○ | Z15: =IFERROR(VLOOKUP($C15,全データ!$C:$CI,Z$1,0)&"","") ->  | AA15: =IFERROR(VLOOKUP($C15,全データ!$C:$CI,AA$1,0)&"","") ->  | AB15: =IFERROR(VLOOKUP($C15,全データ!$C:$CI,AB$1,0)&"","") ->  | AC15: =IFERROR(VLOOKUP($C15,全データ!$C:$CI,AC$1,0)&"","") ->  | AD15: =IFERROR(VLOOKUP($C15,全データ!$C:$CI,AD$1,0)&"","") ->  | AE15: =IFERROR(VLOOKUP($C15,全データ!$C:$CI,AE$1,0)&"","") -> ○ | AF15: =IFERROR(VLOOKUP($C15,全データ!$C:$CI,AF$1,0)&"","") ->  | AG15: =IFERROR(VLOOKUP($C15,全データ!$C:$CI,AG$1,0)&"","") ->  | AH15: =IFERROR(VLOOKUP($C15,全データ!$C:$CI,AH$1,0)&"","") ->  | AI15: =IFERROR(VLOOKUP($C15,全データ!$C:$CI,AI$1,0)&"","") -> ○ | AJ15: =IFERROR(VLOOKUP($C15,全データ!$C:$CI,AJ$1,0)&"","") -> ○ | AK15: =IFERROR(VLOOKUP($C15,全データ!$C:$CI,AK$1,0)&"","") ->  | AL15: =IFERROR(VLOOKUP($C15,全データ!$C:$CI,AL$1,0)&"","") ->  | AM15: =IFERROR(VLOOKUP($C15,全データ!$C:$CI,AM$1,0)&"","") ->  | AN15: =IFERROR(VLOOKUP($C15,全データ!$C:$CI,AN$1,0)&"","") ->  | AO15: =IFERROR(VLOOKUP($C15,全データ!$C:$CI,AO$1,0)&"","") ->  | AP15: =IFERROR(VLOOKUP($C15,全データ!$C:$CI,AP$1,0)&"","") ->  | AQ15: =IFERROR(VLOOKUP($C15,全データ!$C:$CI,AQ$1,0)&"","") ->  | AR15: =IFERROR(VLOOKUP($C15,全データ!$C:$CI,AR$1,0)&"","") -> ○ | AS15: =IFERROR(VLOOKUP($C15,全データ!$C:$CI,AS$1,0)&"","") ->  | AT15: =IFERROR(VLOOKUP($C15,全データ!$C:$CI,AT$1,0)&"","") -> ◎ | AU15: =IFERROR(VLOOKUP($C15,全データ!$C:$CI,AU$1,0)&"","") ->  | AV15: =IFERROR(VLOOKUP($C15,全データ!$C:$CI,AV$1,0)&"","") ->  | AW15: =IFERROR(VLOOKUP($C15,全データ!$C:$CI,AW$1,0)&"","") ->  | AX15: =COUNTIF($Z15:$AG15,"○") -> 1 | AY15: =COUNTIF($AH15:$AK15,"○") -> 2 | AZ15: =COUNTIF($AL15:$AS15,"○") -> 1 | BA15: =COUNTIF(AT15:AW15,"○")+COUNTIF(AT15:AW15,"◎") -> 1 | BB15: =SUM(AX15:BA15) -> 5 | BC15: =VLOOKUP($C15,点数集計!$C:$CL,ようこそ!$G$19,0) -> 
A16: =A15+1 -> 12 | B16: JR京浜東北線 | C16: 川口 | D16: =IFERROR(VLOOKUP($C16,全データ!$C:$CI,D$1,0)&"","") -> 埼玉県 | E16: =IFERROR(VLOOKUP($C16,全データ!$C:$CI,E$1,0)&"","") -> 川口市 | F16: =VLOOKUP($C16,全データ!$C:$CI,F$1,0) -> 29.33333333 | G16: =VLOOKUP($C16,全データ!$C:$CI,G$1,0) -> 27 | H16: =(VLOOKUP($C16,全データ!$C:$CI,F$1,0)+VLOOKUP($C16,全データ!$C:$CI,G$1,0))/2 -> 28.16666667 | I16: =VLOOKUP($C16,全データ!$C:$CI,I$1,0) -> 171 | J16: =VLOOKUP($C16,全データ!$C:$CI,J$1,0) -> × | K16: =VLOOKUP($C16,全データ!$C:$CI,K$1,0) -> 7.15 | L16: =VLOOKUP($C16,全データ!$C:$CI,L$1,0) -> 12.6 | M16: =(VLOOKUP($C16,全データ!$C:$CI,K$1,0)+VLOOKUP($C16,全データ!$C:$CI,L$1,0))/2 -> 9.875 | N16: =VLOOKUP($C16,全データ!$C:$CI,N$1,0) -> 43.98050395 | O16: =VLOOKUP($C16,全データ!$C:$CI,O$1,0) -> 10305.86949 | P16: =VLOOKUP($C16,全データ!$C:$CI,P$1,0) -> 0.3434758169 | Q16: =VLOOKUP($C16,全データ!$C:$CI,Q$1,0) -> -0.1804736798 | R16: =VLOOKUP($C16,全データ!$C:$CI,R$1,0) -> 335.2442461 | S16: =VLOOKUP($C16,全データ!$C:$CI,S$1,0) -> 0.01054713389 | T16: =VLOOKUP($C16,全データ!$C:$CI,T$1,0) -> 2.2304121 | U16: =VLOOKUP($C16,全データ!$C:$CI,U$1,0) -> 23.54247787 | V16: =VLOOKUP($C16,全データ!$C:$CI,V$1,0) -> 0.0987284287 | W16: =VLOOKUP($C16,全データ!$C:$CI,W$1,0) -> 0.02957403839 | X16: =VLOOKUP($C16,全データ!$C:$CI,X$1,0) -> - | Y16: =VLOOKUP($C16,全データ!$C:$CI,Y$1,0) -> ○ | Z16: =IFERROR(VLOOKUP($C16,全データ!$C:$CI,Z$1,0)&"","") -> ○ | AA16: =IFERROR(VLOOKUP($C16,全データ!$C:$CI,AA$1,0)&"","") ->  | AB16: =IFERROR(VLOOKUP($C16,全データ!$C:$CI,AB$1,0)&"","") ->  | AC16: =IFERROR(VLOOKUP($C16,全データ!$C:$CI,AC$1,0)&"","") ->  | AD16: =IFERROR(VLOOKUP($C16,全データ!$C:$CI,AD$1,0)&"","") ->  | AE16: =IFERROR(VLOOKUP($C16,全データ!$C:$CI,AE$1,0)&"","") ->  | AF16: =IFERROR(VLOOKUP($C16,全データ!$C:$CI,AF$1,0)&"","") ->  | AG16: =IFERROR(VLOOKUP($C16,全データ!$C:$CI,AG$1,0)&"","") ->  | AH16: =IFERROR(VLOOKUP($C16,全データ!$C:$CI,AH$1,0)&"","") -> ○ | AI16: =IFERROR(VLOOKUP($C16,全データ!$C:$CI,AI$1,0)&"","") ->  | AJ16: =IFERROR(VLOOKUP($C16,全データ!$C:$CI,AJ$1,0)&"","") -> ○ | AK16: =IFERROR(VLOOKUP($C16,全データ!$C:$CI,AK$1,0)&"","") ->  | AL16: =IFERROR(VLOOKUP($C16,全データ!$C:$CI,AL$1,0)&"","") ->  | AM16: =IFERROR(VLOOKUP($C16,全データ!$C:$CI,AM$1,0)&"","") ->  | AN16: =IFERROR(VLOOKUP($C16,全データ!$C:$CI,AN$1,0)&"","") ->  | AO16: =IFERROR(VLOOKUP($C16,全データ!$C:$CI,AO$1,0)&"","") ->  | AP16: =IFERROR(VLOOKUP($C16,全データ!$C:$CI,AP$1,0)&"","") -> ○ | AQ16: =IFERROR(VLOOKUP($C16,全データ!$C:$CI,AQ$1,0)&"","") ->  | AR16: =IFERROR(VLOOKUP($C16,全データ!$C:$CI,AR$1,0)&"","") ->  | AS16: =IFERROR(VLOOKUP($C16,全データ!$C:$CI,AS$1,0)&"","") ->  | AT16: =IFERROR(VLOOKUP($C16,全データ!$C:$CI,AT$1,0)&"","") ->  | AU16: =IFERROR(VLOOKUP($C16,全データ!$C:$CI,AU$1,0)&"","") -> ○ | AV16: =IFERROR(VLOOKUP($C16,全データ!$C:$CI,AV$1,0)&"","") ->  | AW16: =IFERROR(VLOOKUP($C16,全データ!$C:$CI,AW$1,0)&"","") ->  | AX16: =COUNTIF($Z16:$AG16,"○") -> 1 | AY16: =COUNTIF($AH16:$AK16,"○") -> 2 | AZ16: =COUNTIF($AL16:$AS16,"○") -> 1 | BA16: =COUNTIF(AT16:AW16,"○")+COUNTIF(AT16:AW16,"◎") -> 1 | BB16: =SUM(AX16:BA16) -> 5 | BC16: =VLOOKUP($C16,点数集計!$C:$CL,ようこそ!$G$19,0) -> 
A17: =A16+1 -> 13 | B17: JR京浜東北線 | C17: 西川口 | D17: =IFERROR(VLOOKUP($C17,全データ!$C:$CI,D$1,0)&"","") -> 埼玉県 | E17: =IFERROR(VLOOKUP($C17,全データ!$C:$CI,E$1,0)&"","") -> 川口市 | F17: =VLOOKUP($C17,全データ!$C:$CI,F$1,0) -> 32.33333333 | G17: =VLOOKUP($C17,全データ!$C:$CI,G$1,0) -> 30 | H17: =(VLOOKUP($C17,全データ!$C:$CI,F$1,0)+VLOOKUP($C17,全データ!$C:$CI,G$1,0))/2 -> 31.16666667 | I17: =VLOOKUP($C17,全データ!$C:$CI,I$1,0) -> 185 | J17: =VLOOKUP($C17,全データ!$C:$CI,J$1,0) -> × | K17: =VLOOKUP($C17,全データ!$C:$CI,K$1,0) -> 6.51 | L17: =VLOOKUP($C17,全データ!$C:$CI,L$1,0) -> 9.38 | M17: =(VLOOKUP($C17,全データ!$C:$CI,K$1,0)+VLOOKUP($C17,全データ!$C:$CI,L$1,0))/2 -> 7.945 | N17: =VLOOKUP($C17,全データ!$C:$CI,N$1,0) -> 43.98050395 | O17: =VLOOKUP($C17,全データ!$C:$CI,O$1,0) -> 10305.86949 | P17: =VLOOKUP($C17,全データ!$C:$CI,P$1,0) -> 0.3434758169 | Q17: =VLOOKUP($C17,全データ!$C:$CI,Q$1,0) -> -0.1804736798 | R17: =VLOOKUP($C17,全データ!$C:$CI,R$1,0) -> 335.2442461 | S17: =VLOOKUP($C17,全データ!$C:$CI,S$1,0) -> 0.01054713389 | T17: =VLOOKUP($C17,全データ!$C:$CI,T$1,0) -> 2.2304121 | U17: =VLOOKUP($C17,全データ!$C:$CI,U$1,0) -> 23.54247787 | V17: =VLOOKUP($C17,全データ!$C:$CI,V$1,0) -> 0.0987284287 | W17: =VLOOKUP($C17,全データ!$C:$CI,W$1,0) -> 0.02957403839 | X17: =VLOOKUP($C17,全データ!$C:$CI,X$1,0) -> - | Y17: =VLOOKUP($C17,全データ!$C:$CI,Y$1,0) -> ○ | Z17: =IFERROR(VLOOKUP($C17,全データ!$C:$CI,Z$1,0)&"","") ->  | AA17: =IFERROR(VLOOKUP($C17,全データ!$C:$CI,AA$1,0)&"","") ->  | AB17: =IFERROR(VLOOKUP($C17,全データ!$C:$CI,AB$1,0)&"","") ->  | AC17: =IFERROR(VLOOKUP($C17,全データ!$C:$CI,AC$1,0)&"","") ->  | AD17: =IFERROR(VLOOKUP($C17,全データ!$C:$CI,AD$1,0)&"","") ->  | AE17: =IFERROR(VLOOKUP($C17,全データ!$C:$CI,AE$1,0)&"","") -> ○ | AF17: =IFERROR(VLOOKUP($C17,全データ!$C:$CI,AF$1,0)&"","") ->  | AG17: =IFERROR(VLOOKUP($C17,全データ!$C:$CI,AG$1,0)&"","") ->  | AH17: =IFERROR(VLOOKUP($C17,全データ!$C:$CI,AH$1,0)&"","") ->  | AI17: =IFERROR(VLOOKUP($C17,全データ!$C:$CI,AI$1,0)&"","") ->  | AJ17: =IFERROR(VLOOKUP($C17,全データ!$C:$CI,AJ$1,0)&"","") ->  | AK17: =IFERROR(VLOOKUP($C17,全データ!$C:$CI,AK$1,0)&"","") ->  | AL17: =IFERROR(VLOOKUP($C17,全データ!$C:$CI,AL$1,0)&"","") ->  | AM17: =IFERROR(VLOOKUP($C17,全データ!$C:$CI,AM$1,0)&"","") ->  | AN17: =IFERROR(VLOOKUP($C17,全データ!$C:$CI,AN$1,0)&"","") ->  | AO17: =IFERROR(VLOOKUP($C17,全データ!$C:$CI,AO$1,0)&"","") ->  | AP17: =IFERROR(VLOOKUP($C17,全データ!$C:$CI,AP$1,0)&"","") ->  | AQ17: =IFERROR(VLOOKUP($C17,全データ!$C:$CI,AQ$1,0)&"","") ->  | AR17: =IFERROR(VLOOKUP($C17,全データ!$C:$CI,AR$1,0)&"","") -> ○ | AS17: =IFERROR(VLOOKUP($C17,全データ!$C:$CI,AS$1,0)&"","") ->  | AT17: =IFERROR(VLOOKUP($C17,全データ!$C:$CI,AT$1,0)&"","") ->  | AU17: =IFERROR(VLOOKUP($C17,全データ!$C:$CI,AU$1,0)&"","") ->  | AV17: =IFERROR(VLOOKUP($C17,全データ!$C:$CI,AV$1,0)&"","") ->  | AW17: =IFERROR(VLOOKUP($C17,全データ!$C:$CI,AW$1,0)&"","") -> ○ | AX17: =COUNTIF($Z17:$AG17,"○") -> 1 | AY17: =COUNTIF($AH17:$AK17,"○") -> 0 | AZ17: =COUNTIF($AL17:$AS17,"○") -> 1 | BA17: =COUNTIF(AT17:AW17,"○")+COUNTIF(AT17:AW17,"◎") -> 1 | BB17: =SUM(AX17:BA17) -> 3 | BC17: =VLOOKUP($C17,点数集計!$C:$CL,ようこそ!$G$19,0) -> 
A18: =A17+1 -> 14 | B18: JR京浜東北線 | C18: 南浦和 | D18: =IFERROR(VLOOKUP($C18,全データ!$C:$CI,D$1,0)&"","") -> 埼玉県 | E18: =IFERROR(VLOOKUP($C18,全データ!$C:$CI,E$1,0)&"","") -> さいたま市南区 | F18: =VLOOKUP($C18,全データ!$C:$CI,F$1,0) -> 39.33333333 | G18: =VLOOKUP($C18,全データ!$C:$CI,G$1,0) -> 37 | H18: =(VLOOKUP($C18,全データ!$C:$CI,F$1,0)+VLOOKUP($C18,全データ!$C:$CI,G$1,0))/2 -> 38.16666667 | I18: =VLOOKUP($C18,全データ!$C:$CI,I$1,0) -> 50 | J18: =VLOOKUP($C18,全データ!$C:$CI,J$1,0) -> ○ | K18: =VLOOKUP($C18,全データ!$C:$CI,K$1,0) -> 5.7 | L18: =VLOOKUP($C18,全データ!$C:$CI,L$1,0) -> 10.24 | M18: =(VLOOKUP($C18,全データ!$C:$CI,K$1,0)+VLOOKUP($C18,全データ!$C:$CI,L$1,0))/2 -> 7.97 | N18: =VLOOKUP($C18,全データ!$C:$CI,N$1,0) -> 42.59559939 | O18: =VLOOKUP($C18,全データ!$C:$CI,O$1,0) -> 13215.92076 | P18: =VLOOKUP($C18,全データ!$C:$CI,P$1,0) -> 0.3497482532 | Q18: =VLOOKUP($C18,全データ!$C:$CI,Q$1,0) -> -0.2466528265 | R18: =VLOOKUP($C18,全データ!$C:$CI,R$1,0) -> 380.9352111 | S18: =VLOOKUP($C18,全データ!$C:$CI,S$1,0) -> 0.008915611161 | T18: =VLOOKUP($C18,全データ!$C:$CI,T$1,0) -> 1.290826635 | U18: =VLOOKUP($C18,全データ!$C:$CI,U$1,0) -> 0.5915767369 | V18: =VLOOKUP($C18,全データ!$C:$CI,V$1,0) -> 0.06500747445 | W18: =VLOOKUP($C18,全データ!$C:$CI,W$1,0) -> 0.02951059501 | X18: =VLOOKUP($C18,全データ!$C:$CI,X$1,0) -> 外環浦和 | Y18: =VLOOKUP($C18,全データ!$C:$CI,Y$1,0) -> ○ | Z18: =IFERROR(VLOOKUP($C18,全データ!$C:$CI,Z$1,0)&"","") ->  | AA18: =IFERROR(VLOOKUP($C18,全データ!$C:$CI,AA$1,0)&"","") ->  | AB18: =IFERROR(VLOOKUP($C18,全データ!$C:$CI,AB$1,0)&"","") ->  | AC18: =IFERROR(VLOOKUP($C18,全データ!$C:$CI,AC$1,0)&"","") ->  | AD18: =IFERROR(VLOOKUP($C18,全データ!$C:$CI,AD$1,0)&"","") ->  | AE18: =IFERROR(VLOOKUP($C18,全データ!$C:$CI,AE$1,0)&"","") -> ○ | AF18: =IFERROR(VLOOKUP($C18,全データ!$C:$CI,AF$1,0)&"","") ->  | AG18: =IFERROR(VLOOKUP($C18,全データ!$C:$CI,AG$1,0)&"","") ->  | AH18: =IFERROR(VLOOKUP($C18,全データ!$C:$CI,AH$1,0)&"","") ->  | AI18: =IFERROR(VLOOKUP($C18,全データ!$C:$CI,AI$1,0)&"","") -> ○ | AJ18: =IFERROR(VLOOKUP($C18,全データ!$C:$CI,AJ$1,0)&"","") ->  | AK18: =IFERROR(VLOOKUP($C18,全データ!$C:$CI,AK$1,0)&"","") ->  | AL18: =IFERROR(VLOOKUP($C18,全データ!$C:$CI,AL$1,0)&"","") ->  | AM18: =IFERROR(VLOOKUP($C18,全データ!$C:$CI,AM$1,0)&"","") ->  | AN18: =IFERROR(VLOOKUP($C18,全データ!$C:$CI,AN$1,0)&"","") ->  | AO18: =IFERROR(VLOOKUP($C18,全データ!$C:$CI,AO$1,0)&"","") ->  | AP18: =IFERROR(VLOOKUP($C18,全データ!$C:$CI,AP$1,0)&"","") ->  | AQ18: =IFERROR(VLOOKUP($C18,全データ!$C:$CI,AQ$1,0)&"","") ->  | AR18: =IFERROR(VLOOKUP($C18,全データ!$C:$CI,AR$1,0)&"","") ->  | AS18: =IFERROR(VLOOKUP($C18,全データ!$C:$CI,AS$1,0)&"","") ->  | AT18: =IFERROR(VLOOKUP($C18,全データ!$C:$CI,AT$1,0)&"","") ->  | AU18: =IFERROR(VLOOKUP($C18,全データ!$C:$CI,AU$1,0)&"","") ->  | AV18: =IFERROR(VLOOKUP($C18,全データ!$C:$CI,AV$1,0)&"","") ->  | AW18: =IFERROR(VLOOKUP($C18,全データ!$C:$CI,AW$1,0)&"","") ->  | AX18: =COUNTIF($Z18:$AG18,"○") -> 1 | AY18: =COUNTIF($AH18:$AK18,"○") -> 1 | AZ18: =COUNTIF($AL18:$AS18,"○") -> 0 | BA18: =COUNTIF(AT18:AW18,"○")+COUNTIF(AT18:AW18,"◎") -> 0 | BB18: =SUM(AX18:BA18) -> 2 | BC18: =VLOOKUP($C18,点数集計!$C:$CL,ようこそ!$G$19,0) -> 
A19: =A18+1 -> 15 | B19: JR京浜東北線 | C19: 鶴見 | D19: =IFERROR(VLOOKUP($C19,全データ!$C:$CI,D$1,0)&"","") -> 神奈川県 | E19: =IFERROR(VLOOKUP($C19,全データ!$C:$CI,E$1,0)&"","") -> 横浜市鶴見区 | F19: =VLOOKUP($C19,全データ!$C:$CI,F$1,0) -> 32.33333333 | G19: =VLOOKUP($C19,全データ!$C:$CI,G$1,0) -> 47.66666667 | H19: =(VLOOKUP($C19,全データ!$C:$CI,F$1,0)+VLOOKUP($C19,全データ!$C:$CI,G$1,0))/2 -> 40 | I19: =VLOOKUP($C19,全データ!$C:$CI,I$1,0) -> 185 | J19: =VLOOKUP($C19,全データ!$C:$CI,J$1,0) -> △ | K19: =VLOOKUP($C19,全データ!$C:$CI,K$1,0) -> 7.34 | L19: =VLOOKUP($C19,全データ!$C:$CI,L$1,0) -> 17.23 | M19: =(VLOOKUP($C19,全データ!$C:$CI,K$1,0)+VLOOKUP($C19,全データ!$C:$CI,L$1,0))/2 -> 12.285 | N19: =VLOOKUP($C19,全データ!$C:$CI,N$1,0) -> 43.10574584 | O19: =VLOOKUP($C19,全データ!$C:$CI,O$1,0) -> 8587.300632 | P19: =VLOOKUP($C19,全データ!$C:$CI,P$1,0) -> 0.4178474957 | Q19: =VLOOKUP($C19,全データ!$C:$CI,Q$1,0) -> -0.1020760033 | R19: =VLOOKUP($C19,全データ!$C:$CI,R$1,0) -> 398.5368083 | S19: =VLOOKUP($C19,全データ!$C:$CI,S$1,0) -> 0.004542829043 | T19: =VLOOKUP($C19,全データ!$C:$CI,T$1,0) -> 0.3927550148 | U19: =VLOOKUP($C19,全データ!$C:$CI,U$1,0) -> 7.50657914 | V19: =VLOOKUP($C19,全データ!$C:$CI,V$1,0) -> 0.03524703047 | W19: =VLOOKUP($C19,全データ!$C:$CI,W$1,0) -> 0.04841684486 | X19: =VLOOKUP($C19,全データ!$C:$CI,X$1,0) -> - | Y19: =VLOOKUP($C19,全データ!$C:$CI,Y$1,0) -> ◎ | Z19: =IFERROR(VLOOKUP($C19,全データ!$C:$CI,Z$1,0)&"","") ->  | AA19: =IFERROR(VLOOKUP($C19,全データ!$C:$CI,AA$1,0)&"","") ->  | AB19: =IFERROR(VLOOKUP($C19,全データ!$C:$CI,AB$1,0)&"","") ->  | AC19: =IFERROR(VLOOKUP($C19,全データ!$C:$CI,AC$1,0)&"","") ->  | AD19: =IFERROR(VLOOKUP($C19,全データ!$C:$CI,AD$1,0)&"","") ->  | AE19: =IFERROR(VLOOKUP($C19,全データ!$C:$CI,AE$1,0)&"","") -> ○ | AF19: =IFERROR(VLOOKUP($C19,全データ!$C:$CI,AF$1,0)&"","") ->  | AG19: =IFERROR(VLOOKUP($C19,全データ!$C:$CI,AG$1,0)&"","") ->  | AH19: =IFERROR(VLOOKUP($C19,全データ!$C:$CI,AH$1,0)&"","") -> ○ | AI19: =IFERROR(VLOOKUP($C19,全データ!$C:$CI,AI$1,0)&"","") ->  | AJ19: =IFERROR(VLOOKUP($C19,全データ!$C:$CI,AJ$1,0)&"","") -> ○ | AK19: =IFERROR(VLOOKUP($C19,全データ!$C:$CI,AK$1,0)&"","") -> ○ | AL19: =IFERROR(VLOOKUP($C19,全データ!$C:$CI,AL$1,0)&"","") ->  | AM19: =IFERROR(VLOOKUP($C19,全データ!$C:$CI,AM$1,0)&"","") ->  | AN19: =IFERROR(VLOOKUP($C19,全データ!$C:$CI,AN$1,0)&"","") ->  | AO19: =IFERROR(VLOOKUP($C19,全データ!$C:$CI,AO$1,0)&"","") ->  | AP19: =IFERROR(VLOOKUP($C19,全データ!$C:$CI,AP$1,0)&"","") ->  | AQ19: =IFERROR(VLOOKUP($C19,全データ!$C:$CI,AQ$1,0)&"","") ->  | AR19: =IFERROR(VLOOKUP($C19,全データ!$C:$CI,AR$1,0)&"","") ->  | AS19: =IFERROR(VLOOKUP($C19,全データ!$C:$CI,AS$1,0)&"","") ->  | AT19: =IFERROR(VLOOKUP($C19,全データ!$C:$CI,AT$1,0)&"","") ->  | AU19: =IFERROR(VLOOKUP($C19,全データ!$C:$CI,AU$1,0)&"","") ->  | AV19: =IFERROR(VLOOKUP($C19,全データ!$C:$CI,AV$1,0)&"","") ->  | AW19: =IFERROR(VLOOKUP($C19,全データ!$C:$CI,AW$1,0)&"","") -> ○ | AX19: =COUNTIF($Z19:$AG19,"○") -> 1 | AY19: =COUNTIF($AH19:$AK19,"○") -> 3 | AZ19: =COUNTIF($AL19:$AS19,"○") -> 0 | BA19: =COUNTIF(AT19:AW19,"○")+COUNTIF(AT19:AW19,"◎") -> 1 | BB19: =SUM(AX19:BA19) -> 5 | BC19: =VLOOKUP($C19,点数集計!$C:$CL,ようこそ!$G$19,0) -> 
A20: =A19+1 -> 16 | B20: JR京浜東北線 | C20: 王子 | D20: =IFERROR(VLOOKUP($C20,全データ!$C:$CI,D$1,0)&"","") -> 東京都 | E20: =IFERROR(VLOOKUP($C20,全データ!$C:$CI,E$1,0)&"","") -> 北区 | F20: =VLOOKUP($C20,全データ!$C:$CI,F$1,0) -> 22.66666667 | G20: =VLOOKUP($C20,全データ!$C:$CI,G$1,0) -> 26.33333333 | H20: =(VLOOKUP($C20,全データ!$C:$CI,F$1,0)+VLOOKUP($C20,全データ!$C:$CI,G$1,0))/2 -> 24.5 | I20: =VLOOKUP($C20,全データ!$C:$CI,I$1,0) -> 171 | J20: =VLOOKUP($C20,全データ!$C:$CI,J$1,0) -> × | K20: =VLOOKUP($C20,全データ!$C:$CI,K$1,0) -> 7.42 | L20: =VLOOKUP($C20,全データ!$C:$CI,L$1,0) -> 17.02 | M20: =(VLOOKUP($C20,全データ!$C:$CI,K$1,0)+VLOOKUP($C20,全データ!$C:$CI,L$1,0))/2 -> 12.22 | N20: =VLOOKUP($C20,全データ!$C:$CI,N$1,0) -> 44.97053903 | O20: =VLOOKUP($C20,全データ!$C:$CI,O$1,0) -> 16549.05386 | P20: =VLOOKUP($C20,全データ!$C:$CI,P$1,0) -> 0.5054580558 | Q20: =VLOOKUP($C20,全データ!$C:$CI,Q$1,0) -> -0.03319787965 | R20: =VLOOKUP($C20,全データ!$C:$CI,R$1,0) -> 355.8315766 | S20: =VLOOKUP($C20,全データ!$C:$CI,S$1,0) -> 0.007172034826 | T20: =VLOOKUP($C20,全データ!$C:$CI,T$1,0) -> 3.998205678 | U20: =VLOOKUP($C20,全データ!$C:$CI,U$1,0) -> 17.41061097 | V20: =VLOOKUP($C20,全データ!$C:$CI,V$1,0) -> 0.04318672576 | W20: =VLOOKUP($C20,全データ!$C:$CI,W$1,0) -> 0.01648666047 | X20: =VLOOKUP($C20,全データ!$C:$CI,X$1,0) -> 王子北 | Y20: =VLOOKUP($C20,全データ!$C:$CI,Y$1,0) -> ○ | Z20: =IFERROR(VLOOKUP($C20,全データ!$C:$CI,Z$1,0)&"","") -> ○ | AA20: =IFERROR(VLOOKUP($C20,全データ!$C:$CI,AA$1,0)&"","") ->  | AB20: =IFERROR(VLOOKUP($C20,全データ!$C:$CI,AB$1,0)&"","") ->  | AC20: =IFERROR(VLOOKUP($C20,全データ!$C:$CI,AC$1,0)&"","") ->  | AD20: =IFERROR(VLOOKUP($C20,全データ!$C:$CI,AD$1,0)&"","") ->  | AE20: =IFERROR(VLOOKUP($C20,全データ!$C:$CI,AE$1,0)&"","") ->  | AF20: =IFERROR(VLOOKUP($C20,全データ!$C:$CI,AF$1,0)&"","") ->  | AG20: =IFERROR(VLOOKUP($C20,全データ!$C:$CI,AG$1,0)&"","") ->  | AH20: =IFERROR(VLOOKUP($C20,全データ!$C:$CI,AH$1,0)&"","") -> ○ | AI20: =IFERROR(VLOOKUP($C20,全データ!$C:$CI,AI$1,0)&"","") ->  | AJ20: =IFERROR(VLOOKUP($C20,全データ!$C:$CI,AJ$1,0)&"","") ->  | AK20: =IFERROR(VLOOKUP($C20,全データ!$C:$CI,AK$1,0)&"","") ->  | AL20: =IFERROR(VLOOKUP($C20,全データ!$C:$CI,AL$1,0)&"","") ->  | AM20: =IFERROR(VLOOKUP($C20,全データ!$C:$CI,AM$1,0)&"","") ->  | AN20: =IFERROR(VLOOKUP($C20,全データ!$C:$CI,AN$1,0)&"","") ->  | AO20: =IFERROR(VLOOKUP($C20,全データ!$C:$CI,AO$1,0)&"","") ->  | AP20: =IFERROR(VLOOKUP($C20,全データ!$C:$CI,AP$1,0)&"","") ->  | AQ20: =IFERROR(VLOOKUP($C20,全データ!$C:$CI,AQ$1,0)&"","") ->  | AR20: =IFERROR(VLOOKUP($C20,全データ!$C:$CI,AR$1,0)&"","") -> ○ | AS20: =IFERROR(VLOOKUP($C20,全データ!$C:$CI,AS$1,0)&"","") ->  | AT20: =IFERROR(VLOOKUP($C20,全データ!$C:$CI,AT$1,0)&"","") ->  | AU20: =IFERROR(VLOOKUP($C20,全データ!$C:$CI,AU$1,0)&"","") ->  | AV20: =IFERROR(VLOOKUP($C20,全データ!$C:$CI,AV$1,0)&"","") ->  | AW20: =IFERROR(VLOOKUP($C20,全データ!$C:$CI,AW$1,0)&"","") ->  | AX20: =COUNTIF($Z20:$AG20,"○") -> 1 | AY20: =COUNTIF($AH20:$AK20,"○") -> 1 | AZ20: =COUNTIF($AL20:$AS20,"○") -> 1 | BA20: =COUNTIF(AT20:AW20,"○")+COUNTIF(AT20:AW20,"◎") -> 0 | BB20: =SUM(AX20:BA20) -> 3 | BC20: =VLOOKUP($C20,点数集計!$C:$CL,ようこそ!$G$19,0) -> 
A21: =A20+1 -> 17 | B21: JR京浜東北線 | C21: 大森 | D21: =IFERROR(VLOOKUP($C21,全データ!$C:$CI,D$1,0)&"","") -> 東京都 | E21: =IFERROR(VLOOKUP($C21,全データ!$C:$CI,E$1,0)&"","") -> 大田区 | F21: =VLOOKUP($C21,全データ!$C:$CI,F$1,0) -> 20.66666667 | G21: =VLOOKUP($C21,全データ!$C:$CI,G$1,0) -> 35 | H21: =(VLOOKUP($C21,全データ!$C:$CI,F$1,0)+VLOOKUP($C21,全データ!$C:$CI,G$1,0))/2 -> 27.83333333 | I21: =VLOOKUP($C21,全データ!$C:$CI,I$1,0) -> 185 | J21: =VLOOKUP($C21,全データ!$C:$CI,J$1,0) -> × | K21: =VLOOKUP($C21,全データ!$C:$CI,K$1,0) -> 9.63 | L21: =VLOOKUP($C21,全データ!$C:$CI,L$1,0) -> 16.5 | M21: =(VLOOKUP($C21,全データ!$C:$CI,K$1,0)+VLOOKUP($C21,全データ!$C:$CI,L$1,0))/2 -> 13.065 | N21: =VLOOKUP($C21,全データ!$C:$CI,N$1,0) -> 44.0813925 | O21: =VLOOKUP($C21,全データ!$C:$CI,O$1,0) -> 11821.33201 | P21: =VLOOKUP($C21,全データ!$C:$CI,P$1,0) -> 0.5101852002 | Q21: =VLOOKUP($C21,全データ!$C:$CI,Q$1,0) -> -0.03237705032 | R21: =VLOOKUP($C21,全データ!$C:$CI,R$1,0) -> 411.427936 | S21: =VLOOKUP($C21,全データ!$C:$CI,S$1,0) -> 0.007250689976 | T21: =VLOOKUP($C21,全データ!$C:$CI,T$1,0) -> 2.544697817 | U21: =VLOOKUP($C21,全データ!$C:$CI,U$1,0) -> 93.62682251 | V21: =VLOOKUP($C21,全データ!$C:$CI,V$1,0) -> 0.04257677512 | W21: =VLOOKUP($C21,全データ!$C:$CI,W$1,0) -> 0.0341937168 | X21: =VLOOKUP($C21,全データ!$C:$CI,X$1,0) -> - | Y21: =VLOOKUP($C21,全データ!$C:$CI,Y$1,0) -> ○ | Z21: =IFERROR(VLOOKUP($C21,全データ!$C:$CI,Z$1,0)&"","") ->  | AA21: =IFERROR(VLOOKUP($C21,全データ!$C:$CI,AA$1,0)&"","") ->  | AB21: =IFERROR(VLOOKUP($C21,全データ!$C:$CI,AB$1,0)&"","") ->  | AC21: =IFERROR(VLOOKUP($C21,全データ!$C:$CI,AC$1,0)&"","") ->  | AD21: =IFERROR(VLOOKUP($C21,全データ!$C:$CI,AD$1,0)&"","") ->  | AE21: =IFERROR(VLOOKUP($C21,全データ!$C:$CI,AE$1,0)&"","") ->  | AF21: =IFERROR(VLOOKUP($C21,全データ!$C:$CI,AF$1,0)&"","") ->  | AG21: =IFERROR(VLOOKUP($C21,全データ!$C:$CI,AG$1,0)&"","") ->  | AH21: =IFERROR(VLOOKUP($C21,全データ!$C:$CI,AH$1,0)&"","") -> ○ | AI21: =IFERROR(VLOOKUP($C21,全データ!$C:$CI,AI$1,0)&"","") ->  | AJ21: =IFERROR(VLOOKUP($C21,全データ!$C:$CI,AJ$1,0)&"","") -> ○ | AK21: =IFERROR(VLOOKUP($C21,全データ!$C:$CI,AK$1,0)&"","") -> ○ | AL21: =IFERROR(VLOOKUP($C21,全データ!$C:$CI,AL$1,0)&"","") ->  | AM21: =IFERROR(VLOOKUP($C21,全データ!$C:$CI,AM$1,0)&"","") ->  | AN21: =IFERROR(VLOOKUP($C21,全データ!$C:$CI,AN$1,0)&"","") ->  | AO21: =IFERROR(VLOOKUP($C21,全データ!$C:$CI,AO$1,0)&"","") ->  | AP21: =IFERROR(VLOOKUP($C21,全データ!$C:$CI,AP$1,0)&"","") ->  | AQ21: =IFERROR(VLOOKUP($C21,全データ!$C:$CI,AQ$1,0)&"","") ->  | AR21: =IFERROR(VLOOKUP($C21,全データ!$C:$CI,AR$1,0)&"","") ->  | AS21: =IFERROR(VLOOKUP($C21,全データ!$C:$CI,AS$1,0)&"","") ->  | AT21: =IFERROR(VLOOKUP($C21,全データ!$C:$CI,AT$1,0)&"","") ->  | AU21: =IFERROR(VLOOKUP($C21,全データ!$C:$CI,AU$1,0)&"","") ->  | AV21: =IFERROR(VLOOKUP($C21,全データ!$C:$CI,AV$1,0)&"","") ->  | AW21: =IFERROR(VLOOKUP($C21,全データ!$C:$CI,AW$1,0)&"","") -> ◎ | AX21: =COUNTIF($Z21:$AG21,"○") -> 0 | AY21: =COUNTIF($AH21:$AK21,"○") -> 3 | AZ21: =COUNTIF($AL21:$AS21,"○") -> 0 | BA21: =COUNTIF(AT21:AW21,"○")+COUNTIF(AT21:AW21,"◎") -> 1 | BB21: =SUM(AX21:BA21) -> 4 | BC21: =VLOOKUP($C21,点数集計!$C:$CL,ようこそ!$G$19,0) -> 
A22: =A21+1 -> 18 | B22: JR京浜東北線 | C22: 大井町 | D22: =IFERROR(VLOOKUP($C22,全データ!$C:$CI,D$1,0)&"","") -> 東京都 | E22: =IFERROR(VLOOKUP($C22,全データ!$C:$CI,E$1,0)&"","") -> 品川区 | F22: =VLOOKUP($C22,全データ!$C:$CI,F$1,0) -> 17.66666667 | G22: =VLOOKUP($C22,全データ!$C:$CI,G$1,0) -> 32 | H22: =(VLOOKUP($C22,全データ!$C:$CI,F$1,0)+VLOOKUP($C22,全データ!$C:$CI,G$1,0))/2 -> 24.83333333 | I22: =VLOOKUP($C22,全データ!$C:$CI,I$1,0) -> 185 | J22: =VLOOKUP($C22,全データ!$C:$CI,J$1,0) -> △ | K22: =VLOOKUP($C22,全データ!$C:$CI,K$1,0) -> 9.85 | L22: =VLOOKUP($C22,全データ!$C:$CI,L$1,0) -> 25.41 | M22: =(VLOOKUP($C22,全データ!$C:$CI,K$1,0)+VLOOKUP($C22,全データ!$C:$CI,L$1,0))/2 -> 17.63 | N22: =VLOOKUP($C22,全データ!$C:$CI,N$1,0) -> 42.93448184 | O22: =VLOOKUP($C22,全データ!$C:$CI,O$1,0) -> 16937.60946 | P22: =VLOOKUP($C22,全データ!$C:$CI,P$1,0) -> 0.5490705934 | Q22: =VLOOKUP($C22,全データ!$C:$CI,Q$1,0) -> 0.4062684985 | R22: =VLOOKUP($C22,全データ!$C:$CI,R$1,0) -> 446.6271938 | S22: =VLOOKUP($C22,全データ!$C:$CI,S$1,0) -> 0.004417100779 | T22: =VLOOKUP($C22,全データ!$C:$CI,T$1,0) -> 2.89318737 | U22: =VLOOKUP($C22,全データ!$C:$CI,U$1,0) -> 40.46571352 | V22: =VLOOKUP($C22,全データ!$C:$CI,V$1,0) -> 0.03809262812 | W22: =VLOOKUP($C22,全データ!$C:$CI,W$1,0) -> 0.05900049822 | X22: =VLOOKUP($C22,全データ!$C:$CI,X$1,0) -> - | Y22: =VLOOKUP($C22,全データ!$C:$CI,Y$1,0) -> ○ | Z22: =IFERROR(VLOOKUP($C22,全データ!$C:$CI,Z$1,0)&"","") ->  | AA22: =IFERROR(VLOOKUP($C22,全データ!$C:$CI,AA$1,0)&"","") ->  | AB22: =IFERROR(VLOOKUP($C22,全データ!$C:$CI,AB$1,0)&"","") ->  | AC22: =IFERROR(VLOOKUP($C22,全データ!$C:$CI,AC$1,0)&"","") ->  | AD22: =IFERROR(VLOOKUP($C22,全データ!$C:$CI,AD$1,0)&"","") ->  | AE22: =IFERROR(VLOOKUP($C22,全データ!$C:$CI,AE$1,0)&"","") ->  | AF22: =IFERROR(VLOOKUP($C22,全データ!$C:$CI,AF$1,0)&"","") ->  | AG22: =IFERROR(VLOOKUP($C22,全データ!$C:$CI,AG$1,0)&"","") ->  | AH22: =IFERROR(VLOOKUP($C22,全データ!$C:$CI,AH$1,0)&"","") -> ○ | AI22: =IFERROR(VLOOKUP($C22,全データ!$C:$CI,AI$1,0)&"","") ->  | AJ22: =IFERROR(VLOOKUP($C22,全データ!$C:$CI,AJ$1,0)&"","") -> ○ | AK22: =IFERROR(VLOOKUP($C22,全データ!$C:$CI,AK$1,0)&"","") ->  | AL22: =IFERROR(VLOOKUP($C22,全データ!$C:$CI,AL$1,0)&"","") ->  | AM22: =IFERROR(VLOOKUP($C22,全データ!$C:$CI,AM$1,0)&"","") ->  | AN22: =IFERROR(VLOOKUP($C22,全データ!$C:$CI,AN$1,0)&"","") ->  | AO22: =IFERROR(VLOOKUP($C22,全データ!$C:$CI,AO$1,0)&"","") ->  | AP22: =IFERROR(VLOOKUP($C22,全データ!$C:$CI,AP$1,0)&"","") ->  | AQ22: =IFERROR(VLOOKUP($C22,全データ!$C:$CI,AQ$1,0)&"","") ->  | AR22: =IFERROR(VLOOKUP($C22,全データ!$C:$CI,AR$1,0)&"","") ->  | AS22: =IFERROR(VLOOKUP($C22,全データ!$C:$CI,AS$1,0)&"","") ->  | AT22: =IFERROR(VLOOKUP($C22,全データ!$C:$CI,AT$1,0)&"","") ->  | AU22: =IFERROR(VLOOKUP($C22,全データ!$C:$CI,AU$1,0)&"","") ->  | AV22: =IFERROR(VLOOKUP($C22,全データ!$C:$CI,AV$1,0)&"","") ->  | AW22: =IFERROR(VLOOKUP($C22,全データ!$C:$CI,AW$1,0)&"","") -> ◎ | AX22: =COUNTIF($Z22:$AG22,"○") -> 0 | AY22: =COUNTIF($AH22:$AK22,"○") -> 2 | AZ22: =COUNTIF($AL22:$AS22,"○") -> 0 | BA22: =COUNTIF(AT22:AW22,"○")+COUNTIF(AT22:AW22,"◎") -> 1 | BB22: =SUM(AX22:BA22) -> 3 | BC22: =VLOOKUP($C22,点数集計!$C:$CL,ようこそ!$G$19,0) -> 
A23: =A22+1 -> 19 | B23: JR京浜東北線 | C23: 与野 | D23: =IFERROR(VLOOKUP($C23,全データ!$C:$CI,D$1,0)&"","") -> 埼玉県 | E23: =IFERROR(VLOOKUP($C23,全データ!$C:$CI,E$1,0)&"","") -> さいたま市浦和区 | F23: =VLOOKUP($C23,全データ!$C:$CI,F$1,0) -> 39.33333333 | G23: =VLOOKUP($C23,全データ!$C:$CI,G$1,0) -> 40.33333333 | H23: =(VLOOKUP($C23,全データ!$C:$CI,F$1,0)+VLOOKUP($C23,全データ!$C:$CI,G$1,0))/2 -> 39.83333333 | I23: =VLOOKUP($C23,全データ!$C:$CI,I$1,0) -> 171 | J23: =VLOOKUP($C23,全データ!$C:$CI,J$1,0) -> × | K23: =VLOOKUP($C23,全データ!$C:$CI,K$1,0) -> 6.35 | L23: =VLOOKUP($C23,全データ!$C:$CI,L$1,0) -> 13.51 | M23: =(VLOOKUP($C23,全データ!$C:$CI,K$1,0)+VLOOKUP($C23,全データ!$C:$CI,L$1,0))/2 -> 9.93 | N23: =VLOOKUP($C23,全データ!$C:$CI,N$1,0) -> 43.98875997 | O23: =VLOOKUP($C23,全データ!$C:$CI,O$1,0) -> 14111.79159 | P23: =VLOOKUP($C23,全データ!$C:$CI,P$1,0) -> 0.3502631147 | Q23: =VLOOKUP($C23,全データ!$C:$CI,Q$1,0) -> -4.533209e-05 | R23: =VLOOKUP($C23,全データ!$C:$CI,R$1,0) -> 380.9352111 | S23: =VLOOKUP($C23,全データ!$C:$CI,S$1,0) -> 0.006748311303 | T23: =VLOOKUP($C23,全データ!$C:$CI,T$1,0) -> 4.811930111 | U23: =VLOOKUP($C23,全データ!$C:$CI,U$1,0) -> 1.886565161 | V23: =VLOOKUP($C23,全データ!$C:$CI,V$1,0) -> 0.06500747445 | W23: =VLOOKUP($C23,全データ!$C:$CI,W$1,0) -> 0.06651195558 | X23: =VLOOKUP($C23,全データ!$C:$CI,X$1,0) -> - | Y23: =VLOOKUP($C23,全データ!$C:$CI,Y$1,0) -> ○ | Z23: =IFERROR(VLOOKUP($C23,全データ!$C:$CI,Z$1,0)&"","") -> ○ | AA23: =IFERROR(VLOOKUP($C23,全データ!$C:$CI,AA$1,0)&"","") ->  | AB23: =IFERROR(VLOOKUP($C23,全データ!$C:$CI,AB$1,0)&"","") ->  | AC23: =IFERROR(VLOOKUP($C23,全データ!$C:$CI,AC$1,0)&"","") ->  | AD23: =IFERROR(VLOOKUP($C23,全データ!$C:$CI,AD$1,0)&"","") ->  | AE23: =IFERROR(VLOOKUP($C23,全データ!$C:$CI,AE$1,0)&"","") ->  | AF23: =IFERROR(VLOOKUP($C23,全データ!$C:$CI,AF$1,0)&"","") ->  | AG23: =IFERROR(VLOOKUP($C23,全データ!$C:$CI,AG$1,0)&"","") ->  | AH23: =IFERROR(VLOOKUP($C23,全データ!$C:$CI,AH$1,0)&"","") ->  | AI23: =IFERROR(VLOOKUP($C23,全データ!$C:$CI,AI$1,0)&"","") ->  | AJ23: =IFERROR(VLOOKUP($C23,全データ!$C:$CI,AJ$1,0)&"","") -> ○ | AK23: =IFERROR(VLOOKUP($C23,全データ!$C:$CI,AK$1,0)&"","") ->  | AL23: =IFERROR(VLOOKUP($C23,全データ!$C:$CI,AL$1,0)&"","") ->  | AM23: =IFERROR(VLOOKUP($C23,全データ!$C:$CI,AM$1,0)&"","") ->  | AN23: =IFERROR(VLOOKUP($C23,全データ!$C:$CI,AN$1,0)&"","") ->  | AO23: =IFERROR(VLOOKUP($C23,全データ!$C:$CI,AO$1,0)&"","") ->  | AP23: =IFERROR(VLOOKUP($C23,全データ!$C:$CI,AP$1,0)&"","") ->  | AQ23: =IFERROR(VLOOKUP($C23,全データ!$C:$CI,AQ$1,0)&"","") ->  | AR23: =IFERROR(VLOOKUP($C23,全データ!$C:$CI,AR$1,0)&"","") ->  | AS23: =IFERROR(VLOOKUP($C23,全データ!$C:$CI,AS$1,0)&"","") ->  | AT23: =IFERROR(VLOOKUP($C23,全データ!$C:$CI,AT$1,0)&"","") ->  | AU23: =IFERROR(VLOOKUP($C23,全データ!$C:$CI,AU$1,0)&"","") ->  | AV23: =IFERROR(VLOOKUP($C23,全データ!$C:$CI,AV$1,0)&"","") ->  | AW23: =IFERROR(VLOOKUP($C23,全データ!$C:$CI,AW$1,0)&"","") ->  | AX23: =COUNTIF($Z23:$AG23,"○") -> 1 | AY23: =COUNTIF($AH23:$AK23,"○") -> 1 | AZ23: =COUNTIF($AL23:$AS23,"○") -> 0 | BA23: =COUNTIF(AT23:AW23,"○")+COUNTIF(AT23:AW23,"◎") -> 0 | BB23: =SUM(AX23:BA23) -> 2 | BC23: =VLOOKUP($C23,点数集計!$C:$CL,ようこそ!$G$19,0) -> 
A24: =A23+1 -> 20 | B24: JR京浜東北線 | C24: 蒲田 | D24: =IFERROR(VLOOKUP($C24,全データ!$C:$CI,D$1,0)&"","") -> 東京都 | E24: =IFERROR(VLOOKUP($C24,全データ!$C:$CI,E$1,0)&"","") -> 大田区 | F24: =VLOOKUP($C24,全データ!$C:$CI,F$1,0) -> 24.33333333 | G24: =VLOOKUP($C24,全データ!$C:$CI,G$1,0) -> 38.33333333 | H24: =(VLOOKUP($C24,全データ!$C:$CI,F$1,0)+VLOOKUP($C24,全データ!$C:$CI,G$1,0))/2 -> 31.33333333 | I24: =VLOOKUP($C24,全データ!$C:$CI,I$1,0) -> 50 | J24: =VLOOKUP($C24,全データ!$C:$CI,J$1,0) -> ○ | K24: =VLOOKUP($C24,全データ!$C:$CI,K$1,0) -> 9.6 | L24: =VLOOKUP($C24,全データ!$C:$CI,L$1,0) -> 16.88 | M24: =(VLOOKUP($C24,全データ!$C:$CI,K$1,0)+VLOOKUP($C24,全データ!$C:$CI,L$1,0))/2 -> 13.24 | N24: =VLOOKUP($C24,全データ!$C:$CI,N$1,0) -> 44.0813925 | O24: =VLOOKUP($C24,全データ!$C:$CI,O$1,0) -> 11821.33201 | P24: =VLOOKUP($C24,全データ!$C:$CI,P$1,0) -> 0.5101852002 | Q24: =VLOOKUP($C24,全データ!$C:$CI,Q$1,0) -> -0.03237705032 | R24: =VLOOKUP($C24,全データ!$C:$CI,R$1,0) -> 411.427936 | S24: =VLOOKUP($C24,全データ!$C:$CI,S$1,0) -> 0.007250689976 | T24: =VLOOKUP($C24,全データ!$C:$CI,T$1,0) -> 2.544697817 | U24: =VLOOKUP($C24,全データ!$C:$CI,U$1,0) -> 93.62682251 | V24: =VLOOKUP($C24,全データ!$C:$CI,V$1,0) -> 0.04257677512 | W24: =VLOOKUP($C24,全データ!$C:$CI,W$1,0) -> 0.0341937168 | X24: =VLOOKUP($C24,全データ!$C:$CI,X$1,0) -> - | Y24: =VLOOKUP($C24,全データ!$C:$CI,Y$1,0) -> ○ | Z24: =IFERROR(VLOOKUP($C24,全データ!$C:$CI,Z$1,0)&"","") ->  | AA24: =IFERROR(VLOOKUP($C24,全データ!$C:$CI,AA$1,0)&"","") ->  | AB24: =IFERROR(VLOOKUP($C24,全データ!$C:$CI,AB$1,0)&"","") ->  | AC24: =IFERROR(VLOOKUP($C24,全データ!$C:$CI,AC$1,0)&"","") ->  | AD24: =IFERROR(VLOOKUP($C24,全データ!$C:$CI,AD$1,0)&"","") ->  | AE24: =IFERROR(VLOOKUP($C24,全データ!$C:$CI,AE$1,0)&"","") ->  | AF24: =IFERROR(VLOOKUP($C24,全データ!$C:$CI,AF$1,0)&"","") ->  | AG24: =IFERROR(VLOOKUP($C24,全データ!$C:$CI,AG$1,0)&"","") ->  | AH24: =IFERROR(VLOOKUP($C24,全データ!$C:$CI,AH$1,0)&"","") ->  | AI24: =IFERROR(VLOOKUP($C24,全データ!$C:$CI,AI$1,0)&"","") ->  | AJ24: =IFERROR(VLOOKUP($C24,全データ!$C:$CI,AJ$1,0)&"","") ->  | AK24: =IFERROR(VLOOKUP($C24,全データ!$C:$CI,AK$1,0)&"","") ->  | AL24: =IFERROR(VLOOKUP($C24,全データ!$C:$CI,AL$1,0)&"","") ->  | AM24: =IFERROR(VLOOKUP($C24,全データ!$C:$CI,AM$1,0)&"","") ->  | AN24: =IFERROR(VLOOKUP($C24,全データ!$C:$CI,AN$1,0)&"","") ->  | AO24: =IFERROR(VLOOKUP($C24,全データ!$C:$CI,AO$1,0)&"","") ->  | AP24: =IFERROR(VLOOKUP($C24,全データ!$C:$CI,AP$1,0)&"","") ->  | AQ24: =IFERROR(VLOOKUP($C24,全データ!$C:$CI,AQ$1,0)&"","") ->  | AR24: =IFERROR(VLOOKUP($C24,全データ!$C:$CI,AR$1,0)&"","") ->  | AS24: =IFERROR(VLOOKUP($C24,全データ!$C:$CI,AS$1,0)&"","") ->  | AT24: =IFERROR(VLOOKUP($C24,全データ!$C:$CI,AT$1,0)&"","") ->  | AU24: =IFERROR(VLOOKUP($C24,全データ!$C:$CI,AU$1,0)&"","") ->  | AV24: =IFERROR(VLOOKUP($C24,全データ!$C:$CI,AV$1,0)&"","") ->  | AW24: =IFERROR(VLOOKUP($C24,全データ!$C:$CI,AW$1,0)&"","") -> ◎ | AX24: =COUNTIF($Z24:$AG24,"○") -> 0 | AY24: =COUNTIF($AH24:$AK24,"○") -> 0 | AZ24: =COUNTIF($AL24:$AS24,"○") -> 0 | BA24: =COUNTIF(AT24:AW24,"○")+COUNTIF(AT24:AW24,"◎") -> 1 | BB24: =SUM(AX24:BA24) -> 1 | BC24: =VLOOKUP($C24,点数集計!$C:$CL,ようこそ!$G$19,0) -> 
A25: =A24+1 -> 21 | B25: JR京浜東北線 | C25: 新子安 | D25: =IFERROR(VLOOKUP($C25,全データ!$C:$CI,D$1,0)&"","") -> 神奈川県 | E25: =IFERROR(VLOOKUP($C25,全データ!$C:$CI,E$1,0)&"","") -> 横浜市神奈川区 | F25: =VLOOKUP($C25,全データ!$C:$CI,F$1,0) -> 36.33333333 | G25: =VLOOKUP($C25,全データ!$C:$CI,G$1,0) -> 50.33333333 | H25: =(VLOOKUP($C25,全データ!$C:$CI,F$1,0)+VLOOKUP($C25,全データ!$C:$CI,G$1,0))/2 -> 43.33333333 | I25: =VLOOKUP($C25,全データ!$C:$CI,I$1,0) -> 171 | J25: =VLOOKUP($C25,全データ!$C:$CI,J$1,0) -> × | K25: =VLOOKUP($C25,全データ!$C:$CI,K$1,0) -> 7.24 | L25: =VLOOKUP($C25,全データ!$C:$CI,L$1,0) -> 12.3 | M25: =(VLOOKUP($C25,全データ!$C:$CI,K$1,0)+VLOOKUP($C25,全データ!$C:$CI,L$1,0))/2 -> 9.77 | N25: =VLOOKUP($C25,全データ!$C:$CI,N$1,0) -> 43.31145613 | O25: =VLOOKUP($C25,全データ!$C:$CI,O$1,0) -> 11921.51577 | P25: =VLOOKUP($C25,全データ!$C:$CI,P$1,0) -> 0.4770985325 | Q25: =VLOOKUP($C25,全データ!$C:$CI,Q$1,0) -> 0.001163345413 | R25: =VLOOKUP($C25,全データ!$C:$CI,R$1,0) -> 398.5368083 | S25: =VLOOKUP($C25,全データ!$C:$CI,S$1,0) -> 0.004071157479 | T25: =VLOOKUP($C25,全データ!$C:$CI,T$1,0) -> 0.499903752 | U25: =VLOOKUP($C25,全データ!$C:$CI,U$1,0) -> 3.561790473 | V25: =VLOOKUP($C25,全データ!$C:$CI,V$1,0) -> 0.03524703047 | W25: =VLOOKUP($C25,全データ!$C:$CI,W$1,0) -> 0.02372027469 | X25: =VLOOKUP($C25,全データ!$C:$CI,X$1,0) -> 子安 | Y25: =VLOOKUP($C25,全データ!$C:$CI,Y$1,0) -> ○ | Z25: =IFERROR(VLOOKUP($C25,全データ!$C:$CI,Z$1,0)&"","") -> ○ | AA25: =IFERROR(VLOOKUP($C25,全データ!$C:$CI,AA$1,0)&"","") ->  | AB25: =IFERROR(VLOOKUP($C25,全データ!$C:$CI,AB$1,0)&"","") ->  | AC25: =IFERROR(VLOOKUP($C25,全データ!$C:$CI,AC$1,0)&"","") ->  | AD25: =IFERROR(VLOOKUP($C25,全データ!$C:$CI,AD$1,0)&"","") ->  | AE25: =IFERROR(VLOOKUP($C25,全データ!$C:$CI,AE$1,0)&"","") ->  | AF25: =IFERROR(VLOOKUP($C25,全データ!$C:$CI,AF$1,0)&"","") ->  | AG25: =IFERROR(VLOOKUP($C25,全データ!$C:$CI,AG$1,0)&"","") ->  | AH25: =IFERROR(VLOOKUP($C25,全データ!$C:$CI,AH$1,0)&"","") ->  | AI25: =IFERROR(VLOOKUP($C25,全データ!$C:$CI,AI$1,0)&"","") ->  | AJ25: =IFERROR(VLOOKUP($C25,全データ!$C:$CI,AJ$1,0)&"","") ->  | AK25: =IFERROR(VLOOKUP($C25,全データ!$C:$CI,AK$1,0)&"","") ->  | AL25: =IFERROR(VLOOKUP($C25,全データ!$C:$CI,AL$1,0)&"","") ->  | AM25: =IFERROR(VLOOKUP($C25,全データ!$C:$CI,AM$1,0)&"","") ->  | AN25: =IFERROR(VLOOKUP($C25,全データ!$C:$CI,AN$1,0)&"","") ->  | AO25: =IFERROR(VLOOKUP($C25,全データ!$C:$CI,AO$1,0)&"","") ->  | AP25: =IFERROR(VLOOKUP($C25,全データ!$C:$CI,AP$1,0)&"","") ->  | AQ25: =IFERROR(VLOOKUP($C25,全データ!$C:$CI,AQ$1,0)&"","") ->  | AR25: =IFERROR(VLOOKUP($C25,全データ!$C:$CI,AR$1,0)&"","") ->  | AS25: =IFERROR(VLOOKUP($C25,全データ!$C:$CI,AS$1,0)&"","") ->  | AT25: =IFERROR(VLOOKUP($C25,全データ!$C:$CI,AT$1,0)&"","") ->  | AU25: =IFERROR(VLOOKUP($C25,全データ!$C:$CI,AU$1,0)&"","") ->  | AV25: =IFERROR(VLOOKUP($C25,全データ!$C:$CI,AV$1,0)&"","") ->  | AW25: =IFERROR(VLOOKUP($C25,全データ!$C:$CI,AW$1,0)&"","") ->  | AX25: =COUNTIF($Z25:$AG25,"○") -> 1 | AY25: =COUNTIF($AH25:$AK25,"○") -> 0 | AZ25: =COUNTIF($AL25:$AS25,"○") -> 0 | BA25: =COUNTIF(AT25:AW25,"○")+COUNTIF(AT25:AW25,"◎") -> 0 | BB25: =SUM(AX25:BA25) -> 1 | BC25: =VLOOKUP($C25,点数集計!$C:$CL,ようこそ!$G$19,0) -> 
A26: =A25+1 -> 22 | B26: JR京浜東北線 | C26: 東神奈川 | D26: =IFERROR(VLOOKUP($C26,全データ!$C:$CI,D$1,0)&"","") -> 神奈川県 | E26: =IFERROR(VLOOKUP($C26,全データ!$C:$CI,E$1,0)&"","") -> 横浜市神奈川区 | F26: =VLOOKUP($C26,全データ!$C:$CI,F$1,0) -> 39.33333333 | G26: =VLOOKUP($C26,全データ!$C:$CI,G$1,0) -> 49.33333333 | H26: =(VLOOKUP($C26,全データ!$C:$CI,F$1,0)+VLOOKUP($C26,全データ!$C:$CI,G$1,0))/2 -> 44.33333333 | I26: =VLOOKUP($C26,全データ!$C:$CI,I$1,0) -> 185 | J26: =VLOOKUP($C26,全データ!$C:$CI,J$1,0) -> △ | K26: =VLOOKUP($C26,全データ!$C:$CI,K$1,0) -> 7.84 | L26: =VLOOKUP($C26,全データ!$C:$CI,L$1,0) -> 13.6 | M26: =(VLOOKUP($C26,全データ!$C:$CI,K$1,0)+VLOOKUP($C26,全データ!$C:$CI,L$1,0))/2 -> 10.72 | N26: =VLOOKUP($C26,全データ!$C:$CI,N$1,0) -> 43.31145613 | O26: =VLOOKUP($C26,全データ!$C:$CI,O$1,0) -> 11921.51577 | P26: =VLOOKUP($C26,全データ!$C:$CI,P$1,0) -> 0.4770985325 | Q26: =VLOOKUP($C26,全データ!$C:$CI,Q$1,0) -> 0.001163345413 | R26: =VLOOKUP($C26,全データ!$C:$CI,R$1,0) -> 398.5368083 | S26: =VLOOKUP($C26,全データ!$C:$CI,S$1,0) -> 0.004071157479 | T26: =VLOOKUP($C26,全データ!$C:$CI,T$1,0) -> 0.499903752 | U26: =VLOOKUP($C26,全データ!$C:$CI,U$1,0) -> 3.561790473 | V26: =VLOOKUP($C26,全データ!$C:$CI,V$1,0) -> 0.03524703047 | W26: =VLOOKUP($C26,全データ!$C:$CI,W$1,0) -> 0.02372027469 | X26: =VLOOKUP($C26,全データ!$C:$CI,X$1,0) -> 東神奈川 | Y26: =VLOOKUP($C26,全データ!$C:$CI,Y$1,0) -> ○ | Z26: =IFERROR(VLOOKUP($C26,全データ!$C:$CI,Z$1,0)&"","") ->  | AA26: =IFERROR(VLOOKUP($C26,全データ!$C:$CI,AA$1,0)&"","") ->  | AB26: =IFERROR(VLOOKUP($C26,全データ!$C:$CI,AB$1,0)&"","") ->  | AC26: =IFERROR(VLOOKUP($C26,全データ!$C:$CI,AC$1,0)&"","") ->  | AD26: =IFERROR(VLOOKUP($C26,全データ!$C:$CI,AD$1,0)&"","") ->  | AE26: =IFERROR(VLOOKUP($C26,全データ!$C:$CI,AE$1,0)&"","") ->  | AF26: =IFERROR(VLOOKUP($C26,全データ!$C:$CI,AF$1,0)&"","") ->  | AG26: =IFERROR(VLOOKUP($C26,全データ!$C:$CI,AG$1,0)&"","") ->  | AH26: =IFERROR(VLOOKUP($C26,全データ!$C:$CI,AH$1,0)&"","") ->  | AI26: =IFERROR(VLOOKUP($C26,全データ!$C:$CI,AI$1,0)&"","") -> ○ | AJ26: =IFERROR(VLOOKUP($C26,全データ!$C:$CI,AJ$1,0)&"","") ->  | AK26: =IFERROR(VLOOKUP($C26,全データ!$C:$CI,AK$1,0)&"","") ->  | AL26: =IFERROR(VLOOKUP($C26,全データ!$C:$CI,AL$1,0)&"","") ->  | AM26: =IFERROR(VLOOKUP($C26,全データ!$C:$CI,AM$1,0)&"","") ->  | AN26: =IFERROR(VLOOKUP($C26,全データ!$C:$CI,AN$1,0)&"","") ->  | AO26: =IFERROR(VLOOKUP($C26,全データ!$C:$CI,AO$1,0)&"","") ->  | AP26: =IFERROR(VLOOKUP($C26,全データ!$C:$CI,AP$1,0)&"","") ->  | AQ26: =IFERROR(VLOOKUP($C26,全データ!$C:$CI,AQ$1,0)&"","") ->  | AR26: =IFERROR(VLOOKUP($C26,全データ!$C:$CI,AR$1,0)&"","") ->  | AS26: =IFERROR(VLOOKUP($C26,全データ!$C:$CI,AS$1,0)&"","") ->  | AT26: =IFERROR(VLOOKUP($C26,全データ!$C:$CI,AT$1,0)&"","") ->  | AU26: =IFERROR(VLOOKUP($C26,全データ!$C:$CI,AU$1,0)&"","") ->  | AV26: =IFERROR(VLOOKUP($C26,全データ!$C:$CI,AV$1,0)&"","") ->  | AW26: =IFERROR(VLOOKUP($C26,全データ!$C:$CI,AW$1,0)&"","") ->  | AX26: =COUNTIF($Z26:$AG26,"○") -> 0 | AY26: =COUNTIF($AH26:$AK26,"○") -> 1 | AZ26: =COUNTIF($AL26:$AS26,"○") -> 0 | BA26: =COUNTIF(AT26:AW26,"○")+COUNTIF(AT26:AW26,"◎") -> 0 | BB26: =SUM(AX26:BA26) -> 1 | BC26: =VLOOKUP($C26,点数集計!$C:$CL,ようこそ!$G$19,0) -> 
A27: =A26+1 -> 23 | B27: JR京葉線 | C27: 蘇我 | D27: =IFERROR(VLOOKUP($C27,全データ!$C:$CI,D$1,0)&"","") -> 千葉県 | E27: =IFERROR(VLOOKUP($C27,全データ!$C:$CI,E$1,0)&"","") -> 千葉市中央区 | F27: =VLOOKUP($C27,全データ!$C:$CI,F$1,0) -> 46.66666667 | G27: =VLOOKUP($C27,全データ!$C:$CI,G$1,0) -> 76.33333333 | H27: =(VLOOKUP($C27,全データ!$C:$CI,F$1,0)+VLOOKUP($C27,全データ!$C:$CI,G$1,0))/2 -> 61.5 | I27: =VLOOKUP($C27,全データ!$C:$CI,I$1,0) -> 50 | J27: =VLOOKUP($C27,全データ!$C:$CI,J$1,0) -> ○ | K27: =VLOOKUP($C27,全データ!$C:$CI,K$1,0) -> 6.11 | L27: =VLOOKUP($C27,全データ!$C:$CI,L$1,0) -> 9.6 | M27: =(VLOOKUP($C27,全データ!$C:$CI,K$1,0)+VLOOKUP($C27,全データ!$C:$CI,L$1,0))/2 -> 7.855 | N27: =VLOOKUP($C27,全データ!$C:$CI,N$1,0) -> 44.35841664 | O27: =VLOOKUP($C27,全データ!$C:$CI,O$1,0) -> 5242.740232 | P27: =VLOOKUP($C27,全データ!$C:$CI,P$1,0) -> 0.4159211748 | Q27: =VLOOKUP($C27,全データ!$C:$CI,Q$1,0) -> 0.2373823572 | R27: =VLOOKUP($C27,全データ!$C:$CI,R$1,0) -> 361.8675968 | S27: =VLOOKUP($C27,全データ!$C:$CI,S$1,0) -> 0.009261083744 | T27: =VLOOKUP($C27,全データ!$C:$CI,T$1,0) -> 5.35519091 | U27: =VLOOKUP($C27,全データ!$C:$CI,U$1,0) -> 76.06955066 | V27: =VLOOKUP($C27,全データ!$C:$CI,V$1,0) -> 0.02263010888 | W27: =VLOOKUP($C27,全データ!$C:$CI,W$1,0) -> 0.02862101483 | X27: =VLOOKUP($C27,全データ!$C:$CI,X$1,0) -> - | Y27: =VLOOKUP($C27,全データ!$C:$CI,Y$1,0) -> ○ | Z27: =IFERROR(VLOOKUP($C27,全データ!$C:$CI,Z$1,0)&"","") ->  | AA27: =IFERROR(VLOOKUP($C27,全データ!$C:$CI,AA$1,0)&"","") -> ○ | AB27: =IFERROR(VLOOKUP($C27,全データ!$C:$CI,AB$1,0)&"","") ->  | AC27: =IFERROR(VLOOKUP($C27,全データ!$C:$CI,AC$1,0)&"","") ->  | AD27: =IFERROR(VLOOKUP($C27,全データ!$C:$CI,AD$1,0)&"","") ->  | AE27: =IFERROR(VLOOKUP($C27,全データ!$C:$CI,AE$1,0)&"","") ->  | AF27: =IFERROR(VLOOKUP($C27,全データ!$C:$CI,AF$1,0)&"","") ->  | AG27: =IFERROR(VLOOKUP($C27,全データ!$C:$CI,AG$1,0)&"","") ->  | AH27: =IFERROR(VLOOKUP($C27,全データ!$C:$CI,AH$1,0)&"","") -> ○ | AI27: =IFERROR(VLOOKUP($C27,全データ!$C:$CI,AI$1,0)&"","") ->  | AJ27: =IFERROR(VLOOKUP($C27,全データ!$C:$CI,AJ$1,0)&"","") ->  | AK27: =IFERROR(VLOOKUP($C27,全データ!$C:$CI,AK$1,0)&"","") ->  | AL27: =IFERROR(VLOOKUP($C27,全データ!$C:$CI,AL$1,0)&"","") -> ○ | AM27: =IFERROR(VLOOKUP($C27,全データ!$C:$CI,AM$1,0)&"","") ->  | AN27: =IFERROR(VLOOKUP($C27,全データ!$C:$CI,AN$1,0)&"","") ->  | AO27: =IFERROR(VLOOKUP($C27,全データ!$C:$CI,AO$1,0)&"","") -> ○ | AP27: =IFERROR(VLOOKUP($C27,全データ!$C:$CI,AP$1,0)&"","") ->  | AQ27: =IFERROR(VLOOKUP($C27,全データ!$C:$CI,AQ$1,0)&"","") ->  | AR27: =IFERROR(VLOOKUP($C27,全データ!$C:$CI,AR$1,0)&"","") ->  | AS27: =IFERROR(VLOOKUP($C27,全データ!$C:$CI,AS$1,0)&"","") ->  | AT27: =IFERROR(VLOOKUP($C27,全データ!$C:$CI,AT$1,0)&"","") ->  | AU27: =IFERROR(VLOOKUP($C27,全データ!$C:$CI,AU$1,0)&"","") -> ○ | AV27: =IFERROR(VLOOKUP($C27,全データ!$C:$CI,AV$1,0)&"","") -> ○ | AW27: =IFERROR(VLOOKUP($C27,全データ!$C:$CI,AW$1,0)&"","") ->  | AX27: =COUNTIF($Z27:$AG27,"○") -> 1 | AY27: =COUNTIF($AH27:$AK27,"○") -> 1 | AZ27: =COUNTIF($AL27:$AS27,"○") -> 2 | BA27: =COUNTIF(AT27:AW27,"○")+COUNTIF(AT27:AW27,"◎") -> 2 | BB27: =SUM(AX27:BA27) -> 6 | BC27: =VLOOKUP($C27,点数集計!$C:$CL,ようこそ!$G$19,0) -> 
A28: =A27+1 -> 24 | B28: JR京葉線 | C28: 南船橋 | D28: =IFERROR(VLOOKUP($C28,全データ!$C:$CI,D$1,0)&"","") -> 千葉県 | E28: =IFERROR(VLOOKUP($C28,全データ!$C:$CI,E$1,0)&"","") -> 船橋市 | F28: =VLOOKUP($C28,全データ!$C:$CI,F$1,0) -> 36.66666667 | G28: =VLOOKUP($C28,全データ!$C:$CI,G$1,0) -> 64 | H28: =(VLOOKUP($C28,全データ!$C:$CI,F$1,0)+VLOOKUP($C28,全データ!$C:$CI,G$1,0))/2 -> 50.33333333 | I28: =VLOOKUP($C28,全データ!$C:$CI,I$1,0) -> 166 | J28: =VLOOKUP($C28,全データ!$C:$CI,J$1,0) -> △ | K28: =VLOOKUP($C28,全データ!$C:$CI,K$1,0) -> 5.7 | L28: =VLOOKUP($C28,全データ!$C:$CI,L$1,0) -> 15.27 | M28: =(VLOOKUP($C28,全データ!$C:$CI,K$1,0)+VLOOKUP($C28,全データ!$C:$CI,L$1,0))/2 -> 10.485 | N28: =VLOOKUP($C28,全データ!$C:$CI,N$1,0) -> 43.86046411 | O28: =VLOOKUP($C28,全データ!$C:$CI,O$1,0) -> 10189.35517 | P28: =VLOOKUP($C28,全データ!$C:$CI,P$1,0) -> 0.3541363389 | Q28: =VLOOKUP($C28,全データ!$C:$CI,Q$1,0) -> -0.1580038209 | R28: =VLOOKUP($C28,全データ!$C:$CI,R$1,0) -> 359.1306196 | S28: =VLOOKUP($C28,全データ!$C:$CI,S$1,0) -> 0.008824129456 | T28: =VLOOKUP($C28,全データ!$C:$CI,T$1,0) -> 2.549873975 | U28: =VLOOKUP($C28,全データ!$C:$CI,U$1,0) -> 34.54627051 | V28: =VLOOKUP($C28,全データ!$C:$CI,V$1,0) -> 0.03458323748 | W28: =VLOOKUP($C28,全データ!$C:$CI,W$1,0) -> 0.02274070669 | X28: =VLOOKUP($C28,全データ!$C:$CI,X$1,0) -> 谷津船橋IC | Y28: =VLOOKUP($C28,全データ!$C:$CI,Y$1,0) -> ◎ | Z28: =IFERROR(VLOOKUP($C28,全データ!$C:$CI,Z$1,0)&"","") ->  | AA28: =IFERROR(VLOOKUP($C28,全データ!$C:$CI,AA$1,0)&"","") -> ○ | AB28: =IFERROR(VLOOKUP($C28,全データ!$C:$CI,AB$1,0)&"","") ->  | AC28: =IFERROR(VLOOKUP($C28,全データ!$C:$CI,AC$1,0)&"","") ->  | AD28: =IFERROR(VLOOKUP($C28,全データ!$C:$CI,AD$1,0)&"","") ->  | AE28: =IFERROR(VLOOKUP($C28,全データ!$C:$CI,AE$1,0)&"","") ->  | AF28: =IFERROR(VLOOKUP($C28,全データ!$C:$CI,AF$1,0)&"","") -> ○ | AG28: =IFERROR(VLOOKUP($C28,全データ!$C:$CI,AG$1,0)&"","") ->  | AH28: =IFERROR(VLOOKUP($C28,全データ!$C:$CI,AH$1,0)&"","") ->  | AI28: =IFERROR(VLOOKUP($C28,全データ!$C:$CI,AI$1,0)&"","") ->  | AJ28: =IFERROR(VLOOKUP($C28,全データ!$C:$CI,AJ$1,0)&"","") ->  | AK28: =IFERROR(VLOOKUP($C28,全データ!$C:$CI,AK$1,0)&"","") ->  | AL28: =IFERROR(VLOOKUP($C28,全データ!$C:$CI,AL$1,0)&"","") ->  | AM28: =IFERROR(VLOOKUP($C28,全データ!$C:$CI,AM$1,0)&"","") -> ○ | AN28: =IFERROR(VLOOKUP($C28,全データ!$C:$CI,AN$1,0)&"","") ->  | AO28: =IFERROR(VLOOKUP($C28,全データ!$C:$CI,AO$1,0)&"","") ->  | AP28: =IFERROR(VLOOKUP($C28,全データ!$C:$CI,AP$1,0)&"","") ->  | AQ28: =IFERROR(VLOOKUP($C28,全データ!$C:$CI,AQ$1,0)&"","") ->  | AR28: =IFERROR(VLOOKUP($C28,全データ!$C:$CI,AR$1,0)&"","") ->  | AS28: =IFERROR(VLOOKUP($C28,全データ!$C:$CI,AS$1,0)&"","") ->  | AT28: =IFERROR(VLOOKUP($C28,全データ!$C:$CI,AT$1,0)&"","") ->  | AU28: =IFERROR(VLOOKUP($C28,全データ!$C:$CI,AU$1,0)&"","") ->  | AV28: =IFERROR(VLOOKUP($C28,全データ!$C:$CI,AV$1,0)&"","") -> ◎ | AW28: =IFERROR(VLOOKUP($C28,全データ!$C:$CI,AW$1,0)&"","") ->  | AX28: =COUNTIF($Z28:$AG28,"○") -> 2 | AY28: =COUNTIF($AH28:$AK28,"○") -> 0 | AZ28: =COUNTIF($AL28:$AS28,"○") -> 1 | BA28: =COUNTIF(AT28:AW28,"○")+COUNTIF(AT28:AW28,"◎") -> 1 | BB28: =SUM(AX28:BA28) -> 4 | BC28: =VLOOKUP($C28,点数集計!$C:$CL,ようこそ!$G$19,0) -> 
A29: =A28+1 -> 25 | B29: JR京葉線 | C29: 新浦安 | D29: =IFERROR(VLOOKUP($C29,全データ!$C:$CI,D$1,0)&"","") -> 千葉県 | E29: =IFERROR(VLOOKUP($C29,全データ!$C:$CI,E$1,0)&"","") -> 浦安市 | F29: =VLOOKUP($C29,全データ!$C:$CI,F$1,0) -> 25.33333333 | G29: =VLOOKUP($C29,全データ!$C:$CI,G$1,0) -> 54 | H29: =(VLOOKUP($C29,全データ!$C:$CI,F$1,0)+VLOOKUP($C29,全データ!$C:$CI,G$1,0))/2 -> 39.66666667 | I29: =VLOOKUP($C29,全データ!$C:$CI,I$1,0) -> 166 | J29: =VLOOKUP($C29,全データ!$C:$CI,J$1,0) -> × | K29: =VLOOKUP($C29,全データ!$C:$CI,K$1,0) -> 6.41 | L29: =VLOOKUP($C29,全データ!$C:$CI,L$1,0) -> 11.7 | M29: =(VLOOKUP($C29,全データ!$C:$CI,K$1,0)+VLOOKUP($C29,全データ!$C:$CI,L$1,0))/2 -> 9.055 | N29: =VLOOKUP($C29,全データ!$C:$CI,N$1,0) -> 40.80975111 | O29: =VLOOKUP($C29,全データ!$C:$CI,O$1,0) -> 9481.156069 | P29: =VLOOKUP($C29,全データ!$C:$CI,P$1,0) -> 0.411250219 | Q29: =VLOOKUP($C29,全データ!$C:$CI,Q$1,0) -> -0.03839072331 | R29: =VLOOKUP($C29,全データ!$C:$CI,R$1,0) -> 462.2180199 | S29: =VLOOKUP($C29,全データ!$C:$CI,S$1,0) -> 0.008235749111 | T29: =VLOOKUP($C29,全データ!$C:$CI,T$1,0) -> 4.383888943 | U29: =VLOOKUP($C29,全データ!$C:$CI,U$1,0) -> 5.328891059 | V29: =VLOOKUP($C29,全データ!$C:$CI,V$1,0) -> 0.07762096774 | W29: =VLOOKUP($C29,全データ!$C:$CI,W$1,0) -> -0.005173553619 | X29: =VLOOKUP($C29,全データ!$C:$CI,X$1,0) -> 浦安 | Y29: =VLOOKUP($C29,全データ!$C:$CI,Y$1,0) -> ◎ | Z29: =IFERROR(VLOOKUP($C29,全データ!$C:$CI,Z$1,0)&"","") ->  | AA29: =IFERROR(VLOOKUP($C29,全データ!$C:$CI,AA$1,0)&"","") ->  | AB29: =IFERROR(VLOOKUP($C29,全データ!$C:$CI,AB$1,0)&"","") ->  | AC29: =IFERROR(VLOOKUP($C29,全データ!$C:$CI,AC$1,0)&"","") ->  | AD29: =IFERROR(VLOOKUP($C29,全データ!$C:$CI,AD$1,0)&"","") ->  | AE29: =IFERROR(VLOOKUP($C29,全データ!$C:$CI,AE$1,0)&"","") ->  | AF29: =IFERROR(VLOOKUP($C29,全データ!$C:$CI,AF$1,0)&"","") ->  | AG29: =IFERROR(VLOOKUP($C29,全データ!$C:$CI,AG$1,0)&"","") ->  | AH29: =IFERROR(VLOOKUP($C29,全データ!$C:$CI,AH$1,0)&"","") ->  | AI29: =IFERROR(VLOOKUP($C29,全データ!$C:$CI,AI$1,0)&"","") -> ○ | AJ29: =IFERROR(VLOOKUP($C29,全データ!$C:$CI,AJ$1,0)&"","") ->  | AK29: =IFERROR(VLOOKUP($C29,全データ!$C:$CI,AK$1,0)&"","") ->  | AL29: =IFERROR(VLOOKUP($C29,全データ!$C:$CI,AL$1,0)&"","") ->  | AM29: =IFERROR(VLOOKUP($C29,全データ!$C:$CI,AM$1,0)&"","") ->  | AN29: =IFERROR(VLOOKUP($C29,全データ!$C:$CI,AN$1,0)&"","") ->  | AO29: =IFERROR(VLOOKUP($C29,全データ!$C:$CI,AO$1,0)&"","") ->  | AP29: =IFERROR(VLOOKUP($C29,全データ!$C:$CI,AP$1,0)&"","") -> ○ | AQ29: =IFERROR(VLOOKUP($C29,全データ!$C:$CI,AQ$1,0)&"","") ->  | AR29: =IFERROR(VLOOKUP($C29,全データ!$C:$CI,AR$1,0)&"","") ->  | AS29: =IFERROR(VLOOKUP($C29,全データ!$C:$CI,AS$1,0)&"","") ->  | AT29: =IFERROR(VLOOKUP($C29,全データ!$C:$CI,AT$1,0)&"","") ->  | AU29: =IFERROR(VLOOKUP($C29,全データ!$C:$CI,AU$1,0)&"","") ->  | AV29: =IFERROR(VLOOKUP($C29,全データ!$C:$CI,AV$1,0)&"","") ->  | AW29: =IFERROR(VLOOKUP($C29,全データ!$C:$CI,AW$1,0)&"","") -> ○ | AX29: =COUNTIF($Z29:$AG29,"○") -> 0 | AY29: =COUNTIF($AH29:$AK29,"○") -> 1 | AZ29: =COUNTIF($AL29:$AS29,"○") -> 1 | BA29: =COUNTIF(AT29:AW29,"○")+COUNTIF(AT29:AW29,"◎") -> 1 | BB29: =SUM(AX29:BA29) -> 3 | BC29: =VLOOKUP($C29,点数集計!$C:$CL,ようこそ!$G$19,0) -> 
A30: =A29+1 -> 26 | B30: JR京葉線 | C30: 新習志野 | D30: =IFERROR(VLOOKUP($C30,全データ!$C:$CI,D$1,0)&"","") -> 千葉県 | E30: =IFERROR(VLOOKUP($C30,全データ!$C:$CI,E$1,0)&"","") -> 習志野市 | F30: =VLOOKUP($C30,全データ!$C:$CI,F$1,0) -> 39.66666667 | G30: =VLOOKUP($C30,全データ!$C:$CI,G$1,0) -> 68 | H30: =(VLOOKUP($C30,全データ!$C:$CI,F$1,0)+VLOOKUP($C30,全データ!$C:$CI,G$1,0))/2 -> 53.83333333 | I30: =VLOOKUP($C30,全データ!$C:$CI,I$1,0) -> 166 | J30: =VLOOKUP($C30,全データ!$C:$CI,J$1,0) -> △ | K30: =VLOOKUP($C30,全データ!$C:$CI,K$1,0) -> 6.1 | L30: =VLOOKUP($C30,全データ!$C:$CI,L$1,0) -> 8.8 | M30: =(VLOOKUP($C30,全データ!$C:$CI,K$1,0)+VLOOKUP($C30,全データ!$C:$CI,L$1,0))/2 -> 7.45 | N30: =VLOOKUP($C30,全データ!$C:$CI,N$1,0) -> 43.40043507 | O30: =VLOOKUP($C30,全データ!$C:$CI,O$1,0) -> 8208.58685 | P30: =VLOOKUP($C30,全データ!$C:$CI,P$1,0) -> 0.3406676993 | Q30: =VLOOKUP($C30,全データ!$C:$CI,Q$1,0) -> -0.08792262476 | R30: =VLOOKUP($C30,全データ!$C:$CI,R$1,0) -> 370.0265119 | S30: =VLOOKUP($C30,全データ!$C:$CI,S$1,0) -> 0.00851475063 | T30: =VLOOKUP($C30,全データ!$C:$CI,T$1,0) -> 2.23031523 | U30: =VLOOKUP($C30,全データ!$C:$CI,U$1,0) -> 3.92224779 | V30: =VLOOKUP($C30,全データ!$C:$CI,V$1,0) -> 0.0715828448 | W30: =VLOOKUP($C30,全データ!$C:$CI,W$1,0) -> 0.02053728803 | X30: =VLOOKUP($C30,全データ!$C:$CI,X$1,0) -> 湾岸習志野IC | Y30: =VLOOKUP($C30,全データ!$C:$CI,Y$1,0) -> ◎ | Z30: =IFERROR(VLOOKUP($C30,全データ!$C:$CI,Z$1,0)&"","") ->  | AA30: =IFERROR(VLOOKUP($C30,全データ!$C:$CI,AA$1,0)&"","") ->  | AB30: =IFERROR(VLOOKUP($C30,全データ!$C:$CI,AB$1,0)&"","") ->  | AC30: =IFERROR(VLOOKUP($C30,全データ!$C:$CI,AC$1,0)&"","") ->  | AD30: =IFERROR(VLOOKUP($C30,全データ!$C:$CI,AD$1,0)&"","") ->  | AE30: =IFERROR(VLOOKUP($C30,全データ!$C:$CI,AE$1,0)&"","") -> ○ | AF30: =IFERROR(VLOOKUP($C30,全データ!$C:$CI,AF$1,0)&"","") ->  | AG30: =IFERROR(VLOOKUP($C30,全データ!$C:$CI,AG$1,0)&"","") ->  | AH30: =IFERROR(VLOOKUP($C30,全データ!$C:$CI,AH$1,0)&"","") ->  | AI30: =IFERROR(VLOOKUP($C30,全データ!$C:$CI,AI$1,0)&"","") ->  | AJ30: =IFERROR(VLOOKUP($C30,全データ!$C:$CI,AJ$1,0)&"","") ->  | AK30: =IFERROR(VLOOKUP($C30,全データ!$C:$CI,AK$1,0)&"","") ->  | AL30: =IFERROR(VLOOKUP($C30,全データ!$C:$CI,AL$1,0)&"","") -> ○ | AM30: =IFERROR(VLOOKUP($C30,全データ!$C:$CI,AM$1,0)&"","") ->  | AN30: =IFERROR(VLOOKUP($C30,全データ!$C:$CI,AN$1,0)&"","") ->  | AO30: =IFERROR(VLOOKUP($C30,全データ!$C:$CI,AO$1,0)&"","") -> ○ | AP30: =IFERROR(VLOOKUP($C30,全データ!$C:$CI,AP$1,0)&"","") ->  | AQ30: =IFERROR(VLOOKUP($C30,全データ!$C:$CI,AQ$1,0)&"","") ->  | AR30: =IFERROR(VLOOKUP($C30,全データ!$C:$CI,AR$1,0)&"","") ->  | AS30: =IFERROR(VLOOKUP($C30,全データ!$C:$CI,AS$1,0)&"","") ->  | AT30: =IFERROR(VLOOKUP($C30,全データ!$C:$CI,AT$1,0)&"","") ->  | AU30: =IFERROR(VLOOKUP($C30,全データ!$C:$CI,AU$1,0)&"","") ->  | AV30: =IFERROR(VLOOKUP($C30,全データ!$C:$CI,AV$1,0)&"","") ->  | AW30: =IFERROR(VLOOKUP($C30,全データ!$C:$CI,AW$1,0)&"","") ->  | AX30: =COUNTIF($Z30:$AG30,"○") -> 1 | AY30: =COUNTIF($AH30:$AK30,"○") -> 0 | AZ30: =COUNTIF($AL30:$AS30,"○") -> 2 | BA30: =COUNTIF(AT30:AW30,"○")+COUNTIF(AT30:AW30,"◎") -> 0 | BB30: =SUM(AX30:BA30) -> 3 | BC30: =VLOOKUP($C30,点数集計!$C:$CL,ようこそ!$G$19,0) -> 
A31: =A30+1 -> 27 | B31: JR京葉線 | C31: 葛西臨海公園 | D31: =IFERROR(VLOOKUP($C31,全データ!$C:$CI,D$1,0)&"","") -> 東京都 | E31: =IFERROR(VLOOKUP($C31,全データ!$C:$CI,E$1,0)&"","") -> 江戸川区 | F31: =VLOOKUP($C31,全データ!$C:$CI,F$1,0) -> 18.66666667 | G31: =VLOOKUP($C31,全データ!$C:$CI,G$1,0) -> 49.66666667 | H31: =(VLOOKUP($C31,全データ!$C:$CI,F$1,0)+VLOOKUP($C31,全データ!$C:$CI,G$1,0))/2 -> 34.16666667 | I31: =VLOOKUP($C31,全データ!$C:$CI,I$1,0) -> 166 | J31: =VLOOKUP($C31,全データ!$C:$CI,J$1,0) -> × | K31: =VLOOKUP($C31,全データ!$C:$CI,K$1,0) -> 6.3 | L31: =VLOOKUP($C31,全データ!$C:$CI,L$1,0) -> 10.5 | M31: =(VLOOKUP($C31,全データ!$C:$CI,K$1,0)+VLOOKUP($C31,全データ!$C:$CI,L$1,0))/2 -> 8.4 | N31: =VLOOKUP($C31,全データ!$C:$CI,N$1,0) -> 42.7927542 | O31: =VLOOKUP($C31,全データ!$C:$CI,O$1,0) -> 13653.26653 | P31: =VLOOKUP($C31,全データ!$C:$CI,P$1,0) -> 0.4061295983 | Q31: =VLOOKUP($C31,全データ!$C:$CI,Q$1,0) -> -0.1758687094 | R31: =VLOOKUP($C31,全データ!$C:$CI,R$1,0) -> 352.7635794 | S31: =VLOOKUP($C31,全データ!$C:$CI,S$1,0) -> 0.008401026574 | T31: =VLOOKUP($C31,全データ!$C:$CI,T$1,0) -> 2.2728938 | U31: =VLOOKUP($C31,全データ!$C:$CI,U$1,0) -> 22.78699292 | V31: =VLOOKUP($C31,全データ!$C:$CI,V$1,0) -> 0.0672550879 | W31: =VLOOKUP($C31,全データ!$C:$CI,W$1,0) -> 0.003433156545 | X31: =VLOOKUP($C31,全データ!$C:$CI,X$1,0) -> 葛西 | Y31: =VLOOKUP($C31,全データ!$C:$CI,Y$1,0) -> ○ | Z31: =IFERROR(VLOOKUP($C31,全データ!$C:$CI,Z$1,0)&"","") ->  | AA31: =IFERROR(VLOOKUP($C31,全データ!$C:$CI,AA$1,0)&"","") ->  | AB31: =IFERROR(VLOOKUP($C31,全データ!$C:$CI,AB$1,0)&"","") ->  | AC31: =IFERROR(VLOOKUP($C31,全データ!$C:$CI,AC$1,0)&"","") ->  | AD31: =IFERROR(VLOOKUP($C31,全データ!$C:$CI,AD$1,0)&"","") ->  | AE31: =IFERROR(VLOOKUP($C31,全データ!$C:$CI,AE$1,0)&"","") ->  | AF31: =IFERROR(VLOOKUP($C31,全データ!$C:$CI,AF$1,0)&"","") ->  | AG31: =IFERROR(VLOOKUP($C31,全データ!$C:$CI,AG$1,0)&"","") ->  | AH31: =IFERROR(VLOOKUP($C31,全データ!$C:$CI,AH$1,0)&"","") ->  | AI31: =IFERROR(VLOOKUP($C31,全データ!$C:$CI,AI$1,0)&"","") ->  | AJ31: =IFERROR(VLOOKUP($C31,全データ!$C:$CI,AJ$1,0)&"","") -> ○ | AK31: =IFERROR(VLOOKUP($C31,全データ!$C:$CI,AK$1,0)&"","") ->  | AL31: =IFERROR(VLOOKUP($C31,全データ!$C:$CI,AL$1,0)&"","") ->  | AM31: =IFERROR(VLOOKUP($C31,全データ!$C:$CI,AM$1,0)&"","") ->  | AN31: =IFERROR(VLOOKUP($C31,全データ!$C:$CI,AN$1,0)&"","") ->  | AO31: =IFERROR(VLOOKUP($C31,全データ!$C:$CI,AO$1,0)&"","") ->  | AP31: =IFERROR(VLOOKUP($C31,全データ!$C:$CI,AP$1,0)&"","") ->  | AQ31: =IFERROR(VLOOKUP($C31,全データ!$C:$CI,AQ$1,0)&"","") ->  | AR31: =IFERROR(VLOOKUP($C31,全データ!$C:$CI,AR$1,0)&"","") ->  | AS31: =IFERROR(VLOOKUP($C31,全データ!$C:$CI,AS$1,0)&"","") ->  | AT31: =IFERROR(VLOOKUP($C31,全データ!$C:$CI,AT$1,0)&"","") ->  | AU31: =IFERROR(VLOOKUP($C31,全データ!$C:$CI,AU$1,0)&"","") ->  | AV31: =IFERROR(VLOOKUP($C31,全データ!$C:$CI,AV$1,0)&"","") ->  | AW31: =IFERROR(VLOOKUP($C31,全データ!$C:$CI,AW$1,0)&"","") ->  | AX31: =COUNTIF($Z31:$AG31,"○") -> 0 | AY31: =COUNTIF($AH31:$AK31,"○") -> 1 | AZ31: =COUNTIF($AL31:$AS31,"○") -> 0 | BA31: =COUNTIF(AT31:AW31,"○")+COUNTIF(AT31:AW31,"◎") -> 0 | BB31: =SUM(AX31:BA31) -> 1 | BC31: =VLOOKUP($C31,点数集計!$C:$CL,ようこそ!$G$19,0) -> 
A32: =A31+1 -> 28 | B32: JR京葉線 | C32: 海浜幕張 | D32: =IFERROR(VLOOKUP($C32,全データ!$C:$CI,D$1,0)&"","") -> 千葉県 | E32: =IFERROR(VLOOKUP($C32,全データ!$C:$CI,E$1,0)&"","") -> 千葉市美浜区 | F32: =VLOOKUP($C32,全データ!$C:$CI,F$1,0) -> 43.33333333 | G32: =VLOOKUP($C32,全データ!$C:$CI,G$1,0) -> 70.33333333 | H32: =(VLOOKUP($C32,全データ!$C:$CI,F$1,0)+VLOOKUP($C32,全データ!$C:$CI,G$1,0))/2 -> 56.83333333 | I32: =VLOOKUP($C32,全データ!$C:$CI,I$1,0) -> 50 | J32: =VLOOKUP($C32,全データ!$C:$CI,J$1,0) -> ○ | K32: =VLOOKUP($C32,全データ!$C:$CI,K$1,0) -> 8 | L32: =VLOOKUP($C32,全データ!$C:$CI,L$1,0) -> 12.2 | M32: =(VLOOKUP($C32,全データ!$C:$CI,K$1,0)+VLOOKUP($C32,全データ!$C:$CI,L$1,0))/2 -> 10.1 | N32: =VLOOKUP($C32,全データ!$C:$CI,N$1,0) -> 45.65895336 | O32: =VLOOKUP($C32,全データ!$C:$CI,O$1,0) -> 7015 | P32: =VLOOKUP($C32,全データ!$C:$CI,P$1,0) -> 0.3036886527 | Q32: =VLOOKUP($C32,全データ!$C:$CI,Q$1,0) -> 0.1625425302 | R32: =VLOOKUP($C32,全データ!$C:$CI,R$1,0) -> 361.8675968 | S32: =VLOOKUP($C32,全データ!$C:$CI,S$1,0) -> 0.006223574391 | T32: =VLOOKUP($C32,全データ!$C:$CI,T$1,0) -> 0.7475423284 | U32: =VLOOKUP($C32,全データ!$C:$CI,U$1,0) -> 1.648349249 | V32: =VLOOKUP($C32,全データ!$C:$CI,V$1,0) -> 0.02263010888 | W32: =VLOOKUP($C32,全データ!$C:$CI,W$1,0) -> -0.009616281083 | X32: =VLOOKUP($C32,全データ!$C:$CI,X$1,0) -> 湾岸千葉IC | Y32: =VLOOKUP($C32,全データ!$C:$CI,Y$1,0) -> ○ | Z32: =IFERROR(VLOOKUP($C32,全データ!$C:$CI,Z$1,0)&"","") ->  | AA32: =IFERROR(VLOOKUP($C32,全データ!$C:$CI,AA$1,0)&"","") ->  | AB32: =IFERROR(VLOOKUP($C32,全データ!$C:$CI,AB$1,0)&"","") ->  | AC32: =IFERROR(VLOOKUP($C32,全データ!$C:$CI,AC$1,0)&"","") ->  | AD32: =IFERROR(VLOOKUP($C32,全データ!$C:$CI,AD$1,0)&"","") ->  | AE32: =IFERROR(VLOOKUP($C32,全データ!$C:$CI,AE$1,0)&"","") ->  | AF32: =IFERROR(VLOOKUP($C32,全データ!$C:$CI,AF$1,0)&"","") ->  | AG32: =IFERROR(VLOOKUP($C32,全データ!$C:$CI,AG$1,0)&"","") ->  | AH32: =IFERROR(VLOOKUP($C32,全データ!$C:$CI,AH$1,0)&"","") ->  | AI32: =IFERROR(VLOOKUP($C32,全データ!$C:$CI,AI$1,0)&"","") -> ○ | AJ32: =IFERROR(VLOOKUP($C32,全データ!$C:$CI,AJ$1,0)&"","") ->  | AK32: =IFERROR(VLOOKUP($C32,全データ!$C:$CI,AK$1,0)&"","") ->  | AL32: =IFERROR(VLOOKUP($C32,全データ!$C:$CI,AL$1,0)&"","") ->  | AM32: =IFERROR(VLOOKUP($C32,全データ!$C:$CI,AM$1,0)&"","") ->  | AN32: =IFERROR(VLOOKUP($C32,全データ!$C:$CI,AN$1,0)&"","") ->  | AO32: =IFERROR(VLOOKUP($C32,全データ!$C:$CI,AO$1,0)&"","") ->  | AP32: =IFERROR(VLOOKUP($C32,全データ!$C:$CI,AP$1,0)&"","") ->  | AQ32: =IFERROR(VLOOKUP($C32,全データ!$C:$CI,AQ$1,0)&"","") ->  | AR32: =IFERROR(VLOOKUP($C32,全データ!$C:$CI,AR$1,0)&"","") ->  | AS32: =IFERROR(VLOOKUP($C32,全データ!$C:$CI,AS$1,0)&"","") ->  | AT32: =IFERROR(VLOOKUP($C32,全データ!$C:$CI,AT$1,0)&"","") -> ◎ | AU32: =IFERROR(VLOOKUP($C32,全データ!$C:$CI,AU$1,0)&"","") ->  | AV32: =IFERROR(VLOOKUP($C32,全データ!$C:$CI,AV$1,0)&"","") -> ○ | AW32: =IFERROR(VLOOKUP($C32,全データ!$C:$CI,AW$1,0)&"","") -> ○ | AX32: =COUNTIF($Z32:$AG32,"○") -> 0 | AY32: =COUNTIF($AH32:$AK32,"○") -> 1 | AZ32: =COUNTIF($AL32:$AS32,"○") -> 0 | BA32: =COUNTIF(AT32:AW32,"○")+COUNTIF(AT32:AW32,"◎") -> 3 | BB32: =SUM(AX32:BA32) -> 4 | BC32: =VLOOKUP($C32,点数集計!$C:$CL,ようこそ!$G$19,0) -> 
A33: =A32+1 -> 29 | B33: JR京葉線 | C33: 検見川浜 | D33: =IFERROR(VLOOKUP($C33,全データ!$C:$CI,D$1,0)&"","") -> 千葉県 | E33: =IFERROR(VLOOKUP($C33,全データ!$C:$CI,E$1,0)&"","") -> 千葉市美浜区 | F33: =VLOOKUP($C33,全データ!$C:$CI,F$1,0) -> 47.33333333 | G33: =VLOOKUP($C33,全データ!$C:$CI,G$1,0) -> 74.33333333 | H33: =(VLOOKUP($C33,全データ!$C:$CI,F$1,0)+VLOOKUP($C33,全データ!$C:$CI,G$1,0))/2 -> 60.83333333 | I33: =VLOOKUP($C33,全データ!$C:$CI,I$1,0) -> 166 | J33: =VLOOKUP($C33,全データ!$C:$CI,J$1,0) -> × | K33: =VLOOKUP($C33,全データ!$C:$CI,K$1,0) -> 6.3 | L33: =VLOOKUP($C33,全データ!$C:$CI,L$1,0) -> 10.9 | M33: =(VLOOKUP($C33,全データ!$C:$CI,K$1,0)+VLOOKUP($C33,全データ!$C:$CI,L$1,0))/2 -> 8.6 | N33: =VLOOKUP($C33,全データ!$C:$CI,N$1,0) -> 45.65895336 | O33: =VLOOKUP($C33,全データ!$C:$CI,O$1,0) -> 7015 | P33: =VLOOKUP($C33,全データ!$C:$CI,P$1,0) -> 0.3036886527 | Q33: =VLOOKUP($C33,全データ!$C:$CI,Q$1,0) -> 0.1625425302 | R33: =VLOOKUP($C33,全データ!$C:$CI,R$1,0) -> 361.8675968 | S33: =VLOOKUP($C33,全データ!$C:$CI,S$1,0) -> 0.006223574391 | T33: =VLOOKUP($C33,全データ!$C:$CI,T$1,0) -> 0.7475423284 | U33: =VLOOKUP($C33,全データ!$C:$CI,U$1,0) -> 1.648349249 | V33: =VLOOKUP($C33,全データ!$C:$CI,V$1,0) -> 0.02263010888 | W33: =VLOOKUP($C33,全データ!$C:$CI,W$1,0) -> -0.009616281083 | X33: =VLOOKUP($C33,全データ!$C:$CI,X$1,0) -> - | Y33: =VLOOKUP($C33,全データ!$C:$CI,Y$1,0) -> ○ | Z33: =IFERROR(VLOOKUP($C33,全データ!$C:$CI,Z$1,0)&"","") ->  | AA33: =IFERROR(VLOOKUP($C33,全データ!$C:$CI,AA$1,0)&"","") ->  | AB33: =IFERROR(VLOOKUP($C33,全データ!$C:$CI,AB$1,0)&"","") ->  | AC33: =IFERROR(VLOOKUP($C33,全データ!$C:$CI,AC$1,0)&"","") ->  | AD33: =IFERROR(VLOOKUP($C33,全データ!$C:$CI,AD$1,0)&"","") ->  | AE33: =IFERROR(VLOOKUP($C33,全データ!$C:$CI,AE$1,0)&"","") -> ○ | AF33: =IFERROR(VLOOKUP($C33,全データ!$C:$CI,AF$1,0)&"","") ->  | AG33: =IFERROR(VLOOKUP($C33,全データ!$C:$CI,AG$1,0)&"","") ->  | AH33: =IFERROR(VLOOKUP($C33,全データ!$C:$CI,AH$1,0)&"","") ->  | AI33: =IFERROR(VLOOKUP($C33,全データ!$C:$CI,AI$1,0)&"","") -> ○ | AJ33: =IFERROR(VLOOKUP($C33,全データ!$C:$CI,AJ$1,0)&"","") ->  | AK33: =IFERROR(VLOOKUP($C33,全データ!$C:$CI,AK$1,0)&"","") ->  | AL33: =IFERROR(VLOOKUP($C33,全データ!$C:$CI,AL$1,0)&"","") ->  | AM33: =IFERROR(VLOOKUP($C33,全データ!$C:$CI,AM$1,0)&"","") ->  | AN33: =IFERROR(VLOOKUP($C33,全データ!$C:$CI,AN$1,0)&"","") ->  | AO33: =IFERROR(VLOOKUP($C33,全データ!$C:$CI,AO$1,0)&"","") ->  | AP33: =IFERROR(VLOOKUP($C33,全データ!$C:$CI,AP$1,0)&"","") ->  | AQ33: =IFERROR(VLOOKUP($C33,全データ!$C:$CI,AQ$1,0)&"","") ->  | AR33: =IFERROR(VLOOKUP($C33,全データ!$C:$CI,AR$1,0)&"","") ->  | AS33: =IFERROR(VLOOKUP($C33,全データ!$C:$CI,AS$1,0)&"","") ->  | AT33: =IFERROR(VLOOKUP($C33,全データ!$C:$CI,AT$1,0)&"","") ->  | AU33: =IFERROR(VLOOKUP($C33,全データ!$C:$CI,AU$1,0)&"","") ->  | AV33: =IFERROR(VLOOKUP($C33,全データ!$C:$CI,AV$1,0)&"","") ->  | AW33: =IFERROR(VLOOKUP($C33,全データ!$C:$CI,AW$1,0)&"","") -> ○ | AX33: =COUNTIF($Z33:$AG33,"○") -> 1 | AY33: =COUNTIF($AH33:$AK33,"○") -> 1 | AZ33: =COUNTIF($AL33:$AS33,"○") -> 0 | BA33: =COUNTIF(AT33:AW33,"○")+COUNTIF(AT33:AW33,"◎") -> 1 | BB33: =SUM(AX33:BA33) -> 3 | BC33: =VLOOKUP($C33,点数集計!$C:$CL,ようこそ!$G$19,0) -> 
A34: =A33+1 -> 30 | B34: JR京葉線 | C34: 二俣新町 | D34: =IFERROR(VLOOKUP($C34,全データ!$C:$CI,D$1,0)&"","") -> 千葉県 | E34: =IFERROR(VLOOKUP($C34,全データ!$C:$CI,E$1,0)&"","") -> 市川市 | F34: =VLOOKUP($C34,全データ!$C:$CI,F$1,0) -> 33.33333333 | G34: =VLOOKUP($C34,全データ!$C:$CI,G$1,0) -> 62.33333333 | H34: =(VLOOKUP($C34,全データ!$C:$CI,F$1,0)+VLOOKUP($C34,全データ!$C:$CI,G$1,0))/2 -> 47.83333333 | I34: =VLOOKUP($C34,全データ!$C:$CI,I$1,0) -> 166 | J34: =VLOOKUP($C34,全データ!$C:$CI,J$1,0) -> × | K34: =VLOOKUP($C34,全データ!$C:$CI,K$1,0) -> 6.3 | L34: =VLOOKUP($C34,全データ!$C:$CI,L$1,0) -> 10.1 | M34: =(VLOOKUP($C34,全データ!$C:$CI,K$1,0)+VLOOKUP($C34,全データ!$C:$CI,L$1,0))/2 -> 8.2 | N34: =VLOOKUP($C34,全データ!$C:$CI,N$1,0) -> 45.39454111 | O34: =VLOOKUP($C34,全データ!$C:$CI,O$1,0) -> 9926.512118 | P34: =VLOOKUP($C34,全データ!$C:$CI,P$1,0) -> 0.4064155682 | Q34: =VLOOKUP($C34,全データ!$C:$CI,Q$1,0) -> -0.1780907226 | R34: =VLOOKUP($C34,全データ!$C:$CI,R$1,0) -> 377.0098848 | S34: =VLOOKUP($C34,全データ!$C:$CI,S$1,0) -> 0.008531595696 | T34: =VLOOKUP($C34,全データ!$C:$CI,T$1,0) -> 2.253470809 | U34: =VLOOKUP($C34,全データ!$C:$CI,U$1,0) -> 21.08714376 | V34: =VLOOKUP($C34,全データ!$C:$CI,V$1,0) -> 0.05377996312 | W34: =VLOOKUP($C34,全データ!$C:$CI,W$1,0) -> 0.01648593958 | X34: =VLOOKUP($C34,全データ!$C:$CI,X$1,0) -> 湾岸市川 | Y34: =VLOOKUP($C34,全データ!$C:$CI,Y$1,0) -> - | Z34: =IFERROR(VLOOKUP($C34,全データ!$C:$CI,Z$1,0)&"","") ->  | AA34: =IFERROR(VLOOKUP($C34,全データ!$C:$CI,AA$1,0)&"","") ->  | AB34: =IFERROR(VLOOKUP($C34,全データ!$C:$CI,AB$1,0)&"","") ->  | AC34: =IFERROR(VLOOKUP($C34,全データ!$C:$CI,AC$1,0)&"","") ->  | AD34: =IFERROR(VLOOKUP($C34,全データ!$C:$CI,AD$1,0)&"","") ->  | AE34: =IFERROR(VLOOKUP($C34,全データ!$C:$CI,AE$1,0)&"","") ->  | AF34: =IFERROR(VLOOKUP($C34,全データ!$C:$CI,AF$1,0)&"","") ->  | AG34: =IFERROR(VLOOKUP($C34,全データ!$C:$CI,AG$1,0)&"","") ->  | AH34: =IFERROR(VLOOKUP($C34,全データ!$C:$CI,AH$1,0)&"","") ->  | AI34: =IFERROR(VLOOKUP($C34,全データ!$C:$CI,AI$1,0)&"","") ->  | AJ34: =IFERROR(VLOOKUP($C34,全データ!$C:$CI,AJ$1,0)&"","") ->  | AK34: =IFERROR(VLOOKUP($C34,全データ!$C:$CI,AK$1,0)&"","") ->  | AL34: =IFERROR(VLOOKUP($C34,全データ!$C:$CI,AL$1,0)&"","") ->  | AM34: =IFERROR(VLOOKUP($C34,全データ!$C:$CI,AM$1,0)&"","") ->  | AN34: =IFERROR(VLOOKUP($C34,全データ!$C:$CI,AN$1,0)&"","") ->  | AO34: =IFERROR(VLOOKUP($C34,全データ!$C:$CI,AO$1,0)&"","") ->  | AP34: =IFERROR(VLOOKUP($C34,全データ!$C:$CI,AP$1,0)&"","") ->  | AQ34: =IFERROR(VLOOKUP($C34,全データ!$C:$CI,AQ$1,0)&"","") ->  | AR34: =IFERROR(VLOOKUP($C34,全データ!$C:$CI,AR$1,0)&"","") -> ○ | AS34: =IFERROR(VLOOKUP($C34,全データ!$C:$CI,AS$1,0)&"","") ->  | AT34: =IFERROR(VLOOKUP($C34,全データ!$C:$CI,AT$1,0)&"","") ->  | AU34: =IFERROR(VLOOKUP($C34,全データ!$C:$CI,AU$1,0)&"","") ->  | AV34: =IFERROR(VLOOKUP($C34,全データ!$C:$CI,AV$1,0)&"","") ->  | AW34: =IFERROR(VLOOKUP($C34,全データ!$C:$CI,AW$1,0)&"","") ->  | AX34: =COUNTIF($Z34:$AG34,"○") -> 0 | AY34: =COUNTIF($AH34:$AK34,"○") -> 0 | AZ34: =COUNTIF($AL34:$AS34,"○") -> 1 | BA34: =COUNTIF(AT34:AW34,"○")+COUNTIF(AT34:AW34,"◎") -> 0 | BB34: =SUM(AX34:BA34) -> 1 | BC34: =VLOOKUP($C34,点数集計!$C:$CL,ようこそ!$G$19,0) -> 
A35: =A34+1 -> 31 | B35: JR京葉線 | C35: 稲毛海岸 | D35: =IFERROR(VLOOKUP($C35,全データ!$C:$CI,D$1,0)&"","") -> 千葉県 | E35: =IFERROR(VLOOKUP($C35,全データ!$C:$CI,E$1,0)&"","") -> 千葉市美浜区 | F35: =VLOOKUP($C35,全データ!$C:$CI,F$1,0) -> 50 | G35: =VLOOKUP($C35,全データ!$C:$CI,G$1,0) -> 77 | H35: =(VLOOKUP($C35,全データ!$C:$CI,F$1,0)+VLOOKUP($C35,全データ!$C:$CI,G$1,0))/2 -> 63.5 | I35: =VLOOKUP($C35,全データ!$C:$CI,I$1,0) -> 166 | J35: =VLOOKUP($C35,全データ!$C:$CI,J$1,0) -> × | K35: =VLOOKUP($C35,全データ!$C:$CI,K$1,0) -> 7.75 | L35: =VLOOKUP($C35,全データ!$C:$CI,L$1,0) -> 13.08 | M35: =(VLOOKUP($C35,全データ!$C:$CI,K$1,0)+VLOOKUP($C35,全データ!$C:$CI,L$1,0))/2 -> 10.415 | N35: =VLOOKUP($C35,全データ!$C:$CI,N$1,0) -> 45.65895336 | O35: =VLOOKUP($C35,全データ!$C:$CI,O$1,0) -> 7015 | P35: =VLOOKUP($C35,全データ!$C:$CI,P$1,0) -> 0.3036886527 | Q35: =VLOOKUP($C35,全データ!$C:$CI,Q$1,0) -> 0.1625425302 | R35: =VLOOKUP($C35,全データ!$C:$CI,R$1,0) -> 361.8675968 | S35: =VLOOKUP($C35,全データ!$C:$CI,S$1,0) -> 0.006223574391 | T35: =VLOOKUP($C35,全データ!$C:$CI,T$1,0) -> 0.7475423284 | U35: =VLOOKUP($C35,全データ!$C:$CI,U$1,0) -> 1.648349249 | V35: =VLOOKUP($C35,全データ!$C:$CI,V$1,0) -> 0.02263010888 | W35: =VLOOKUP($C35,全データ!$C:$CI,W$1,0) -> -0.009616281083 | X35: =VLOOKUP($C35,全データ!$C:$CI,X$1,0) -> - | Y35: =VLOOKUP($C35,全データ!$C:$CI,Y$1,0) -> ◎ | Z35: =IFERROR(VLOOKUP($C35,全データ!$C:$CI,Z$1,0)&"","") ->  | AA35: =IFERROR(VLOOKUP($C35,全データ!$C:$CI,AA$1,0)&"","") ->  | AB35: =IFERROR(VLOOKUP($C35,全データ!$C:$CI,AB$1,0)&"","") ->  | AC35: =IFERROR(VLOOKUP($C35,全データ!$C:$CI,AC$1,0)&"","") ->  | AD35: =IFERROR(VLOOKUP($C35,全データ!$C:$CI,AD$1,0)&"","") ->  | AE35: =IFERROR(VLOOKUP($C35,全データ!$C:$CI,AE$1,0)&"","") -> ○ | AF35: =IFERROR(VLOOKUP($C35,全データ!$C:$CI,AF$1,0)&"","") ->  | AG35: =IFERROR(VLOOKUP($C35,全データ!$C:$CI,AG$1,0)&"","") ->  | AH35: =IFERROR(VLOOKUP($C35,全データ!$C:$CI,AH$1,0)&"","") ->  | AI35: =IFERROR(VLOOKUP($C35,全データ!$C:$CI,AI$1,0)&"","") -> ○ | AJ35: =IFERROR(VLOOKUP($C35,全データ!$C:$CI,AJ$1,0)&"","") ->  | AK35: =IFERROR(VLOOKUP($C35,全データ!$C:$CI,AK$1,0)&"","") ->  | AL35: =IFERROR(VLOOKUP($C35,全データ!$C:$CI,AL$1,0)&"","") ->  | AM35: =IFERROR(VLOOKUP($C35,全データ!$C:$CI,AM$1,0)&"","") ->  | AN35: =IFERROR(VLOOKUP($C35,全データ!$C:$CI,AN$1,0)&"","") ->  | AO35: =IFERROR(VLOOKUP($C35,全データ!$C:$CI,AO$1,0)&"","") ->  | AP35: =IFERROR(VLOOKUP($C35,全データ!$C:$CI,AP$1,0)&"","") ->  | AQ35: =IFERROR(VLOOKUP($C35,全データ!$C:$CI,AQ$1,0)&"","") ->  | AR35: =IFERROR(VLOOKUP($C35,全データ!$C:$CI,AR$1,0)&"","") ->  | AS35: =IFERROR(VLOOKUP($C35,全データ!$C:$CI,AS$1,0)&"","") ->  | AT35: =IFERROR(VLOOKUP($C35,全データ!$C:$CI,AT$1,0)&"","") ->  | AU35: =IFERROR(VLOOKUP($C35,全データ!$C:$CI,AU$1,0)&"","") ->  | AV35: =IFERROR(VLOOKUP($C35,全データ!$C:$CI,AV$1,0)&"","") ->  | AW35: =IFERROR(VLOOKUP($C35,全データ!$C:$CI,AW$1,0)&"","") -> ○ | AX35: =COUNTIF($Z35:$AG35,"○") -> 1 | AY35: =COUNTIF($AH35:$AK35,"○") -> 1 | AZ35: =COUNTIF($AL35:$AS35,"○") -> 0 | BA35: =COUNTIF(AT35:AW35,"○")+COUNTIF(AT35:AW35,"◎") -> 1 | BB35: =SUM(AX35:BA35) -> 3 | BC35: =VLOOKUP($C35,点数集計!$C:$CL,ようこそ!$G$19,0) -> 
A36: =A35+1 -> 32 | B36: JR京葉線 | C36: 千葉みなと | D36: =IFERROR(VLOOKUP($C36,全データ!$C:$CI,D$1,0)&"","") -> 千葉県 | E36: =IFERROR(VLOOKUP($C36,全データ!$C:$CI,E$1,0)&"","") -> 千葉市中央区 | F36: =VLOOKUP($C36,全データ!$C:$CI,F$1,0) -> 53.66666667 | G36: =VLOOKUP($C36,全データ!$C:$CI,G$1,0) -> 80.66666667 | H36: =(VLOOKUP($C36,全データ!$C:$CI,F$1,0)+VLOOKUP($C36,全データ!$C:$CI,G$1,0))/2 -> 67.16666667 | I36: =VLOOKUP($C36,全データ!$C:$CI,I$1,0) -> 166 | J36: =VLOOKUP($C36,全データ!$C:$CI,J$1,0) -> △ | K36: =VLOOKUP($C36,全データ!$C:$CI,K$1,0) -> 6.54 | L36: =VLOOKUP($C36,全データ!$C:$CI,L$1,0) -> 10.03 | M36: =(VLOOKUP($C36,全データ!$C:$CI,K$1,0)+VLOOKUP($C36,全データ!$C:$CI,L$1,0))/2 -> 8.285 | N36: =VLOOKUP($C36,全データ!$C:$CI,N$1,0) -> 44.35841664 | O36: =VLOOKUP($C36,全データ!$C:$CI,O$1,0) -> 5242.740232 | P36: =VLOOKUP($C36,全データ!$C:$CI,P$1,0) -> 0.4159211748 | Q36: =VLOOKUP($C36,全データ!$C:$CI,Q$1,0) -> 0.2373823572 | R36: =VLOOKUP($C36,全データ!$C:$CI,R$1,0) -> 361.8675968 | S36: =VLOOKUP($C36,全データ!$C:$CI,S$1,0) -> 0.009261083744 | T36: =VLOOKUP($C36,全データ!$C:$CI,T$1,0) -> 5.35519091 | U36: =VLOOKUP($C36,全データ!$C:$CI,U$1,0) -> 76.06955066 | V36: =VLOOKUP($C36,全データ!$C:$CI,V$1,0) -> 0.02263010888 | W36: =VLOOKUP($C36,全データ!$C:$CI,W$1,0) -> 0.02862101483 | X36: =VLOOKUP($C36,全データ!$C:$CI,X$1,0) -> - | Y36: =VLOOKUP($C36,全データ!$C:$CI,Y$1,0) -> ◎ | Z36: =IFERROR(VLOOKUP($C36,全データ!$C:$CI,Z$1,0)&"","") ->  | AA36: =IFERROR(VLOOKUP($C36,全データ!$C:$CI,AA$1,0)&"","") ->  | AB36: =IFERROR(VLOOKUP($C36,全データ!$C:$CI,AB$1,0)&"","") ->  | AC36: =IFERROR(VLOOKUP($C36,全データ!$C:$CI,AC$1,0)&"","") ->  | AD36: =IFERROR(VLOOKUP($C36,全データ!$C:$CI,AD$1,0)&"","") ->  | AE36: =IFERROR(VLOOKUP($C36,全データ!$C:$CI,AE$1,0)&"","") ->  | AF36: =IFERROR(VLOOKUP($C36,全データ!$C:$CI,AF$1,0)&"","") ->  | AG36: =IFERROR(VLOOKUP($C36,全データ!$C:$CI,AG$1,0)&"","") ->  | AH36: =IFERROR(VLOOKUP($C36,全データ!$C:$CI,AH$1,0)&"","") ->  | AI36: =IFERROR(VLOOKUP($C36,全データ!$C:$CI,AI$1,0)&"","") ->  | AJ36: =IFERROR(VLOOKUP($C36,全データ!$C:$CI,AJ$1,0)&"","") ->  | AK36: =IFERROR(VLOOKUP($C36,全データ!$C:$CI,AK$1,0)&"","") ->  | AL36: =IFERROR(VLOOKUP($C36,全データ!$C:$CI,AL$1,0)&"","") ->  | AM36: =IFERROR(VLOOKUP($C36,全データ!$C:$CI,AM$1,0)&"","") ->  | AN36: =IFERROR(VLOOKUP($C36,全データ!$C:$CI,AN$1,0)&"","") ->  | AO36: =IFERROR(VLOOKUP($C36,全データ!$C:$CI,AO$1,0)&"","") ->  | AP36: =IFERROR(VLOOKUP($C36,全データ!$C:$CI,AP$1,0)&"","") ->  | AQ36: =IFERROR(VLOOKUP($C36,全データ!$C:$CI,AQ$1,0)&"","") ->  | AR36: =IFERROR(VLOOKUP($C36,全データ!$C:$CI,AR$1,0)&"","") ->  | AS36: =IFERROR(VLOOKUP($C36,全データ!$C:$CI,AS$1,0)&"","") ->  | AT36: =IFERROR(VLOOKUP($C36,全データ!$C:$CI,AT$1,0)&"","") ->  | AU36: =IFERROR(VLOOKUP($C36,全データ!$C:$CI,AU$1,0)&"","") ->  | AV36: =IFERROR(VLOOKUP($C36,全データ!$C:$CI,AV$1,0)&"","") ->  | AW36: =IFERROR(VLOOKUP($C36,全データ!$C:$CI,AW$1,0)&"","") ->  | AX36: =COUNTIF($Z36:$AG36,"○") -> 0 | AY36: =COUNTIF($AH36:$AK36,"○") -> 0 | AZ36: =COUNTIF($AL36:$AS36,"○") -> 0 | BA36: =COUNTIF(AT36:AW36,"○")+COUNTIF(AT36:AW36,"◎") -> 0 | BB36: =SUM(AX36:BA36) -> 0 | BC36: =VLOOKUP($C36,点数集計!$C:$CL,ようこそ!$G$19,0) -> 
A37: =A36+1 -> 33 | B37: JR埼京線 | C37: 戸田 | D37: =IFERROR(VLOOKUP($C37,全データ!$C:$CI,D$1,0)&"","") -> 埼玉県 | E37: =IFERROR(VLOOKUP($C37,全データ!$C:$CI,E$1,0)&"","") -> 戸田市 | F37: =VLOOKUP($C37,全データ!$C:$CI,F$1,0) -> 43.33333333 | G37: =VLOOKUP($C37,全データ!$C:$CI,G$1,0) -> 29.66666667 | H37: =(VLOOKUP($C37,全データ!$C:$CI,F$1,0)+VLOOKUP($C37,全データ!$C:$CI,G$1,0))/2 -> 36.5 | I37: =VLOOKUP($C37,全データ!$C:$CI,I$1,0) -> 183 | J37: =VLOOKUP($C37,全データ!$C:$CI,J$1,0) -> × | K37: =VLOOKUP($C37,全データ!$C:$CI,K$1,0) -> 5.64 | L37: =VLOOKUP($C37,全データ!$C:$CI,L$1,0) -> 9.1 | M37: =(VLOOKUP($C37,全データ!$C:$CI,K$1,0)+VLOOKUP($C37,全データ!$C:$CI,L$1,0))/2 -> 7.37 | N37: =VLOOKUP($C37,全データ!$C:$CI,N$1,0) -> 40.75923567 | O37: =VLOOKUP($C37,全データ!$C:$CI,O$1,0) -> 10210.72768 | P37: =VLOOKUP($C37,全データ!$C:$CI,P$1,0) -> 0.3812602333 | Q37: =VLOOKUP($C37,全データ!$C:$CI,Q$1,0) -> -0.08684539111 | R37: =VLOOKUP($C37,全データ!$C:$CI,R$1,0) -> 355.8023821 | S37: =VLOOKUP($C37,全データ!$C:$CI,S$1,0) -> 0.01020703634 | T37: =VLOOKUP($C37,全データ!$C:$CI,T$1,0) -> 2.91311054 | U37: =VLOOKUP($C37,全データ!$C:$CI,U$1,0) -> 3.109224941 | V37: =VLOOKUP($C37,全データ!$C:$CI,V$1,0) -> 0.01909959072 | W37: =VLOOKUP($C37,全データ!$C:$CI,W$1,0) -> 0.1062000829 | X37: =VLOOKUP($C37,全データ!$C:$CI,X$1,0) -> 戸田南 | Y37: =VLOOKUP($C37,全データ!$C:$CI,Y$1,0) -> ◎ | Z37: =IFERROR(VLOOKUP($C37,全データ!$C:$CI,Z$1,0)&"","") -> ○ | AA37: =IFERROR(VLOOKUP($C37,全データ!$C:$CI,AA$1,0)&"","") ->  | AB37: =IFERROR(VLOOKUP($C37,全データ!$C:$CI,AB$1,0)&"","") ->  | AC37: =IFERROR(VLOOKUP($C37,全データ!$C:$CI,AC$1,0)&"","") ->  | AD37: =IFERROR(VLOOKUP($C37,全データ!$C:$CI,AD$1,0)&"","") ->  | AE37: =IFERROR(VLOOKUP($C37,全データ!$C:$CI,AE$1,0)&"","") ->  | AF37: =IFERROR(VLOOKUP($C37,全データ!$C:$CI,AF$1,0)&"","") ->  | AG37: =IFERROR(VLOOKUP($C37,全データ!$C:$CI,AG$1,0)&"","") ->  | AH37: =IFERROR(VLOOKUP($C37,全データ!$C:$CI,AH$1,0)&"","") -> ○ | AI37: =IFERROR(VLOOKUP($C37,全データ!$C:$CI,AI$1,0)&"","") ->  | AJ37: =IFERROR(VLOOKUP($C37,全データ!$C:$CI,AJ$1,0)&"","") ->  | AK37: =IFERROR(VLOOKUP($C37,全データ!$C:$CI,AK$1,0)&"","") ->  | AL37: =IFERROR(VLOOKUP($C37,全データ!$C:$CI,AL$1,0)&"","") ->  | AM37: =IFERROR(VLOOKUP($C37,全データ!$C:$CI,AM$1,0)&"","") ->  | AN37: =IFERROR(VLOOKUP($C37,全データ!$C:$CI,AN$1,0)&"","") ->  | AO37: =IFERROR(VLOOKUP($C37,全データ!$C:$CI,AO$1,0)&"","") ->  | AP37: =IFERROR(VLOOKUP($C37,全データ!$C:$CI,AP$1,0)&"","") ->  | AQ37: =IFERROR(VLOOKUP($C37,全データ!$C:$CI,AQ$1,0)&"","") -> ○ | AR37: =IFERROR(VLOOKUP($C37,全データ!$C:$CI,AR$1,0)&"","") ->  | AS37: =IFERROR(VLOOKUP($C37,全データ!$C:$CI,AS$1,0)&"","") ->  | AT37: =IFERROR(VLOOKUP($C37,全データ!$C:$CI,AT$1,0)&"","") ->  | AU37: =IFERROR(VLOOKUP($C37,全データ!$C:$CI,AU$1,0)&"","") ->  | AV37: =IFERROR(VLOOKUP($C37,全データ!$C:$CI,AV$1,0)&"","") ->  | AW37: =IFERROR(VLOOKUP($C37,全データ!$C:$CI,AW$1,0)&"","") -> ○ | AX37: =COUNTIF($Z37:$AG37,"○") -> 1 | AY37: =COUNTIF($AH37:$AK37,"○") -> 1 | AZ37: =COUNTIF($AL37:$AS37,"○") -> 1 | BA37: =COUNTIF(AT37:AW37,"○")+COUNTIF(AT37:AW37,"◎") -> 1 | BB37: =SUM(AX37:BA37) -> 4 | BC37: =VLOOKUP($C37,点数集計!$C:$CL,ようこそ!$G$19,0) -> 
A38: =A37+1 -> 34 | B38: JR埼京線 | C38: 北戸田 | D38: =IFERROR(VLOOKUP($C38,全データ!$C:$CI,D$1,0)&"","") -> 埼玉県 | E38: =IFERROR(VLOOKUP($C38,全データ!$C:$CI,E$1,0)&"","") -> 戸田市 | F38: =VLOOKUP($C38,全データ!$C:$CI,F$1,0) -> 45.66666667 | G38: =VLOOKUP($C38,全データ!$C:$CI,G$1,0) -> 31.66666667 | H38: =(VLOOKUP($C38,全データ!$C:$CI,F$1,0)+VLOOKUP($C38,全データ!$C:$CI,G$1,0))/2 -> 38.66666667 | I38: =VLOOKUP($C38,全データ!$C:$CI,I$1,0) -> 183 | J38: =VLOOKUP($C38,全データ!$C:$CI,J$1,0) -> × | K38: =VLOOKUP($C38,全データ!$C:$CI,K$1,0) -> 6.2 | L38: =VLOOKUP($C38,全データ!$C:$CI,L$1,0) -> 8.95 | M38: =(VLOOKUP($C38,全データ!$C:$CI,K$1,0)+VLOOKUP($C38,全データ!$C:$CI,L$1,0))/2 -> 7.575 | N38: =VLOOKUP($C38,全データ!$C:$CI,N$1,0) -> 40.75923567 | O38: =VLOOKUP($C38,全データ!$C:$CI,O$1,0) -> 10210.72768 | P38: =VLOOKUP($C38,全データ!$C:$CI,P$1,0) -> 0.3812602333 | Q38: =VLOOKUP($C38,全データ!$C:$CI,Q$1,0) -> -0.08684539111 | R38: =VLOOKUP($C38,全データ!$C:$CI,R$1,0) -> 355.8023821 | S38: =VLOOKUP($C38,全データ!$C:$CI,S$1,0) -> 0.01020703634 | T38: =VLOOKUP($C38,全データ!$C:$CI,T$1,0) -> 2.91311054 | U38: =VLOOKUP($C38,全データ!$C:$CI,U$1,0) -> 3.109224941 | V38: =VLOOKUP($C38,全データ!$C:$CI,V$1,0) -> 0.01909959072 | W38: =VLOOKUP($C38,全データ!$C:$CI,W$1,0) -> 0.1062000829 | X38: =VLOOKUP($C38,全データ!$C:$CI,X$1,0) -> 戸田東 | Y38: =VLOOKUP($C38,全データ!$C:$CI,Y$1,0) -> ◎ | Z38: =IFERROR(VLOOKUP($C38,全データ!$C:$CI,Z$1,0)&"","") -> ○ | AA38: =IFERROR(VLOOKUP($C38,全データ!$C:$CI,AA$1,0)&"","") ->  | AB38: =IFERROR(VLOOKUP($C38,全データ!$C:$CI,AB$1,0)&"","") ->  | AC38: =IFERROR(VLOOKUP($C38,全データ!$C:$CI,AC$1,0)&"","") ->  | AD38: =IFERROR(VLOOKUP($C38,全データ!$C:$CI,AD$1,0)&"","") -> ○ | AE38: =IFERROR(VLOOKUP($C38,全データ!$C:$CI,AE$1,0)&"","") ->  | AF38: =IFERROR(VLOOKUP($C38,全データ!$C:$CI,AF$1,0)&"","") ->  | AG38: =IFERROR(VLOOKUP($C38,全データ!$C:$CI,AG$1,0)&"","") ->  | AH38: =IFERROR(VLOOKUP($C38,全データ!$C:$CI,AH$1,0)&"","") ->  | AI38: =IFERROR(VLOOKUP($C38,全データ!$C:$CI,AI$1,0)&"","") -> ○ | AJ38: =IFERROR(VLOOKUP($C38,全データ!$C:$CI,AJ$1,0)&"","") ->  | AK38: =IFERROR(VLOOKUP($C38,全データ!$C:$CI,AK$1,0)&"","") ->  | AL38: =IFERROR(VLOOKUP($C38,全データ!$C:$CI,AL$1,0)&"","") ->  | AM38: =IFERROR(VLOOKUP($C38,全データ!$C:$CI,AM$1,0)&"","") ->  | AN38: =IFERROR(VLOOKUP($C38,全データ!$C:$CI,AN$1,0)&"","") ->  | AO38: =IFERROR(VLOOKUP($C38,全データ!$C:$CI,AO$1,0)&"","") ->  | AP38: =IFERROR(VLOOKUP($C38,全データ!$C:$CI,AP$1,0)&"","") ->  | AQ38: =IFERROR(VLOOKUP($C38,全データ!$C:$CI,AQ$1,0)&"","") ->  | AR38: =IFERROR(VLOOKUP($C38,全データ!$C:$CI,AR$1,0)&"","") ->  | AS38: =IFERROR(VLOOKUP($C38,全データ!$C:$CI,AS$1,0)&"","") ->  | AT38: =IFERROR(VLOOKUP($C38,全データ!$C:$CI,AT$1,0)&"","") -> ○ | AU38: =IFERROR(VLOOKUP($C38,全データ!$C:$CI,AU$1,0)&"","") ->  | AV38: =IFERROR(VLOOKUP($C38,全データ!$C:$CI,AV$1,0)&"","") ->  | AW38: =IFERROR(VLOOKUP($C38,全データ!$C:$CI,AW$1,0)&"","") ->  | AX38: =COUNTIF($Z38:$AG38,"○") -> 2 | AY38: =COUNTIF($AH38:$AK38,"○") -> 1 | AZ38: =COUNTIF($AL38:$AS38,"○") -> 0 | BA38: =COUNTIF(AT38:AW38,"○")+COUNTIF(AT38:AW38,"◎") -> 1 | BB38: =SUM(AX38:BA38) -> 4 | BC38: =VLOOKUP($C38,点数集計!$C:$CL,ようこそ!$G$19,0) -> 
A39: =A38+1 -> 35 | B39: JR埼京線 | C39: 武蔵浦和 | D39: =IFERROR(VLOOKUP($C39,全データ!$C:$CI,D$1,0)&"","") -> 埼玉県 | E39: =IFERROR(VLOOKUP($C39,全データ!$C:$CI,E$1,0)&"","") -> さいたま市南区 | F39: =VLOOKUP($C39,全データ!$C:$CI,F$1,0) -> 41 | G39: =VLOOKUP($C39,全データ!$C:$CI,G$1,0) -> 28 | H39: =(VLOOKUP($C39,全データ!$C:$CI,F$1,0)+VLOOKUP($C39,全データ!$C:$CI,G$1,0))/2 -> 34.5 | I39: =VLOOKUP($C39,全データ!$C:$CI,I$1,0) -> 50 | J39: =VLOOKUP($C39,全データ!$C:$CI,J$1,0) -> ○ | K39: =VLOOKUP($C39,全データ!$C:$CI,K$1,0) -> 6.72 | L39: =VLOOKUP($C39,全データ!$C:$CI,L$1,0) -> 12.42 | M39: =(VLOOKUP($C39,全データ!$C:$CI,K$1,0)+VLOOKUP($C39,全データ!$C:$CI,L$1,0))/2 -> 9.57 | N39: =VLOOKUP($C39,全データ!$C:$CI,N$1,0) -> 42.59559939 | O39: =VLOOKUP($C39,全データ!$C:$CI,O$1,0) -> 13215.92076 | P39: =VLOOKUP($C39,全データ!$C:$CI,P$1,0) -> 0.3497482532 | Q39: =VLOOKUP($C39,全データ!$C:$CI,Q$1,0) -> -0.2466528265 | R39: =VLOOKUP($C39,全データ!$C:$CI,R$1,0) -> 380.9352111 | S39: =VLOOKUP($C39,全データ!$C:$CI,S$1,0) -> 0.008915611161 | T39: =VLOOKUP($C39,全データ!$C:$CI,T$1,0) -> 1.290826635 | U39: =VLOOKUP($C39,全データ!$C:$CI,U$1,0) -> 0.5915767369 | V39: =VLOOKUP($C39,全データ!$C:$CI,V$1,0) -> 0.06500747445 | W39: =VLOOKUP($C39,全データ!$C:$CI,W$1,0) -> 0.02951059501 | X39: =VLOOKUP($C39,全データ!$C:$CI,X$1,0) -> - | Y39: =VLOOKUP($C39,全データ!$C:$CI,Y$1,0) -> ○ | Z39: =IFERROR(VLOOKUP($C39,全データ!$C:$CI,Z$1,0)&"","") -> ○ | AA39: =IFERROR(VLOOKUP($C39,全データ!$C:$CI,AA$1,0)&"","") ->  | AB39: =IFERROR(VLOOKUP($C39,全データ!$C:$CI,AB$1,0)&"","") ->  | AC39: =IFERROR(VLOOKUP($C39,全データ!$C:$CI,AC$1,0)&"","") ->  | AD39: =IFERROR(VLOOKUP($C39,全データ!$C:$CI,AD$1,0)&"","") ->  | AE39: =IFERROR(VLOOKUP($C39,全データ!$C:$CI,AE$1,0)&"","") -> ○ | AF39: =IFERROR(VLOOKUP($C39,全データ!$C:$CI,AF$1,0)&"","") ->  | AG39: =IFERROR(VLOOKUP($C39,全データ!$C:$CI,AG$1,0)&"","") ->  | AH39: =IFERROR(VLOOKUP($C39,全データ!$C:$CI,AH$1,0)&"","") ->  | AI39: =IFERROR(VLOOKUP($C39,全データ!$C:$CI,AI$1,0)&"","") ->  | AJ39: =IFERROR(VLOOKUP($C39,全データ!$C:$CI,AJ$1,0)&"","") -> ○ | AK39: =IFERROR(VLOOKUP($C39,全データ!$C:$CI,AK$1,0)&"","") ->  | AL39: =IFERROR(VLOOKUP($C39,全データ!$C:$CI,AL$1,0)&"","") ->  | AM39: =IFERROR(VLOOKUP($C39,全データ!$C:$CI,AM$1,0)&"","") -> ○ | AN39: =IFERROR(VLOOKUP($C39,全データ!$C:$CI,AN$1,0)&"","") ->  | AO39: =IFERROR(VLOOKUP($C39,全データ!$C:$CI,AO$1,0)&"","") ->  | AP39: =IFERROR(VLOOKUP($C39,全データ!$C:$CI,AP$1,0)&"","") ->  | AQ39: =IFERROR(VLOOKUP($C39,全データ!$C:$CI,AQ$1,0)&"","") ->  | AR39: =IFERROR(VLOOKUP($C39,全データ!$C:$CI,AR$1,0)&"","") ->  | AS39: =IFERROR(VLOOKUP($C39,全データ!$C:$CI,AS$1,0)&"","") ->  | AT39: =IFERROR(VLOOKUP($C39,全データ!$C:$CI,AT$1,0)&"","") ->  | AU39: =IFERROR(VLOOKUP($C39,全データ!$C:$CI,AU$1,0)&"","") ->  | AV39: =IFERROR(VLOOKUP($C39,全データ!$C:$CI,AV$1,0)&"","") ->  | AW39: =IFERROR(VLOOKUP($C39,全データ!$C:$CI,AW$1,0)&"","") -> ○ | AX39: =COUNTIF($Z39:$AG39,"○") -> 2 | AY39: =COUNTIF($AH39:$AK39,"○") -> 1 | AZ39: =COUNTIF($AL39:$AS39,"○") -> 1 | BA39: =COUNTIF(AT39:AW39,"○")+COUNTIF(AT39:AW39,"◎") -> 1 | BB39: =SUM(AX39:BA39) -> 5 | BC39: =VLOOKUP($C39,点数集計!$C:$CL,ようこそ!$G$19,0) -> 
A40: =A39+1 -> 36 | B40: JR埼京線 | C40: 南与野 | D40: =IFERROR(VLOOKUP($C40,全データ!$C:$CI,D$1,0)&"","") -> 埼玉県 | E40: =IFERROR(VLOOKUP($C40,全データ!$C:$CI,E$1,0)&"","") -> さいたま市中央区 | F40: =VLOOKUP($C40,全データ!$C:$CI,F$1,0) -> 50.33333333 | G40: =VLOOKUP($C40,全データ!$C:$CI,G$1,0) -> 36 | H40: =(VLOOKUP($C40,全データ!$C:$CI,F$1,0)+VLOOKUP($C40,全データ!$C:$CI,G$1,0))/2 -> 43.16666667 | I40: =VLOOKUP($C40,全データ!$C:$CI,I$1,0) -> 183 | J40: =VLOOKUP($C40,全データ!$C:$CI,J$1,0) -> × | K40: =VLOOKUP($C40,全データ!$C:$CI,K$1,0) -> 5.26 | L40: =VLOOKUP($C40,全データ!$C:$CI,L$1,0) -> 9.38 | M40: =(VLOOKUP($C40,全データ!$C:$CI,K$1,0)+VLOOKUP($C40,全データ!$C:$CI,L$1,0))/2 -> 7.32 | N40: =VLOOKUP($C40,全データ!$C:$CI,N$1,0) -> 43.19325314 | O40: =VLOOKUP($C40,全データ!$C:$CI,O$1,0) -> 11771.39452 | P40: =VLOOKUP($C40,全データ!$C:$CI,P$1,0) -> 0.3495027779 | Q40: =VLOOKUP($C40,全データ!$C:$CI,Q$1,0) -> -0.0141754926 | R40: =VLOOKUP($C40,全データ!$C:$CI,R$1,0) -> 380.9352111 | S40: =VLOOKUP($C40,全データ!$C:$CI,S$1,0) -> 0.008227029026 | T40: =VLOOKUP($C40,全データ!$C:$CI,T$1,0) -> 2.557846135 | U40: =VLOOKUP($C40,全データ!$C:$CI,U$1,0) -> 3.821860685 | V40: =VLOOKUP($C40,全データ!$C:$CI,V$1,0) -> 0.06500747445 | W40: =VLOOKUP($C40,全データ!$C:$CI,W$1,0) -> 0.02818177086 | X40: =VLOOKUP($C40,全データ!$C:$CI,X$1,0) -> 浦和南 | Y40: =VLOOKUP($C40,全データ!$C:$CI,Y$1,0) -> ◎ | Z40: =IFERROR(VLOOKUP($C40,全データ!$C:$CI,Z$1,0)&"","") ->  | AA40: =IFERROR(VLOOKUP($C40,全データ!$C:$CI,AA$1,0)&"","") ->  | AB40: =IFERROR(VLOOKUP($C40,全データ!$C:$CI,AB$1,0)&"","") ->  | AC40: =IFERROR(VLOOKUP($C40,全データ!$C:$CI,AC$1,0)&"","") ->  | AD40: =IFERROR(VLOOKUP($C40,全データ!$C:$CI,AD$1,0)&"","") -> ○ | AE40: =IFERROR(VLOOKUP($C40,全データ!$C:$CI,AE$1,0)&"","") -> ○ | AF40: =IFERROR(VLOOKUP($C40,全データ!$C:$CI,AF$1,0)&"","") ->  | AG40: =IFERROR(VLOOKUP($C40,全データ!$C:$CI,AG$1,0)&"","") ->  | AH40: =IFERROR(VLOOKUP($C40,全データ!$C:$CI,AH$1,0)&"","") ->  | AI40: =IFERROR(VLOOKUP($C40,全データ!$C:$CI,AI$1,0)&"","") -> ○ | AJ40: =IFERROR(VLOOKUP($C40,全データ!$C:$CI,AJ$1,0)&"","") ->  | AK40: =IFERROR(VLOOKUP($C40,全データ!$C:$CI,AK$1,0)&"","") ->  | AL40: =IFERROR(VLOOKUP($C40,全データ!$C:$CI,AL$1,0)&"","") ->  | AM40: =IFERROR(VLOOKUP($C40,全データ!$C:$CI,AM$1,0)&"","") ->  | AN40: =IFERROR(VLOOKUP($C40,全データ!$C:$CI,AN$1,0)&"","") ->  | AO40: =IFERROR(VLOOKUP($C40,全データ!$C:$CI,AO$1,0)&"","") ->  | AP40: =IFERROR(VLOOKUP($C40,全データ!$C:$CI,AP$1,0)&"","") ->  | AQ40: =IFERROR(VLOOKUP($C40,全データ!$C:$CI,AQ$1,0)&"","") ->  | AR40: =IFERROR(VLOOKUP($C40,全データ!$C:$CI,AR$1,0)&"","") ->  | AS40: =IFERROR(VLOOKUP($C40,全データ!$C:$CI,AS$1,0)&"","") ->  | AT40: =IFERROR(VLOOKUP($C40,全データ!$C:$CI,AT$1,0)&"","") ->  | AU40: =IFERROR(VLOOKUP($C40,全データ!$C:$CI,AU$1,0)&"","") ->  | AV40: =IFERROR(VLOOKUP($C40,全データ!$C:$CI,AV$1,0)&"","") ->  | AW40: =IFERROR(VLOOKUP($C40,全データ!$C:$CI,AW$1,0)&"","") ->  | AX40: =COUNTIF($Z40:$AG40,"○") -> 2 | AY40: =COUNTIF($AH40:$AK40,"○") -> 1 | AZ40: =COUNTIF($AL40:$AS40,"○") -> 0 | BA40: =COUNTIF(AT40:AW40,"○")+COUNTIF(AT40:AW40,"◎") -> 0 | BB40: =SUM(AX40:BA40) -> 3 | BC40: =VLOOKUP($C40,点数集計!$C:$CL,ようこそ!$G$19,0) -> 
A41: =A40+1 -> 37 | B41: JR埼京線 | C41: 北与野 | D41: =IFERROR(VLOOKUP($C41,全データ!$C:$CI,D$1,0)&"","") -> 埼玉県 | E41: =IFERROR(VLOOKUP($C41,全データ!$C:$CI,E$1,0)&"","") -> さいたま市中央区 | F41: =VLOOKUP($C41,全データ!$C:$CI,F$1,0) -> 50.33333333 | G41: =VLOOKUP($C41,全データ!$C:$CI,G$1,0) -> 40.33333333 | H41: =(VLOOKUP($C41,全データ!$C:$CI,F$1,0)+VLOOKUP($C41,全データ!$C:$CI,G$1,0))/2 -> 45.33333333 | I41: =VLOOKUP($C41,全データ!$C:$CI,I$1,0) -> 183 | J41: =VLOOKUP($C41,全データ!$C:$CI,J$1,0) -> × | K41: =VLOOKUP($C41,全データ!$C:$CI,K$1,0) -> 6.44 | L41: =VLOOKUP($C41,全データ!$C:$CI,L$1,0) -> 10.55 | M41: =(VLOOKUP($C41,全データ!$C:$CI,K$1,0)+VLOOKUP($C41,全データ!$C:$CI,L$1,0))/2 -> 8.495 | N41: =VLOOKUP($C41,全データ!$C:$CI,N$1,0) -> 43.19325314 | O41: =VLOOKUP($C41,全データ!$C:$CI,O$1,0) -> 11771.39452 | P41: =VLOOKUP($C41,全データ!$C:$CI,P$1,0) -> 0.3495027779 | Q41: =VLOOKUP($C41,全データ!$C:$CI,Q$1,0) -> -0.0141754926 | R41: =VLOOKUP($C41,全データ!$C:$CI,R$1,0) -> 380.9352111 | S41: =VLOOKUP($C41,全データ!$C:$CI,S$1,0) -> 0.008227029026 | T41: =VLOOKUP($C41,全データ!$C:$CI,T$1,0) -> 2.557846135 | U41: =VLOOKUP($C41,全データ!$C:$CI,U$1,0) -> 3.821860685 | V41: =VLOOKUP($C41,全データ!$C:$CI,V$1,0) -> 0.06500747445 | W41: =VLOOKUP($C41,全データ!$C:$CI,W$1,0) -> 0.02818177086 | X41: =VLOOKUP($C41,全データ!$C:$CI,X$1,0) -> 新都心西 | Y41: =VLOOKUP($C41,全データ!$C:$CI,Y$1,0) -> ◎ | Z41: =IFERROR(VLOOKUP($C41,全データ!$C:$CI,Z$1,0)&"","") ->  | AA41: =IFERROR(VLOOKUP($C41,全データ!$C:$CI,AA$1,0)&"","") ->  | AB41: =IFERROR(VLOOKUP($C41,全データ!$C:$CI,AB$1,0)&"","") ->  | AC41: =IFERROR(VLOOKUP($C41,全データ!$C:$CI,AC$1,0)&"","") ->  | AD41: =IFERROR(VLOOKUP($C41,全データ!$C:$CI,AD$1,0)&"","") ->  | AE41: =IFERROR(VLOOKUP($C41,全データ!$C:$CI,AE$1,0)&"","") -> ○ | AF41: =IFERROR(VLOOKUP($C41,全データ!$C:$CI,AF$1,0)&"","") ->  | AG41: =IFERROR(VLOOKUP($C41,全データ!$C:$CI,AG$1,0)&"","") ->  | AH41: =IFERROR(VLOOKUP($C41,全データ!$C:$CI,AH$1,0)&"","") ->  | AI41: =IFERROR(VLOOKUP($C41,全データ!$C:$CI,AI$1,0)&"","") ->  | AJ41: =IFERROR(VLOOKUP($C41,全データ!$C:$CI,AJ$1,0)&"","") ->  | AK41: =IFERROR(VLOOKUP($C41,全データ!$C:$CI,AK$1,0)&"","") ->  | AL41: =IFERROR(VLOOKUP($C41,全データ!$C:$CI,AL$1,0)&"","") ->  | AM41: =IFERROR(VLOOKUP($C41,全データ!$C:$CI,AM$1,0)&"","") ->  | AN41: =IFERROR(VLOOKUP($C41,全データ!$C:$CI,AN$1,0)&"","") ->  | AO41: =IFERROR(VLOOKUP($C41,全データ!$C:$CI,AO$1,0)&"","") ->  | AP41: =IFERROR(VLOOKUP($C41,全データ!$C:$CI,AP$1,0)&"","") ->  | AQ41: =IFERROR(VLOOKUP($C41,全データ!$C:$CI,AQ$1,0)&"","") ->  | AR41: =IFERROR(VLOOKUP($C41,全データ!$C:$CI,AR$1,0)&"","") -> ○ | AS41: =IFERROR(VLOOKUP($C41,全データ!$C:$CI,AS$1,0)&"","") ->  | AT41: =IFERROR(VLOOKUP($C41,全データ!$C:$CI,AT$1,0)&"","") -> ○ | AU41: =IFERROR(VLOOKUP($C41,全データ!$C:$CI,AU$1,0)&"","") ->  | AV41: =IFERROR(VLOOKUP($C41,全データ!$C:$CI,AV$1,0)&"","") ->  | AW41: =IFERROR(VLOOKUP($C41,全データ!$C:$CI,AW$1,0)&"","") ->  | AX41: =COUNTIF($Z41:$AG41,"○") -> 1 | AY41: =COUNTIF($AH41:$AK41,"○") -> 0 | AZ41: =COUNTIF($AL41:$AS41,"○") -> 1 | BA41: =COUNTIF(AT41:AW41,"○")+COUNTIF(AT41:AW41,"◎") -> 1 | BB41: =SUM(AX41:BA41) -> 3 | BC41: =VLOOKUP($C41,点数集計!$C:$CL,ようこそ!$G$19,0) -> 
A42: =A41+1 -> 38 | B42: JR埼京線 | C42: 十条 | D42: =IFERROR(VLOOKUP($C42,全データ!$C:$CI,D$1,0)&"","") -> 東京都 | E42: =IFERROR(VLOOKUP($C42,全データ!$C:$CI,E$1,0)&"","") -> 北区 | F42: =VLOOKUP($C42,全データ!$C:$CI,F$1,0) -> 32.66666667 | G42: =VLOOKUP($C42,全データ!$C:$CI,G$1,0) -> 14.33333333 | H42: =(VLOOKUP($C42,全データ!$C:$CI,F$1,0)+VLOOKUP($C42,全データ!$C:$CI,G$1,0))/2 -> 23.5 | I42: =VLOOKUP($C42,全データ!$C:$CI,I$1,0) -> 183 | J42: =VLOOKUP($C42,全データ!$C:$CI,J$1,0) -> × | K42: =VLOOKUP($C42,全データ!$C:$CI,K$1,0) -> 6.71 | L42: =VLOOKUP($C42,全データ!$C:$CI,L$1,0) -> 16.7 | M42: =(VLOOKUP($C42,全データ!$C:$CI,K$1,0)+VLOOKUP($C42,全データ!$C:$CI,L$1,0))/2 -> 11.705 | N42: =VLOOKUP($C42,全データ!$C:$CI,N$1,0) -> 44.97053903 | O42: =VLOOKUP($C42,全データ!$C:$CI,O$1,0) -> 16549.05386 | P42: =VLOOKUP($C42,全データ!$C:$CI,P$1,0) -> 0.5054580558 | Q42: =VLOOKUP($C42,全データ!$C:$CI,Q$1,0) -> -0.03319787965 | R42: =VLOOKUP($C42,全データ!$C:$CI,R$1,0) -> 355.8315766 | S42: =VLOOKUP($C42,全データ!$C:$CI,S$1,0) -> 0.007172034826 | T42: =VLOOKUP($C42,全データ!$C:$CI,T$1,0) -> 3.998205678 | U42: =VLOOKUP($C42,全データ!$C:$CI,U$1,0) -> 17.41061097 | V42: =VLOOKUP($C42,全データ!$C:$CI,V$1,0) -> 0.04318672576 | W42: =VLOOKUP($C42,全データ!$C:$CI,W$1,0) -> 0.01648666047 | X42: =VLOOKUP($C42,全データ!$C:$CI,X$1,0) -> - | Y42: =VLOOKUP($C42,全データ!$C:$CI,Y$1,0) -> ○ | Z42: =IFERROR(VLOOKUP($C42,全データ!$C:$CI,Z$1,0)&"","") -> ○ | AA42: =IFERROR(VLOOKUP($C42,全データ!$C:$CI,AA$1,0)&"","") ->  | AB42: =IFERROR(VLOOKUP($C42,全データ!$C:$CI,AB$1,0)&"","") ->  | AC42: =IFERROR(VLOOKUP($C42,全データ!$C:$CI,AC$1,0)&"","") ->  | AD42: =IFERROR(VLOOKUP($C42,全データ!$C:$CI,AD$1,0)&"","") ->  | AE42: =IFERROR(VLOOKUP($C42,全データ!$C:$CI,AE$1,0)&"","") ->  | AF42: =IFERROR(VLOOKUP($C42,全データ!$C:$CI,AF$1,0)&"","") ->  | AG42: =IFERROR(VLOOKUP($C42,全データ!$C:$CI,AG$1,0)&"","") ->  | AH42: =IFERROR(VLOOKUP($C42,全データ!$C:$CI,AH$1,0)&"","") ->  | AI42: =IFERROR(VLOOKUP($C42,全データ!$C:$CI,AI$1,0)&"","") ->  | AJ42: =IFERROR(VLOOKUP($C42,全データ!$C:$CI,AJ$1,0)&"","") ->  | AK42: =IFERROR(VLOOKUP($C42,全データ!$C:$CI,AK$1,0)&"","") ->  | AL42: =IFERROR(VLOOKUP($C42,全データ!$C:$CI,AL$1,0)&"","") ->  | AM42: =IFERROR(VLOOKUP($C42,全データ!$C:$CI,AM$1,0)&"","") ->  | AN42: =IFERROR(VLOOKUP($C42,全データ!$C:$CI,AN$1,0)&"","") ->  | AO42: =IFERROR(VLOOKUP($C42,全データ!$C:$CI,AO$1,0)&"","") ->  | AP42: =IFERROR(VLOOKUP($C42,全データ!$C:$CI,AP$1,0)&"","") -> ○ | AQ42: =IFERROR(VLOOKUP($C42,全データ!$C:$CI,AQ$1,0)&"","") ->  | AR42: =IFERROR(VLOOKUP($C42,全データ!$C:$CI,AR$1,0)&"","") ->  | AS42: =IFERROR(VLOOKUP($C42,全データ!$C:$CI,AS$1,0)&"","") ->  | AT42: =IFERROR(VLOOKUP($C42,全データ!$C:$CI,AT$1,0)&"","") ->  | AU42: =IFERROR(VLOOKUP($C42,全データ!$C:$CI,AU$1,0)&"","") ->  | AV42: =IFERROR(VLOOKUP($C42,全データ!$C:$CI,AV$1,0)&"","") ->  | AW42: =IFERROR(VLOOKUP($C42,全データ!$C:$CI,AW$1,0)&"","") ->  | AX42: =COUNTIF($Z42:$AG42,"○") -> 1 | AY42: =COUNTIF($AH42:$AK42,"○") -> 0 | AZ42: =COUNTIF($AL42:$AS42,"○") -> 1 | BA42: =COUNTIF(AT42:AW42,"○")+COUNTIF(AT42:AW42,"◎") -> 0 | BB42: =SUM(AX42:BA42) -> 2 | BC42: =VLOOKUP($C42,点数集計!$C:$CL,ようこそ!$G$19,0) -> 
A43: =A42+1 -> 39 | B43: JR埼京線 | C43: 北赤羽 | D43: =IFERROR(VLOOKUP($C43,全データ!$C:$CI,D$1,0)&"","") -> 東京都 | E43: =IFERROR(VLOOKUP($C43,全データ!$C:$CI,E$1,0)&"","") -> 北区 | F43: =VLOOKUP($C43,全データ!$C:$CI,F$1,0) -> 34.66666667 | G43: =VLOOKUP($C43,全データ!$C:$CI,G$1,0) -> 21.66666667 | H43: =(VLOOKUP($C43,全データ!$C:$CI,F$1,0)+VLOOKUP($C43,全データ!$C:$CI,G$1,0))/2 -> 28.16666667 | I43: =VLOOKUP($C43,全データ!$C:$CI,I$1,0) -> 183 | J43: =VLOOKUP($C43,全データ!$C:$CI,J$1,0) -> × | K43: =VLOOKUP($C43,全データ!$C:$CI,K$1,0) -> 7.55 | L43: =VLOOKUP($C43,全データ!$C:$CI,L$1,0) -> 13.6 | M43: =(VLOOKUP($C43,全データ!$C:$CI,K$1,0)+VLOOKUP($C43,全データ!$C:$CI,L$1,0))/2 -> 10.575 | N43: =VLOOKUP($C43,全データ!$C:$CI,N$1,0) -> 44.97053903 | O43: =VLOOKUP($C43,全データ!$C:$CI,O$1,0) -> 16549.05386 | P43: =VLOOKUP($C43,全データ!$C:$CI,P$1,0) -> 0.5054580558 | Q43: =VLOOKUP($C43,全データ!$C:$CI,Q$1,0) -> -0.03319787965 | R43: =VLOOKUP($C43,全データ!$C:$CI,R$1,0) -> 355.8315766 | S43: =VLOOKUP($C43,全データ!$C:$CI,S$1,0) -> 0.007172034826 | T43: =VLOOKUP($C43,全データ!$C:$CI,T$1,0) -> 3.998205678 | U43: =VLOOKUP($C43,全データ!$C:$CI,U$1,0) -> 17.41061097 | V43: =VLOOKUP($C43,全データ!$C:$CI,V$1,0) -> 0.04318672576 | W43: =VLOOKUP($C43,全データ!$C:$CI,W$1,0) -> 0.01648666047 | X43: =VLOOKUP($C43,全データ!$C:$CI,X$1,0) -> - | Y43: =VLOOKUP($C43,全データ!$C:$CI,Y$1,0) -> ○ | Z43: =IFERROR(VLOOKUP($C43,全データ!$C:$CI,Z$1,0)&"","") -> ○ | AA43: =IFERROR(VLOOKUP($C43,全データ!$C:$CI,AA$1,0)&"","") ->  | AB43: =IFERROR(VLOOKUP($C43,全データ!$C:$CI,AB$1,0)&"","") ->  | AC43: =IFERROR(VLOOKUP($C43,全データ!$C:$CI,AC$1,0)&"","") ->  | AD43: =IFERROR(VLOOKUP($C43,全データ!$C:$CI,AD$1,0)&"","") ->  | AE43: =IFERROR(VLOOKUP($C43,全データ!$C:$CI,AE$1,0)&"","") ->  | AF43: =IFERROR(VLOOKUP($C43,全データ!$C:$CI,AF$1,0)&"","") ->  | AG43: =IFERROR(VLOOKUP($C43,全データ!$C:$CI,AG$1,0)&"","") ->  | AH43: =IFERROR(VLOOKUP($C43,全データ!$C:$CI,AH$1,0)&"","") ->  | AI43: =IFERROR(VLOOKUP($C43,全データ!$C:$CI,AI$1,0)&"","") ->  | AJ43: =IFERROR(VLOOKUP($C43,全データ!$C:$CI,AJ$1,0)&"","") ->  | AK43: =IFERROR(VLOOKUP($C43,全データ!$C:$CI,AK$1,0)&"","") ->  | AL43: =IFERROR(VLOOKUP($C43,全データ!$C:$CI,AL$1,0)&"","") ->  | AM43: =IFERROR(VLOOKUP($C43,全データ!$C:$CI,AM$1,0)&"","") ->  | AN43: =IFERROR(VLOOKUP($C43,全データ!$C:$CI,AN$1,0)&"","") ->  | AO43: =IFERROR(VLOOKUP($C43,全データ!$C:$CI,AO$1,0)&"","") -> ○ | AP43: =IFERROR(VLOOKUP($C43,全データ!$C:$CI,AP$1,0)&"","") ->  | AQ43: =IFERROR(VLOOKUP($C43,全データ!$C:$CI,AQ$1,0)&"","") ->  | AR43: =IFERROR(VLOOKUP($C43,全データ!$C:$CI,AR$1,0)&"","") ->  | AS43: =IFERROR(VLOOKUP($C43,全データ!$C:$CI,AS$1,0)&"","") ->  | AT43: =IFERROR(VLOOKUP($C43,全データ!$C:$CI,AT$1,0)&"","") ->  | AU43: =IFERROR(VLOOKUP($C43,全データ!$C:$CI,AU$1,0)&"","") ->  | AV43: =IFERROR(VLOOKUP($C43,全データ!$C:$CI,AV$1,0)&"","") ->  | AW43: =IFERROR(VLOOKUP($C43,全データ!$C:$CI,AW$1,0)&"","") ->  | AX43: =COUNTIF($Z43:$AG43,"○") -> 1 | AY43: =COUNTIF($AH43:$AK43,"○") -> 0 | AZ43: =COUNTIF($AL43:$AS43,"○") -> 1 | BA43: =COUNTIF(AT43:AW43,"○")+COUNTIF(AT43:AW43,"◎") -> 0 | BB43: =SUM(AX43:BA43) -> 2 | BC43: =VLOOKUP($C43,点数集計!$C:$CL,ようこそ!$G$19,0) -> 
A44: =A43+1 -> 40 | B44: JR埼京線 | C44: 与野本町 | D44: =IFERROR(VLOOKUP($C44,全データ!$C:$CI,D$1,0)&"","") -> 埼玉県 | E44: =IFERROR(VLOOKUP($C44,全データ!$C:$CI,E$1,0)&"","") -> さいたま市中央区 | F44: =VLOOKUP($C44,全データ!$C:$CI,F$1,0) -> 51 | G44: =VLOOKUP($C44,全データ!$C:$CI,G$1,0) -> 38.33333333 | H44: =(VLOOKUP($C44,全データ!$C:$CI,F$1,0)+VLOOKUP($C44,全データ!$C:$CI,G$1,0))/2 -> 44.66666667 | I44: =VLOOKUP($C44,全データ!$C:$CI,I$1,0) -> 50 | J44: =VLOOKUP($C44,全データ!$C:$CI,J$1,0) -> ○ | K44: =VLOOKUP($C44,全データ!$C:$CI,K$1,0) -> 6.1 | L44: =VLOOKUP($C44,全データ!$C:$CI,L$1,0) -> 11.85 | M44: =(VLOOKUP($C44,全データ!$C:$CI,K$1,0)+VLOOKUP($C44,全データ!$C:$CI,L$1,0))/2 -> 8.975 | N44: =VLOOKUP($C44,全データ!$C:$CI,N$1,0) -> 43.19325314 | O44: =VLOOKUP($C44,全データ!$C:$CI,O$1,0) -> 11771.39452 | P44: =VLOOKUP($C44,全データ!$C:$CI,P$1,0) -> 0.3495027779 | Q44: =VLOOKUP($C44,全データ!$C:$CI,Q$1,0) -> -0.0141754926 | R44: =VLOOKUP($C44,全データ!$C:$CI,R$1,0) -> 380.9352111 | S44: =VLOOKUP($C44,全データ!$C:$CI,S$1,0) -> 0.008227029026 | T44: =VLOOKUP($C44,全データ!$C:$CI,T$1,0) -> 2.557846135 | U44: =VLOOKUP($C44,全データ!$C:$CI,U$1,0) -> 3.821860685 | V44: =VLOOKUP($C44,全データ!$C:$CI,V$1,0) -> 0.06500747445 | W44: =VLOOKUP($C44,全データ!$C:$CI,W$1,0) -> 0.02818177086 | X44: =VLOOKUP($C44,全データ!$C:$CI,X$1,0) -> - | Y44: =VLOOKUP($C44,全データ!$C:$CI,Y$1,0) -> ○ | Z44: =IFERROR(VLOOKUP($C44,全データ!$C:$CI,Z$1,0)&"","") ->  | AA44: =IFERROR(VLOOKUP($C44,全データ!$C:$CI,AA$1,0)&"","") ->  | AB44: =IFERROR(VLOOKUP($C44,全データ!$C:$CI,AB$1,0)&"","") ->  | AC44: =IFERROR(VLOOKUP($C44,全データ!$C:$CI,AC$1,0)&"","") ->  | AD44: =IFERROR(VLOOKUP($C44,全データ!$C:$CI,AD$1,0)&"","") ->  | AE44: =IFERROR(VLOOKUP($C44,全データ!$C:$CI,AE$1,0)&"","") ->  | AF44: =IFERROR(VLOOKUP($C44,全データ!$C:$CI,AF$1,0)&"","") ->  | AG44: =IFERROR(VLOOKUP($C44,全データ!$C:$CI,AG$1,0)&"","") ->  | AH44: =IFERROR(VLOOKUP($C44,全データ!$C:$CI,AH$1,0)&"","") ->  | AI44: =IFERROR(VLOOKUP($C44,全データ!$C:$CI,AI$1,0)&"","") ->  | AJ44: =IFERROR(VLOOKUP($C44,全データ!$C:$CI,AJ$1,0)&"","") ->  | AK44: =IFERROR(VLOOKUP($C44,全データ!$C:$CI,AK$1,0)&"","") ->  | AL44: =IFERROR(VLOOKUP($C44,全データ!$C:$CI,AL$1,0)&"","") ->  | AM44: =IFERROR(VLOOKUP($C44,全データ!$C:$CI,AM$1,0)&"","") ->  | AN44: =IFERROR(VLOOKUP($C44,全データ!$C:$CI,AN$1,0)&"","") ->  | AO44: =IFERROR(VLOOKUP($C44,全データ!$C:$CI,AO$1,0)&"","") ->  | AP44: =IFERROR(VLOOKUP($C44,全データ!$C:$CI,AP$1,0)&"","") ->  | AQ44: =IFERROR(VLOOKUP($C44,全データ!$C:$CI,AQ$1,0)&"","") ->  | AR44: =IFERROR(VLOOKUP($C44,全データ!$C:$CI,AR$1,0)&"","") ->  | AS44: =IFERROR(VLOOKUP($C44,全データ!$C:$CI,AS$1,0)&"","") ->  | AT44: =IFERROR(VLOOKUP($C44,全データ!$C:$CI,AT$1,0)&"","") ->  | AU44: =IFERROR(VLOOKUP($C44,全データ!$C:$CI,AU$1,0)&"","") ->  | AV44: =IFERROR(VLOOKUP($C44,全データ!$C:$CI,AV$1,0)&"","") ->  | AW44: =IFERROR(VLOOKUP($C44,全データ!$C:$CI,AW$1,0)&"","") -> ○ | AX44: =COUNTIF($Z44:$AG44,"○") -> 0 | AY44: =COUNTIF($AH44:$AK44,"○") -> 0 | AZ44: =COUNTIF($AL44:$AS44,"○") -> 0 | BA44: =COUNTIF(AT44:AW44,"○")+COUNTIF(AT44:AW44,"◎") -> 1 | BB44: =SUM(AX44:BA44) -> 1 | BC44: =VLOOKUP($C44,点数集計!$C:$CL,ようこそ!$G$19,0) -> 
A45: =A44+1 -> 41 | B45: JR埼京線 | C45: 板橋 | D45: =IFERROR(VLOOKUP($C45,全データ!$C:$CI,D$1,0)&"","") -> 東京都 | E45: =IFERROR(VLOOKUP($C45,全データ!$C:$CI,E$1,0)&"","") -> 板橋区 | F45: =VLOOKUP($C45,全データ!$C:$CI,F$1,0) -> 18.66666667 | G45: =VLOOKUP($C45,全データ!$C:$CI,G$1,0) -> 10 | H45: =(VLOOKUP($C45,全データ!$C:$CI,F$1,0)+VLOOKUP($C45,全データ!$C:$CI,G$1,0))/2 -> 14.33333333 | I45: =VLOOKUP($C45,全データ!$C:$CI,I$1,0) -> 183 | J45: =VLOOKUP($C45,全データ!$C:$CI,J$1,0) -> × | K45: =VLOOKUP($C45,全データ!$C:$CI,K$1,0) -> 8.81 | L45: =VLOOKUP($C45,全データ!$C:$CI,L$1,0) -> 17.37 | M45: =(VLOOKUP($C45,全データ!$C:$CI,K$1,0)+VLOOKUP($C45,全データ!$C:$CI,L$1,0))/2 -> 13.09 | N45: =VLOOKUP($C45,全データ!$C:$CI,N$1,0) -> 44.12696249 | O45: =VLOOKUP($C45,全データ!$C:$CI,O$1,0) -> 17439.97517 | P45: =VLOOKUP($C45,全データ!$C:$CI,P$1,0) -> 0.512576035 | Q45: =VLOOKUP($C45,全データ!$C:$CI,Q$1,0) -> -0.09577410147 | R45: =VLOOKUP($C45,全データ!$C:$CI,R$1,0) -> 355.2092632 | S45: =VLOOKUP($C45,全データ!$C:$CI,S$1,0) -> 0.007819342294 | T45: =VLOOKUP($C45,全データ!$C:$CI,T$1,0) -> 2.647013077 | U45: =VLOOKUP($C45,全データ!$C:$CI,U$1,0) -> 269.3774371 | V45: =VLOOKUP($C45,全データ!$C:$CI,V$1,0) -> 0.03525665916 | W45: =VLOOKUP($C45,全データ!$C:$CI,W$1,0) -> 0.04869509391 | X45: =VLOOKUP($C45,全データ!$C:$CI,X$1,0) -> 滝野川 | Y45: =VLOOKUP($C45,全データ!$C:$CI,Y$1,0) -> ○ | Z45: =IFERROR(VLOOKUP($C45,全データ!$C:$CI,Z$1,0)&"","") ->  | AA45: =IFERROR(VLOOKUP($C45,全データ!$C:$CI,AA$1,0)&"","") ->  | AB45: =IFERROR(VLOOKUP($C45,全データ!$C:$CI,AB$1,0)&"","") ->  | AC45: =IFERROR(VLOOKUP($C45,全データ!$C:$CI,AC$1,0)&"","") ->  | AD45: =IFERROR(VLOOKUP($C45,全データ!$C:$CI,AD$1,0)&"","") ->  | AE45: =IFERROR(VLOOKUP($C45,全データ!$C:$CI,AE$1,0)&"","") ->  | AF45: =IFERROR(VLOOKUP($C45,全データ!$C:$CI,AF$1,0)&"","") ->  | AG45: =IFERROR(VLOOKUP($C45,全データ!$C:$CI,AG$1,0)&"","") ->  | AH45: =IFERROR(VLOOKUP($C45,全データ!$C:$CI,AH$1,0)&"","") ->  | AI45: =IFERROR(VLOOKUP($C45,全データ!$C:$CI,AI$1,0)&"","") ->  | AJ45: =IFERROR(VLOOKUP($C45,全データ!$C:$CI,AJ$1,0)&"","") ->  | AK45: =IFERROR(VLOOKUP($C45,全データ!$C:$CI,AK$1,0)&"","") ->  | AL45: =IFERROR(VLOOKUP($C45,全データ!$C:$CI,AL$1,0)&"","") ->  | AM45: =IFERROR(VLOOKUP($C45,全データ!$C:$CI,AM$1,0)&"","") ->  | AN45: =IFERROR(VLOOKUP($C45,全データ!$C:$CI,AN$1,0)&"","") ->  | AO45: =IFERROR(VLOOKUP($C45,全データ!$C:$CI,AO$1,0)&"","") ->  | AP45: =IFERROR(VLOOKUP($C45,全データ!$C:$CI,AP$1,0)&"","") ->  | AQ45: =IFERROR(VLOOKUP($C45,全データ!$C:$CI,AQ$1,0)&"","") ->  | AR45: =IFERROR(VLOOKUP($C45,全データ!$C:$CI,AR$1,0)&"","") ->  | AS45: =IFERROR(VLOOKUP($C45,全データ!$C:$CI,AS$1,0)&"","") ->  | AT45: =IFERROR(VLOOKUP($C45,全データ!$C:$CI,AT$1,0)&"","") ->  | AU45: =IFERROR(VLOOKUP($C45,全データ!$C:$CI,AU$1,0)&"","") ->  | AV45: =IFERROR(VLOOKUP($C45,全データ!$C:$CI,AV$1,0)&"","") ->  | AW45: =IFERROR(VLOOKUP($C45,全データ!$C:$CI,AW$1,0)&"","") ->  | AX45: =COUNTIF($Z45:$AG45,"○") -> 0 | AY45: =COUNTIF($AH45:$AK45,"○") -> 0 | AZ45: =COUNTIF($AL45:$AS45,"○") -> 0 | BA45: =COUNTIF(AT45:AW45,"○")+COUNTIF(AT45:AW45,"◎") -> 0 | BB45: =SUM(AX45:BA45) -> 0 | BC45: =VLOOKUP($C45,点数集計!$C:$CL,ようこそ!$G$19,0) -> 
A46: =A45+1 -> 42 | B46: JR埼京線 | C46: 中浦和 | D46: =IFERROR(VLOOKUP($C46,全データ!$C:$CI,D$1,0)&"","") -> 埼玉県 | E46: =IFERROR(VLOOKUP($C46,全データ!$C:$CI,E$1,0)&"","") -> さいたま市南区 | F46: =VLOOKUP($C46,全データ!$C:$CI,F$1,0) -> 48.33333333 | G46: =VLOOKUP($C46,全データ!$C:$CI,G$1,0) -> 33.66666667 | H46: =(VLOOKUP($C46,全データ!$C:$CI,F$1,0)+VLOOKUP($C46,全データ!$C:$CI,G$1,0))/2 -> 41 | I46: =VLOOKUP($C46,全データ!$C:$CI,I$1,0) -> 183 | J46: =VLOOKUP($C46,全データ!$C:$CI,J$1,0) -> × | K46: =VLOOKUP($C46,全データ!$C:$CI,K$1,0) -> 6.71 | L46: =VLOOKUP($C46,全データ!$C:$CI,L$1,0) -> 9.03 | M46: =(VLOOKUP($C46,全データ!$C:$CI,K$1,0)+VLOOKUP($C46,全データ!$C:$CI,L$1,0))/2 -> 7.87 | N46: =VLOOKUP($C46,全データ!$C:$CI,N$1,0) -> 42.59559939 | O46: =VLOOKUP($C46,全データ!$C:$CI,O$1,0) -> 13215.92076 | P46: =VLOOKUP($C46,全データ!$C:$CI,P$1,0) -> 0.3497482532 | Q46: =VLOOKUP($C46,全データ!$C:$CI,Q$1,0) -> -0.2466528265 | R46: =VLOOKUP($C46,全データ!$C:$CI,R$1,0) -> 380.9352111 | S46: =VLOOKUP($C46,全データ!$C:$CI,S$1,0) -> 0.008915611161 | T46: =VLOOKUP($C46,全データ!$C:$CI,T$1,0) -> 1.290826635 | U46: =VLOOKUP($C46,全データ!$C:$CI,U$1,0) -> 0.5915767369 | V46: =VLOOKUP($C46,全データ!$C:$CI,V$1,0) -> 0.06500747445 | W46: =VLOOKUP($C46,全データ!$C:$CI,W$1,0) -> 0.02951059501 | X46: =VLOOKUP($C46,全データ!$C:$CI,X$1,0) -> - | Y46: =VLOOKUP($C46,全データ!$C:$CI,Y$1,0) -> - | Z46: =IFERROR(VLOOKUP($C46,全データ!$C:$CI,Z$1,0)&"","") ->  | AA46: =IFERROR(VLOOKUP($C46,全データ!$C:$CI,AA$1,0)&"","") ->  | AB46: =IFERROR(VLOOKUP($C46,全データ!$C:$CI,AB$1,0)&"","") ->  | AC46: =IFERROR(VLOOKUP($C46,全データ!$C:$CI,AC$1,0)&"","") ->  | AD46: =IFERROR(VLOOKUP($C46,全データ!$C:$CI,AD$1,0)&"","") ->  | AE46: =IFERROR(VLOOKUP($C46,全データ!$C:$CI,AE$1,0)&"","") ->  | AF46: =IFERROR(VLOOKUP($C46,全データ!$C:$CI,AF$1,0)&"","") ->  | AG46: =IFERROR(VLOOKUP($C46,全データ!$C:$CI,AG$1,0)&"","") ->  | AH46: =IFERROR(VLOOKUP($C46,全データ!$C:$CI,AH$1,0)&"","") ->  | AI46: =IFERROR(VLOOKUP($C46,全データ!$C:$CI,AI$1,0)&"","") ->  | AJ46: =IFERROR(VLOOKUP($C46,全データ!$C:$CI,AJ$1,0)&"","") -> ○ | AK46: =IFERROR(VLOOKUP($C46,全データ!$C:$CI,AK$1,0)&"","") ->  | AL46: =IFERROR(VLOOKUP($C46,全データ!$C:$CI,AL$1,0)&"","") ->  | AM46: =IFERROR(VLOOKUP($C46,全データ!$C:$CI,AM$1,0)&"","") ->  | AN46: =IFERROR(VLOOKUP($C46,全データ!$C:$CI,AN$1,0)&"","") ->  | AO46: =IFERROR(VLOOKUP($C46,全データ!$C:$CI,AO$1,0)&"","") ->  | AP46: =IFERROR(VLOOKUP($C46,全データ!$C:$CI,AP$1,0)&"","") ->  | AQ46: =IFERROR(VLOOKUP($C46,全データ!$C:$CI,AQ$1,0)&"","") ->  | AR46: =IFERROR(VLOOKUP($C46,全データ!$C:$CI,AR$1,0)&"","") ->  | AS46: =IFERROR(VLOOKUP($C46,全データ!$C:$CI,AS$1,0)&"","") ->  | AT46: =IFERROR(VLOOKUP($C46,全データ!$C:$CI,AT$1,0)&"","") ->  | AU46: =IFERROR(VLOOKUP($C46,全データ!$C:$CI,AU$1,0)&"","") ->  | AV46: =IFERROR(VLOOKUP($C46,全データ!$C:$CI,AV$1,0)&"","") ->  | AW46: =IFERROR(VLOOKUP($C46,全データ!$C:$CI,AW$1,0)&"","") ->  | AX46: =COUNTIF($Z46:$AG46,"○") -> 0 | AY46: =COUNTIF($AH46:$AK46,"○") -> 1 | AZ46: =COUNTIF($AL46:$AS46,"○") -> 0 | BA46: =COUNTIF(AT46:AW46,"○")+COUNTIF(AT46:AW46,"◎") -> 0 | BB46: =SUM(AX46:BA46) -> 1 | BC46: =VLOOKUP($C46,点数集計!$C:$CL,ようこそ!$G$19,0) -> 
A47: =A46+1 -> 43 | B47: JR常磐線 | C47: 松戸 | D47: =IFERROR(VLOOKUP($C47,全データ!$C:$CI,D$1,0)&"","") -> 千葉県 | E47: =IFERROR(VLOOKUP($C47,全データ!$C:$CI,E$1,0)&"","") -> 松戸市 | F47: =VLOOKUP($C47,全データ!$C:$CI,F$1,0) -> 31.66666667 | G47: =VLOOKUP($C47,全データ!$C:$CI,G$1,0) -> 45.33333333 | H47: =(VLOOKUP($C47,全データ!$C:$CI,F$1,0)+VLOOKUP($C47,全データ!$C:$CI,G$1,0))/2 -> 38.5 | I47: =VLOOKUP($C47,全データ!$C:$CI,I$1,0) -> 50 | J47: =VLOOKUP($C47,全データ!$C:$CI,J$1,0) -> ○ | K47: =VLOOKUP($C47,全データ!$C:$CI,K$1,0) -> 5.76 | L47: =VLOOKUP($C47,全データ!$C:$CI,L$1,0) -> 10.35 | M47: =(VLOOKUP($C47,全データ!$C:$CI,K$1,0)+VLOOKUP($C47,全データ!$C:$CI,L$1,0))/2 -> 8.055 | N47: =VLOOKUP($C47,全データ!$C:$CI,N$1,0) -> 46.04313059 | O47: =VLOOKUP($C47,全データ!$C:$CI,O$1,0) -> 9741.755709 | P47: =VLOOKUP($C47,全データ!$C:$CI,P$1,0) -> 0.3718384559 | Q47: =VLOOKUP($C47,全データ!$C:$CI,Q$1,0) -> -0.1796248035 | R47: =VLOOKUP($C47,全データ!$C:$CI,R$1,0) -> 347.4131944 | S47: =VLOOKUP($C47,全データ!$C:$CI,S$1,0) -> 0.008599846206 | T47: =VLOOKUP($C47,全データ!$C:$CI,T$1,0) -> 0.3643604699 | U47: =VLOOKUP($C47,全データ!$C:$CI,U$1,0) -> 26.53732147 | V47: =VLOOKUP($C47,全データ!$C:$CI,V$1,0) -> 0.02367608372 | W47: =VLOOKUP($C47,全データ!$C:$CI,W$1,0) -> -0.002016690852 | X47: =VLOOKUP($C47,全データ!$C:$CI,X$1,0) -> 三郷南 | Y47: =VLOOKUP($C47,全データ!$C:$CI,Y$1,0) -> ○ | Z47: =IFERROR(VLOOKUP($C47,全データ!$C:$CI,Z$1,0)&"","") ->  | AA47: =IFERROR(VLOOKUP($C47,全データ!$C:$CI,AA$1,0)&"","") -> ○ | AB47: =IFERROR(VLOOKUP($C47,全データ!$C:$CI,AB$1,0)&"","") ->  | AC47: =IFERROR(VLOOKUP($C47,全データ!$C:$CI,AC$1,0)&"","") ->  | AD47: =IFERROR(VLOOKUP($C47,全データ!$C:$CI,AD$1,0)&"","") ->  | AE47: =IFERROR(VLOOKUP($C47,全データ!$C:$CI,AE$1,0)&"","") ->  | AF47: =IFERROR(VLOOKUP($C47,全データ!$C:$CI,AF$1,0)&"","") ->  | AG47: =IFERROR(VLOOKUP($C47,全データ!$C:$CI,AG$1,0)&"","") ->  | AH47: =IFERROR(VLOOKUP($C47,全データ!$C:$CI,AH$1,0)&"","") -> ○ | AI47: =IFERROR(VLOOKUP($C47,全データ!$C:$CI,AI$1,0)&"","") -> ○ | AJ47: =IFERROR(VLOOKUP($C47,全データ!$C:$CI,AJ$1,0)&"","") ->  | AK47: =IFERROR(VLOOKUP($C47,全データ!$C:$CI,AK$1,0)&"","") ->  | AL47: =IFERROR(VLOOKUP($C47,全データ!$C:$CI,AL$1,0)&"","") ->  | AM47: =IFERROR(VLOOKUP($C47,全データ!$C:$CI,AM$1,0)&"","") ->  | AN47: =IFERROR(VLOOKUP($C47,全データ!$C:$CI,AN$1,0)&"","") ->  | AO47: =IFERROR(VLOOKUP($C47,全データ!$C:$CI,AO$1,0)&"","") -> ○ | AP47: =IFERROR(VLOOKUP($C47,全データ!$C:$CI,AP$1,0)&"","") ->  | AQ47: =IFERROR(VLOOKUP($C47,全データ!$C:$CI,AQ$1,0)&"","") ->  | AR47: =IFERROR(VLOOKUP($C47,全データ!$C:$CI,AR$1,0)&"","") ->  | AS47: =IFERROR(VLOOKUP($C47,全データ!$C:$CI,AS$1,0)&"","") ->  | AT47: =IFERROR(VLOOKUP($C47,全データ!$C:$CI,AT$1,0)&"","") ->  | AU47: =IFERROR(VLOOKUP($C47,全データ!$C:$CI,AU$1,0)&"","") ->  | AV47: =IFERROR(VLOOKUP($C47,全データ!$C:$CI,AV$1,0)&"","") ->  | AW47: =IFERROR(VLOOKUP($C47,全データ!$C:$CI,AW$1,0)&"","") -> ◎ | AX47: =COUNTIF($Z47:$AG47,"○") -> 1 | AY47: =COUNTIF($AH47:$AK47,"○") -> 2 | AZ47: =COUNTIF($AL47:$AS47,"○") -> 1 | BA47: =COUNTIF(AT47:AW47,"○")+COUNTIF(AT47:AW47,"◎") -> 1 | BB47: =SUM(AX47:BA47) -> 5 | BC47: =VLOOKUP($C47,点数集計!$C:$CL,ようこそ!$G$19,0) -> 
A48: =A47+1 -> 44 | B48: JR常磐線 | C48: 柏 | D48: =IFERROR(VLOOKUP($C48,全データ!$C:$CI,D$1,0)&"","") -> 千葉県 | E48: =IFERROR(VLOOKUP($C48,全データ!$C:$CI,E$1,0)&"","") -> 柏市 | F48: =VLOOKUP($C48,全データ!$C:$CI,F$1,0) -> 42 | G48: =VLOOKUP($C48,全データ!$C:$CI,G$1,0) -> 55 | H48: =(VLOOKUP($C48,全データ!$C:$CI,F$1,0)+VLOOKUP($C48,全データ!$C:$CI,G$1,0))/2 -> 48.5 | I48: =VLOOKUP($C48,全データ!$C:$CI,I$1,0) -> 152 | J48: =VLOOKUP($C48,全データ!$C:$CI,J$1,0) -> △ | K48: =VLOOKUP($C48,全データ!$C:$CI,K$1,0) -> 5.81 | L48: =VLOOKUP($C48,全データ!$C:$CI,L$1,0) -> 11.36 | M48: =(VLOOKUP($C48,全データ!$C:$CI,K$1,0)+VLOOKUP($C48,全データ!$C:$CI,L$1,0))/2 -> 8.585 | N48: =VLOOKUP($C48,全データ!$C:$CI,N$1,0) -> 44.55811712 | O48: =VLOOKUP($C48,全データ!$C:$CI,O$1,0) -> 9143.96099 | P48: =VLOOKUP($C48,全データ!$C:$CI,P$1,0) -> 0.3346688019 | Q48: =VLOOKUP($C48,全データ!$C:$CI,Q$1,0) -> -0.09613386995 | R48: =VLOOKUP($C48,全データ!$C:$CI,R$1,0) -> 354.4516609 | S48: =VLOOKUP($C48,全データ!$C:$CI,S$1,0) -> 0.007248255421 | T48: =VLOOKUP($C48,全データ!$C:$CI,T$1,0) -> 0.7864110505 | U48: =VLOOKUP($C48,全データ!$C:$CI,U$1,0) -> 43.19196686 | V48: =VLOOKUP($C48,全データ!$C:$CI,V$1,0) -> 0.01720509964 | W48: =VLOOKUP($C48,全データ!$C:$CI,W$1,0) -> 0.02460817995 | X48: =VLOOKUP($C48,全データ!$C:$CI,X$1,0) -> - | Y48: =VLOOKUP($C48,全データ!$C:$CI,Y$1,0) -> ○ | Z48: =IFERROR(VLOOKUP($C48,全データ!$C:$CI,Z$1,0)&"","") ->  | AA48: =IFERROR(VLOOKUP($C48,全データ!$C:$CI,AA$1,0)&"","") ->  | AB48: =IFERROR(VLOOKUP($C48,全データ!$C:$CI,AB$1,0)&"","") ->  | AC48: =IFERROR(VLOOKUP($C48,全データ!$C:$CI,AC$1,0)&"","") ->  | AD48: =IFERROR(VLOOKUP($C48,全データ!$C:$CI,AD$1,0)&"","") ->  | AE48: =IFERROR(VLOOKUP($C48,全データ!$C:$CI,AE$1,0)&"","") -> ○ | AF48: =IFERROR(VLOOKUP($C48,全データ!$C:$CI,AF$1,0)&"","") ->  | AG48: =IFERROR(VLOOKUP($C48,全データ!$C:$CI,AG$1,0)&"","") ->  | AH48: =IFERROR(VLOOKUP($C48,全データ!$C:$CI,AH$1,0)&"","") -> ○ | AI48: =IFERROR(VLOOKUP($C48,全データ!$C:$CI,AI$1,0)&"","") ->  | AJ48: =IFERROR(VLOOKUP($C48,全データ!$C:$CI,AJ$1,0)&"","") -> ○ | AK48: =IFERROR(VLOOKUP($C48,全データ!$C:$CI,AK$1,0)&"","") -> ○ | AL48: =IFERROR(VLOOKUP($C48,全データ!$C:$CI,AL$1,0)&"","") ->  | AM48: =IFERROR(VLOOKUP($C48,全データ!$C:$CI,AM$1,0)&"","") ->  | AN48: =IFERROR(VLOOKUP($C48,全データ!$C:$CI,AN$1,0)&"","") ->  | AO48: =IFERROR(VLOOKUP($C48,全データ!$C:$CI,AO$1,0)&"","") ->  | AP48: =IFERROR(VLOOKUP($C48,全データ!$C:$CI,AP$1,0)&"","") -> ○ | AQ48: =IFERROR(VLOOKUP($C48,全データ!$C:$CI,AQ$1,0)&"","") ->  | AR48: =IFERROR(VLOOKUP($C48,全データ!$C:$CI,AR$1,0)&"","") -> ○ | AS48: =IFERROR(VLOOKUP($C48,全データ!$C:$CI,AS$1,0)&"","") ->  | AT48: =IFERROR(VLOOKUP($C48,全データ!$C:$CI,AT$1,0)&"","") -> ○ | AU48: =IFERROR(VLOOKUP($C48,全データ!$C:$CI,AU$1,0)&"","") -> ◎ | AV48: =IFERROR(VLOOKUP($C48,全データ!$C:$CI,AV$1,0)&"","") -> ◎ | AW48: =IFERROR(VLOOKUP($C48,全データ!$C:$CI,AW$1,0)&"","") ->  | AX48: =COUNTIF($Z48:$AG48,"○") -> 1 | AY48: =COUNTIF($AH48:$AK48,"○") -> 3 | AZ48: =COUNTIF($AL48:$AS48,"○") -> 2 | BA48: =COUNTIF(AT48:AW48,"○")+COUNTIF(AT48:AW48,"◎") -> 3 | BB48: =SUM(AX48:BA48) -> 9 | BC48: =VLOOKUP($C48,点数集計!$C:$CL,ようこそ!$G$19,0) -> 
A49: =A48+1 -> 45 | B49: JR常磐線 | C49: 南柏 | D49: =IFERROR(VLOOKUP($C49,全データ!$C:$CI,D$1,0)&"","") -> 千葉県 | E49: =IFERROR(VLOOKUP($C49,全データ!$C:$CI,E$1,0)&"","") -> 柏市 | F49: =VLOOKUP($C49,全データ!$C:$CI,F$1,0) -> 47.33333333 | G49: =VLOOKUP($C49,全データ!$C:$CI,G$1,0) -> 61.33333333 | H49: =(VLOOKUP($C49,全データ!$C:$CI,F$1,0)+VLOOKUP($C49,全データ!$C:$CI,G$1,0))/2 -> 54.33333333 | I49: =VLOOKUP($C49,全データ!$C:$CI,I$1,0) -> 154 | J49: =VLOOKUP($C49,全データ!$C:$CI,J$1,0) -> × | K49: =VLOOKUP($C49,全データ!$C:$CI,K$1,0) -> 5.42 | L49: =VLOOKUP($C49,全データ!$C:$CI,L$1,0) -> 7.68 | M49: =(VLOOKUP($C49,全データ!$C:$CI,K$1,0)+VLOOKUP($C49,全データ!$C:$CI,L$1,0))/2 -> 6.55 | N49: =VLOOKUP($C49,全データ!$C:$CI,N$1,0) -> 44.55811712 | O49: =VLOOKUP($C49,全データ!$C:$CI,O$1,0) -> 9143.96099 | P49: =VLOOKUP($C49,全データ!$C:$CI,P$1,0) -> 0.3346688019 | Q49: =VLOOKUP($C49,全データ!$C:$CI,Q$1,0) -> -0.09613386995 | R49: =VLOOKUP($C49,全データ!$C:$CI,R$1,0) -> 354.4516609 | S49: =VLOOKUP($C49,全データ!$C:$CI,S$1,0) -> 0.007248255421 | T49: =VLOOKUP($C49,全データ!$C:$CI,T$1,0) -> 0.7864110505 | U49: =VLOOKUP($C49,全データ!$C:$CI,U$1,0) -> 43.19196686 | V49: =VLOOKUP($C49,全データ!$C:$CI,V$1,0) -> 0.01720509964 | W49: =VLOOKUP($C49,全データ!$C:$CI,W$1,0) -> 0.02460817995 | X49: =VLOOKUP($C49,全データ!$C:$CI,X$1,0) -> - | Y49: =VLOOKUP($C49,全データ!$C:$CI,Y$1,0) -> ○ | Z49: =IFERROR(VLOOKUP($C49,全データ!$C:$CI,Z$1,0)&"","") ->  | AA49: =IFERROR(VLOOKUP($C49,全データ!$C:$CI,AA$1,0)&"","") -> ○ | AB49: =IFERROR(VLOOKUP($C49,全データ!$C:$CI,AB$1,0)&"","") ->  | AC49: =IFERROR(VLOOKUP($C49,全データ!$C:$CI,AC$1,0)&"","") ->  | AD49: =IFERROR(VLOOKUP($C49,全データ!$C:$CI,AD$1,0)&"","") ->  | AE49: =IFERROR(VLOOKUP($C49,全データ!$C:$CI,AE$1,0)&"","") -> ○ | AF49: =IFERROR(VLOOKUP($C49,全データ!$C:$CI,AF$1,0)&"","") ->  | AG49: =IFERROR(VLOOKUP($C49,全データ!$C:$CI,AG$1,0)&"","") ->  | AH49: =IFERROR(VLOOKUP($C49,全データ!$C:$CI,AH$1,0)&"","") ->  | AI49: =IFERROR(VLOOKUP($C49,全データ!$C:$CI,AI$1,0)&"","") ->  | AJ49: =IFERROR(VLOOKUP($C49,全データ!$C:$CI,AJ$1,0)&"","") ->  | AK49: =IFERROR(VLOOKUP($C49,全データ!$C:$CI,AK$1,0)&"","") ->  | AL49: =IFERROR(VLOOKUP($C49,全データ!$C:$CI,AL$1,0)&"","") ->  | AM49: =IFERROR(VLOOKUP($C49,全データ!$C:$CI,AM$1,0)&"","") ->  | AN49: =IFERROR(VLOOKUP($C49,全データ!$C:$CI,AN$1,0)&"","") ->  | AO49: =IFERROR(VLOOKUP($C49,全データ!$C:$CI,AO$1,0)&"","") ->  | AP49: =IFERROR(VLOOKUP($C49,全データ!$C:$CI,AP$1,0)&"","") ->  | AQ49: =IFERROR(VLOOKUP($C49,全データ!$C:$CI,AQ$1,0)&"","") ->  | AR49: =IFERROR(VLOOKUP($C49,全データ!$C:$CI,AR$1,0)&"","") -> ○ | AS49: =IFERROR(VLOOKUP($C49,全データ!$C:$CI,AS$1,0)&"","") ->  | AT49: =IFERROR(VLOOKUP($C49,全データ!$C:$CI,AT$1,0)&"","") ->  | AU49: =IFERROR(VLOOKUP($C49,全データ!$C:$CI,AU$1,0)&"","") ->  | AV49: =IFERROR(VLOOKUP($C49,全データ!$C:$CI,AV$1,0)&"","") ->  | AW49: =IFERROR(VLOOKUP($C49,全データ!$C:$CI,AW$1,0)&"","") ->  | AX49: =COUNTIF($Z49:$AG49,"○") -> 2 | AY49: =COUNTIF($AH49:$AK49,"○") -> 0 | AZ49: =COUNTIF($AL49:$AS49,"○") -> 1 | BA49: =COUNTIF(AT49:AW49,"○")+COUNTIF(AT49:AW49,"◎") -> 0 | BB49: =SUM(AX49:BA49) -> 3 | BC49: =VLOOKUP($C49,点数集計!$C:$CL,ようこそ!$G$19,0) -> 
A50: =A49+1 -> 46 | B50: JR常磐線 | C50: 亀有 | D50: =IFERROR(VLOOKUP($C50,全データ!$C:$CI,D$1,0)&"","") -> 東京都 | E50: =IFERROR(VLOOKUP($C50,全データ!$C:$CI,E$1,0)&"","") -> 葛飾区 | F50: =VLOOKUP($C50,全データ!$C:$CI,F$1,0) -> 26 | G50: =VLOOKUP($C50,全データ!$C:$CI,G$1,0) -> 42.33333333 | H50: =(VLOOKUP($C50,全データ!$C:$CI,F$1,0)+VLOOKUP($C50,全データ!$C:$CI,G$1,0))/2 -> 34.16666667 | I50: =VLOOKUP($C50,全データ!$C:$CI,I$1,0) -> 152 | J50: =VLOOKUP($C50,全データ!$C:$CI,J$1,0) -> × | K50: =VLOOKUP($C50,全データ!$C:$CI,K$1,0) -> 7.11 | L50: =VLOOKUP($C50,全データ!$C:$CI,L$1,0) -> 13.13 | M50: =(VLOOKUP($C50,全データ!$C:$CI,K$1,0)+VLOOKUP($C50,全データ!$C:$CI,L$1,0))/2 -> 10.12 | N50: =VLOOKUP($C50,全データ!$C:$CI,N$1,0) -> 45.53236924 | O50: =VLOOKUP($C50,全データ!$C:$CI,O$1,0) -> 12727.38506 | P50: =VLOOKUP($C50,全データ!$C:$CI,P$1,0) -> 0.3935363296 | Q50: =VLOOKUP($C50,全データ!$C:$CI,Q$1,0) -> -0.1593495788 | R50: =VLOOKUP($C50,全データ!$C:$CI,R$1,0) -> 338.4600817 | S50: =VLOOKUP($C50,全データ!$C:$CI,S$1,0) -> 0.009037560262 | T50: =VLOOKUP($C50,全データ!$C:$CI,T$1,0) -> 2.844897305 | U50: =VLOOKUP($C50,全データ!$C:$CI,U$1,0) -> 22.57056028 | V50: =VLOOKUP($C50,全データ!$C:$CI,V$1,0) -> 0.02808280828 | W50: =VLOOKUP($C50,全データ!$C:$CI,W$1,0) -> 0.000738839457 | X50: =VLOOKUP($C50,全データ!$C:$CI,X$1,0) -> - | Y50: =VLOOKUP($C50,全データ!$C:$CI,Y$1,0) -> ○ | Z50: =IFERROR(VLOOKUP($C50,全データ!$C:$CI,Z$1,0)&"","") ->  | AA50: =IFERROR(VLOOKUP($C50,全データ!$C:$CI,AA$1,0)&"","") ->  | AB50: =IFERROR(VLOOKUP($C50,全データ!$C:$CI,AB$1,0)&"","") ->  | AC50: =IFERROR(VLOOKUP($C50,全データ!$C:$CI,AC$1,0)&"","") ->  | AD50: =IFERROR(VLOOKUP($C50,全データ!$C:$CI,AD$1,0)&"","") ->  | AE50: =IFERROR(VLOOKUP($C50,全データ!$C:$CI,AE$1,0)&"","") -> ○ | AF50: =IFERROR(VLOOKUP($C50,全データ!$C:$CI,AF$1,0)&"","") ->  | AG50: =IFERROR(VLOOKUP($C50,全データ!$C:$CI,AG$1,0)&"","") ->  | AH50: =IFERROR(VLOOKUP($C50,全データ!$C:$CI,AH$1,0)&"","") -> ○ | AI50: =IFERROR(VLOOKUP($C50,全データ!$C:$CI,AI$1,0)&"","") ->  | AJ50: =IFERROR(VLOOKUP($C50,全データ!$C:$CI,AJ$1,0)&"","") ->  | AK50: =IFERROR(VLOOKUP($C50,全データ!$C:$CI,AK$1,0)&"","") ->  | AL50: =IFERROR(VLOOKUP($C50,全データ!$C:$CI,AL$1,0)&"","") ->  | AM50: =IFERROR(VLOOKUP($C50,全データ!$C:$CI,AM$1,0)&"","") ->  | AN50: =IFERROR(VLOOKUP($C50,全データ!$C:$CI,AN$1,0)&"","") ->  | AO50: =IFERROR(VLOOKUP($C50,全データ!$C:$CI,AO$1,0)&"","") ->  | AP50: =IFERROR(VLOOKUP($C50,全データ!$C:$CI,AP$1,0)&"","") ->  | AQ50: =IFERROR(VLOOKUP($C50,全データ!$C:$CI,AQ$1,0)&"","") ->  | AR50: =IFERROR(VLOOKUP($C50,全データ!$C:$CI,AR$1,0)&"","") ->  | AS50: =IFERROR(VLOOKUP($C50,全データ!$C:$CI,AS$1,0)&"","") ->  | AT50: =IFERROR(VLOOKUP($C50,全データ!$C:$CI,AT$1,0)&"","") ->  | AU50: =IFERROR(VLOOKUP($C50,全データ!$C:$CI,AU$1,0)&"","") -> ○ | AV50: =IFERROR(VLOOKUP($C50,全データ!$C:$CI,AV$1,0)&"","") ->  | AW50: =IFERROR(VLOOKUP($C50,全データ!$C:$CI,AW$1,0)&"","") -> ○ | AX50: =COUNTIF($Z50:$AG50,"○") -> 1 | AY50: =COUNTIF($AH50:$AK50,"○") -> 1 | AZ50: =COUNTIF($AL50:$AS50,"○") -> 0 | BA50: =COUNTIF(AT50:AW50,"○")+COUNTIF(AT50:AW50,"◎") -> 2 | BB50: =SUM(AX50:BA50) -> 4 | BC50: =VLOOKUP($C50,点数集計!$C:$CL,ようこそ!$G$19,0) -> 
A51: =A50+1 -> 47 | B51: JR常磐線 | C51: 北千住 | D51: =IFERROR(VLOOKUP($C51,全データ!$C:$CI,D$1,0)&"","") -> 東京都 | E51: =IFERROR(VLOOKUP($C51,全データ!$C:$CI,E$1,0)&"","") -> 足立区 | F51: =VLOOKUP($C51,全データ!$C:$CI,F$1,0) -> 23.66666667 | G51: =VLOOKUP($C51,全データ!$C:$CI,G$1,0) -> 34.66666667 | H51: =(VLOOKUP($C51,全データ!$C:$CI,F$1,0)+VLOOKUP($C51,全データ!$C:$CI,G$1,0))/2 -> 29.16666667 | I51: =VLOOKUP($C51,全データ!$C:$CI,I$1,0) -> 154 | J51: =VLOOKUP($C51,全データ!$C:$CI,J$1,0) -> △ | K51: =VLOOKUP($C51,全データ!$C:$CI,K$1,0) -> 7.76 | L51: =VLOOKUP($C51,全データ!$C:$CI,L$1,0) -> 15.58 | M51: =(VLOOKUP($C51,全データ!$C:$CI,K$1,0)+VLOOKUP($C51,全データ!$C:$CI,L$1,0))/2 -> 11.67 | N51: =VLOOKUP($C51,全データ!$C:$CI,N$1,0) -> 45.37312775 | O51: =VLOOKUP($C51,全データ!$C:$CI,O$1,0) -> 12584.4507 | P51: =VLOOKUP($C51,全データ!$C:$CI,P$1,0) -> 0.4136338159 | Q51: =VLOOKUP($C51,全データ!$C:$CI,Q$1,0) -> -0.09125800974 | R51: =VLOOKUP($C51,全データ!$C:$CI,R$1,0) -> 334.7070992 | S51: =VLOOKUP($C51,全データ!$C:$CI,S$1,0) -> 0.007823071163 | T51: =VLOOKUP($C51,全データ!$C:$CI,T$1,0) -> 2.38761151 | U51: =VLOOKUP($C51,全データ!$C:$CI,U$1,0) -> 64.53258513 | V51: =VLOOKUP($C51,全データ!$C:$CI,V$1,0) -> 0.0267363478 | W51: =VLOOKUP($C51,全データ!$C:$CI,W$1,0) -> -0.01946662843 | X51: =VLOOKUP($C51,全データ!$C:$CI,X$1,0) -> 千住新橋 | Y51: =VLOOKUP($C51,全データ!$C:$CI,Y$1,0) -> ○ | Z51: =IFERROR(VLOOKUP($C51,全データ!$C:$CI,Z$1,0)&"","") ->  | AA51: =IFERROR(VLOOKUP($C51,全データ!$C:$CI,AA$1,0)&"","") ->  | AB51: =IFERROR(VLOOKUP($C51,全データ!$C:$CI,AB$1,0)&"","") ->  | AC51: =IFERROR(VLOOKUP($C51,全データ!$C:$CI,AC$1,0)&"","") ->  | AD51: =IFERROR(VLOOKUP($C51,全データ!$C:$CI,AD$1,0)&"","") ->  | AE51: =IFERROR(VLOOKUP($C51,全データ!$C:$CI,AE$1,0)&"","") ->  | AF51: =IFERROR(VLOOKUP($C51,全データ!$C:$CI,AF$1,0)&"","") ->  | AG51: =IFERROR(VLOOKUP($C51,全データ!$C:$CI,AG$1,0)&"","") ->  | AH51: =IFERROR(VLOOKUP($C51,全データ!$C:$CI,AH$1,0)&"","") -> ○ | AI51: =IFERROR(VLOOKUP($C51,全データ!$C:$CI,AI$1,0)&"","") ->  | AJ51: =IFERROR(VLOOKUP($C51,全データ!$C:$CI,AJ$1,0)&"","") ->  | AK51: =IFERROR(VLOOKUP($C51,全データ!$C:$CI,AK$1,0)&"","") ->  | AL51: =IFERROR(VLOOKUP($C51,全データ!$C:$CI,AL$1,0)&"","") ->  | AM51: =IFERROR(VLOOKUP($C51,全データ!$C:$CI,AM$1,0)&"","") ->  | AN51: =IFERROR(VLOOKUP($C51,全データ!$C:$CI,AN$1,0)&"","") ->  | AO51: =IFERROR(VLOOKUP($C51,全データ!$C:$CI,AO$1,0)&"","") ->  | AP51: =IFERROR(VLOOKUP($C51,全データ!$C:$CI,AP$1,0)&"","") ->  | AQ51: =IFERROR(VLOOKUP($C51,全データ!$C:$CI,AQ$1,0)&"","") ->  | AR51: =IFERROR(VLOOKUP($C51,全データ!$C:$CI,AR$1,0)&"","") ->  | AS51: =IFERROR(VLOOKUP($C51,全データ!$C:$CI,AS$1,0)&"","") ->  | AT51: =IFERROR(VLOOKUP($C51,全データ!$C:$CI,AT$1,0)&"","") ->  | AU51: =IFERROR(VLOOKUP($C51,全データ!$C:$CI,AU$1,0)&"","") ->  | AV51: =IFERROR(VLOOKUP($C51,全データ!$C:$CI,AV$1,0)&"","") ->  | AW51: =IFERROR(VLOOKUP($C51,全データ!$C:$CI,AW$1,0)&"","") -> ◎ | AX51: =COUNTIF($Z51:$AG51,"○") -> 0 | AY51: =COUNTIF($AH51:$AK51,"○") -> 1 | AZ51: =COUNTIF($AL51:$AS51,"○") -> 0 | BA51: =COUNTIF(AT51:AW51,"○")+COUNTIF(AT51:AW51,"◎") -> 1 | BB51: =SUM(AX51:BA51) -> 2 | BC51: =VLOOKUP($C51,点数集計!$C:$CL,ようこそ!$G$19,0) -> 
A52: =A51+1 -> 48 | B52: JR常磐線 | C52: 金町 | D52: =IFERROR(VLOOKUP($C52,全データ!$C:$CI,D$1,0)&"","") -> 東京都 | E52: =IFERROR(VLOOKUP($C52,全データ!$C:$CI,E$1,0)&"","") -> 葛飾区 | F52: =VLOOKUP($C52,全データ!$C:$CI,F$1,0) -> 28.33333333 | G52: =VLOOKUP($C52,全データ!$C:$CI,G$1,0) -> 45 | H52: =(VLOOKUP($C52,全データ!$C:$CI,F$1,0)+VLOOKUP($C52,全データ!$C:$CI,G$1,0))/2 -> 36.66666667 | I52: =VLOOKUP($C52,全データ!$C:$CI,I$1,0) -> 152 | J52: =VLOOKUP($C52,全データ!$C:$CI,J$1,0) -> △ | K52: =VLOOKUP($C52,全データ!$C:$CI,K$1,0) -> 6.87 | L52: =VLOOKUP($C52,全データ!$C:$CI,L$1,0) -> 10 | M52: =(VLOOKUP($C52,全データ!$C:$CI,K$1,0)+VLOOKUP($C52,全データ!$C:$CI,L$1,0))/2 -> 8.435 | N52: =VLOOKUP($C52,全データ!$C:$CI,N$1,0) -> 45.53236924 | O52: =VLOOKUP($C52,全データ!$C:$CI,O$1,0) -> 12727.38506 | P52: =VLOOKUP($C52,全データ!$C:$CI,P$1,0) -> 0.3935363296 | Q52: =VLOOKUP($C52,全データ!$C:$CI,Q$1,0) -> -0.1593495788 | R52: =VLOOKUP($C52,全データ!$C:$CI,R$1,0) -> 338.4600817 | S52: =VLOOKUP($C52,全データ!$C:$CI,S$1,0) -> 0.009037560262 | T52: =VLOOKUP($C52,全データ!$C:$CI,T$1,0) -> 2.844897305 | U52: =VLOOKUP($C52,全データ!$C:$CI,U$1,0) -> 22.57056028 | V52: =VLOOKUP($C52,全データ!$C:$CI,V$1,0) -> 0.02808280828 | W52: =VLOOKUP($C52,全データ!$C:$CI,W$1,0) -> 0.000738839457 | X52: =VLOOKUP($C52,全データ!$C:$CI,X$1,0) -> - | Y52: =VLOOKUP($C52,全データ!$C:$CI,Y$1,0) -> ○ | Z52: =IFERROR(VLOOKUP($C52,全データ!$C:$CI,Z$1,0)&"","") ->  | AA52: =IFERROR(VLOOKUP($C52,全データ!$C:$CI,AA$1,0)&"","") ->  | AB52: =IFERROR(VLOOKUP($C52,全データ!$C:$CI,AB$1,0)&"","") ->  | AC52: =IFERROR(VLOOKUP($C52,全データ!$C:$CI,AC$1,0)&"","") ->  | AD52: =IFERROR(VLOOKUP($C52,全データ!$C:$CI,AD$1,0)&"","") ->  | AE52: =IFERROR(VLOOKUP($C52,全データ!$C:$CI,AE$1,0)&"","") ->  | AF52: =IFERROR(VLOOKUP($C52,全データ!$C:$CI,AF$1,0)&"","") ->  | AG52: =IFERROR(VLOOKUP($C52,全データ!$C:$CI,AG$1,0)&"","") ->  | AH52: =IFERROR(VLOOKUP($C52,全データ!$C:$CI,AH$1,0)&"","") -> ○ | AI52: =IFERROR(VLOOKUP($C52,全データ!$C:$CI,AI$1,0)&"","") ->  | AJ52: =IFERROR(VLOOKUP($C52,全データ!$C:$CI,AJ$1,0)&"","") -> ○ | AK52: =IFERROR(VLOOKUP($C52,全データ!$C:$CI,AK$1,0)&"","") ->  | AL52: =IFERROR(VLOOKUP($C52,全データ!$C:$CI,AL$1,0)&"","") ->  | AM52: =IFERROR(VLOOKUP($C52,全データ!$C:$CI,AM$1,0)&"","") ->  | AN52: =IFERROR(VLOOKUP($C52,全データ!$C:$CI,AN$1,0)&"","") ->  | AO52: =IFERROR(VLOOKUP($C52,全データ!$C:$CI,AO$1,0)&"","") ->  | AP52: =IFERROR(VLOOKUP($C52,全データ!$C:$CI,AP$1,0)&"","") ->  | AQ52: =IFERROR(VLOOKUP($C52,全データ!$C:$CI,AQ$1,0)&"","") ->  | AR52: =IFERROR(VLOOKUP($C52,全データ!$C:$CI,AR$1,0)&"","") ->  | AS52: =IFERROR(VLOOKUP($C52,全データ!$C:$CI,AS$1,0)&"","") ->  | AT52: =IFERROR(VLOOKUP($C52,全データ!$C:$CI,AT$1,0)&"","") ->  | AU52: =IFERROR(VLOOKUP($C52,全データ!$C:$CI,AU$1,0)&"","") ->  | AV52: =IFERROR(VLOOKUP($C52,全データ!$C:$CI,AV$1,0)&"","") ->  | AW52: =IFERROR(VLOOKUP($C52,全データ!$C:$CI,AW$1,0)&"","") ->  | AX52: =COUNTIF($Z52:$AG52,"○") -> 0 | AY52: =COUNTIF($AH52:$AK52,"○") -> 2 | AZ52: =COUNTIF($AL52:$AS52,"○") -> 0 | BA52: =COUNTIF(AT52:AW52,"○")+COUNTIF(AT52:AW52,"◎") -> 0 | BB52: =SUM(AX52:BA52) -> 2 | BC52: =VLOOKUP($C52,点数集計!$C:$CL,ようこそ!$G$19,0) -> 
A53: =A52+1 -> 49 | B53: JR常磐線 | C53: 新松戸 | D53: =IFERROR(VLOOKUP($C53,全データ!$C:$CI,D$1,0)&"","") -> 千葉県 | E53: =IFERROR(VLOOKUP($C53,全データ!$C:$CI,E$1,0)&"","") -> 松戸市 | F53: =VLOOKUP($C53,全データ!$C:$CI,F$1,0) -> 41.33333333 | G53: =VLOOKUP($C53,全データ!$C:$CI,G$1,0) -> 56.33333333 | H53: =(VLOOKUP($C53,全データ!$C:$CI,F$1,0)+VLOOKUP($C53,全データ!$C:$CI,G$1,0))/2 -> 48.83333333 | I53: =VLOOKUP($C53,全データ!$C:$CI,I$1,0) -> 152 | J53: =VLOOKUP($C53,全データ!$C:$CI,J$1,0) -> × | K53: =VLOOKUP($C53,全データ!$C:$CI,K$1,0) -> 5.02 | L53: =VLOOKUP($C53,全データ!$C:$CI,L$1,0) -> 8.11 | M53: =(VLOOKUP($C53,全データ!$C:$CI,K$1,0)+VLOOKUP($C53,全データ!$C:$CI,L$1,0))/2 -> 6.565 | N53: =VLOOKUP($C53,全データ!$C:$CI,N$1,0) -> 46.04313059 | O53: =VLOOKUP($C53,全データ!$C:$CI,O$1,0) -> 9741.755709 | P53: =VLOOKUP($C53,全データ!$C:$CI,P$1,0) -> 0.3718384559 | Q53: =VLOOKUP($C53,全データ!$C:$CI,Q$1,0) -> -0.1796248035 | R53: =VLOOKUP($C53,全データ!$C:$CI,R$1,0) -> 347.4131944 | S53: =VLOOKUP($C53,全データ!$C:$CI,S$1,0) -> 0.008599846206 | T53: =VLOOKUP($C53,全データ!$C:$CI,T$1,0) -> 0.3643604699 | U53: =VLOOKUP($C53,全データ!$C:$CI,U$1,0) -> 26.53732147 | V53: =VLOOKUP($C53,全データ!$C:$CI,V$1,0) -> 0.02367608372 | W53: =VLOOKUP($C53,全データ!$C:$CI,W$1,0) -> -0.002016690852 | X53: =VLOOKUP($C53,全データ!$C:$CI,X$1,0) -> - | Y53: =VLOOKUP($C53,全データ!$C:$CI,Y$1,0) -> ◎ | Z53: =IFERROR(VLOOKUP($C53,全データ!$C:$CI,Z$1,0)&"","") ->  | AA53: =IFERROR(VLOOKUP($C53,全データ!$C:$CI,AA$1,0)&"","") ->  | AB53: =IFERROR(VLOOKUP($C53,全データ!$C:$CI,AB$1,0)&"","") ->  | AC53: =IFERROR(VLOOKUP($C53,全データ!$C:$CI,AC$1,0)&"","") ->  | AD53: =IFERROR(VLOOKUP($C53,全データ!$C:$CI,AD$1,0)&"","") ->  | AE53: =IFERROR(VLOOKUP($C53,全データ!$C:$CI,AE$1,0)&"","") ->  | AF53: =IFERROR(VLOOKUP($C53,全データ!$C:$CI,AF$1,0)&"","") ->  | AG53: =IFERROR(VLOOKUP($C53,全データ!$C:$CI,AG$1,0)&"","") ->  | AH53: =IFERROR(VLOOKUP($C53,全データ!$C:$CI,AH$1,0)&"","") ->  | AI53: =IFERROR(VLOOKUP($C53,全データ!$C:$CI,AI$1,0)&"","") -> ○ | AJ53: =IFERROR(VLOOKUP($C53,全データ!$C:$CI,AJ$1,0)&"","") ->  | AK53: =IFERROR(VLOOKUP($C53,全データ!$C:$CI,AK$1,0)&"","") ->  | AL53: =IFERROR(VLOOKUP($C53,全データ!$C:$CI,AL$1,0)&"","") ->  | AM53: =IFERROR(VLOOKUP($C53,全データ!$C:$CI,AM$1,0)&"","") ->  | AN53: =IFERROR(VLOOKUP($C53,全データ!$C:$CI,AN$1,0)&"","") ->  | AO53: =IFERROR(VLOOKUP($C53,全データ!$C:$CI,AO$1,0)&"","") ->  | AP53: =IFERROR(VLOOKUP($C53,全データ!$C:$CI,AP$1,0)&"","") ->  | AQ53: =IFERROR(VLOOKUP($C53,全データ!$C:$CI,AQ$1,0)&"","") ->  | AR53: =IFERROR(VLOOKUP($C53,全データ!$C:$CI,AR$1,0)&"","") ->  | AS53: =IFERROR(VLOOKUP($C53,全データ!$C:$CI,AS$1,0)&"","") ->  | AT53: =IFERROR(VLOOKUP($C53,全データ!$C:$CI,AT$1,0)&"","") ->  | AU53: =IFERROR(VLOOKUP($C53,全データ!$C:$CI,AU$1,0)&"","") ->  | AV53: =IFERROR(VLOOKUP($C53,全データ!$C:$CI,AV$1,0)&"","") ->  | AW53: =IFERROR(VLOOKUP($C53,全データ!$C:$CI,AW$1,0)&"","") ->  | AX53: =COUNTIF($Z53:$AG53,"○") -> 0 | AY53: =COUNTIF($AH53:$AK53,"○") -> 1 | AZ53: =COUNTIF($AL53:$AS53,"○") -> 0 | BA53: =COUNTIF(AT53:AW53,"○")+COUNTIF(AT53:AW53,"◎") -> 0 | BB53: =SUM(AX53:BA53) -> 1 | BC53: =VLOOKUP($C53,点数集計!$C:$CL,ようこそ!$G$19,0) -> 
A54: =A53+1 -> 50 | B54: JR常磐線 | C54: 馬橋 | D54: =IFERROR(VLOOKUP($C54,全データ!$C:$CI,D$1,0)&"","") -> 千葉県 | E54: =IFERROR(VLOOKUP($C54,全データ!$C:$CI,E$1,0)&"","") -> 松戸市 | F54: =VLOOKUP($C54,全データ!$C:$CI,F$1,0) -> 39.33333333 | G54: =VLOOKUP($C54,全データ!$C:$CI,G$1,0) -> 54 | H54: =(VLOOKUP($C54,全データ!$C:$CI,F$1,0)+VLOOKUP($C54,全データ!$C:$CI,G$1,0))/2 -> 46.66666667 | I54: =VLOOKUP($C54,全データ!$C:$CI,I$1,0) -> 152 | J54: =VLOOKUP($C54,全データ!$C:$CI,J$1,0) -> × | K54: =VLOOKUP($C54,全データ!$C:$CI,K$1,0) -> 5.94 | L54: =VLOOKUP($C54,全データ!$C:$CI,L$1,0) -> 8.02 | M54: =(VLOOKUP($C54,全データ!$C:$CI,K$1,0)+VLOOKUP($C54,全データ!$C:$CI,L$1,0))/2 -> 6.98 | N54: =VLOOKUP($C54,全データ!$C:$CI,N$1,0) -> 46.04313059 | O54: =VLOOKUP($C54,全データ!$C:$CI,O$1,0) -> 9741.755709 | P54: =VLOOKUP($C54,全データ!$C:$CI,P$1,0) -> 0.3718384559 | Q54: =VLOOKUP($C54,全データ!$C:$CI,Q$1,0) -> -0.1796248035 | R54: =VLOOKUP($C54,全データ!$C:$CI,R$1,0) -> 347.4131944 | S54: =VLOOKUP($C54,全データ!$C:$CI,S$1,0) -> 0.008599846206 | T54: =VLOOKUP($C54,全データ!$C:$CI,T$1,0) -> 0.3643604699 | U54: =VLOOKUP($C54,全データ!$C:$CI,U$1,0) -> 26.53732147 | V54: =VLOOKUP($C54,全データ!$C:$CI,V$1,0) -> 0.02367608372 | W54: =VLOOKUP($C54,全データ!$C:$CI,W$1,0) -> -0.002016690852 | X54: =VLOOKUP($C54,全データ!$C:$CI,X$1,0) -> - | Y54: =VLOOKUP($C54,全データ!$C:$CI,Y$1,0) -> ○ | Z54: =IFERROR(VLOOKUP($C54,全データ!$C:$CI,Z$1,0)&"","") ->  | AA54: =IFERROR(VLOOKUP($C54,全データ!$C:$CI,AA$1,0)&"","") ->  | AB54: =IFERROR(VLOOKUP($C54,全データ!$C:$CI,AB$1,0)&"","") ->  | AC54: =IFERROR(VLOOKUP($C54,全データ!$C:$CI,AC$1,0)&"","") ->  | AD54: =IFERROR(VLOOKUP($C54,全データ!$C:$CI,AD$1,0)&"","") ->  | AE54: =IFERROR(VLOOKUP($C54,全データ!$C:$CI,AE$1,0)&"","") -> ○ | AF54: =IFERROR(VLOOKUP($C54,全データ!$C:$CI,AF$1,0)&"","") ->  | AG54: =IFERROR(VLOOKUP($C54,全データ!$C:$CI,AG$1,0)&"","") ->  | AH54: =IFERROR(VLOOKUP($C54,全データ!$C:$CI,AH$1,0)&"","") ->  | AI54: =IFERROR(VLOOKUP($C54,全データ!$C:$CI,AI$1,0)&"","") ->  | AJ54: =IFERROR(VLOOKUP($C54,全データ!$C:$CI,AJ$1,0)&"","") ->  | AK54: =IFERROR(VLOOKUP($C54,全データ!$C:$CI,AK$1,0)&"","") ->  | AL54: =IFERROR(VLOOKUP($C54,全データ!$C:$CI,AL$1,0)&"","") ->  | AM54: =IFERROR(VLOOKUP($C54,全データ!$C:$CI,AM$1,0)&"","") ->  | AN54: =IFERROR(VLOOKUP($C54,全データ!$C:$CI,AN$1,0)&"","") ->  | AO54: =IFERROR(VLOOKUP($C54,全データ!$C:$CI,AO$1,0)&"","") ->  | AP54: =IFERROR(VLOOKUP($C54,全データ!$C:$CI,AP$1,0)&"","") ->  | AQ54: =IFERROR(VLOOKUP($C54,全データ!$C:$CI,AQ$1,0)&"","") ->  | AR54: =IFERROR(VLOOKUP($C54,全データ!$C:$CI,AR$1,0)&"","") ->  | AS54: =IFERROR(VLOOKUP($C54,全データ!$C:$CI,AS$1,0)&"","") ->  | AT54: =IFERROR(VLOOKUP($C54,全データ!$C:$CI,AT$1,0)&"","") ->  | AU54: =IFERROR(VLOOKUP($C54,全データ!$C:$CI,AU$1,0)&"","") ->  | AV54: =IFERROR(VLOOKUP($C54,全データ!$C:$CI,AV$1,0)&"","") ->  | AW54: =IFERROR(VLOOKUP($C54,全データ!$C:$CI,AW$1,0)&"","") ->  | AX54: =COUNTIF($Z54:$AG54,"○") -> 1 | AY54: =COUNTIF($AH54:$AK54,"○") -> 0 | AZ54: =COUNTIF($AL54:$AS54,"○") -> 0 | BA54: =COUNTIF(AT54:AW54,"○")+COUNTIF(AT54:AW54,"◎") -> 0 | BB54: =SUM(AX54:BA54) -> 1 | BC54: =VLOOKUP($C54,点数集計!$C:$CL,ようこそ!$G$19,0) -> 
A55: =A54+1 -> 51 | B55: JR常磐線 | C55: 北小金 | D55: =IFERROR(VLOOKUP($C55,全データ!$C:$CI,D$1,0)&"","") -> 千葉県 | E55: =IFERROR(VLOOKUP($C55,全データ!$C:$CI,E$1,0)&"","") -> 松戸市 | F55: =VLOOKUP($C55,全データ!$C:$CI,F$1,0) -> 44.33333333 | G55: =VLOOKUP($C55,全データ!$C:$CI,G$1,0) -> 58.33333333 | H55: =(VLOOKUP($C55,全データ!$C:$CI,F$1,0)+VLOOKUP($C55,全データ!$C:$CI,G$1,0))/2 -> 51.33333333 | I55: =VLOOKUP($C55,全データ!$C:$CI,I$1,0) -> 152 | J55: =VLOOKUP($C55,全データ!$C:$CI,J$1,0) -> × | K55: =VLOOKUP($C55,全データ!$C:$CI,K$1,0) -> 6.04 | L55: =VLOOKUP($C55,全データ!$C:$CI,L$1,0) -> 8.23 | M55: =(VLOOKUP($C55,全データ!$C:$CI,K$1,0)+VLOOKUP($C55,全データ!$C:$CI,L$1,0))/2 -> 7.135 | N55: =VLOOKUP($C55,全データ!$C:$CI,N$1,0) -> 46.04313059 | O55: =VLOOKUP($C55,全データ!$C:$CI,O$1,0) -> 9741.755709 | P55: =VLOOKUP($C55,全データ!$C:$CI,P$1,0) -> 0.3718384559 | Q55: =VLOOKUP($C55,全データ!$C:$CI,Q$1,0) -> -0.1796248035 | R55: =VLOOKUP($C55,全データ!$C:$CI,R$1,0) -> 347.4131944 | S55: =VLOOKUP($C55,全データ!$C:$CI,S$1,0) -> 0.008599846206 | T55: =VLOOKUP($C55,全データ!$C:$CI,T$1,0) -> 0.3643604699 | U55: =VLOOKUP($C55,全データ!$C:$CI,U$1,0) -> 26.53732147 | V55: =VLOOKUP($C55,全データ!$C:$CI,V$1,0) -> 0.02367608372 | W55: =VLOOKUP($C55,全データ!$C:$CI,W$1,0) -> -0.002016690852 | X55: =VLOOKUP($C55,全データ!$C:$CI,X$1,0) -> - | Y55: =VLOOKUP($C55,全データ!$C:$CI,Y$1,0) -> ○ | Z55: =IFERROR(VLOOKUP($C55,全データ!$C:$CI,Z$1,0)&"","") ->  | AA55: =IFERROR(VLOOKUP($C55,全データ!$C:$CI,AA$1,0)&"","") ->  | AB55: =IFERROR(VLOOKUP($C55,全データ!$C:$CI,AB$1,0)&"","") ->  | AC55: =IFERROR(VLOOKUP($C55,全データ!$C:$CI,AC$1,0)&"","") ->  | AD55: =IFERROR(VLOOKUP($C55,全データ!$C:$CI,AD$1,0)&"","") ->  | AE55: =IFERROR(VLOOKUP($C55,全データ!$C:$CI,AE$1,0)&"","") ->  | AF55: =IFERROR(VLOOKUP($C55,全データ!$C:$CI,AF$1,0)&"","") ->  | AG55: =IFERROR(VLOOKUP($C55,全データ!$C:$CI,AG$1,0)&"","") ->  | AH55: =IFERROR(VLOOKUP($C55,全データ!$C:$CI,AH$1,0)&"","") ->  | AI55: =IFERROR(VLOOKUP($C55,全データ!$C:$CI,AI$1,0)&"","") -> ○ | AJ55: =IFERROR(VLOOKUP($C55,全データ!$C:$CI,AJ$1,0)&"","") ->  | AK55: =IFERROR(VLOOKUP($C55,全データ!$C:$CI,AK$1,0)&"","") ->  | AL55: =IFERROR(VLOOKUP($C55,全データ!$C:$CI,AL$1,0)&"","") ->  | AM55: =IFERROR(VLOOKUP($C55,全データ!$C:$CI,AM$1,0)&"","") ->  | AN55: =IFERROR(VLOOKUP($C55,全データ!$C:$CI,AN$1,0)&"","") ->  | AO55: =IFERROR(VLOOKUP($C55,全データ!$C:$CI,AO$1,0)&"","") ->  | AP55: =IFERROR(VLOOKUP($C55,全データ!$C:$CI,AP$1,0)&"","") ->  | AQ55: =IFERROR(VLOOKUP($C55,全データ!$C:$CI,AQ$1,0)&"","") ->  | AR55: =IFERROR(VLOOKUP($C55,全データ!$C:$CI,AR$1,0)&"","") ->  | AS55: =IFERROR(VLOOKUP($C55,全データ!$C:$CI,AS$1,0)&"","") ->  | AT55: =IFERROR(VLOOKUP($C55,全データ!$C:$CI,AT$1,0)&"","") ->  | AU55: =IFERROR(VLOOKUP($C55,全データ!$C:$CI,AU$1,0)&"","") ->  | AV55: =IFERROR(VLOOKUP($C55,全データ!$C:$CI,AV$1,0)&"","") ->  | AW55: =IFERROR(VLOOKUP($C55,全データ!$C:$CI,AW$1,0)&"","") ->  | AX55: =COUNTIF($Z55:$AG55,"○") -> 0 | AY55: =COUNTIF($AH55:$AK55,"○") -> 1 | AZ55: =COUNTIF($AL55:$AS55,"○") -> 0 | BA55: =COUNTIF(AT55:AW55,"○")+COUNTIF(AT55:AW55,"◎") -> 0 | BB55: =SUM(AX55:BA55) -> 1 | BC55: =VLOOKUP($C55,点数集計!$C:$CL,ようこそ!$G$19,0) -> 
A56: =A55+1 -> 52 | B56: JR常磐線 | C56: 三河島 | D56: =IFERROR(VLOOKUP($C56,全データ!$C:$CI,D$1,0)&"","") -> 東京都 | E56: =IFERROR(VLOOKUP($C56,全データ!$C:$CI,E$1,0)&"","") -> 荒川区 | F56: =VLOOKUP($C56,全データ!$C:$CI,F$1,0) -> 18 | G56: =VLOOKUP($C56,全データ!$C:$CI,G$1,0) -> 30.33333333 | H56: =(VLOOKUP($C56,全データ!$C:$CI,F$1,0)+VLOOKUP($C56,全データ!$C:$CI,G$1,0))/2 -> 24.16666667 | I56: =VLOOKUP($C56,全データ!$C:$CI,I$1,0) -> 154 | J56: =VLOOKUP($C56,全データ!$C:$CI,J$1,0) -> × | K56: =VLOOKUP($C56,全データ!$C:$CI,K$1,0) -> 7.75 | L56: =VLOOKUP($C56,全データ!$C:$CI,L$1,0) -> 16.92 | M56: =(VLOOKUP($C56,全データ!$C:$CI,K$1,0)+VLOOKUP($C56,全データ!$C:$CI,L$1,0))/2 -> 12.335 | N56: =VLOOKUP($C56,全データ!$C:$CI,N$1,0) -> 43.87846837 | O56: =VLOOKUP($C56,全データ!$C:$CI,O$1,0) -> 20892.12598 | P56: =VLOOKUP($C56,全データ!$C:$CI,P$1,0) -> 0.4445713839 | Q56: =VLOOKUP($C56,全データ!$C:$CI,Q$1,0) -> -0.08602495006 | R56: =VLOOKUP($C56,全データ!$C:$CI,R$1,0) -> 355.2217832 | S56: =VLOOKUP($C56,全データ!$C:$CI,S$1,0) -> 0.007922517062 | T56: =VLOOKUP($C56,全データ!$C:$CI,T$1,0) -> 3.865375193 | U56: =VLOOKUP($C56,全データ!$C:$CI,U$1,0) -> 10.35538443 | V56: =VLOOKUP($C56,全データ!$C:$CI,V$1,0) -> 0.02134529148 | W56: =VLOOKUP($C56,全データ!$C:$CI,W$1,0) -> 0.04411301747 | X56: =VLOOKUP($C56,全データ!$C:$CI,X$1,0) -> - | Y56: =VLOOKUP($C56,全データ!$C:$CI,Y$1,0) -> - | Z56: =IFERROR(VLOOKUP($C56,全データ!$C:$CI,Z$1,0)&"","") ->  | AA56: =IFERROR(VLOOKUP($C56,全データ!$C:$CI,AA$1,0)&"","") ->  | AB56: =IFERROR(VLOOKUP($C56,全データ!$C:$CI,AB$1,0)&"","") ->  | AC56: =IFERROR(VLOOKUP($C56,全データ!$C:$CI,AC$1,0)&"","") ->  | AD56: =IFERROR(VLOOKUP($C56,全データ!$C:$CI,AD$1,0)&"","") ->  | AE56: =IFERROR(VLOOKUP($C56,全データ!$C:$CI,AE$1,0)&"","") -> ○ | AF56: =IFERROR(VLOOKUP($C56,全データ!$C:$CI,AF$1,0)&"","") ->  | AG56: =IFERROR(VLOOKUP($C56,全データ!$C:$CI,AG$1,0)&"","") ->  | AH56: =IFERROR(VLOOKUP($C56,全データ!$C:$CI,AH$1,0)&"","") ->  | AI56: =IFERROR(VLOOKUP($C56,全データ!$C:$CI,AI$1,0)&"","") ->  | AJ56: =IFERROR(VLOOKUP($C56,全データ!$C:$CI,AJ$1,0)&"","") ->  | AK56: =IFERROR(VLOOKUP($C56,全データ!$C:$CI,AK$1,0)&"","") ->  | AL56: =IFERROR(VLOOKUP($C56,全データ!$C:$CI,AL$1,0)&"","") ->  | AM56: =IFERROR(VLOOKUP($C56,全データ!$C:$CI,AM$1,0)&"","") ->  | AN56: =IFERROR(VLOOKUP($C56,全データ!$C:$CI,AN$1,0)&"","") ->  | AO56: =IFERROR(VLOOKUP($C56,全データ!$C:$CI,AO$1,0)&"","") ->  | AP56: =IFERROR(VLOOKUP($C56,全データ!$C:$CI,AP$1,0)&"","") ->  | AQ56: =IFERROR(VLOOKUP($C56,全データ!$C:$CI,AQ$1,0)&"","") ->  | AR56: =IFERROR(VLOOKUP($C56,全データ!$C:$CI,AR$1,0)&"","") ->  | AS56: =IFERROR(VLOOKUP($C56,全データ!$C:$CI,AS$1,0)&"","") ->  | AT56: =IFERROR(VLOOKUP($C56,全データ!$C:$CI,AT$1,0)&"","") ->  | AU56: =IFERROR(VLOOKUP($C56,全データ!$C:$CI,AU$1,0)&"","") ->  | AV56: =IFERROR(VLOOKUP($C56,全データ!$C:$CI,AV$1,0)&"","") ->  | AW56: =IFERROR(VLOOKUP($C56,全データ!$C:$CI,AW$1,0)&"","") ->  | AX56: =COUNTIF($Z56:$AG56,"○") -> 1 | AY56: =COUNTIF($AH56:$AK56,"○") -> 0 | AZ56: =COUNTIF($AL56:$AS56,"○") -> 0 | BA56: =COUNTIF(AT56:AW56,"○")+COUNTIF(AT56:AW56,"◎") -> 0 | BB56: =SUM(AX56:BA56) -> 1 | BC56: =VLOOKUP($C56,点数集計!$C:$CL,ようこそ!$G$19,0) -> 
A57: =A56+1 -> 53 | B57: JR常磐線 | C57: 南千住 | D57: =IFERROR(VLOOKUP($C57,全データ!$C:$CI,D$1,0)&"","") -> 東京都 | E57: =IFERROR(VLOOKUP($C57,全データ!$C:$CI,E$1,0)&"","") -> 荒川区 | F57: =VLOOKUP($C57,全データ!$C:$CI,F$1,0) -> 21.33333333 | G57: =VLOOKUP($C57,全データ!$C:$CI,G$1,0) -> 33.33333333 | H57: =(VLOOKUP($C57,全データ!$C:$CI,F$1,0)+VLOOKUP($C57,全データ!$C:$CI,G$1,0))/2 -> 27.33333333 | I57: =VLOOKUP($C57,全データ!$C:$CI,I$1,0) -> 154 | J57: =VLOOKUP($C57,全データ!$C:$CI,J$1,0) -> × | K57: =VLOOKUP($C57,全データ!$C:$CI,K$1,0) -> 9.08 | L57: =VLOOKUP($C57,全データ!$C:$CI,L$1,0) -> 20.34 | M57: =(VLOOKUP($C57,全データ!$C:$CI,K$1,0)+VLOOKUP($C57,全データ!$C:$CI,L$1,0))/2 -> 14.71 | N57: =VLOOKUP($C57,全データ!$C:$CI,N$1,0) -> 43.87846837 | O57: =VLOOKUP($C57,全データ!$C:$CI,O$1,0) -> 20892.12598 | P57: =VLOOKUP($C57,全データ!$C:$CI,P$1,0) -> 0.4445713839 | Q57: =VLOOKUP($C57,全データ!$C:$CI,Q$1,0) -> -0.08602495006 | R57: =VLOOKUP($C57,全データ!$C:$CI,R$1,0) -> 355.2217832 | S57: =VLOOKUP($C57,全データ!$C:$CI,S$1,0) -> 0.007922517062 | T57: =VLOOKUP($C57,全データ!$C:$CI,T$1,0) -> 3.865375193 | U57: =VLOOKUP($C57,全データ!$C:$CI,U$1,0) -> 10.35538443 | V57: =VLOOKUP($C57,全データ!$C:$CI,V$1,0) -> 0.02134529148 | W57: =VLOOKUP($C57,全データ!$C:$CI,W$1,0) -> 0.04411301747 | X57: =VLOOKUP($C57,全データ!$C:$CI,X$1,0) -> - | Y57: =VLOOKUP($C57,全データ!$C:$CI,Y$1,0) -> ○ | Z57: =IFERROR(VLOOKUP($C57,全データ!$C:$CI,Z$1,0)&"","") ->  | AA57: =IFERROR(VLOOKUP($C57,全データ!$C:$CI,AA$1,0)&"","") ->  | AB57: =IFERROR(VLOOKUP($C57,全データ!$C:$CI,AB$1,0)&"","") ->  | AC57: =IFERROR(VLOOKUP($C57,全データ!$C:$CI,AC$1,0)&"","") ->  | AD57: =IFERROR(VLOOKUP($C57,全データ!$C:$CI,AD$1,0)&"","") ->  | AE57: =IFERROR(VLOOKUP($C57,全データ!$C:$CI,AE$1,0)&"","") ->  | AF57: =IFERROR(VLOOKUP($C57,全データ!$C:$CI,AF$1,0)&"","") ->  | AG57: =IFERROR(VLOOKUP($C57,全データ!$C:$CI,AG$1,0)&"","") ->  | AH57: =IFERROR(VLOOKUP($C57,全データ!$C:$CI,AH$1,0)&"","") ->  | AI57: =IFERROR(VLOOKUP($C57,全データ!$C:$CI,AI$1,0)&"","") ->  | AJ57: =IFERROR(VLOOKUP($C57,全データ!$C:$CI,AJ$1,0)&"","") ->  | AK57: =IFERROR(VLOOKUP($C57,全データ!$C:$CI,AK$1,0)&"","") ->  | AL57: =IFERROR(VLOOKUP($C57,全データ!$C:$CI,AL$1,0)&"","") ->  | AM57: =IFERROR(VLOOKUP($C57,全データ!$C:$CI,AM$1,0)&"","") ->  | AN57: =IFERROR(VLOOKUP($C57,全データ!$C:$CI,AN$1,0)&"","") ->  | AO57: =IFERROR(VLOOKUP($C57,全データ!$C:$CI,AO$1,0)&"","") ->  | AP57: =IFERROR(VLOOKUP($C57,全データ!$C:$CI,AP$1,0)&"","") ->  | AQ57: =IFERROR(VLOOKUP($C57,全データ!$C:$CI,AQ$1,0)&"","") ->  | AR57: =IFERROR(VLOOKUP($C57,全データ!$C:$CI,AR$1,0)&"","") ->  | AS57: =IFERROR(VLOOKUP($C57,全データ!$C:$CI,AS$1,0)&"","") -> ○ | AT57: =IFERROR(VLOOKUP($C57,全データ!$C:$CI,AT$1,0)&"","") ->  | AU57: =IFERROR(VLOOKUP($C57,全データ!$C:$CI,AU$1,0)&"","") ->  | AV57: =IFERROR(VLOOKUP($C57,全データ!$C:$CI,AV$1,0)&"","") ->  | AW57: =IFERROR(VLOOKUP($C57,全データ!$C:$CI,AW$1,0)&"","") ->  | AX57: =COUNTIF($Z57:$AG57,"○") -> 0 | AY57: =COUNTIF($AH57:$AK57,"○") -> 0 | AZ57: =COUNTIF($AL57:$AS57,"○") -> 1 | BA57: =COUNTIF(AT57:AW57,"○")+COUNTIF(AT57:AW57,"◎") -> 0 | BB57: =SUM(AX57:BA57) -> 1 | BC57: =VLOOKUP($C57,点数集計!$C:$CL,ようこそ!$G$19,0) -> 
A58: =A57+1 -> 54 | B58: JR総武線 | C58: 津田沼 | D58: =IFERROR(VLOOKUP($C58,全データ!$C:$CI,D$1,0)&"","") -> 千葉県 | E58: =IFERROR(VLOOKUP($C58,全データ!$C:$CI,E$1,0)&"","") -> 習志野市 | F58: =VLOOKUP($C58,全データ!$C:$CI,F$1,0) -> 34.33333333 | G58: =VLOOKUP($C58,全データ!$C:$CI,G$1,0) -> 51 | H58: =(VLOOKUP($C58,全データ!$C:$CI,F$1,0)+VLOOKUP($C58,全データ!$C:$CI,G$1,0))/2 -> 42.66666667 | I58: =VLOOKUP($C58,全データ!$C:$CI,I$1,0) -> 50 | J58: =VLOOKUP($C58,全データ!$C:$CI,J$1,0) -> ○ | K58: =VLOOKUP($C58,全データ!$C:$CI,K$1,0) -> 6.13 | L58: =VLOOKUP($C58,全データ!$C:$CI,L$1,0) -> 12 | M58: =(VLOOKUP($C58,全データ!$C:$CI,K$1,0)+VLOOKUP($C58,全データ!$C:$CI,L$1,0))/2 -> 9.065 | N58: =VLOOKUP($C58,全データ!$C:$CI,N$1,0) -> 43.40043507 | O58: =VLOOKUP($C58,全データ!$C:$CI,O$1,0) -> 8208.58685 | P58: =VLOOKUP($C58,全データ!$C:$CI,P$1,0) -> 0.3406676993 | Q58: =VLOOKUP($C58,全データ!$C:$CI,Q$1,0) -> -0.08792262476 | R58: =VLOOKUP($C58,全データ!$C:$CI,R$1,0) -> 370.0265119 | S58: =VLOOKUP($C58,全データ!$C:$CI,S$1,0) -> 0.00851475063 | T58: =VLOOKUP($C58,全データ!$C:$CI,T$1,0) -> 2.23031523 | U58: =VLOOKUP($C58,全データ!$C:$CI,U$1,0) -> 3.92224779 | V58: =VLOOKUP($C58,全データ!$C:$CI,V$1,0) -> 0.0715828448 | W58: =VLOOKUP($C58,全データ!$C:$CI,W$1,0) -> 0.02053728803 | X58: =VLOOKUP($C58,全データ!$C:$CI,X$1,0) -> - | Y58: =VLOOKUP($C58,全データ!$C:$CI,Y$1,0) -> ○ | Z58: =IFERROR(VLOOKUP($C58,全データ!$C:$CI,Z$1,0)&"","") ->  | AA58: =IFERROR(VLOOKUP($C58,全データ!$C:$CI,AA$1,0)&"","") ->  | AB58: =IFERROR(VLOOKUP($C58,全データ!$C:$CI,AB$1,0)&"","") ->  | AC58: =IFERROR(VLOOKUP($C58,全データ!$C:$CI,AC$1,0)&"","") ->  | AD58: =IFERROR(VLOOKUP($C58,全データ!$C:$CI,AD$1,0)&"","") ->  | AE58: =IFERROR(VLOOKUP($C58,全データ!$C:$CI,AE$1,0)&"","") ->  | AF58: =IFERROR(VLOOKUP($C58,全データ!$C:$CI,AF$1,0)&"","") ->  | AG58: =IFERROR(VLOOKUP($C58,全データ!$C:$CI,AG$1,0)&"","") ->  | AH58: =IFERROR(VLOOKUP($C58,全データ!$C:$CI,AH$1,0)&"","") -> ○ | AI58: =IFERROR(VLOOKUP($C58,全データ!$C:$CI,AI$1,0)&"","") -> ○ | AJ58: =IFERROR(VLOOKUP($C58,全データ!$C:$CI,AJ$1,0)&"","") ->  | AK58: =IFERROR(VLOOKUP($C58,全データ!$C:$CI,AK$1,0)&"","") ->  | AL58: =IFERROR(VLOOKUP($C58,全データ!$C:$CI,AL$1,0)&"","") ->  | AM58: =IFERROR(VLOOKUP($C58,全データ!$C:$CI,AM$1,0)&"","") ->  | AN58: =IFERROR(VLOOKUP($C58,全データ!$C:$CI,AN$1,0)&"","") ->  | AO58: =IFERROR(VLOOKUP($C58,全データ!$C:$CI,AO$1,0)&"","") ->  | AP58: =IFERROR(VLOOKUP($C58,全データ!$C:$CI,AP$1,0)&"","") ->  | AQ58: =IFERROR(VLOOKUP($C58,全データ!$C:$CI,AQ$1,0)&"","") ->  | AR58: =IFERROR(VLOOKUP($C58,全データ!$C:$CI,AR$1,0)&"","") ->  | AS58: =IFERROR(VLOOKUP($C58,全データ!$C:$CI,AS$1,0)&"","") ->  | AT58: =IFERROR(VLOOKUP($C58,全データ!$C:$CI,AT$1,0)&"","") -> ○ | AU58: =IFERROR(VLOOKUP($C58,全データ!$C:$CI,AU$1,0)&"","") ->  | AV58: =IFERROR(VLOOKUP($C58,全データ!$C:$CI,AV$1,0)&"","") ->  | AW58: =IFERROR(VLOOKUP($C58,全データ!$C:$CI,AW$1,0)&"","") -> ○ | AX58: =COUNTIF($Z58:$AG58,"○") -> 0 | AY58: =COUNTIF($AH58:$AK58,"○") -> 2 | AZ58: =COUNTIF($AL58:$AS58,"○") -> 0 | BA58: =COUNTIF(AT58:AW58,"○")+COUNTIF(AT58:AW58,"◎") -> 2 | BB58: =SUM(AX58:BA58) -> 4 | BC58: =VLOOKUP($C58,点数集計!$C:$CL,ようこそ!$G$19,0) -> 
A59: =A58+1 -> 55 | B59: JR総武線 | C59: 平井 | D59: =IFERROR(VLOOKUP($C59,全データ!$C:$CI,D$1,0)&"","") -> 東京都 | E59: =IFERROR(VLOOKUP($C59,全データ!$C:$CI,E$1,0)&"","") -> 江戸川区 | F59: =VLOOKUP($C59,全データ!$C:$CI,F$1,0) -> 22.66666667 | G59: =VLOOKUP($C59,全データ!$C:$CI,G$1,0) -> 29.66666667 | H59: =(VLOOKUP($C59,全データ!$C:$CI,F$1,0)+VLOOKUP($C59,全データ!$C:$CI,G$1,0))/2 -> 26.16666667 | I59: =VLOOKUP($C59,全データ!$C:$CI,I$1,0) -> 196 | J59: =VLOOKUP($C59,全データ!$C:$CI,J$1,0) -> × | K59: =VLOOKUP($C59,全データ!$C:$CI,K$1,0) -> 7.12 | L59: =VLOOKUP($C59,全データ!$C:$CI,L$1,0) -> 12.14 | M59: =(VLOOKUP($C59,全データ!$C:$CI,K$1,0)+VLOOKUP($C59,全データ!$C:$CI,L$1,0))/2 -> 9.63 | N59: =VLOOKUP($C59,全データ!$C:$CI,N$1,0) -> 42.7927542 | O59: =VLOOKUP($C59,全データ!$C:$CI,O$1,0) -> 13653.26653 | P59: =VLOOKUP($C59,全データ!$C:$CI,P$1,0) -> 0.4061295983 | Q59: =VLOOKUP($C59,全データ!$C:$CI,Q$1,0) -> -0.1758687094 | R59: =VLOOKUP($C59,全データ!$C:$CI,R$1,0) -> 352.7635794 | S59: =VLOOKUP($C59,全データ!$C:$CI,S$1,0) -> 0.008401026574 | T59: =VLOOKUP($C59,全データ!$C:$CI,T$1,0) -> 2.2728938 | U59: =VLOOKUP($C59,全データ!$C:$CI,U$1,0) -> 22.78699292 | V59: =VLOOKUP($C59,全データ!$C:$CI,V$1,0) -> 0.0672550879 | W59: =VLOOKUP($C59,全データ!$C:$CI,W$1,0) -> 0.003433156545 | X59: =VLOOKUP($C59,全データ!$C:$CI,X$1,0) -> 平井大橋 | Y59: =VLOOKUP($C59,全データ!$C:$CI,Y$1,0) -> ○ | Z59: =IFERROR(VLOOKUP($C59,全データ!$C:$CI,Z$1,0)&"","") -> ○ | AA59: =IFERROR(VLOOKUP($C59,全データ!$C:$CI,AA$1,0)&"","") ->  | AB59: =IFERROR(VLOOKUP($C59,全データ!$C:$CI,AB$1,0)&"","") ->  | AC59: =IFERROR(VLOOKUP($C59,全データ!$C:$CI,AC$1,0)&"","") ->  | AD59: =IFERROR(VLOOKUP($C59,全データ!$C:$CI,AD$1,0)&"","") ->  | AE59: =IFERROR(VLOOKUP($C59,全データ!$C:$CI,AE$1,0)&"","") ->  | AF59: =IFERROR(VLOOKUP($C59,全データ!$C:$CI,AF$1,0)&"","") ->  | AG59: =IFERROR(VLOOKUP($C59,全データ!$C:$CI,AG$1,0)&"","") ->  | AH59: =IFERROR(VLOOKUP($C59,全データ!$C:$CI,AH$1,0)&"","") ->  | AI59: =IFERROR(VLOOKUP($C59,全データ!$C:$CI,AI$1,0)&"","") ->  | AJ59: =IFERROR(VLOOKUP($C59,全データ!$C:$CI,AJ$1,0)&"","") -> ○ | AK59: =IFERROR(VLOOKUP($C59,全データ!$C:$CI,AK$1,0)&"","") ->  | AL59: =IFERROR(VLOOKUP($C59,全データ!$C:$CI,AL$1,0)&"","") ->  | AM59: =IFERROR(VLOOKUP($C59,全データ!$C:$CI,AM$1,0)&"","") ->  | AN59: =IFERROR(VLOOKUP($C59,全データ!$C:$CI,AN$1,0)&"","") ->  | AO59: =IFERROR(VLOOKUP($C59,全データ!$C:$CI,AO$1,0)&"","") -> ○ | AP59: =IFERROR(VLOOKUP($C59,全データ!$C:$CI,AP$1,0)&"","") ->  | AQ59: =IFERROR(VLOOKUP($C59,全データ!$C:$CI,AQ$1,0)&"","") ->  | AR59: =IFERROR(VLOOKUP($C59,全データ!$C:$CI,AR$1,0)&"","") ->  | AS59: =IFERROR(VLOOKUP($C59,全データ!$C:$CI,AS$1,0)&"","") ->  | AT59: =IFERROR(VLOOKUP($C59,全データ!$C:$CI,AT$1,0)&"","") ->  | AU59: =IFERROR(VLOOKUP($C59,全データ!$C:$CI,AU$1,0)&"","") ->  | AV59: =IFERROR(VLOOKUP($C59,全データ!$C:$CI,AV$1,0)&"","") ->  | AW59: =IFERROR(VLOOKUP($C59,全データ!$C:$CI,AW$1,0)&"","") -> ○ | AX59: =COUNTIF($Z59:$AG59,"○") -> 1 | AY59: =COUNTIF($AH59:$AK59,"○") -> 1 | AZ59: =COUNTIF($AL59:$AS59,"○") -> 1 | BA59: =COUNTIF(AT59:AW59,"○")+COUNTIF(AT59:AW59,"◎") -> 1 | BB59: =SUM(AX59:BA59) -> 4 | BC59: =VLOOKUP($C59,点数集計!$C:$CL,ようこそ!$G$19,0) -> 
A60: =A59+1 -> 56 | B60: JR総武線 | C60: 市川 | D60: =IFERROR(VLOOKUP($C60,全データ!$C:$CI,D$1,0)&"","") -> 千葉県 | E60: =IFERROR(VLOOKUP($C60,全データ!$C:$CI,E$1,0)&"","") -> 市川市 | F60: =VLOOKUP($C60,全データ!$C:$CI,F$1,0) -> 23.33333333 | G60: =VLOOKUP($C60,全データ!$C:$CI,G$1,0) -> 40 | H60: =(VLOOKUP($C60,全データ!$C:$CI,F$1,0)+VLOOKUP($C60,全データ!$C:$CI,G$1,0))/2 -> 31.66666667 | I60: =VLOOKUP($C60,全データ!$C:$CI,I$1,0) -> 181 | J60: =VLOOKUP($C60,全データ!$C:$CI,J$1,0) -> × | K60: =VLOOKUP($C60,全データ!$C:$CI,K$1,0) -> 6.94 | L60: =VLOOKUP($C60,全データ!$C:$CI,L$1,0) -> 11.74 | M60: =(VLOOKUP($C60,全データ!$C:$CI,K$1,0)+VLOOKUP($C60,全データ!$C:$CI,L$1,0))/2 -> 9.34 | N60: =VLOOKUP($C60,全データ!$C:$CI,N$1,0) -> 45.39454111 | O60: =VLOOKUP($C60,全データ!$C:$CI,O$1,0) -> 9926.512118 | P60: =VLOOKUP($C60,全データ!$C:$CI,P$1,0) -> 0.4064155682 | Q60: =VLOOKUP($C60,全データ!$C:$CI,Q$1,0) -> -0.1780907226 | R60: =VLOOKUP($C60,全データ!$C:$CI,R$1,0) -> 377.0098848 | S60: =VLOOKUP($C60,全データ!$C:$CI,S$1,0) -> 0.008531595696 | T60: =VLOOKUP($C60,全データ!$C:$CI,T$1,0) -> 2.253470809 | U60: =VLOOKUP($C60,全データ!$C:$CI,U$1,0) -> 21.08714376 | V60: =VLOOKUP($C60,全データ!$C:$CI,V$1,0) -> 0.05377996312 | W60: =VLOOKUP($C60,全データ!$C:$CI,W$1,0) -> 0.01648593958 | X60: =VLOOKUP($C60,全データ!$C:$CI,X$1,0) -> 市川中央 | Y60: =VLOOKUP($C60,全データ!$C:$CI,Y$1,0) -> ○ | Z60: =IFERROR(VLOOKUP($C60,全データ!$C:$CI,Z$1,0)&"","") ->  | AA60: =IFERROR(VLOOKUP($C60,全データ!$C:$CI,AA$1,0)&"","") ->  | AB60: =IFERROR(VLOOKUP($C60,全データ!$C:$CI,AB$1,0)&"","") ->  | AC60: =IFERROR(VLOOKUP($C60,全データ!$C:$CI,AC$1,0)&"","") ->  | AD60: =IFERROR(VLOOKUP($C60,全データ!$C:$CI,AD$1,0)&"","") ->  | AE60: =IFERROR(VLOOKUP($C60,全データ!$C:$CI,AE$1,0)&"","") -> ○ | AF60: =IFERROR(VLOOKUP($C60,全データ!$C:$CI,AF$1,0)&"","") ->  | AG60: =IFERROR(VLOOKUP($C60,全データ!$C:$CI,AG$1,0)&"","") ->  | AH60: =IFERROR(VLOOKUP($C60,全データ!$C:$CI,AH$1,0)&"","") ->  | AI60: =IFERROR(VLOOKUP($C60,全データ!$C:$CI,AI$1,0)&"","") -> ○ | AJ60: =IFERROR(VLOOKUP($C60,全データ!$C:$CI,AJ$1,0)&"","") ->  | AK60: =IFERROR(VLOOKUP($C60,全データ!$C:$CI,AK$1,0)&"","") ->  | AL60: =IFERROR(VLOOKUP($C60,全データ!$C:$CI,AL$1,0)&"","") ->  | AM60: =IFERROR(VLOOKUP($C60,全データ!$C:$CI,AM$1,0)&"","") ->  | AN60: =IFERROR(VLOOKUP($C60,全データ!$C:$CI,AN$1,0)&"","") ->  | AO60: =IFERROR(VLOOKUP($C60,全データ!$C:$CI,AO$1,0)&"","") ->  | AP60: =IFERROR(VLOOKUP($C60,全データ!$C:$CI,AP$1,0)&"","") ->  | AQ60: =IFERROR(VLOOKUP($C60,全データ!$C:$CI,AQ$1,0)&"","") ->  | AR60: =IFERROR(VLOOKUP($C60,全データ!$C:$CI,AR$1,0)&"","") ->  | AS60: =IFERROR(VLOOKUP($C60,全データ!$C:$CI,AS$1,0)&"","") ->  | AT60: =IFERROR(VLOOKUP($C60,全データ!$C:$CI,AT$1,0)&"","") ->  | AU60: =IFERROR(VLOOKUP($C60,全データ!$C:$CI,AU$1,0)&"","") ->  | AV60: =IFERROR(VLOOKUP($C60,全データ!$C:$CI,AV$1,0)&"","") ->  | AW60: =IFERROR(VLOOKUP($C60,全データ!$C:$CI,AW$1,0)&"","") -> ○ | AX60: =COUNTIF($Z60:$AG60,"○") -> 1 | AY60: =COUNTIF($AH60:$AK60,"○") -> 1 | AZ60: =COUNTIF($AL60:$AS60,"○") -> 0 | BA60: =COUNTIF(AT60:AW60,"○")+COUNTIF(AT60:AW60,"◎") -> 1 | BB60: =SUM(AX60:BA60) -> 3 | BC60: =VLOOKUP($C60,点数集計!$C:$CL,ようこそ!$G$19,0) -> 
A61: =A60+1 -> 57 | B61: JR総武線 | C61: 新小岩 | D61: =IFERROR(VLOOKUP($C61,全データ!$C:$CI,D$1,0)&"","") -> 東京都 | E61: =IFERROR(VLOOKUP($C61,全データ!$C:$CI,E$1,0)&"","") -> 葛飾区 | F61: =VLOOKUP($C61,全データ!$C:$CI,F$1,0) -> 17.33333333 | G61: =VLOOKUP($C61,全データ!$C:$CI,G$1,0) -> 32.66666667 | H61: =(VLOOKUP($C61,全データ!$C:$CI,F$1,0)+VLOOKUP($C61,全データ!$C:$CI,G$1,0))/2 -> 25 | I61: =VLOOKUP($C61,全データ!$C:$CI,I$1,0) -> 181 | J61: =VLOOKUP($C61,全データ!$C:$CI,J$1,0) -> × | K61: =VLOOKUP($C61,全データ!$C:$CI,K$1,0) -> 6.97 | L61: =VLOOKUP($C61,全データ!$C:$CI,L$1,0) -> 12.38 | M61: =(VLOOKUP($C61,全データ!$C:$CI,K$1,0)+VLOOKUP($C61,全データ!$C:$CI,L$1,0))/2 -> 9.675 | N61: =VLOOKUP($C61,全データ!$C:$CI,N$1,0) -> 45.53236924 | O61: =VLOOKUP($C61,全データ!$C:$CI,O$1,0) -> 12727.38506 | P61: =VLOOKUP($C61,全データ!$C:$CI,P$1,0) -> 0.3935363296 | Q61: =VLOOKUP($C61,全データ!$C:$CI,Q$1,0) -> -0.1593495788 | R61: =VLOOKUP($C61,全データ!$C:$CI,R$1,0) -> 338.4600817 | S61: =VLOOKUP($C61,全データ!$C:$CI,S$1,0) -> 0.009037560262 | T61: =VLOOKUP($C61,全データ!$C:$CI,T$1,0) -> 2.844897305 | U61: =VLOOKUP($C61,全データ!$C:$CI,U$1,0) -> 22.57056028 | V61: =VLOOKUP($C61,全データ!$C:$CI,V$1,0) -> 0.02808280828 | W61: =VLOOKUP($C61,全データ!$C:$CI,W$1,0) -> 0.000738839457 | X61: =VLOOKUP($C61,全データ!$C:$CI,X$1,0) -> 平井大橋 | Y61: =VLOOKUP($C61,全データ!$C:$CI,Y$1,0) -> ○ | Z61: =IFERROR(VLOOKUP($C61,全データ!$C:$CI,Z$1,0)&"","") ->  | AA61: =IFERROR(VLOOKUP($C61,全データ!$C:$CI,AA$1,0)&"","") ->  | AB61: =IFERROR(VLOOKUP($C61,全データ!$C:$CI,AB$1,0)&"","") ->  | AC61: =IFERROR(VLOOKUP($C61,全データ!$C:$CI,AC$1,0)&"","") ->  | AD61: =IFERROR(VLOOKUP($C61,全データ!$C:$CI,AD$1,0)&"","") ->  | AE61: =IFERROR(VLOOKUP($C61,全データ!$C:$CI,AE$1,0)&"","") -> ○ | AF61: =IFERROR(VLOOKUP($C61,全データ!$C:$CI,AF$1,0)&"","") ->  | AG61: =IFERROR(VLOOKUP($C61,全データ!$C:$CI,AG$1,0)&"","") ->  | AH61: =IFERROR(VLOOKUP($C61,全データ!$C:$CI,AH$1,0)&"","") ->  | AI61: =IFERROR(VLOOKUP($C61,全データ!$C:$CI,AI$1,0)&"","") ->  | AJ61: =IFERROR(VLOOKUP($C61,全データ!$C:$CI,AJ$1,0)&"","") -> ○ | AK61: =IFERROR(VLOOKUP($C61,全データ!$C:$CI,AK$1,0)&"","") ->  | AL61: =IFERROR(VLOOKUP($C61,全データ!$C:$CI,AL$1,0)&"","") ->  | AM61: =IFERROR(VLOOKUP($C61,全データ!$C:$CI,AM$1,0)&"","") ->  | AN61: =IFERROR(VLOOKUP($C61,全データ!$C:$CI,AN$1,0)&"","") ->  | AO61: =IFERROR(VLOOKUP($C61,全データ!$C:$CI,AO$1,0)&"","") ->  | AP61: =IFERROR(VLOOKUP($C61,全データ!$C:$CI,AP$1,0)&"","") ->  | AQ61: =IFERROR(VLOOKUP($C61,全データ!$C:$CI,AQ$1,0)&"","") ->  | AR61: =IFERROR(VLOOKUP($C61,全データ!$C:$CI,AR$1,0)&"","") -> ○ | AS61: =IFERROR(VLOOKUP($C61,全データ!$C:$CI,AS$1,0)&"","") ->  | AT61: =IFERROR(VLOOKUP($C61,全データ!$C:$CI,AT$1,0)&"","") ->  | AU61: =IFERROR(VLOOKUP($C61,全データ!$C:$CI,AU$1,0)&"","") ->  | AV61: =IFERROR(VLOOKUP($C61,全データ!$C:$CI,AV$1,0)&"","") ->  | AW61: =IFERROR(VLOOKUP($C61,全データ!$C:$CI,AW$1,0)&"","") ->  | AX61: =COUNTIF($Z61:$AG61,"○") -> 1 | AY61: =COUNTIF($AH61:$AK61,"○") -> 1 | AZ61: =COUNTIF($AL61:$AS61,"○") -> 1 | BA61: =COUNTIF(AT61:AW61,"○")+COUNTIF(AT61:AW61,"◎") -> 0 | BB61: =SUM(AX61:BA61) -> 3 | BC61: =VLOOKUP($C61,点数集計!$C:$CL,ようこそ!$G$19,0) -> 
A62: =A61+1 -> 58 | B62: JR総武線 | C62: 船橋 | D62: =IFERROR(VLOOKUP($C62,全データ!$C:$CI,D$1,0)&"","") -> 千葉県 | E62: =IFERROR(VLOOKUP($C62,全データ!$C:$CI,E$1,0)&"","") -> 船橋市 | F62: =VLOOKUP($C62,全データ!$C:$CI,F$1,0) -> 29.33333333 | G62: =VLOOKUP($C62,全データ!$C:$CI,G$1,0) -> 46.33333333 | H62: =(VLOOKUP($C62,全データ!$C:$CI,F$1,0)+VLOOKUP($C62,全データ!$C:$CI,G$1,0))/2 -> 37.83333333 | I62: =VLOOKUP($C62,全データ!$C:$CI,I$1,0) -> 181 | J62: =VLOOKUP($C62,全データ!$C:$CI,J$1,0) -> △ | K62: =VLOOKUP($C62,全データ!$C:$CI,K$1,0) -> 6.54 | L62: =VLOOKUP($C62,全データ!$C:$CI,L$1,0) -> 12.56 | M62: =(VLOOKUP($C62,全データ!$C:$CI,K$1,0)+VLOOKUP($C62,全データ!$C:$CI,L$1,0))/2 -> 9.55 | N62: =VLOOKUP($C62,全データ!$C:$CI,N$1,0) -> 43.86046411 | O62: =VLOOKUP($C62,全データ!$C:$CI,O$1,0) -> 10189.35517 | P62: =VLOOKUP($C62,全データ!$C:$CI,P$1,0) -> 0.3541363389 | Q62: =VLOOKUP($C62,全データ!$C:$CI,Q$1,0) -> -0.1580038209 | R62: =VLOOKUP($C62,全データ!$C:$CI,R$1,0) -> 359.1306196 | S62: =VLOOKUP($C62,全データ!$C:$CI,S$1,0) -> 0.008824129456 | T62: =VLOOKUP($C62,全データ!$C:$CI,T$1,0) -> 2.549873975 | U62: =VLOOKUP($C62,全データ!$C:$CI,U$1,0) -> 34.54627051 | V62: =VLOOKUP($C62,全データ!$C:$CI,V$1,0) -> 0.03458323748 | W62: =VLOOKUP($C62,全データ!$C:$CI,W$1,0) -> 0.02274070669 | X62: =VLOOKUP($C62,全データ!$C:$CI,X$1,0) -> 船橋 | Y62: =VLOOKUP($C62,全データ!$C:$CI,Y$1,0) -> ○ | Z62: =IFERROR(VLOOKUP($C62,全データ!$C:$CI,Z$1,0)&"","") ->  | AA62: =IFERROR(VLOOKUP($C62,全データ!$C:$CI,AA$1,0)&"","") ->  | AB62: =IFERROR(VLOOKUP($C62,全データ!$C:$CI,AB$1,0)&"","") ->  | AC62: =IFERROR(VLOOKUP($C62,全データ!$C:$CI,AC$1,0)&"","") ->  | AD62: =IFERROR(VLOOKUP($C62,全データ!$C:$CI,AD$1,0)&"","") ->  | AE62: =IFERROR(VLOOKUP($C62,全データ!$C:$CI,AE$1,0)&"","") ->  | AF62: =IFERROR(VLOOKUP($C62,全データ!$C:$CI,AF$1,0)&"","") ->  | AG62: =IFERROR(VLOOKUP($C62,全データ!$C:$CI,AG$1,0)&"","") ->  | AH62: =IFERROR(VLOOKUP($C62,全データ!$C:$CI,AH$1,0)&"","") -> ○ | AI62: =IFERROR(VLOOKUP($C62,全データ!$C:$CI,AI$1,0)&"","") ->  | AJ62: =IFERROR(VLOOKUP($C62,全データ!$C:$CI,AJ$1,0)&"","") ->  | AK62: =IFERROR(VLOOKUP($C62,全データ!$C:$CI,AK$1,0)&"","") ->  | AL62: =IFERROR(VLOOKUP($C62,全データ!$C:$CI,AL$1,0)&"","") ->  | AM62: =IFERROR(VLOOKUP($C62,全データ!$C:$CI,AM$1,0)&"","") ->  | AN62: =IFERROR(VLOOKUP($C62,全データ!$C:$CI,AN$1,0)&"","") ->  | AO62: =IFERROR(VLOOKUP($C62,全データ!$C:$CI,AO$1,0)&"","") ->  | AP62: =IFERROR(VLOOKUP($C62,全データ!$C:$CI,AP$1,0)&"","") ->  | AQ62: =IFERROR(VLOOKUP($C62,全データ!$C:$CI,AQ$1,0)&"","") ->  | AR62: =IFERROR(VLOOKUP($C62,全データ!$C:$CI,AR$1,0)&"","") ->  | AS62: =IFERROR(VLOOKUP($C62,全データ!$C:$CI,AS$1,0)&"","") ->  | AT62: =IFERROR(VLOOKUP($C62,全データ!$C:$CI,AT$1,0)&"","") ->  | AU62: =IFERROR(VLOOKUP($C62,全データ!$C:$CI,AU$1,0)&"","") ->  | AV62: =IFERROR(VLOOKUP($C62,全データ!$C:$CI,AV$1,0)&"","") -> ○ | AW62: =IFERROR(VLOOKUP($C62,全データ!$C:$CI,AW$1,0)&"","") -> ○ | AX62: =COUNTIF($Z62:$AG62,"○") -> 0 | AY62: =COUNTIF($AH62:$AK62,"○") -> 1 | AZ62: =COUNTIF($AL62:$AS62,"○") -> 0 | BA62: =COUNTIF(AT62:AW62,"○")+COUNTIF(AT62:AW62,"◎") -> 2 | BB62: =SUM(AX62:BA62) -> 3 | BC62: =VLOOKUP($C62,点数集計!$C:$CL,ようこそ!$G$19,0) -> 
A63: =A62+1 -> 59 | B63: JR総武線 | C63: 錦糸町 | D63: =IFERROR(VLOOKUP($C63,全データ!$C:$CI,D$1,0)&"","") -> 東京都 | E63: =IFERROR(VLOOKUP($C63,全データ!$C:$CI,E$1,0)&"","") -> 墨田区 | F63: =VLOOKUP($C63,全データ!$C:$CI,F$1,0) -> 12 | G63: =VLOOKUP($C63,全データ!$C:$CI,G$1,0) -> 24 | H63: =(VLOOKUP($C63,全データ!$C:$CI,F$1,0)+VLOOKUP($C63,全データ!$C:$CI,G$1,0))/2 -> 18 | I63: =VLOOKUP($C63,全データ!$C:$CI,I$1,0) -> 181 | J63: =VLOOKUP($C63,全データ!$C:$CI,J$1,0) -> × | K63: =VLOOKUP($C63,全データ!$C:$CI,K$1,0) -> 10.69 | L63: =VLOOKUP($C63,全データ!$C:$CI,L$1,0) -> 19.2 | M63: =(VLOOKUP($C63,全データ!$C:$CI,K$1,0)+VLOOKUP($C63,全データ!$C:$CI,L$1,0))/2 -> 14.945 | N63: =VLOOKUP($C63,全データ!$C:$CI,N$1,0) -> 43.93977273 | O63: =VLOOKUP($C63,全データ!$C:$CI,O$1,0) -> 18611.03849 | P63: =VLOOKUP($C63,全データ!$C:$CI,P$1,0) -> 0.4812286689 | Q63: =VLOOKUP($C63,全データ!$C:$CI,Q$1,0) -> 0.08938479908 | R63: =VLOOKUP($C63,全データ!$C:$CI,R$1,0) -> 364.2239277 | S63: =VLOOKUP($C63,全データ!$C:$CI,S$1,0) -> 0.008481952568 | T63: =VLOOKUP($C63,全データ!$C:$CI,T$1,0) -> 2.205034455 | U63: =VLOOKUP($C63,全データ!$C:$CI,U$1,0) -> 17.67358667 | V63: =VLOOKUP($C63,全データ!$C:$CI,V$1,0) -> 0.05750431282 | W63: =VLOOKUP($C63,全データ!$C:$CI,W$1,0) -> 0.03500722923 | X63: =VLOOKUP($C63,全データ!$C:$CI,X$1,0) -> 錦糸町 | Y63: =VLOOKUP($C63,全データ!$C:$CI,Y$1,0) -> ○ | Z63: =IFERROR(VLOOKUP($C63,全データ!$C:$CI,Z$1,0)&"","") ->  | AA63: =IFERROR(VLOOKUP($C63,全データ!$C:$CI,AA$1,0)&"","") ->  | AB63: =IFERROR(VLOOKUP($C63,全データ!$C:$CI,AB$1,0)&"","") ->  | AC63: =IFERROR(VLOOKUP($C63,全データ!$C:$CI,AC$1,0)&"","") ->  | AD63: =IFERROR(VLOOKUP($C63,全データ!$C:$CI,AD$1,0)&"","") ->  | AE63: =IFERROR(VLOOKUP($C63,全データ!$C:$CI,AE$1,0)&"","") ->  | AF63: =IFERROR(VLOOKUP($C63,全データ!$C:$CI,AF$1,0)&"","") ->  | AG63: =IFERROR(VLOOKUP($C63,全データ!$C:$CI,AG$1,0)&"","") -> ○ | AH63: =IFERROR(VLOOKUP($C63,全データ!$C:$CI,AH$1,0)&"","") ->  | AI63: =IFERROR(VLOOKUP($C63,全データ!$C:$CI,AI$1,0)&"","") ->  | AJ63: =IFERROR(VLOOKUP($C63,全データ!$C:$CI,AJ$1,0)&"","") -> ○ | AK63: =IFERROR(VLOOKUP($C63,全データ!$C:$CI,AK$1,0)&"","") ->  | AL63: =IFERROR(VLOOKUP($C63,全データ!$C:$CI,AL$1,0)&"","") ->  | AM63: =IFERROR(VLOOKUP($C63,全データ!$C:$CI,AM$1,0)&"","") ->  | AN63: =IFERROR(VLOOKUP($C63,全データ!$C:$CI,AN$1,0)&"","") ->  | AO63: =IFERROR(VLOOKUP($C63,全データ!$C:$CI,AO$1,0)&"","") ->  | AP63: =IFERROR(VLOOKUP($C63,全データ!$C:$CI,AP$1,0)&"","") ->  | AQ63: =IFERROR(VLOOKUP($C63,全データ!$C:$CI,AQ$1,0)&"","") ->  | AR63: =IFERROR(VLOOKUP($C63,全データ!$C:$CI,AR$1,0)&"","") ->  | AS63: =IFERROR(VLOOKUP($C63,全データ!$C:$CI,AS$1,0)&"","") ->  | AT63: =IFERROR(VLOOKUP($C63,全データ!$C:$CI,AT$1,0)&"","") ->  | AU63: =IFERROR(VLOOKUP($C63,全データ!$C:$CI,AU$1,0)&"","") ->  | AV63: =IFERROR(VLOOKUP($C63,全データ!$C:$CI,AV$1,0)&"","") -> ○ | AW63: =IFERROR(VLOOKUP($C63,全データ!$C:$CI,AW$1,0)&"","") -> ◎ | AX63: =COUNTIF($Z63:$AG63,"○") -> 1 | AY63: =COUNTIF($AH63:$AK63,"○") -> 1 | AZ63: =COUNTIF($AL63:$AS63,"○") -> 0 | BA63: =COUNTIF(AT63:AW63,"○")+COUNTIF(AT63:AW63,"◎") -> 2 | BB63: =SUM(AX63:BA63) -> 4 | BC63: =VLOOKUP($C63,点数集計!$C:$CL,ようこそ!$G$19,0) -> 
A64: =A63+1 -> 60 | B64: JR総武線 | C64: 東船橋 | D64: =IFERROR(VLOOKUP($C64,全データ!$C:$CI,D$1,0)&"","") -> 千葉県 | E64: =IFERROR(VLOOKUP($C64,全データ!$C:$CI,E$1,0)&"","") -> 船橋市 | F64: =VLOOKUP($C64,全データ!$C:$CI,F$1,0) -> 36.66666667 | G64: =VLOOKUP($C64,全データ!$C:$CI,G$1,0) -> 54 | H64: =(VLOOKUP($C64,全データ!$C:$CI,F$1,0)+VLOOKUP($C64,全データ!$C:$CI,G$1,0))/2 -> 45.33333333 | I64: =VLOOKUP($C64,全データ!$C:$CI,I$1,0) -> 196 | J64: =VLOOKUP($C64,全データ!$C:$CI,J$1,0) -> × | K64: =VLOOKUP($C64,全データ!$C:$CI,K$1,0) -> 6.04 | L64: =VLOOKUP($C64,全データ!$C:$CI,L$1,0) -> 10.17 | M64: =(VLOOKUP($C64,全データ!$C:$CI,K$1,0)+VLOOKUP($C64,全データ!$C:$CI,L$1,0))/2 -> 8.105 | N64: =VLOOKUP($C64,全データ!$C:$CI,N$1,0) -> 43.86046411 | O64: =VLOOKUP($C64,全データ!$C:$CI,O$1,0) -> 10189.35517 | P64: =VLOOKUP($C64,全データ!$C:$CI,P$1,0) -> 0.3541363389 | Q64: =VLOOKUP($C64,全データ!$C:$CI,Q$1,0) -> -0.1580038209 | R64: =VLOOKUP($C64,全データ!$C:$CI,R$1,0) -> 359.1306196 | S64: =VLOOKUP($C64,全データ!$C:$CI,S$1,0) -> 0.008824129456 | T64: =VLOOKUP($C64,全データ!$C:$CI,T$1,0) -> 2.549873975 | U64: =VLOOKUP($C64,全データ!$C:$CI,U$1,0) -> 34.54627051 | V64: =VLOOKUP($C64,全データ!$C:$CI,V$1,0) -> 0.03458323748 | W64: =VLOOKUP($C64,全データ!$C:$CI,W$1,0) -> 0.02274070669 | X64: =VLOOKUP($C64,全データ!$C:$CI,X$1,0) -> - | Y64: =VLOOKUP($C64,全データ!$C:$CI,Y$1,0) -> ◎ | Z64: =IFERROR(VLOOKUP($C64,全データ!$C:$CI,Z$1,0)&"","") ->  | AA64: =IFERROR(VLOOKUP($C64,全データ!$C:$CI,AA$1,0)&"","") ->  | AB64: =IFERROR(VLOOKUP($C64,全データ!$C:$CI,AB$1,0)&"","") ->  | AC64: =IFERROR(VLOOKUP($C64,全データ!$C:$CI,AC$1,0)&"","") ->  | AD64: =IFERROR(VLOOKUP($C64,全データ!$C:$CI,AD$1,0)&"","") ->  | AE64: =IFERROR(VLOOKUP($C64,全データ!$C:$CI,AE$1,0)&"","") ->  | AF64: =IFERROR(VLOOKUP($C64,全データ!$C:$CI,AF$1,0)&"","") ->  | AG64: =IFERROR(VLOOKUP($C64,全データ!$C:$CI,AG$1,0)&"","") ->  | AH64: =IFERROR(VLOOKUP($C64,全データ!$C:$CI,AH$1,0)&"","") ->  | AI64: =IFERROR(VLOOKUP($C64,全データ!$C:$CI,AI$1,0)&"","") ->  | AJ64: =IFERROR(VLOOKUP($C64,全データ!$C:$CI,AJ$1,0)&"","") ->  | AK64: =IFERROR(VLOOKUP($C64,全データ!$C:$CI,AK$1,0)&"","") ->  | AL64: =IFERROR(VLOOKUP($C64,全データ!$C:$CI,AL$1,0)&"","") ->  | AM64: =IFERROR(VLOOKUP($C64,全データ!$C:$CI,AM$1,0)&"","") ->  | AN64: =IFERROR(VLOOKUP($C64,全データ!$C:$CI,AN$1,0)&"","") ->  | AO64: =IFERROR(VLOOKUP($C64,全データ!$C:$CI,AO$1,0)&"","") ->  | AP64: =IFERROR(VLOOKUP($C64,全データ!$C:$CI,AP$1,0)&"","") -> ○ | AQ64: =IFERROR(VLOOKUP($C64,全データ!$C:$CI,AQ$1,0)&"","") ->  | AR64: =IFERROR(VLOOKUP($C64,全データ!$C:$CI,AR$1,0)&"","") ->  | AS64: =IFERROR(VLOOKUP($C64,全データ!$C:$CI,AS$1,0)&"","") ->  | AT64: =IFERROR(VLOOKUP($C64,全データ!$C:$CI,AT$1,0)&"","") ->  | AU64: =IFERROR(VLOOKUP($C64,全データ!$C:$CI,AU$1,0)&"","") ->  | AV64: =IFERROR(VLOOKUP($C64,全データ!$C:$CI,AV$1,0)&"","") ->  | AW64: =IFERROR(VLOOKUP($C64,全データ!$C:$CI,AW$1,0)&"","") -> ○ | AX64: =COUNTIF($Z64:$AG64,"○") -> 0 | AY64: =COUNTIF($AH64:$AK64,"○") -> 0 | AZ64: =COUNTIF($AL64:$AS64,"○") -> 1 | BA64: =COUNTIF(AT64:AW64,"○")+COUNTIF(AT64:AW64,"◎") -> 1 | BB64: =SUM(AX64:BA64) -> 2 | BC64: =VLOOKUP($C64,点数集計!$C:$CL,ようこそ!$G$19,0) -> 
A65: =A64+1 -> 61 | B65: JR総武線 | C65: 稲毛 | D65: =IFERROR(VLOOKUP($C65,全データ!$C:$CI,D$1,0)&"","") -> 千葉県 | E65: =IFERROR(VLOOKUP($C65,全データ!$C:$CI,E$1,0)&"","") -> 千葉市稲毛区 | F65: =VLOOKUP($C65,全データ!$C:$CI,F$1,0) -> 43.33333333 | G65: =VLOOKUP($C65,全データ!$C:$CI,G$1,0) -> 59.33333333 | H65: =(VLOOKUP($C65,全データ!$C:$CI,F$1,0)+VLOOKUP($C65,全データ!$C:$CI,G$1,0))/2 -> 51.33333333 | I65: =VLOOKUP($C65,全データ!$C:$CI,I$1,0) -> 181 | J65: =VLOOKUP($C65,全データ!$C:$CI,J$1,0) -> × | K65: =VLOOKUP($C65,全データ!$C:$CI,K$1,0) -> 5.85 | L65: =VLOOKUP($C65,全データ!$C:$CI,L$1,0) -> 9.06 | M65: =(VLOOKUP($C65,全データ!$C:$CI,K$1,0)+VLOOKUP($C65,全データ!$C:$CI,L$1,0))/2 -> 7.455 | N65: =VLOOKUP($C65,全データ!$C:$CI,N$1,0) -> 45.387253 | O65: =VLOOKUP($C65,全データ!$C:$CI,O$1,0) -> 8686.946903 | P65: =VLOOKUP($C65,全データ!$C:$CI,P$1,0) -> 0.3652006574 | Q65: =VLOOKUP($C65,全データ!$C:$CI,Q$1,0) -> -0.06716241737 | R65: =VLOOKUP($C65,全データ!$C:$CI,R$1,0) -> 361.8675968 | S65: =VLOOKUP($C65,全データ!$C:$CI,S$1,0) -> 0.008857395926 | T65: =VLOOKUP($C65,全データ!$C:$CI,T$1,0) -> 0.9276874907 | U65: =VLOOKUP($C65,全データ!$C:$CI,U$1,0) -> 1.466365204 | V65: =VLOOKUP($C65,全データ!$C:$CI,V$1,0) -> 0.02263010888 | W65: =VLOOKUP($C65,全データ!$C:$CI,W$1,0) -> 0.02028294711 | X65: =VLOOKUP($C65,全データ!$C:$CI,X$1,0) -> - | Y65: =VLOOKUP($C65,全データ!$C:$CI,Y$1,0) -> ○ | Z65: =IFERROR(VLOOKUP($C65,全データ!$C:$CI,Z$1,0)&"","") ->  | AA65: =IFERROR(VLOOKUP($C65,全データ!$C:$CI,AA$1,0)&"","") ->  | AB65: =IFERROR(VLOOKUP($C65,全データ!$C:$CI,AB$1,0)&"","") ->  | AC65: =IFERROR(VLOOKUP($C65,全データ!$C:$CI,AC$1,0)&"","") ->  | AD65: =IFERROR(VLOOKUP($C65,全データ!$C:$CI,AD$1,0)&"","") ->  | AE65: =IFERROR(VLOOKUP($C65,全データ!$C:$CI,AE$1,0)&"","") ->  | AF65: =IFERROR(VLOOKUP($C65,全データ!$C:$CI,AF$1,0)&"","") ->  | AG65: =IFERROR(VLOOKUP($C65,全データ!$C:$CI,AG$1,0)&"","") ->  | AH65: =IFERROR(VLOOKUP($C65,全データ!$C:$CI,AH$1,0)&"","") ->  | AI65: =IFERROR(VLOOKUP($C65,全データ!$C:$CI,AI$1,0)&"","") -> ○ | AJ65: =IFERROR(VLOOKUP($C65,全データ!$C:$CI,AJ$1,0)&"","") ->  | AK65: =IFERROR(VLOOKUP($C65,全データ!$C:$CI,AK$1,0)&"","") ->  | AL65: =IFERROR(VLOOKUP($C65,全データ!$C:$CI,AL$1,0)&"","") ->  | AM65: =IFERROR(VLOOKUP($C65,全データ!$C:$CI,AM$1,0)&"","") ->  | AN65: =IFERROR(VLOOKUP($C65,全データ!$C:$CI,AN$1,0)&"","") ->  | AO65: =IFERROR(VLOOKUP($C65,全データ!$C:$CI,AO$1,0)&"","") ->  | AP65: =IFERROR(VLOOKUP($C65,全データ!$C:$CI,AP$1,0)&"","") ->  | AQ65: =IFERROR(VLOOKUP($C65,全データ!$C:$CI,AQ$1,0)&"","") ->  | AR65: =IFERROR(VLOOKUP($C65,全データ!$C:$CI,AR$1,0)&"","") ->  | AS65: =IFERROR(VLOOKUP($C65,全データ!$C:$CI,AS$1,0)&"","") ->  | AT65: =IFERROR(VLOOKUP($C65,全データ!$C:$CI,AT$1,0)&"","") ->  | AU65: =IFERROR(VLOOKUP($C65,全データ!$C:$CI,AU$1,0)&"","") ->  | AV65: =IFERROR(VLOOKUP($C65,全データ!$C:$CI,AV$1,0)&"","") ->  | AW65: =IFERROR(VLOOKUP($C65,全データ!$C:$CI,AW$1,0)&"","") -> ◎ | AX65: =COUNTIF($Z65:$AG65,"○") -> 0 | AY65: =COUNTIF($AH65:$AK65,"○") -> 1 | AZ65: =COUNTIF($AL65:$AS65,"○") -> 0 | BA65: =COUNTIF(AT65:AW65,"○")+COUNTIF(AT65:AW65,"◎") -> 1 | BB65: =SUM(AX65:BA65) -> 2 | BC65: =VLOOKUP($C65,点数集計!$C:$CL,ようこそ!$G$19,0) -> 
A66: =A65+1 -> 62 | B66: JR総武線 | C66: 西千葉 | D66: =IFERROR(VLOOKUP($C66,全データ!$C:$CI,D$1,0)&"","") -> 千葉県 | E66: =IFERROR(VLOOKUP($C66,全データ!$C:$CI,E$1,0)&"","") -> 千葉市中央区 | F66: =VLOOKUP($C66,全データ!$C:$CI,F$1,0) -> 51 | G66: =VLOOKUP($C66,全データ!$C:$CI,G$1,0) -> 67.33333333 | H66: =(VLOOKUP($C66,全データ!$C:$CI,F$1,0)+VLOOKUP($C66,全データ!$C:$CI,G$1,0))/2 -> 59.16666667 | I66: =VLOOKUP($C66,全データ!$C:$CI,I$1,0) -> 196 | J66: =VLOOKUP($C66,全データ!$C:$CI,J$1,0) -> × | K66: =VLOOKUP($C66,全データ!$C:$CI,K$1,0) -> 4.82 | L66: =VLOOKUP($C66,全データ!$C:$CI,L$1,0) -> 10.54 | M66: =(VLOOKUP($C66,全データ!$C:$CI,K$1,0)+VLOOKUP($C66,全データ!$C:$CI,L$1,0))/2 -> 7.68 | N66: =VLOOKUP($C66,全データ!$C:$CI,N$1,0) -> 44.35841664 | O66: =VLOOKUP($C66,全データ!$C:$CI,O$1,0) -> 5242.740232 | P66: =VLOOKUP($C66,全データ!$C:$CI,P$1,0) -> 0.4159211748 | Q66: =VLOOKUP($C66,全データ!$C:$CI,Q$1,0) -> 0.2373823572 | R66: =VLOOKUP($C66,全データ!$C:$CI,R$1,0) -> 361.8675968 | S66: =VLOOKUP($C66,全データ!$C:$CI,S$1,0) -> 0.009261083744 | T66: =VLOOKUP($C66,全データ!$C:$CI,T$1,0) -> 5.35519091 | U66: =VLOOKUP($C66,全データ!$C:$CI,U$1,0) -> 76.06955066 | V66: =VLOOKUP($C66,全データ!$C:$CI,V$1,0) -> 0.02263010888 | W66: =VLOOKUP($C66,全データ!$C:$CI,W$1,0) -> 0.02862101483 | X66: =VLOOKUP($C66,全データ!$C:$CI,X$1,0) -> - | Y66: =VLOOKUP($C66,全データ!$C:$CI,Y$1,0) -> ◎ | Z66: =IFERROR(VLOOKUP($C66,全データ!$C:$CI,Z$1,0)&"","") ->  | AA66: =IFERROR(VLOOKUP($C66,全データ!$C:$CI,AA$1,0)&"","") ->  | AB66: =IFERROR(VLOOKUP($C66,全データ!$C:$CI,AB$1,0)&"","") ->  | AC66: =IFERROR(VLOOKUP($C66,全データ!$C:$CI,AC$1,0)&"","") ->  | AD66: =IFERROR(VLOOKUP($C66,全データ!$C:$CI,AD$1,0)&"","") ->  | AE66: =IFERROR(VLOOKUP($C66,全データ!$C:$CI,AE$1,0)&"","") ->  | AF66: =IFERROR(VLOOKUP($C66,全データ!$C:$CI,AF$1,0)&"","") ->  | AG66: =IFERROR(VLOOKUP($C66,全データ!$C:$CI,AG$1,0)&"","") ->  | AH66: =IFERROR(VLOOKUP($C66,全データ!$C:$CI,AH$1,0)&"","") ->  | AI66: =IFERROR(VLOOKUP($C66,全データ!$C:$CI,AI$1,0)&"","") ->  | AJ66: =IFERROR(VLOOKUP($C66,全データ!$C:$CI,AJ$1,0)&"","") -> ○ | AK66: =IFERROR(VLOOKUP($C66,全データ!$C:$CI,AK$1,0)&"","") ->  | AL66: =IFERROR(VLOOKUP($C66,全データ!$C:$CI,AL$1,0)&"","") ->  | AM66: =IFERROR(VLOOKUP($C66,全データ!$C:$CI,AM$1,0)&"","") ->  | AN66: =IFERROR(VLOOKUP($C66,全データ!$C:$CI,AN$1,0)&"","") ->  | AO66: =IFERROR(VLOOKUP($C66,全データ!$C:$CI,AO$1,0)&"","") ->  | AP66: =IFERROR(VLOOKUP($C66,全データ!$C:$CI,AP$1,0)&"","") ->  | AQ66: =IFERROR(VLOOKUP($C66,全データ!$C:$CI,AQ$1,0)&"","") ->  | AR66: =IFERROR(VLOOKUP($C66,全データ!$C:$CI,AR$1,0)&"","") ->  | AS66: =IFERROR(VLOOKUP($C66,全データ!$C:$CI,AS$1,0)&"","") ->  | AT66: =IFERROR(VLOOKUP($C66,全データ!$C:$CI,AT$1,0)&"","") ->  | AU66: =IFERROR(VLOOKUP($C66,全データ!$C:$CI,AU$1,0)&"","") ->  | AV66: =IFERROR(VLOOKUP($C66,全データ!$C:$CI,AV$1,0)&"","") ->  | AW66: =IFERROR(VLOOKUP($C66,全データ!$C:$CI,AW$1,0)&"","") -> ○ | AX66: =COUNTIF($Z66:$AG66,"○") -> 0 | AY66: =COUNTIF($AH66:$AK66,"○") -> 1 | AZ66: =COUNTIF($AL66:$AS66,"○") -> 0 | BA66: =COUNTIF(AT66:AW66,"○")+COUNTIF(AT66:AW66,"◎") -> 1 | BB66: =SUM(AX66:BA66) -> 2 | BC66: =VLOOKUP($C66,点数集計!$C:$CL,ようこそ!$G$19,0) -> 
A67: =A66+1 -> 63 | B67: JR総武線 | C67: 西船橋 | D67: =IFERROR(VLOOKUP($C67,全データ!$C:$CI,D$1,0)&"","") -> 千葉県 | E67: =IFERROR(VLOOKUP($C67,全データ!$C:$CI,E$1,0)&"","") -> 船橋市 | F67: =VLOOKUP($C67,全データ!$C:$CI,F$1,0) -> 39.33333333 | G67: =VLOOKUP($C67,全データ!$C:$CI,G$1,0) -> 48 | H67: =(VLOOKUP($C67,全データ!$C:$CI,F$1,0)+VLOOKUP($C67,全データ!$C:$CI,G$1,0))/2 -> 43.66666667 | I67: =VLOOKUP($C67,全データ!$C:$CI,I$1,0) -> 50 | J67: =VLOOKUP($C67,全データ!$C:$CI,J$1,0) -> ○ | K67: =VLOOKUP($C67,全データ!$C:$CI,K$1,0) -> 7.03 | L67: =VLOOKUP($C67,全データ!$C:$CI,L$1,0) -> 11.75 | M67: =(VLOOKUP($C67,全データ!$C:$CI,K$1,0)+VLOOKUP($C67,全データ!$C:$CI,L$1,0))/2 -> 9.39 | N67: =VLOOKUP($C67,全データ!$C:$CI,N$1,0) -> 43.86046411 | O67: =VLOOKUP($C67,全データ!$C:$CI,O$1,0) -> 10189.35517 | P67: =VLOOKUP($C67,全データ!$C:$CI,P$1,0) -> 0.3541363389 | Q67: =VLOOKUP($C67,全データ!$C:$CI,Q$1,0) -> -0.1580038209 | R67: =VLOOKUP($C67,全データ!$C:$CI,R$1,0) -> 359.1306196 | S67: =VLOOKUP($C67,全データ!$C:$CI,S$1,0) -> 0.008824129456 | T67: =VLOOKUP($C67,全データ!$C:$CI,T$1,0) -> 2.549873975 | U67: =VLOOKUP($C67,全データ!$C:$CI,U$1,0) -> 34.54627051 | V67: =VLOOKUP($C67,全データ!$C:$CI,V$1,0) -> 0.03458323748 | W67: =VLOOKUP($C67,全データ!$C:$CI,W$1,0) -> 0.02274070669 | X67: =VLOOKUP($C67,全データ!$C:$CI,X$1,0) -> 原木 | Y67: =VLOOKUP($C67,全データ!$C:$CI,Y$1,0) -> - | Z67: =IFERROR(VLOOKUP($C67,全データ!$C:$CI,Z$1,0)&"","") ->  | AA67: =IFERROR(VLOOKUP($C67,全データ!$C:$CI,AA$1,0)&"","") ->  | AB67: =IFERROR(VLOOKUP($C67,全データ!$C:$CI,AB$1,0)&"","") ->  | AC67: =IFERROR(VLOOKUP($C67,全データ!$C:$CI,AC$1,0)&"","") ->  | AD67: =IFERROR(VLOOKUP($C67,全データ!$C:$CI,AD$1,0)&"","") ->  | AE67: =IFERROR(VLOOKUP($C67,全データ!$C:$CI,AE$1,0)&"","") ->  | AF67: =IFERROR(VLOOKUP($C67,全データ!$C:$CI,AF$1,0)&"","") ->  | AG67: =IFERROR(VLOOKUP($C67,全データ!$C:$CI,AG$1,0)&"","") ->  | AH67: =IFERROR(VLOOKUP($C67,全データ!$C:$CI,AH$1,0)&"","") ->  | AI67: =IFERROR(VLOOKUP($C67,全データ!$C:$CI,AI$1,0)&"","") ->  | AJ67: =IFERROR(VLOOKUP($C67,全データ!$C:$CI,AJ$1,0)&"","") ->  | AK67: =IFERROR(VLOOKUP($C67,全データ!$C:$CI,AK$1,0)&"","") ->  | AL67: =IFERROR(VLOOKUP($C67,全データ!$C:$CI,AL$1,0)&"","") ->  | AM67: =IFERROR(VLOOKUP($C67,全データ!$C:$CI,AM$1,0)&"","") ->  | AN67: =IFERROR(VLOOKUP($C67,全データ!$C:$CI,AN$1,0)&"","") ->  | AO67: =IFERROR(VLOOKUP($C67,全データ!$C:$CI,AO$1,0)&"","") ->  | AP67: =IFERROR(VLOOKUP($C67,全データ!$C:$CI,AP$1,0)&"","") ->  | AQ67: =IFERROR(VLOOKUP($C67,全データ!$C:$CI,AQ$1,0)&"","") ->  | AR67: =IFERROR(VLOOKUP($C67,全データ!$C:$CI,AR$1,0)&"","") ->  | AS67: =IFERROR(VLOOKUP($C67,全データ!$C:$CI,AS$1,0)&"","") ->  | AT67: =IFERROR(VLOOKUP($C67,全データ!$C:$CI,AT$1,0)&"","") ->  | AU67: =IFERROR(VLOOKUP($C67,全データ!$C:$CI,AU$1,0)&"","") ->  | AV67: =IFERROR(VLOOKUP($C67,全データ!$C:$CI,AV$1,0)&"","") ->  | AW67: =IFERROR(VLOOKUP($C67,全データ!$C:$CI,AW$1,0)&"","") -> ○ | AX67: =COUNTIF($Z67:$AG67,"○") -> 0 | AY67: =COUNTIF($AH67:$AK67,"○") -> 0 | AZ67: =COUNTIF($AL67:$AS67,"○") -> 0 | BA67: =COUNTIF(AT67:AW67,"○")+COUNTIF(AT67:AW67,"◎") -> 1 | BB67: =SUM(AX67:BA67) -> 1 | BC67: =VLOOKUP($C67,点数集計!$C:$CL,ようこそ!$G$19,0) -> 
A68: =A67+1 -> 64 | B68: JR総武線 | C68: 千葉 | D68: =IFERROR(VLOOKUP($C68,全データ!$C:$CI,D$1,0)&"","") -> 千葉県 | E68: =IFERROR(VLOOKUP($C68,全データ!$C:$CI,E$1,0)&"","") -> 千葉市中央区 | F68: =VLOOKUP($C68,全データ!$C:$CI,F$1,0) -> 45.33333333 | G68: =VLOOKUP($C68,全データ!$C:$CI,G$1,0) -> 63.33333333 | H68: =(VLOOKUP($C68,全データ!$C:$CI,F$1,0)+VLOOKUP($C68,全データ!$C:$CI,G$1,0))/2 -> 54.33333333 | I68: =VLOOKUP($C68,全データ!$C:$CI,I$1,0) -> 50 | J68: =VLOOKUP($C68,全データ!$C:$CI,J$1,0) -> ○ | K68: =VLOOKUP($C68,全データ!$C:$CI,K$1,0) -> 6.28 | L68: =VLOOKUP($C68,全データ!$C:$CI,L$1,0) -> 13.44 | M68: =(VLOOKUP($C68,全データ!$C:$CI,K$1,0)+VLOOKUP($C68,全データ!$C:$CI,L$1,0))/2 -> 9.86 | N68: =VLOOKUP($C68,全データ!$C:$CI,N$1,0) -> 44.35841664 | O68: =VLOOKUP($C68,全データ!$C:$CI,O$1,0) -> 5242.740232 | P68: =VLOOKUP($C68,全データ!$C:$CI,P$1,0) -> 0.4159211748 | Q68: =VLOOKUP($C68,全データ!$C:$CI,Q$1,0) -> 0.2373823572 | R68: =VLOOKUP($C68,全データ!$C:$CI,R$1,0) -> 361.8675968 | S68: =VLOOKUP($C68,全データ!$C:$CI,S$1,0) -> 0.009261083744 | T68: =VLOOKUP($C68,全データ!$C:$CI,T$1,0) -> 5.35519091 | U68: =VLOOKUP($C68,全データ!$C:$CI,U$1,0) -> 76.06955066 | V68: =VLOOKUP($C68,全データ!$C:$CI,V$1,0) -> 0.02263010888 | W68: =VLOOKUP($C68,全データ!$C:$CI,W$1,0) -> 0.02862101483 | X68: =VLOOKUP($C68,全データ!$C:$CI,X$1,0) -> - | Y68: =VLOOKUP($C68,全データ!$C:$CI,Y$1,0) -> ○ | Z68: =IFERROR(VLOOKUP($C68,全データ!$C:$CI,Z$1,0)&"","") ->  | AA68: =IFERROR(VLOOKUP($C68,全データ!$C:$CI,AA$1,0)&"","") ->  | AB68: =IFERROR(VLOOKUP($C68,全データ!$C:$CI,AB$1,0)&"","") ->  | AC68: =IFERROR(VLOOKUP($C68,全データ!$C:$CI,AC$1,0)&"","") ->  | AD68: =IFERROR(VLOOKUP($C68,全データ!$C:$CI,AD$1,0)&"","") ->  | AE68: =IFERROR(VLOOKUP($C68,全データ!$C:$CI,AE$1,0)&"","") ->  | AF68: =IFERROR(VLOOKUP($C68,全データ!$C:$CI,AF$1,0)&"","") ->  | AG68: =IFERROR(VLOOKUP($C68,全データ!$C:$CI,AG$1,0)&"","") ->  | AH68: =IFERROR(VLOOKUP($C68,全データ!$C:$CI,AH$1,0)&"","") ->  | AI68: =IFERROR(VLOOKUP($C68,全データ!$C:$CI,AI$1,0)&"","") ->  | AJ68: =IFERROR(VLOOKUP($C68,全データ!$C:$CI,AJ$1,0)&"","") ->  | AK68: =IFERROR(VLOOKUP($C68,全データ!$C:$CI,AK$1,0)&"","") ->  | AL68: =IFERROR(VLOOKUP($C68,全データ!$C:$CI,AL$1,0)&"","") ->  | AM68: =IFERROR(VLOOKUP($C68,全データ!$C:$CI,AM$1,0)&"","") ->  | AN68: =IFERROR(VLOOKUP($C68,全データ!$C:$CI,AN$1,0)&"","") ->  | AO68: =IFERROR(VLOOKUP($C68,全データ!$C:$CI,AO$1,0)&"","") ->  | AP68: =IFERROR(VLOOKUP($C68,全データ!$C:$CI,AP$1,0)&"","") ->  | AQ68: =IFERROR(VLOOKUP($C68,全データ!$C:$CI,AQ$1,0)&"","") ->  | AR68: =IFERROR(VLOOKUP($C68,全データ!$C:$CI,AR$1,0)&"","") ->  | AS68: =IFERROR(VLOOKUP($C68,全データ!$C:$CI,AS$1,0)&"","") ->  | AT68: =IFERROR(VLOOKUP($C68,全データ!$C:$CI,AT$1,0)&"","") ->  | AU68: =IFERROR(VLOOKUP($C68,全データ!$C:$CI,AU$1,0)&"","") ->  | AV68: =IFERROR(VLOOKUP($C68,全データ!$C:$CI,AV$1,0)&"","") -> ◎ | AW68: =IFERROR(VLOOKUP($C68,全データ!$C:$CI,AW$1,0)&"","") -> ◎ | AX68: =COUNTIF($Z68:$AG68,"○") -> 0 | AY68: =COUNTIF($AH68:$AK68,"○") -> 0 | AZ68: =COUNTIF($AL68:$AS68,"○") -> 0 | BA68: =COUNTIF(AT68:AW68,"○")+COUNTIF(AT68:AW68,"◎") -> 2 | BB68: =SUM(AX68:BA68) -> 2 | BC68: =VLOOKUP($C68,点数集計!$C:$CL,ようこそ!$G$19,0) -> 
A69: =A68+1 -> 65 | B69: JR総武線 | C69: 幕張 | D69: =IFERROR(VLOOKUP($C69,全データ!$C:$CI,D$1,0)&"","") -> 千葉県 | E69: =IFERROR(VLOOKUP($C69,全データ!$C:$CI,E$1,0)&"","") -> 千葉市花見川区 | F69: =VLOOKUP($C69,全データ!$C:$CI,F$1,0) -> 47.66666667 | G69: =VLOOKUP($C69,全データ!$C:$CI,G$1,0) -> 63 | H69: =(VLOOKUP($C69,全データ!$C:$CI,F$1,0)+VLOOKUP($C69,全データ!$C:$CI,G$1,0))/2 -> 55.33333333 | I69: =VLOOKUP($C69,全データ!$C:$CI,I$1,0) -> 196 | J69: =VLOOKUP($C69,全データ!$C:$CI,J$1,0) -> × | K69: =VLOOKUP($C69,全データ!$C:$CI,K$1,0) -> 6.06 | L69: =VLOOKUP($C69,全データ!$C:$CI,L$1,0) -> 7.44 | M69: =(VLOOKUP($C69,全データ!$C:$CI,K$1,0)+VLOOKUP($C69,全データ!$C:$CI,L$1,0))/2 -> 6.75 | N69: =VLOOKUP($C69,全データ!$C:$CI,N$1,0) -> 46.64758065 | O69: =VLOOKUP($C69,全データ!$C:$CI,O$1,0) -> 9670.356927 | P69: =VLOOKUP($C69,全データ!$C:$CI,P$1,0) -> 0.3362732727 | Q69: =VLOOKUP($C69,全データ!$C:$CI,Q$1,0) -> -0.2026506696 | R69: =VLOOKUP($C69,全データ!$C:$CI,R$1,0) -> 361.8675968 | S69: =VLOOKUP($C69,全データ!$C:$CI,S$1,0) -> 0.006893655737 | T69: =VLOOKUP($C69,全データ!$C:$CI,T$1,0) -> 0.6118359375 | U69: =VLOOKUP($C69,全データ!$C:$CI,U$1,0) -> 1.026817371 | V69: =VLOOKUP($C69,全データ!$C:$CI,V$1,0) -> 0.02263010888 | W69: =VLOOKUP($C69,全データ!$C:$CI,W$1,0) -> -0.009665706912 | X69: =VLOOKUP($C69,全データ!$C:$CI,X$1,0) -> 武石 | Y69: =VLOOKUP($C69,全データ!$C:$CI,Y$1,0) -> - | Z69: =IFERROR(VLOOKUP($C69,全データ!$C:$CI,Z$1,0)&"","") ->  | AA69: =IFERROR(VLOOKUP($C69,全データ!$C:$CI,AA$1,0)&"","") ->  | AB69: =IFERROR(VLOOKUP($C69,全データ!$C:$CI,AB$1,0)&"","") ->  | AC69: =IFERROR(VLOOKUP($C69,全データ!$C:$CI,AC$1,0)&"","") ->  | AD69: =IFERROR(VLOOKUP($C69,全データ!$C:$CI,AD$1,0)&"","") ->  | AE69: =IFERROR(VLOOKUP($C69,全データ!$C:$CI,AE$1,0)&"","") ->  | AF69: =IFERROR(VLOOKUP($C69,全データ!$C:$CI,AF$1,0)&"","") ->  | AG69: =IFERROR(VLOOKUP($C69,全データ!$C:$CI,AG$1,0)&"","") ->  | AH69: =IFERROR(VLOOKUP($C69,全データ!$C:$CI,AH$1,0)&"","") -> ○ | AI69: =IFERROR(VLOOKUP($C69,全データ!$C:$CI,AI$1,0)&"","") ->  | AJ69: =IFERROR(VLOOKUP($C69,全データ!$C:$CI,AJ$1,0)&"","") ->  | AK69: =IFERROR(VLOOKUP($C69,全データ!$C:$CI,AK$1,0)&"","") ->  | AL69: =IFERROR(VLOOKUP($C69,全データ!$C:$CI,AL$1,0)&"","") ->  | AM69: =IFERROR(VLOOKUP($C69,全データ!$C:$CI,AM$1,0)&"","") ->  | AN69: =IFERROR(VLOOKUP($C69,全データ!$C:$CI,AN$1,0)&"","") ->  | AO69: =IFERROR(VLOOKUP($C69,全データ!$C:$CI,AO$1,0)&"","") ->  | AP69: =IFERROR(VLOOKUP($C69,全データ!$C:$CI,AP$1,0)&"","") ->  | AQ69: =IFERROR(VLOOKUP($C69,全データ!$C:$CI,AQ$1,0)&"","") ->  | AR69: =IFERROR(VLOOKUP($C69,全データ!$C:$CI,AR$1,0)&"","") ->  | AS69: =IFERROR(VLOOKUP($C69,全データ!$C:$CI,AS$1,0)&"","") ->  | AT69: =IFERROR(VLOOKUP($C69,全データ!$C:$CI,AT$1,0)&"","") ->  | AU69: =IFERROR(VLOOKUP($C69,全データ!$C:$CI,AU$1,0)&"","") ->  | AV69: =IFERROR(VLOOKUP($C69,全データ!$C:$CI,AV$1,0)&"","") ->  | AW69: =IFERROR(VLOOKUP($C69,全データ!$C:$CI,AW$1,0)&"","") ->  | AX69: =COUNTIF($Z69:$AG69,"○") -> 0 | AY69: =COUNTIF($AH69:$AK69,"○") -> 1 | AZ69: =COUNTIF($AL69:$AS69,"○") -> 0 | BA69: =COUNTIF(AT69:AW69,"○")+COUNTIF(AT69:AW69,"◎") -> 0 | BB69: =SUM(AX69:BA69) -> 1 | BC69: =VLOOKUP($C69,点数集計!$C:$CL,ようこそ!$G$19,0) -> 
A70: =A69+1 -> 66 | B70: JR総武線 | C70: 下総中山 | D70: =IFERROR(VLOOKUP($C70,全データ!$C:$CI,D$1,0)&"","") -> 千葉県 | E70: =IFERROR(VLOOKUP($C70,全データ!$C:$CI,E$1,0)&"","") -> 船橋市 | F70: =VLOOKUP($C70,全データ!$C:$CI,F$1,0) -> 33.66666667 | G70: =VLOOKUP($C70,全データ!$C:$CI,G$1,0) -> 45.66666667 | H70: =(VLOOKUP($C70,全データ!$C:$CI,F$1,0)+VLOOKUP($C70,全データ!$C:$CI,G$1,0))/2 -> 39.66666667 | I70: =VLOOKUP($C70,全データ!$C:$CI,I$1,0) -> 196 | J70: =VLOOKUP($C70,全データ!$C:$CI,J$1,0) -> × | K70: =VLOOKUP($C70,全データ!$C:$CI,K$1,0) -> 6.24 | L70: =VLOOKUP($C70,全データ!$C:$CI,L$1,0) -> 10.41 | M70: =(VLOOKUP($C70,全データ!$C:$CI,K$1,0)+VLOOKUP($C70,全データ!$C:$CI,L$1,0))/2 -> 8.325 | N70: =VLOOKUP($C70,全データ!$C:$CI,N$1,0) -> 43.86046411 | O70: =VLOOKUP($C70,全データ!$C:$CI,O$1,0) -> 10189.35517 | P70: =VLOOKUP($C70,全データ!$C:$CI,P$1,0) -> 0.3541363389 | Q70: =VLOOKUP($C70,全データ!$C:$CI,Q$1,0) -> -0.1580038209 | R70: =VLOOKUP($C70,全データ!$C:$CI,R$1,0) -> 359.1306196 | S70: =VLOOKUP($C70,全データ!$C:$CI,S$1,0) -> 0.008824129456 | T70: =VLOOKUP($C70,全データ!$C:$CI,T$1,0) -> 2.549873975 | U70: =VLOOKUP($C70,全データ!$C:$CI,U$1,0) -> 34.54627051 | V70: =VLOOKUP($C70,全データ!$C:$CI,V$1,0) -> 0.03458323748 | W70: =VLOOKUP($C70,全データ!$C:$CI,W$1,0) -> 0.02274070669 | X70: =VLOOKUP($C70,全データ!$C:$CI,X$1,0) -> - | Y70: =VLOOKUP($C70,全データ!$C:$CI,Y$1,0) -> ○ | Z70: =IFERROR(VLOOKUP($C70,全データ!$C:$CI,Z$1,0)&"","") ->  | AA70: =IFERROR(VLOOKUP($C70,全データ!$C:$CI,AA$1,0)&"","") ->  | AB70: =IFERROR(VLOOKUP($C70,全データ!$C:$CI,AB$1,0)&"","") ->  | AC70: =IFERROR(VLOOKUP($C70,全データ!$C:$CI,AC$1,0)&"","") ->  | AD70: =IFERROR(VLOOKUP($C70,全データ!$C:$CI,AD$1,0)&"","") ->  | AE70: =IFERROR(VLOOKUP($C70,全データ!$C:$CI,AE$1,0)&"","") ->  | AF70: =IFERROR(VLOOKUP($C70,全データ!$C:$CI,AF$1,0)&"","") ->  | AG70: =IFERROR(VLOOKUP($C70,全データ!$C:$CI,AG$1,0)&"","") ->  | AH70: =IFERROR(VLOOKUP($C70,全データ!$C:$CI,AH$1,0)&"","") ->  | AI70: =IFERROR(VLOOKUP($C70,全データ!$C:$CI,AI$1,0)&"","") ->  | AJ70: =IFERROR(VLOOKUP($C70,全データ!$C:$CI,AJ$1,0)&"","") -> ○ | AK70: =IFERROR(VLOOKUP($C70,全データ!$C:$CI,AK$1,0)&"","") ->  | AL70: =IFERROR(VLOOKUP($C70,全データ!$C:$CI,AL$1,0)&"","") ->  | AM70: =IFERROR(VLOOKUP($C70,全データ!$C:$CI,AM$1,0)&"","") ->  | AN70: =IFERROR(VLOOKUP($C70,全データ!$C:$CI,AN$1,0)&"","") ->  | AO70: =IFERROR(VLOOKUP($C70,全データ!$C:$CI,AO$1,0)&"","") ->  | AP70: =IFERROR(VLOOKUP($C70,全データ!$C:$CI,AP$1,0)&"","") ->  | AQ70: =IFERROR(VLOOKUP($C70,全データ!$C:$CI,AQ$1,0)&"","") ->  | AR70: =IFERROR(VLOOKUP($C70,全データ!$C:$CI,AR$1,0)&"","") ->  | AS70: =IFERROR(VLOOKUP($C70,全データ!$C:$CI,AS$1,0)&"","") ->  | AT70: =IFERROR(VLOOKUP($C70,全データ!$C:$CI,AT$1,0)&"","") ->  | AU70: =IFERROR(VLOOKUP($C70,全データ!$C:$CI,AU$1,0)&"","") ->  | AV70: =IFERROR(VLOOKUP($C70,全データ!$C:$CI,AV$1,0)&"","") ->  | AW70: =IFERROR(VLOOKUP($C70,全データ!$C:$CI,AW$1,0)&"","") ->  | AX70: =COUNTIF($Z70:$AG70,"○") -> 0 | AY70: =COUNTIF($AH70:$AK70,"○") -> 1 | AZ70: =COUNTIF($AL70:$AS70,"○") -> 0 | BA70: =COUNTIF(AT70:AW70,"○")+COUNTIF(AT70:AW70,"◎") -> 0 | BB70: =SUM(AX70:BA70) -> 1 | BC70: =VLOOKUP($C70,点数集計!$C:$CL,ようこそ!$G$19,0) -> 
A71: =A70+1 -> 67 | B71: JR総武線 | C71: 小岩 | D71: =IFERROR(VLOOKUP($C71,全データ!$C:$CI,D$1,0)&"","") -> 東京都 | E71: =IFERROR(VLOOKUP($C71,全データ!$C:$CI,E$1,0)&"","") -> 江戸川区 | F71: =VLOOKUP($C71,全データ!$C:$CI,F$1,0) -> 25.66666667 | G71: =VLOOKUP($C71,全データ!$C:$CI,G$1,0) -> 36.66666667 | H71: =(VLOOKUP($C71,全データ!$C:$CI,F$1,0)+VLOOKUP($C71,全データ!$C:$CI,G$1,0))/2 -> 31.16666667 | I71: =VLOOKUP($C71,全データ!$C:$CI,I$1,0) -> 196 | J71: =VLOOKUP($C71,全データ!$C:$CI,J$1,0) -> × | K71: =VLOOKUP($C71,全データ!$C:$CI,K$1,0) -> 6.7 | L71: =VLOOKUP($C71,全データ!$C:$CI,L$1,0) -> 12.01 | M71: =(VLOOKUP($C71,全データ!$C:$CI,K$1,0)+VLOOKUP($C71,全データ!$C:$CI,L$1,0))/2 -> 9.355 | N71: =VLOOKUP($C71,全データ!$C:$CI,N$1,0) -> 42.7927542 | O71: =VLOOKUP($C71,全データ!$C:$CI,O$1,0) -> 13653.26653 | P71: =VLOOKUP($C71,全データ!$C:$CI,P$1,0) -> 0.4061295983 | Q71: =VLOOKUP($C71,全データ!$C:$CI,Q$1,0) -> -0.1758687094 | R71: =VLOOKUP($C71,全データ!$C:$CI,R$1,0) -> 352.7635794 | S71: =VLOOKUP($C71,全データ!$C:$CI,S$1,0) -> 0.008401026574 | T71: =VLOOKUP($C71,全データ!$C:$CI,T$1,0) -> 2.2728938 | U71: =VLOOKUP($C71,全データ!$C:$CI,U$1,0) -> 22.78699292 | V71: =VLOOKUP($C71,全データ!$C:$CI,V$1,0) -> 0.0672550879 | W71: =VLOOKUP($C71,全データ!$C:$CI,W$1,0) -> 0.003433156545 | X71: =VLOOKUP($C71,全データ!$C:$CI,X$1,0) -> - | Y71: =VLOOKUP($C71,全データ!$C:$CI,Y$1,0) -> ○ | Z71: =IFERROR(VLOOKUP($C71,全データ!$C:$CI,Z$1,0)&"","") ->  | AA71: =IFERROR(VLOOKUP($C71,全データ!$C:$CI,AA$1,0)&"","") ->  | AB71: =IFERROR(VLOOKUP($C71,全データ!$C:$CI,AB$1,0)&"","") ->  | AC71: =IFERROR(VLOOKUP($C71,全データ!$C:$CI,AC$1,0)&"","") ->  | AD71: =IFERROR(VLOOKUP($C71,全データ!$C:$CI,AD$1,0)&"","") ->  | AE71: =IFERROR(VLOOKUP($C71,全データ!$C:$CI,AE$1,0)&"","") ->  | AF71: =IFERROR(VLOOKUP($C71,全データ!$C:$CI,AF$1,0)&"","") ->  | AG71: =IFERROR(VLOOKUP($C71,全データ!$C:$CI,AG$1,0)&"","") ->  | AH71: =IFERROR(VLOOKUP($C71,全データ!$C:$CI,AH$1,0)&"","") -> ○ | AI71: =IFERROR(VLOOKUP($C71,全データ!$C:$CI,AI$1,0)&"","") ->  | AJ71: =IFERROR(VLOOKUP($C71,全データ!$C:$CI,AJ$1,0)&"","") ->  | AK71: =IFERROR(VLOOKUP($C71,全データ!$C:$CI,AK$1,0)&"","") ->  | AL71: =IFERROR(VLOOKUP($C71,全データ!$C:$CI,AL$1,0)&"","") ->  | AM71: =IFERROR(VLOOKUP($C71,全データ!$C:$CI,AM$1,0)&"","") ->  | AN71: =IFERROR(VLOOKUP($C71,全データ!$C:$CI,AN$1,0)&"","") ->  | AO71: =IFERROR(VLOOKUP($C71,全データ!$C:$CI,AO$1,0)&"","") ->  | AP71: =IFERROR(VLOOKUP($C71,全データ!$C:$CI,AP$1,0)&"","") ->  | AQ71: =IFERROR(VLOOKUP($C71,全データ!$C:$CI,AQ$1,0)&"","") ->  | AR71: =IFERROR(VLOOKUP($C71,全データ!$C:$CI,AR$1,0)&"","") ->  | AS71: =IFERROR(VLOOKUP($C71,全データ!$C:$CI,AS$1,0)&"","") ->  | AT71: =IFERROR(VLOOKUP($C71,全データ!$C:$CI,AT$1,0)&"","") ->  | AU71: =IFERROR(VLOOKUP($C71,全データ!$C:$CI,AU$1,0)&"","") ->  | AV71: =IFERROR(VLOOKUP($C71,全データ!$C:$CI,AV$1,0)&"","") ->  | AW71: =IFERROR(VLOOKUP($C71,全データ!$C:$CI,AW$1,0)&"","") ->  | AX71: =COUNTIF($Z71:$AG71,"○") -> 0 | AY71: =COUNTIF($AH71:$AK71,"○") -> 1 | AZ71: =COUNTIF($AL71:$AS71,"○") -> 0 | BA71: =COUNTIF(AT71:AW71,"○")+COUNTIF(AT71:AW71,"◎") -> 0 | BB71: =SUM(AX71:BA71) -> 1 | BC71: =VLOOKUP($C71,点数集計!$C:$CL,ようこそ!$G$19,0) -> 
A72: =A71+1 -> 68 | B72: JR総武線 | C72: 新検見川 | D72: =IFERROR(VLOOKUP($C72,全データ!$C:$CI,D$1,0)&"","") -> 千葉県 | E72: =IFERROR(VLOOKUP($C72,全データ!$C:$CI,E$1,0)&"","") -> 千葉市花見川区 | F72: =VLOOKUP($C72,全データ!$C:$CI,F$1,0) -> 49.66666667 | G72: =VLOOKUP($C72,全データ!$C:$CI,G$1,0) -> 65.66666667 | H72: =(VLOOKUP($C72,全データ!$C:$CI,F$1,0)+VLOOKUP($C72,全データ!$C:$CI,G$1,0))/2 -> 57.66666667 | I72: =VLOOKUP($C72,全データ!$C:$CI,I$1,0) -> 196 | J72: =VLOOKUP($C72,全データ!$C:$CI,J$1,0) -> × | K72: =VLOOKUP($C72,全データ!$C:$CI,K$1,0) -> 5.35 | L72: =VLOOKUP($C72,全データ!$C:$CI,L$1,0) -> 8.85 | M72: =(VLOOKUP($C72,全データ!$C:$CI,K$1,0)+VLOOKUP($C72,全データ!$C:$CI,L$1,0))/2 -> 7.1 | N72: =VLOOKUP($C72,全データ!$C:$CI,N$1,0) -> 46.64758065 | O72: =VLOOKUP($C72,全データ!$C:$CI,O$1,0) -> 9670.356927 | P72: =VLOOKUP($C72,全データ!$C:$CI,P$1,0) -> 0.3362732727 | Q72: =VLOOKUP($C72,全データ!$C:$CI,Q$1,0) -> -0.2026506696 | R72: =VLOOKUP($C72,全データ!$C:$CI,R$1,0) -> 361.8675968 | S72: =VLOOKUP($C72,全データ!$C:$CI,S$1,0) -> 0.006893655737 | T72: =VLOOKUP($C72,全データ!$C:$CI,T$1,0) -> 0.6118359375 | U72: =VLOOKUP($C72,全データ!$C:$CI,U$1,0) -> 1.026817371 | V72: =VLOOKUP($C72,全データ!$C:$CI,V$1,0) -> 0.02263010888 | W72: =VLOOKUP($C72,全データ!$C:$CI,W$1,0) -> -0.009665706912 | X72: =VLOOKUP($C72,全データ!$C:$CI,X$1,0) -> - | Y72: =VLOOKUP($C72,全データ!$C:$CI,Y$1,0) -> ○ | Z72: =IFERROR(VLOOKUP($C72,全データ!$C:$CI,Z$1,0)&"","") ->  | AA72: =IFERROR(VLOOKUP($C72,全データ!$C:$CI,AA$1,0)&"","") ->  | AB72: =IFERROR(VLOOKUP($C72,全データ!$C:$CI,AB$1,0)&"","") ->  | AC72: =IFERROR(VLOOKUP($C72,全データ!$C:$CI,AC$1,0)&"","") ->  | AD72: =IFERROR(VLOOKUP($C72,全データ!$C:$CI,AD$1,0)&"","") ->  | AE72: =IFERROR(VLOOKUP($C72,全データ!$C:$CI,AE$1,0)&"","") ->  | AF72: =IFERROR(VLOOKUP($C72,全データ!$C:$CI,AF$1,0)&"","") ->  | AG72: =IFERROR(VLOOKUP($C72,全データ!$C:$CI,AG$1,0)&"","") ->  | AH72: =IFERROR(VLOOKUP($C72,全データ!$C:$CI,AH$1,0)&"","") ->  | AI72: =IFERROR(VLOOKUP($C72,全データ!$C:$CI,AI$1,0)&"","") ->  | AJ72: =IFERROR(VLOOKUP($C72,全データ!$C:$CI,AJ$1,0)&"","") -> ○ | AK72: =IFERROR(VLOOKUP($C72,全データ!$C:$CI,AK$1,0)&"","") ->  | AL72: =IFERROR(VLOOKUP($C72,全データ!$C:$CI,AL$1,0)&"","") ->  | AM72: =IFERROR(VLOOKUP($C72,全データ!$C:$CI,AM$1,0)&"","") ->  | AN72: =IFERROR(VLOOKUP($C72,全データ!$C:$CI,AN$1,0)&"","") ->  | AO72: =IFERROR(VLOOKUP($C72,全データ!$C:$CI,AO$1,0)&"","") ->  | AP72: =IFERROR(VLOOKUP($C72,全データ!$C:$CI,AP$1,0)&"","") ->  | AQ72: =IFERROR(VLOOKUP($C72,全データ!$C:$CI,AQ$1,0)&"","") ->  | AR72: =IFERROR(VLOOKUP($C72,全データ!$C:$CI,AR$1,0)&"","") ->  | AS72: =IFERROR(VLOOKUP($C72,全データ!$C:$CI,AS$1,0)&"","") ->  | AT72: =IFERROR(VLOOKUP($C72,全データ!$C:$CI,AT$1,0)&"","") ->  | AU72: =IFERROR(VLOOKUP($C72,全データ!$C:$CI,AU$1,0)&"","") ->  | AV72: =IFERROR(VLOOKUP($C72,全データ!$C:$CI,AV$1,0)&"","") ->  | AW72: =IFERROR(VLOOKUP($C72,全データ!$C:$CI,AW$1,0)&"","") ->  | AX72: =COUNTIF($Z72:$AG72,"○") -> 0 | AY72: =COUNTIF($AH72:$AK72,"○") -> 1 | AZ72: =COUNTIF($AL72:$AS72,"○") -> 0 | BA72: =COUNTIF(AT72:AW72,"○")+COUNTIF(AT72:AW72,"◎") -> 0 | BB72: =SUM(AX72:BA72) -> 1 | BC72: =VLOOKUP($C72,点数集計!$C:$CL,ようこそ!$G$19,0) -> 
A73: =A72+1 -> 69 | B73: JR総武線 | C73: 両国 | D73: =IFERROR(VLOOKUP($C73,全データ!$C:$CI,D$1,0)&"","") -> 東京都 | E73: =IFERROR(VLOOKUP($C73,全データ!$C:$CI,E$1,0)&"","") -> 墨田区 | F73: =VLOOKUP($C73,全データ!$C:$CI,F$1,0) -> 14.33333333 | G73: =VLOOKUP($C73,全データ!$C:$CI,G$1,0) -> 21 | H73: =(VLOOKUP($C73,全データ!$C:$CI,F$1,0)+VLOOKUP($C73,全データ!$C:$CI,G$1,0))/2 -> 17.66666667 | I73: =VLOOKUP($C73,全データ!$C:$CI,I$1,0) -> 196 | J73: =VLOOKUP($C73,全データ!$C:$CI,J$1,0) -> × | K73: =VLOOKUP($C73,全データ!$C:$CI,K$1,0) -> 10.58 | L73: =VLOOKUP($C73,全データ!$C:$CI,L$1,0) -> 16.96 | M73: =(VLOOKUP($C73,全データ!$C:$CI,K$1,0)+VLOOKUP($C73,全データ!$C:$CI,L$1,0))/2 -> 13.77 | N73: =VLOOKUP($C73,全データ!$C:$CI,N$1,0) -> 43.93977273 | O73: =VLOOKUP($C73,全データ!$C:$CI,O$1,0) -> 18611.03849 | P73: =VLOOKUP($C73,全データ!$C:$CI,P$1,0) -> 0.4812286689 | Q73: =VLOOKUP($C73,全データ!$C:$CI,Q$1,0) -> 0.08938479908 | R73: =VLOOKUP($C73,全データ!$C:$CI,R$1,0) -> 364.2239277 | S73: =VLOOKUP($C73,全データ!$C:$CI,S$1,0) -> 0.008481952568 | T73: =VLOOKUP($C73,全データ!$C:$CI,T$1,0) -> 2.205034455 | U73: =VLOOKUP($C73,全データ!$C:$CI,U$1,0) -> 17.67358667 | V73: =VLOOKUP($C73,全データ!$C:$CI,V$1,0) -> 0.05750431282 | W73: =VLOOKUP($C73,全データ!$C:$CI,W$1,0) -> 0.03500722923 | X73: =VLOOKUP($C73,全データ!$C:$CI,X$1,0) -> - | Y73: =VLOOKUP($C73,全データ!$C:$CI,Y$1,0) -> ○ | Z73: =IFERROR(VLOOKUP($C73,全データ!$C:$CI,Z$1,0)&"","") ->  | AA73: =IFERROR(VLOOKUP($C73,全データ!$C:$CI,AA$1,0)&"","") ->  | AB73: =IFERROR(VLOOKUP($C73,全データ!$C:$CI,AB$1,0)&"","") ->  | AC73: =IFERROR(VLOOKUP($C73,全データ!$C:$CI,AC$1,0)&"","") ->  | AD73: =IFERROR(VLOOKUP($C73,全データ!$C:$CI,AD$1,0)&"","") ->  | AE73: =IFERROR(VLOOKUP($C73,全データ!$C:$CI,AE$1,0)&"","") ->  | AF73: =IFERROR(VLOOKUP($C73,全データ!$C:$CI,AF$1,0)&"","") ->  | AG73: =IFERROR(VLOOKUP($C73,全データ!$C:$CI,AG$1,0)&"","") ->  | AH73: =IFERROR(VLOOKUP($C73,全データ!$C:$CI,AH$1,0)&"","") ->  | AI73: =IFERROR(VLOOKUP($C73,全データ!$C:$CI,AI$1,0)&"","") ->  | AJ73: =IFERROR(VLOOKUP($C73,全データ!$C:$CI,AJ$1,0)&"","") ->  | AK73: =IFERROR(VLOOKUP($C73,全データ!$C:$CI,AK$1,0)&"","") ->  | AL73: =IFERROR(VLOOKUP($C73,全データ!$C:$CI,AL$1,0)&"","") ->  | AM73: =IFERROR(VLOOKUP($C73,全データ!$C:$CI,AM$1,0)&"","") ->  | AN73: =IFERROR(VLOOKUP($C73,全データ!$C:$CI,AN$1,0)&"","") ->  | AO73: =IFERROR(VLOOKUP($C73,全データ!$C:$CI,AO$1,0)&"","") ->  | AP73: =IFERROR(VLOOKUP($C73,全データ!$C:$CI,AP$1,0)&"","") ->  | AQ73: =IFERROR(VLOOKUP($C73,全データ!$C:$CI,AQ$1,0)&"","") ->  | AR73: =IFERROR(VLOOKUP($C73,全データ!$C:$CI,AR$1,0)&"","") ->  | AS73: =IFERROR(VLOOKUP($C73,全データ!$C:$CI,AS$1,0)&"","") ->  | AT73: =IFERROR(VLOOKUP($C73,全データ!$C:$CI,AT$1,0)&"","") ->  | AU73: =IFERROR(VLOOKUP($C73,全データ!$C:$CI,AU$1,0)&"","") ->  | AV73: =IFERROR(VLOOKUP($C73,全データ!$C:$CI,AV$1,0)&"","") ->  | AW73: =IFERROR(VLOOKUP($C73,全データ!$C:$CI,AW$1,0)&"","") -> ○ | AX73: =COUNTIF($Z73:$AG73,"○") -> 0 | AY73: =COUNTIF($AH73:$AK73,"○") -> 0 | AZ73: =COUNTIF($AL73:$AS73,"○") -> 0 | BA73: =COUNTIF(AT73:AW73,"○")+COUNTIF(AT73:AW73,"◎") -> 1 | BB73: =SUM(AX73:BA73) -> 1 | BC73: =VLOOKUP($C73,点数集計!$C:$CL,ようこそ!$G$19,0) -> 
A74: =A73+1 -> 70 | B74: JR中央線 | C74: 豊田 | D74: =IFERROR(VLOOKUP($C74,全データ!$C:$CI,D$1,0)&"","") -> 東京都 | E74: =IFERROR(VLOOKUP($C74,全データ!$C:$CI,E$1,0)&"","") -> 日野市 | F74: =VLOOKUP($C74,全データ!$C:$CI,F$1,0) -> 64 | G74: =VLOOKUP($C74,全データ!$C:$CI,G$1,0) -> 50.33333333 | H74: =(VLOOKUP($C74,全データ!$C:$CI,F$1,0)+VLOOKUP($C74,全データ!$C:$CI,G$1,0))/2 -> 57.16666667 | I74: =VLOOKUP($C74,全データ!$C:$CI,I$1,0) -> 50 | J74: =VLOOKUP($C74,全データ!$C:$CI,J$1,0) -> ○ | K74: =VLOOKUP($C74,全データ!$C:$CI,K$1,0) -> 6.32 | L74: =VLOOKUP($C74,全データ!$C:$CI,L$1,0) -> 11.69 | M74: =(VLOOKUP($C74,全データ!$C:$CI,K$1,0)+VLOOKUP($C74,全データ!$C:$CI,L$1,0))/2 -> 9.005 | N74: =VLOOKUP($C74,全データ!$C:$CI,N$1,0) -> 44.0474026 | O74: =VLOOKUP($C74,全データ!$C:$CI,O$1,0) -> 7494.448947 | P74: =VLOOKUP($C74,全データ!$C:$CI,P$1,0) -> 0.4040177782 | Q74: =VLOOKUP($C74,全データ!$C:$CI,Q$1,0) -> -0.1218092902 | R74: =VLOOKUP($C74,全データ!$C:$CI,R$1,0) -> 367.4992422 | S74: =VLOOKUP($C74,全データ!$C:$CI,S$1,0) -> 0.006021076825 | T74: =VLOOKUP($C74,全データ!$C:$CI,T$1,0) -> 4.48582533 | U74: =VLOOKUP($C74,全データ!$C:$CI,U$1,0) -> 2.241259719 | V74: =VLOOKUP($C74,全データ!$C:$CI,V$1,0) -> 0.02419555999 | W74: =VLOOKUP($C74,全データ!$C:$CI,W$1,0) -> 0.03460666918 | X74: =VLOOKUP($C74,全データ!$C:$CI,X$1,0) -> - | Y74: =VLOOKUP($C74,全データ!$C:$CI,Y$1,0) -> ○ | Z74: =IFERROR(VLOOKUP($C74,全データ!$C:$CI,Z$1,0)&"","") ->  | AA74: =IFERROR(VLOOKUP($C74,全データ!$C:$CI,AA$1,0)&"","") ->  | AB74: =IFERROR(VLOOKUP($C74,全データ!$C:$CI,AB$1,0)&"","") ->  | AC74: =IFERROR(VLOOKUP($C74,全データ!$C:$CI,AC$1,0)&"","") ->  | AD74: =IFERROR(VLOOKUP($C74,全データ!$C:$CI,AD$1,0)&"","") ->  | AE74: =IFERROR(VLOOKUP($C74,全データ!$C:$CI,AE$1,0)&"","") ->  | AF74: =IFERROR(VLOOKUP($C74,全データ!$C:$CI,AF$1,0)&"","") ->  | AG74: =IFERROR(VLOOKUP($C74,全データ!$C:$CI,AG$1,0)&"","") ->  | AH74: =IFERROR(VLOOKUP($C74,全データ!$C:$CI,AH$1,0)&"","") ->  | AI74: =IFERROR(VLOOKUP($C74,全データ!$C:$CI,AI$1,0)&"","") -> ○ | AJ74: =IFERROR(VLOOKUP($C74,全データ!$C:$CI,AJ$1,0)&"","") -> ○ | AK74: =IFERROR(VLOOKUP($C74,全データ!$C:$CI,AK$1,0)&"","") ->  | AL74: =IFERROR(VLOOKUP($C74,全データ!$C:$CI,AL$1,0)&"","") ->  | AM74: =IFERROR(VLOOKUP($C74,全データ!$C:$CI,AM$1,0)&"","") ->  | AN74: =IFERROR(VLOOKUP($C74,全データ!$C:$CI,AN$1,0)&"","") ->  | AO74: =IFERROR(VLOOKUP($C74,全データ!$C:$CI,AO$1,0)&"","") ->  | AP74: =IFERROR(VLOOKUP($C74,全データ!$C:$CI,AP$1,0)&"","") -> ○ | AQ74: =IFERROR(VLOOKUP($C74,全データ!$C:$CI,AQ$1,0)&"","") ->  | AR74: =IFERROR(VLOOKUP($C74,全データ!$C:$CI,AR$1,0)&"","") ->  | AS74: =IFERROR(VLOOKUP($C74,全データ!$C:$CI,AS$1,0)&"","") ->  | AT74: =IFERROR(VLOOKUP($C74,全データ!$C:$CI,AT$1,0)&"","") -> ○ | AU74: =IFERROR(VLOOKUP($C74,全データ!$C:$CI,AU$1,0)&"","") ->  | AV74: =IFERROR(VLOOKUP($C74,全データ!$C:$CI,AV$1,0)&"","") ->  | AW74: =IFERROR(VLOOKUP($C74,全データ!$C:$CI,AW$1,0)&"","") ->  | AX74: =COUNTIF($Z74:$AG74,"○") -> 0 | AY74: =COUNTIF($AH74:$AK74,"○") -> 2 | AZ74: =COUNTIF($AL74:$AS74,"○") -> 1 | BA74: =COUNTIF(AT74:AW74,"○")+COUNTIF(AT74:AW74,"◎") -> 1 | BB74: =SUM(AX74:BA74) -> 4 | BC74: =VLOOKUP($C74,点数集計!$C:$CL,ようこそ!$G$19,0) -> 
A75: =A74+1 -> 71 | B75: JR中央線 | C75: 武蔵小金井 | D75: =IFERROR(VLOOKUP($C75,全データ!$C:$CI,D$1,0)&"","") -> 東京都 | E75: =IFERROR(VLOOKUP($C75,全データ!$C:$CI,E$1,0)&"","") -> 小金井市 | F75: =VLOOKUP($C75,全データ!$C:$CI,F$1,0) -> 47.33333333 | G75: =VLOOKUP($C75,全データ!$C:$CI,G$1,0) -> 33.33333333 | H75: =(VLOOKUP($C75,全データ!$C:$CI,F$1,0)+VLOOKUP($C75,全データ!$C:$CI,G$1,0))/2 -> 40.33333333 | I75: =VLOOKUP($C75,全データ!$C:$CI,I$1,0) -> 182 | J75: =VLOOKUP($C75,全データ!$C:$CI,J$1,0) -> △ | K75: =VLOOKUP($C75,全データ!$C:$CI,K$1,0) -> 6.72 | L75: =VLOOKUP($C75,全データ!$C:$CI,L$1,0) -> 14.05 | M75: =(VLOOKUP($C75,全データ!$C:$CI,K$1,0)+VLOOKUP($C75,全データ!$C:$CI,L$1,0))/2 -> 10.385 | N75: =VLOOKUP($C75,全データ!$C:$CI,N$1,0) -> 42.76602046 | O75: =VLOOKUP($C75,全データ!$C:$CI,O$1,0) -> 10743.00885 | P75: =VLOOKUP($C75,全データ!$C:$CI,P$1,0) -> 0.4709341285 | Q75: =VLOOKUP($C75,全データ!$C:$CI,Q$1,0) -> -0.141182576 | R75: =VLOOKUP($C75,全データ!$C:$CI,R$1,0) -> 411.3999173 | S75: =VLOOKUP($C75,全データ!$C:$CI,S$1,0) -> 0.007270495027 | T75: =VLOOKUP($C75,全データ!$C:$CI,T$1,0) -> 3.93875416 | U75: =VLOOKUP($C75,全データ!$C:$CI,U$1,0) -> 1.921060073 | V75: =VLOOKUP($C75,全データ!$C:$CI,V$1,0) -> 0.04826599928 | W75: =VLOOKUP($C75,全データ!$C:$CI,W$1,0) -> 0.02140477232 | X75: =VLOOKUP($C75,全データ!$C:$CI,X$1,0) -> - | Y75: =VLOOKUP($C75,全データ!$C:$CI,Y$1,0) -> ○ | Z75: =IFERROR(VLOOKUP($C75,全データ!$C:$CI,Z$1,0)&"","") -> ○ | AA75: =IFERROR(VLOOKUP($C75,全データ!$C:$CI,AA$1,0)&"","") ->  | AB75: =IFERROR(VLOOKUP($C75,全データ!$C:$CI,AB$1,0)&"","") ->  | AC75: =IFERROR(VLOOKUP($C75,全データ!$C:$CI,AC$1,0)&"","") ->  | AD75: =IFERROR(VLOOKUP($C75,全データ!$C:$CI,AD$1,0)&"","") ->  | AE75: =IFERROR(VLOOKUP($C75,全データ!$C:$CI,AE$1,0)&"","") ->  | AF75: =IFERROR(VLOOKUP($C75,全データ!$C:$CI,AF$1,0)&"","") ->  | AG75: =IFERROR(VLOOKUP($C75,全データ!$C:$CI,AG$1,0)&"","") ->  | AH75: =IFERROR(VLOOKUP($C75,全データ!$C:$CI,AH$1,0)&"","") -> ○ | AI75: =IFERROR(VLOOKUP($C75,全データ!$C:$CI,AI$1,0)&"","") -> ○ | AJ75: =IFERROR(VLOOKUP($C75,全データ!$C:$CI,AJ$1,0)&"","") ->  | AK75: =IFERROR(VLOOKUP($C75,全データ!$C:$CI,AK$1,0)&"","") -> ○ | AL75: =IFERROR(VLOOKUP($C75,全データ!$C:$CI,AL$1,0)&"","") ->  | AM75: =IFERROR(VLOOKUP($C75,全データ!$C:$CI,AM$1,0)&"","") ->  | AN75: =IFERROR(VLOOKUP($C75,全データ!$C:$CI,AN$1,0)&"","") ->  | AO75: =IFERROR(VLOOKUP($C75,全データ!$C:$CI,AO$1,0)&"","") ->  | AP75: =IFERROR(VLOOKUP($C75,全データ!$C:$CI,AP$1,0)&"","") -> ○ | AQ75: =IFERROR(VLOOKUP($C75,全データ!$C:$CI,AQ$1,0)&"","") ->  | AR75: =IFERROR(VLOOKUP($C75,全データ!$C:$CI,AR$1,0)&"","") ->  | AS75: =IFERROR(VLOOKUP($C75,全データ!$C:$CI,AS$1,0)&"","") ->  | AT75: =IFERROR(VLOOKUP($C75,全データ!$C:$CI,AT$1,0)&"","") ->  | AU75: =IFERROR(VLOOKUP($C75,全データ!$C:$CI,AU$1,0)&"","") ->  | AV75: =IFERROR(VLOOKUP($C75,全データ!$C:$CI,AV$1,0)&"","") ->  | AW75: =IFERROR(VLOOKUP($C75,全データ!$C:$CI,AW$1,0)&"","") -> ○ | AX75: =COUNTIF($Z75:$AG75,"○") -> 1 | AY75: =COUNTIF($AH75:$AK75,"○") -> 3 | AZ75: =COUNTIF($AL75:$AS75,"○") -> 1 | BA75: =COUNTIF(AT75:AW75,"○")+COUNTIF(AT75:AW75,"◎") -> 1 | BB75: =SUM(AX75:BA75) -> 6 | BC75: =VLOOKUP($C75,点数集計!$C:$CL,ようこそ!$G$19,0) -> 
A76: =A75+1 -> 72 | B76: JR中央線 | C76: 東小金井 | D76: =IFERROR(VLOOKUP($C76,全データ!$C:$CI,D$1,0)&"","") -> 東京都 | E76: =IFERROR(VLOOKUP($C76,全データ!$C:$CI,E$1,0)&"","") -> 国分寺市 | F76: =VLOOKUP($C76,全データ!$C:$CI,F$1,0) -> 44.66666667 | G76: =VLOOKUP($C76,全データ!$C:$CI,G$1,0) -> 29.66666667 | H76: =(VLOOKUP($C76,全データ!$C:$CI,F$1,0)+VLOOKUP($C76,全データ!$C:$CI,G$1,0))/2 -> 37.16666667 | I76: =VLOOKUP($C76,全データ!$C:$CI,I$1,0) -> 182 | J76: =VLOOKUP($C76,全データ!$C:$CI,J$1,0) -> × | K76: =VLOOKUP($C76,全データ!$C:$CI,K$1,0) -> 5.97 | L76: =VLOOKUP($C76,全データ!$C:$CI,L$1,0) -> 12.01 | M76: =(VLOOKUP($C76,全データ!$C:$CI,K$1,0)+VLOOKUP($C76,全データ!$C:$CI,L$1,0))/2 -> 8.99 | N76: =VLOOKUP($C76,全データ!$C:$CI,N$1,0) -> 43.46664902 | O76: =VLOOKUP($C76,全データ!$C:$CI,O$1,0) -> 10710.4712 | P76: =VLOOKUP($C76,全データ!$C:$CI,P$1,0) -> 0.4479513954 | Q76: =VLOOKUP($C76,全データ!$C:$CI,Q$1,0) -> -0.146706099 | R76: =VLOOKUP($C76,全データ!$C:$CI,R$1,0) -> 423.2190758 | S76: =VLOOKUP($C76,全データ!$C:$CI,S$1,0) -> 0.006568959756 | T76: =VLOOKUP($C76,全データ!$C:$CI,T$1,0) -> 4.951214743 | U76: =VLOOKUP($C76,全データ!$C:$CI,U$1,0) -> 0.3774526185 | V76: =VLOOKUP($C76,全データ!$C:$CI,V$1,0) -> 0.05800464037 | W76: =VLOOKUP($C76,全データ!$C:$CI,W$1,0) -> 0.01733941152 | X76: =VLOOKUP($C76,全データ!$C:$CI,X$1,0) -> - | Y76: =VLOOKUP($C76,全データ!$C:$CI,Y$1,0) -> ○ | Z76: =IFERROR(VLOOKUP($C76,全データ!$C:$CI,Z$1,0)&"","") -> ○ | AA76: =IFERROR(VLOOKUP($C76,全データ!$C:$CI,AA$1,0)&"","") ->  | AB76: =IFERROR(VLOOKUP($C76,全データ!$C:$CI,AB$1,0)&"","") ->  | AC76: =IFERROR(VLOOKUP($C76,全データ!$C:$CI,AC$1,0)&"","") ->  | AD76: =IFERROR(VLOOKUP($C76,全データ!$C:$CI,AD$1,0)&"","") ->  | AE76: =IFERROR(VLOOKUP($C76,全データ!$C:$CI,AE$1,0)&"","") -> ○ | AF76: =IFERROR(VLOOKUP($C76,全データ!$C:$CI,AF$1,0)&"","") ->  | AG76: =IFERROR(VLOOKUP($C76,全データ!$C:$CI,AG$1,0)&"","") ->  | AH76: =IFERROR(VLOOKUP($C76,全データ!$C:$CI,AH$1,0)&"","") ->  | AI76: =IFERROR(VLOOKUP($C76,全データ!$C:$CI,AI$1,0)&"","") ->  | AJ76: =IFERROR(VLOOKUP($C76,全データ!$C:$CI,AJ$1,0)&"","") ->  | AK76: =IFERROR(VLOOKUP($C76,全データ!$C:$CI,AK$1,0)&"","") ->  | AL76: =IFERROR(VLOOKUP($C76,全データ!$C:$CI,AL$1,0)&"","") ->  | AM76: =IFERROR(VLOOKUP($C76,全データ!$C:$CI,AM$1,0)&"","") ->  | AN76: =IFERROR(VLOOKUP($C76,全データ!$C:$CI,AN$1,0)&"","") ->  | AO76: =IFERROR(VLOOKUP($C76,全データ!$C:$CI,AO$1,0)&"","") ->  | AP76: =IFERROR(VLOOKUP($C76,全データ!$C:$CI,AP$1,0)&"","") ->  | AQ76: =IFERROR(VLOOKUP($C76,全データ!$C:$CI,AQ$1,0)&"","") ->  | AR76: =IFERROR(VLOOKUP($C76,全データ!$C:$CI,AR$1,0)&"","") ->  | AS76: =IFERROR(VLOOKUP($C76,全データ!$C:$CI,AS$1,0)&"","") ->  | AT76: =IFERROR(VLOOKUP($C76,全データ!$C:$CI,AT$1,0)&"","") ->  | AU76: =IFERROR(VLOOKUP($C76,全データ!$C:$CI,AU$1,0)&"","") ->  | AV76: =IFERROR(VLOOKUP($C76,全データ!$C:$CI,AV$1,0)&"","") ->  | AW76: =IFERROR(VLOOKUP($C76,全データ!$C:$CI,AW$1,0)&"","") -> ○ | AX76: =COUNTIF($Z76:$AG76,"○") -> 2 | AY76: =COUNTIF($AH76:$AK76,"○") -> 0 | AZ76: =COUNTIF($AL76:$AS76,"○") -> 0 | BA76: =COUNTIF(AT76:AW76,"○")+COUNTIF(AT76:AW76,"◎") -> 1 | BB76: =SUM(AX76:BA76) -> 3 | BC76: =VLOOKUP($C76,点数集計!$C:$CL,ようこそ!$G$19,0) -> 
A77: =A76+1 -> 73 | B77: JR中央線 | C77: 八王子 | D77: =IFERROR(VLOOKUP($C77,全データ!$C:$CI,D$1,0)&"","") -> 東京都 | E77: =IFERROR(VLOOKUP($C77,全データ!$C:$CI,E$1,0)&"","") -> 八王子市 | F77: =VLOOKUP($C77,全データ!$C:$CI,F$1,0) -> 70 | G77: =VLOOKUP($C77,全データ!$C:$CI,G$1,0) -> 53.66666667 | H77: =(VLOOKUP($C77,全データ!$C:$CI,F$1,0)+VLOOKUP($C77,全データ!$C:$CI,G$1,0))/2 -> 61.83333333 | I77: =VLOOKUP($C77,全データ!$C:$CI,I$1,0) -> 50 | J77: =VLOOKUP($C77,全データ!$C:$CI,J$1,0) -> ○ | K77: =VLOOKUP($C77,全データ!$C:$CI,K$1,0) -> 5.75 | L77: =VLOOKUP($C77,全データ!$C:$CI,L$1,0) -> 13.15 | M77: =(VLOOKUP($C77,全データ!$C:$CI,K$1,0)+VLOOKUP($C77,全データ!$C:$CI,L$1,0))/2 -> 9.45 | N77: =VLOOKUP($C77,全データ!$C:$CI,N$1,0) -> 45.36741738 | O77: =VLOOKUP($C77,全データ!$C:$CI,O$1,0) -> 8247.512755 | P77: =VLOOKUP($C77,全データ!$C:$CI,P$1,0) -> 0.3861572821 | Q77: =VLOOKUP($C77,全データ!$C:$CI,Q$1,0) -> -0.002204279384 | R77: =VLOOKUP($C77,全データ!$C:$CI,R$1,0) -> 351.0094968 | S77: =VLOOKUP($C77,全データ!$C:$CI,S$1,0) -> 0.006020061086 | T77: =VLOOKUP($C77,全データ!$C:$CI,T$1,0) -> 2.871050522 | U77: =VLOOKUP($C77,全データ!$C:$CI,U$1,0) -> 99.30803644 | V77: =VLOOKUP($C77,全データ!$C:$CI,V$1,0) -> 0.01150333685 | W77: =VLOOKUP($C77,全データ!$C:$CI,W$1,0) -> -0.004378910203 | X77: =VLOOKUP($C77,全データ!$C:$CI,X$1,0) -> - | Y77: =VLOOKUP($C77,全データ!$C:$CI,Y$1,0) -> ○ | Z77: =IFERROR(VLOOKUP($C77,全データ!$C:$CI,Z$1,0)&"","") ->  | AA77: =IFERROR(VLOOKUP($C77,全データ!$C:$CI,AA$1,0)&"","") ->  | AB77: =IFERROR(VLOOKUP($C77,全データ!$C:$CI,AB$1,0)&"","") ->  | AC77: =IFERROR(VLOOKUP($C77,全データ!$C:$CI,AC$1,0)&"","") ->  | AD77: =IFERROR(VLOOKUP($C77,全データ!$C:$CI,AD$1,0)&"","") ->  | AE77: =IFERROR(VLOOKUP($C77,全データ!$C:$CI,AE$1,0)&"","") ->  | AF77: =IFERROR(VLOOKUP($C77,全データ!$C:$CI,AF$1,0)&"","") ->  | AG77: =IFERROR(VLOOKUP($C77,全データ!$C:$CI,AG$1,0)&"","") ->  | AH77: =IFERROR(VLOOKUP($C77,全データ!$C:$CI,AH$1,0)&"","") ->  | AI77: =IFERROR(VLOOKUP($C77,全データ!$C:$CI,AI$1,0)&"","") -> ○ | AJ77: =IFERROR(VLOOKUP($C77,全データ!$C:$CI,AJ$1,0)&"","") ->  | AK77: =IFERROR(VLOOKUP($C77,全データ!$C:$CI,AK$1,0)&"","") ->  | AL77: =IFERROR(VLOOKUP($C77,全データ!$C:$CI,AL$1,0)&"","") ->  | AM77: =IFERROR(VLOOKUP($C77,全データ!$C:$CI,AM$1,0)&"","") ->  | AN77: =IFERROR(VLOOKUP($C77,全データ!$C:$CI,AN$1,0)&"","") ->  | AO77: =IFERROR(VLOOKUP($C77,全データ!$C:$CI,AO$1,0)&"","") ->  | AP77: =IFERROR(VLOOKUP($C77,全データ!$C:$CI,AP$1,0)&"","") ->  | AQ77: =IFERROR(VLOOKUP($C77,全データ!$C:$CI,AQ$1,0)&"","") ->  | AR77: =IFERROR(VLOOKUP($C77,全データ!$C:$CI,AR$1,0)&"","") ->  | AS77: =IFERROR(VLOOKUP($C77,全データ!$C:$CI,AS$1,0)&"","") ->  | AT77: =IFERROR(VLOOKUP($C77,全データ!$C:$CI,AT$1,0)&"","") ->  | AU77: =IFERROR(VLOOKUP($C77,全データ!$C:$CI,AU$1,0)&"","") ->  | AV77: =IFERROR(VLOOKUP($C77,全データ!$C:$CI,AV$1,0)&"","") -> ○ | AW77: =IFERROR(VLOOKUP($C77,全データ!$C:$CI,AW$1,0)&"","") -> ◎ | AX77: =COUNTIF($Z77:$AG77,"○") -> 0 | AY77: =COUNTIF($AH77:$AK77,"○") -> 1 | AZ77: =COUNTIF($AL77:$AS77,"○") -> 0 | BA77: =COUNTIF(AT77:AW77,"○")+COUNTIF(AT77:AW77,"◎") -> 2 | BB77: =SUM(AX77:BA77) -> 3 | BC77: =VLOOKUP($C77,点数集計!$C:$CL,ようこそ!$G$19,0) -> 
A78: =A77+1 -> 74 | B78: JR中央線 | C78: 阿佐ヶ谷 | D78: =IFERROR(VLOOKUP($C78,全データ!$C:$CI,D$1,0)&"","") -> 東京都 | E78: =IFERROR(VLOOKUP($C78,全データ!$C:$CI,E$1,0)&"","") -> 杉並区 | F78: =VLOOKUP($C78,全データ!$C:$CI,F$1,0) -> 27 | G78: =VLOOKUP($C78,全データ!$C:$CI,G$1,0) -> 13 | H78: =(VLOOKUP($C78,全データ!$C:$CI,F$1,0)+VLOOKUP($C78,全データ!$C:$CI,G$1,0))/2 -> 20 | I78: =VLOOKUP($C78,全データ!$C:$CI,I$1,0) -> 182 | J78: =VLOOKUP($C78,全データ!$C:$CI,J$1,0) -> × | K78: =VLOOKUP($C78,全データ!$C:$CI,K$1,0) -> 7.57 | L78: =VLOOKUP($C78,全データ!$C:$CI,L$1,0) -> 18.09 | M78: =(VLOOKUP($C78,全データ!$C:$CI,K$1,0)+VLOOKUP($C78,全データ!$C:$CI,L$1,0))/2 -> 12.83 | N78: =VLOOKUP($C78,全データ!$C:$CI,N$1,0) -> 43.42835283 | O78: =VLOOKUP($C78,全データ!$C:$CI,O$1,0) -> 16558.92543 | P78: =VLOOKUP($C78,全データ!$C:$CI,P$1,0) -> 0.5627553606 | Q78: =VLOOKUP($C78,全データ!$C:$CI,Q$1,0) -> -0.1489759697 | R78: =VLOOKUP($C78,全データ!$C:$CI,R$1,0) -> 448.6108315 | S78: =VLOOKUP($C78,全データ!$C:$CI,S$1,0) -> 0.006452419397 | T78: =VLOOKUP($C78,全データ!$C:$CI,T$1,0) -> 3.627652275 | U78: =VLOOKUP($C78,全データ!$C:$CI,U$1,0) -> 28.44636439 | V78: =VLOOKUP($C78,全データ!$C:$CI,V$1,0) -> 0.01859998456 | W78: =VLOOKUP($C78,全データ!$C:$CI,W$1,0) -> 0.02625330031 | X78: =VLOOKUP($C78,全データ!$C:$CI,X$1,0) -> - | Y78: =VLOOKUP($C78,全データ!$C:$CI,Y$1,0) -> ○ | Z78: =IFERROR(VLOOKUP($C78,全データ!$C:$CI,Z$1,0)&"","") ->  | AA78: =IFERROR(VLOOKUP($C78,全データ!$C:$CI,AA$1,0)&"","") ->  | AB78: =IFERROR(VLOOKUP($C78,全データ!$C:$CI,AB$1,0)&"","") ->  | AC78: =IFERROR(VLOOKUP($C78,全データ!$C:$CI,AC$1,0)&"","") ->  | AD78: =IFERROR(VLOOKUP($C78,全データ!$C:$CI,AD$1,0)&"","") ->  | AE78: =IFERROR(VLOOKUP($C78,全データ!$C:$CI,AE$1,0)&"","") ->  | AF78: =IFERROR(VLOOKUP($C78,全データ!$C:$CI,AF$1,0)&"","") ->  | AG78: =IFERROR(VLOOKUP($C78,全データ!$C:$CI,AG$1,0)&"","") ->  | AH78: =IFERROR(VLOOKUP($C78,全データ!$C:$CI,AH$1,0)&"","") -> ○ | AI78: =IFERROR(VLOOKUP($C78,全データ!$C:$CI,AI$1,0)&"","") ->  | AJ78: =IFERROR(VLOOKUP($C78,全データ!$C:$CI,AJ$1,0)&"","") -> ○ | AK78: =IFERROR(VLOOKUP($C78,全データ!$C:$CI,AK$1,0)&"","") ->  | AL78: =IFERROR(VLOOKUP($C78,全データ!$C:$CI,AL$1,0)&"","") ->  | AM78: =IFERROR(VLOOKUP($C78,全データ!$C:$CI,AM$1,0)&"","") ->  | AN78: =IFERROR(VLOOKUP($C78,全データ!$C:$CI,AN$1,0)&"","") ->  | AO78: =IFERROR(VLOOKUP($C78,全データ!$C:$CI,AO$1,0)&"","") ->  | AP78: =IFERROR(VLOOKUP($C78,全データ!$C:$CI,AP$1,0)&"","") ->  | AQ78: =IFERROR(VLOOKUP($C78,全データ!$C:$CI,AQ$1,0)&"","") ->  | AR78: =IFERROR(VLOOKUP($C78,全データ!$C:$CI,AR$1,0)&"","") ->  | AS78: =IFERROR(VLOOKUP($C78,全データ!$C:$CI,AS$1,0)&"","") ->  | AT78: =IFERROR(VLOOKUP($C78,全データ!$C:$CI,AT$1,0)&"","") ->  | AU78: =IFERROR(VLOOKUP($C78,全データ!$C:$CI,AU$1,0)&"","") ->  | AV78: =IFERROR(VLOOKUP($C78,全データ!$C:$CI,AV$1,0)&"","") ->  | AW78: =IFERROR(VLOOKUP($C78,全データ!$C:$CI,AW$1,0)&"","") -> ○ | AX78: =COUNTIF($Z78:$AG78,"○") -> 0 | AY78: =COUNTIF($AH78:$AK78,"○") -> 2 | AZ78: =COUNTIF($AL78:$AS78,"○") -> 0 | BA78: =COUNTIF(AT78:AW78,"○")+COUNTIF(AT78:AW78,"◎") -> 1 | BB78: =SUM(AX78:BA78) -> 3 | BC78: =VLOOKUP($C78,点数集計!$C:$CL,ようこそ!$G$19,0) -> 
A79: =A78+1 -> 75 | B79: JR中央線 | C79: 荻窪 | D79: =IFERROR(VLOOKUP($C79,全データ!$C:$CI,D$1,0)&"","") -> 東京都 | E79: =IFERROR(VLOOKUP($C79,全データ!$C:$CI,E$1,0)&"","") -> 杉並区 | F79: =VLOOKUP($C79,全データ!$C:$CI,F$1,0) -> 29.66666667 | G79: =VLOOKUP($C79,全データ!$C:$CI,G$1,0) -> 15.33333333 | H79: =(VLOOKUP($C79,全データ!$C:$CI,F$1,0)+VLOOKUP($C79,全データ!$C:$CI,G$1,0))/2 -> 22.5 | I79: =VLOOKUP($C79,全データ!$C:$CI,I$1,0) -> 182 | J79: =VLOOKUP($C79,全データ!$C:$CI,J$1,0) -> △ | K79: =VLOOKUP($C79,全データ!$C:$CI,K$1,0) -> 8.58 | L79: =VLOOKUP($C79,全データ!$C:$CI,L$1,0) -> 17.77 | M79: =(VLOOKUP($C79,全データ!$C:$CI,K$1,0)+VLOOKUP($C79,全データ!$C:$CI,L$1,0))/2 -> 13.175 | N79: =VLOOKUP($C79,全データ!$C:$CI,N$1,0) -> 43.42835283 | O79: =VLOOKUP($C79,全データ!$C:$CI,O$1,0) -> 16558.92543 | P79: =VLOOKUP($C79,全データ!$C:$CI,P$1,0) -> 0.5627553606 | Q79: =VLOOKUP($C79,全データ!$C:$CI,Q$1,0) -> -0.1489759697 | R79: =VLOOKUP($C79,全データ!$C:$CI,R$1,0) -> 448.6108315 | S79: =VLOOKUP($C79,全データ!$C:$CI,S$1,0) -> 0.006452419397 | T79: =VLOOKUP($C79,全データ!$C:$CI,T$1,0) -> 3.627652275 | U79: =VLOOKUP($C79,全データ!$C:$CI,U$1,0) -> 28.44636439 | V79: =VLOOKUP($C79,全データ!$C:$CI,V$1,0) -> 0.01859998456 | W79: =VLOOKUP($C79,全データ!$C:$CI,W$1,0) -> 0.02625330031 | X79: =VLOOKUP($C79,全データ!$C:$CI,X$1,0) -> - | Y79: =VLOOKUP($C79,全データ!$C:$CI,Y$1,0) -> ○ | Z79: =IFERROR(VLOOKUP($C79,全データ!$C:$CI,Z$1,0)&"","") -> ○ | AA79: =IFERROR(VLOOKUP($C79,全データ!$C:$CI,AA$1,0)&"","") ->  | AB79: =IFERROR(VLOOKUP($C79,全データ!$C:$CI,AB$1,0)&"","") ->  | AC79: =IFERROR(VLOOKUP($C79,全データ!$C:$CI,AC$1,0)&"","") ->  | AD79: =IFERROR(VLOOKUP($C79,全データ!$C:$CI,AD$1,0)&"","") ->  | AE79: =IFERROR(VLOOKUP($C79,全データ!$C:$CI,AE$1,0)&"","") ->  | AF79: =IFERROR(VLOOKUP($C79,全データ!$C:$CI,AF$1,0)&"","") ->  | AG79: =IFERROR(VLOOKUP($C79,全データ!$C:$CI,AG$1,0)&"","") ->  | AH79: =IFERROR(VLOOKUP($C79,全データ!$C:$CI,AH$1,0)&"","") ->  | AI79: =IFERROR(VLOOKUP($C79,全データ!$C:$CI,AI$1,0)&"","") ->  | AJ79: =IFERROR(VLOOKUP($C79,全データ!$C:$CI,AJ$1,0)&"","") -> ○ | AK79: =IFERROR(VLOOKUP($C79,全データ!$C:$CI,AK$1,0)&"","") ->  | AL79: =IFERROR(VLOOKUP($C79,全データ!$C:$CI,AL$1,0)&"","") ->  | AM79: =IFERROR(VLOOKUP($C79,全データ!$C:$CI,AM$1,0)&"","") ->  | AN79: =IFERROR(VLOOKUP($C79,全データ!$C:$CI,AN$1,0)&"","") ->  | AO79: =IFERROR(VLOOKUP($C79,全データ!$C:$CI,AO$1,0)&"","") ->  | AP79: =IFERROR(VLOOKUP($C79,全データ!$C:$CI,AP$1,0)&"","") ->  | AQ79: =IFERROR(VLOOKUP($C79,全データ!$C:$CI,AQ$1,0)&"","") ->  | AR79: =IFERROR(VLOOKUP($C79,全データ!$C:$CI,AR$1,0)&"","") ->  | AS79: =IFERROR(VLOOKUP($C79,全データ!$C:$CI,AS$1,0)&"","") ->  | AT79: =IFERROR(VLOOKUP($C79,全データ!$C:$CI,AT$1,0)&"","") ->  | AU79: =IFERROR(VLOOKUP($C79,全データ!$C:$CI,AU$1,0)&"","") ->  | AV79: =IFERROR(VLOOKUP($C79,全データ!$C:$CI,AV$1,0)&"","") ->  | AW79: =IFERROR(VLOOKUP($C79,全データ!$C:$CI,AW$1,0)&"","") -> ◎ | AX79: =COUNTIF($Z79:$AG79,"○") -> 1 | AY79: =COUNTIF($AH79:$AK79,"○") -> 1 | AZ79: =COUNTIF($AL79:$AS79,"○") -> 0 | BA79: =COUNTIF(AT79:AW79,"○")+COUNTIF(AT79:AW79,"◎") -> 1 | BB79: =SUM(AX79:BA79) -> 3 | BC79: =VLOOKUP($C79,点数集計!$C:$CL,ようこそ!$G$19,0) -> 
A80: =A79+1 -> 76 | B80: JR中央線 | C80: 高円寺 | D80: =IFERROR(VLOOKUP($C80,全データ!$C:$CI,D$1,0)&"","") -> 東京都 | E80: =IFERROR(VLOOKUP($C80,全データ!$C:$CI,E$1,0)&"","") -> 杉並区 | F80: =VLOOKUP($C80,全データ!$C:$CI,F$1,0) -> 24.66666667 | G80: =VLOOKUP($C80,全データ!$C:$CI,G$1,0) -> 10.33333333 | H80: =(VLOOKUP($C80,全データ!$C:$CI,F$1,0)+VLOOKUP($C80,全データ!$C:$CI,G$1,0))/2 -> 17.5 | I80: =VLOOKUP($C80,全データ!$C:$CI,I$1,0) -> 182 | J80: =VLOOKUP($C80,全データ!$C:$CI,J$1,0) -> × | K80: =VLOOKUP($C80,全データ!$C:$CI,K$1,0) -> 8.05 | L80: =VLOOKUP($C80,全データ!$C:$CI,L$1,0) -> 17.39 | M80: =(VLOOKUP($C80,全データ!$C:$CI,K$1,0)+VLOOKUP($C80,全データ!$C:$CI,L$1,0))/2 -> 12.72 | N80: =VLOOKUP($C80,全データ!$C:$CI,N$1,0) -> 43.42835283 | O80: =VLOOKUP($C80,全データ!$C:$CI,O$1,0) -> 16558.92543 | P80: =VLOOKUP($C80,全データ!$C:$CI,P$1,0) -> 0.5627553606 | Q80: =VLOOKUP($C80,全データ!$C:$CI,Q$1,0) -> -0.1489759697 | R80: =VLOOKUP($C80,全データ!$C:$CI,R$1,0) -> 448.6108315 | S80: =VLOOKUP($C80,全データ!$C:$CI,S$1,0) -> 0.006452419397 | T80: =VLOOKUP($C80,全データ!$C:$CI,T$1,0) -> 3.627652275 | U80: =VLOOKUP($C80,全データ!$C:$CI,U$1,0) -> 28.44636439 | V80: =VLOOKUP($C80,全データ!$C:$CI,V$1,0) -> 0.01859998456 | W80: =VLOOKUP($C80,全データ!$C:$CI,W$1,0) -> 0.02625330031 | X80: =VLOOKUP($C80,全データ!$C:$CI,X$1,0) -> - | Y80: =VLOOKUP($C80,全データ!$C:$CI,Y$1,0) -> ○ | Z80: =IFERROR(VLOOKUP($C80,全データ!$C:$CI,Z$1,0)&"","") -> ○ | AA80: =IFERROR(VLOOKUP($C80,全データ!$C:$CI,AA$1,0)&"","") -> ○ | AB80: =IFERROR(VLOOKUP($C80,全データ!$C:$CI,AB$1,0)&"","") ->  | AC80: =IFERROR(VLOOKUP($C80,全データ!$C:$CI,AC$1,0)&"","") ->  | AD80: =IFERROR(VLOOKUP($C80,全データ!$C:$CI,AD$1,0)&"","") ->  | AE80: =IFERROR(VLOOKUP($C80,全データ!$C:$CI,AE$1,0)&"","") -> ○ | AF80: =IFERROR(VLOOKUP($C80,全データ!$C:$CI,AF$1,0)&"","") ->  | AG80: =IFERROR(VLOOKUP($C80,全データ!$C:$CI,AG$1,0)&"","") ->  | AH80: =IFERROR(VLOOKUP($C80,全データ!$C:$CI,AH$1,0)&"","") ->  | AI80: =IFERROR(VLOOKUP($C80,全データ!$C:$CI,AI$1,0)&"","") ->  | AJ80: =IFERROR(VLOOKUP($C80,全データ!$C:$CI,AJ$1,0)&"","") -> ○ | AK80: =IFERROR(VLOOKUP($C80,全データ!$C:$CI,AK$1,0)&"","") ->  | AL80: =IFERROR(VLOOKUP($C80,全データ!$C:$CI,AL$1,0)&"","") ->  | AM80: =IFERROR(VLOOKUP($C80,全データ!$C:$CI,AM$1,0)&"","") ->  | AN80: =IFERROR(VLOOKUP($C80,全データ!$C:$CI,AN$1,0)&"","") ->  | AO80: =IFERROR(VLOOKUP($C80,全データ!$C:$CI,AO$1,0)&"","") ->  | AP80: =IFERROR(VLOOKUP($C80,全データ!$C:$CI,AP$1,0)&"","") ->  | AQ80: =IFERROR(VLOOKUP($C80,全データ!$C:$CI,AQ$1,0)&"","") ->  | AR80: =IFERROR(VLOOKUP($C80,全データ!$C:$CI,AR$1,0)&"","") ->  | AS80: =IFERROR(VLOOKUP($C80,全データ!$C:$CI,AS$1,0)&"","") ->  | AT80: =IFERROR(VLOOKUP($C80,全データ!$C:$CI,AT$1,0)&"","") ->  | AU80: =IFERROR(VLOOKUP($C80,全データ!$C:$CI,AU$1,0)&"","") ->  | AV80: =IFERROR(VLOOKUP($C80,全データ!$C:$CI,AV$1,0)&"","") ->  | AW80: =IFERROR(VLOOKUP($C80,全データ!$C:$CI,AW$1,0)&"","") ->  | AX80: =COUNTIF($Z80:$AG80,"○") -> 3 | AY80: =COUNTIF($AH80:$AK80,"○") -> 1 | AZ80: =COUNTIF($AL80:$AS80,"○") -> 0 | BA80: =COUNTIF(AT80:AW80,"○")+COUNTIF(AT80:AW80,"◎") -> 0 | BB80: =SUM(AX80:BA80) -> 4 | BC80: =VLOOKUP($C80,点数集計!$C:$CL,ようこそ!$G$19,0) -> 
A81: =A80+1 -> 77 | B81: JR中央線 | C81: 吉祥寺 | D81: =IFERROR(VLOOKUP($C81,全データ!$C:$CI,D$1,0)&"","") -> 東京都 | E81: =IFERROR(VLOOKUP($C81,全データ!$C:$CI,E$1,0)&"","") -> 武蔵野市 | F81: =VLOOKUP($C81,全データ!$C:$CI,F$1,0) -> 34.66666667 | G81: =VLOOKUP($C81,全データ!$C:$CI,G$1,0) -> 20.33333333 | H81: =(VLOOKUP($C81,全データ!$C:$CI,F$1,0)+VLOOKUP($C81,全データ!$C:$CI,G$1,0))/2 -> 27.5 | I81: =VLOOKUP($C81,全データ!$C:$CI,I$1,0) -> 182 | J81: =VLOOKUP($C81,全データ!$C:$CI,J$1,0) -> △ | K81: =VLOOKUP($C81,全データ!$C:$CI,K$1,0) -> 8.5 | L81: =VLOOKUP($C81,全データ!$C:$CI,L$1,0) -> 25.05 | M81: =(VLOOKUP($C81,全データ!$C:$CI,K$1,0)+VLOOKUP($C81,全データ!$C:$CI,L$1,0))/2 -> 16.775 | N81: =VLOOKUP($C81,全データ!$C:$CI,N$1,0) -> 43.16357261 | O81: =VLOOKUP($C81,全データ!$C:$CI,O$1,0) -> 13181.23862 | P81: =VLOOKUP($C81,全データ!$C:$CI,P$1,0) -> 0.4954299621 | Q81: =VLOOKUP($C81,全データ!$C:$CI,Q$1,0) -> 0.08698265736 | R81: =VLOOKUP($C81,全データ!$C:$CI,R$1,0) -> 501.2590377 | S81: =VLOOKUP($C81,全データ!$C:$CI,S$1,0) -> 0.009954296684 | T81: =VLOOKUP($C81,全データ!$C:$CI,T$1,0) -> 6.367650107 | U81: =VLOOKUP($C81,全データ!$C:$CI,U$1,0) -> 8.983530279 | V81: =VLOOKUP($C81,全データ!$C:$CI,V$1,0) -> 0.04276645506 | W81: =VLOOKUP($C81,全データ!$C:$CI,W$1,0) -> 0.04321939827 | X81: =VLOOKUP($C81,全データ!$C:$CI,X$1,0) -> - | Y81: =VLOOKUP($C81,全データ!$C:$CI,Y$1,0) -> - | Z81: =IFERROR(VLOOKUP($C81,全データ!$C:$CI,Z$1,0)&"","") -> ○ | AA81: =IFERROR(VLOOKUP($C81,全データ!$C:$CI,AA$1,0)&"","") ->  | AB81: =IFERROR(VLOOKUP($C81,全データ!$C:$CI,AB$1,0)&"","") ->  | AC81: =IFERROR(VLOOKUP($C81,全データ!$C:$CI,AC$1,0)&"","") ->  | AD81: =IFERROR(VLOOKUP($C81,全データ!$C:$CI,AD$1,0)&"","") -> ○ | AE81: =IFERROR(VLOOKUP($C81,全データ!$C:$CI,AE$1,0)&"","") -> ○ | AF81: =IFERROR(VLOOKUP($C81,全データ!$C:$CI,AF$1,0)&"","") ->  | AG81: =IFERROR(VLOOKUP($C81,全データ!$C:$CI,AG$1,0)&"","") ->  | AH81: =IFERROR(VLOOKUP($C81,全データ!$C:$CI,AH$1,0)&"","") ->  | AI81: =IFERROR(VLOOKUP($C81,全データ!$C:$CI,AI$1,0)&"","") ->  | AJ81: =IFERROR(VLOOKUP($C81,全データ!$C:$CI,AJ$1,0)&"","") -> ○ | AK81: =IFERROR(VLOOKUP($C81,全データ!$C:$CI,AK$1,0)&"","") ->  | AL81: =IFERROR(VLOOKUP($C81,全データ!$C:$CI,AL$1,0)&"","") ->  | AM81: =IFERROR(VLOOKUP($C81,全データ!$C:$CI,AM$1,0)&"","") ->  | AN81: =IFERROR(VLOOKUP($C81,全データ!$C:$CI,AN$1,0)&"","") ->  | AO81: =IFERROR(VLOOKUP($C81,全データ!$C:$CI,AO$1,0)&"","") ->  | AP81: =IFERROR(VLOOKUP($C81,全データ!$C:$CI,AP$1,0)&"","") ->  | AQ81: =IFERROR(VLOOKUP($C81,全データ!$C:$CI,AQ$1,0)&"","") ->  | AR81: =IFERROR(VLOOKUP($C81,全データ!$C:$CI,AR$1,0)&"","") ->  | AS81: =IFERROR(VLOOKUP($C81,全データ!$C:$CI,AS$1,0)&"","") ->  | AT81: =IFERROR(VLOOKUP($C81,全データ!$C:$CI,AT$1,0)&"","") ->  | AU81: =IFERROR(VLOOKUP($C81,全データ!$C:$CI,AU$1,0)&"","") ->  | AV81: =IFERROR(VLOOKUP($C81,全データ!$C:$CI,AV$1,0)&"","") -> ○ | AW81: =IFERROR(VLOOKUP($C81,全データ!$C:$CI,AW$1,0)&"","") -> ◎ | AX81: =COUNTIF($Z81:$AG81,"○") -> 3 | AY81: =COUNTIF($AH81:$AK81,"○") -> 1 | AZ81: =COUNTIF($AL81:$AS81,"○") -> 0 | BA81: =COUNTIF(AT81:AW81,"○")+COUNTIF(AT81:AW81,"◎") -> 2 | BB81: =SUM(AX81:BA81) -> 6 | BC81: =VLOOKUP($C81,点数集計!$C:$CL,ようこそ!$G$19,0) -> 
A82: =A81+1 -> 78 | B82: JR中央線 | C82: 西国分寺 | D82: =IFERROR(VLOOKUP($C82,全データ!$C:$CI,D$1,0)&"","") -> 東京都 | E82: =IFERROR(VLOOKUP($C82,全データ!$C:$CI,E$1,0)&"","") -> 国分寺市 | F82: =VLOOKUP($C82,全データ!$C:$CI,F$1,0) -> 51.33333333 | G82: =VLOOKUP($C82,全データ!$C:$CI,G$1,0) -> 37 | H82: =(VLOOKUP($C82,全データ!$C:$CI,F$1,0)+VLOOKUP($C82,全データ!$C:$CI,G$1,0))/2 -> 44.16666667 | I82: =VLOOKUP($C82,全データ!$C:$CI,I$1,0) -> 182 | J82: =VLOOKUP($C82,全データ!$C:$CI,J$1,0) -> × | K82: =VLOOKUP($C82,全データ!$C:$CI,K$1,0) -> 5.77 | L82: =VLOOKUP($C82,全データ!$C:$CI,L$1,0) -> 9.71 | M82: =(VLOOKUP($C82,全データ!$C:$CI,K$1,0)+VLOOKUP($C82,全データ!$C:$CI,L$1,0))/2 -> 7.74 | N82: =VLOOKUP($C82,全データ!$C:$CI,N$1,0) -> 43.46664902 | O82: =VLOOKUP($C82,全データ!$C:$CI,O$1,0) -> 10710.4712 | P82: =VLOOKUP($C82,全データ!$C:$CI,P$1,0) -> 0.4479513954 | Q82: =VLOOKUP($C82,全データ!$C:$CI,Q$1,0) -> -0.146706099 | R82: =VLOOKUP($C82,全データ!$C:$CI,R$1,0) -> 423.2190758 | S82: =VLOOKUP($C82,全データ!$C:$CI,S$1,0) -> 0.006568959756 | T82: =VLOOKUP($C82,全データ!$C:$CI,T$1,0) -> 4.951214743 | U82: =VLOOKUP($C82,全データ!$C:$CI,U$1,0) -> 0.3774526185 | V82: =VLOOKUP($C82,全データ!$C:$CI,V$1,0) -> 0.05800464037 | W82: =VLOOKUP($C82,全データ!$C:$CI,W$1,0) -> 0.01733941152 | X82: =VLOOKUP($C82,全データ!$C:$CI,X$1,0) -> - | Y82: =VLOOKUP($C82,全データ!$C:$CI,Y$1,0) -> - | Z82: =IFERROR(VLOOKUP($C82,全データ!$C:$CI,Z$1,0)&"","") -> ○ | AA82: =IFERROR(VLOOKUP($C82,全データ!$C:$CI,AA$1,0)&"","") ->  | AB82: =IFERROR(VLOOKUP($C82,全データ!$C:$CI,AB$1,0)&"","") ->  | AC82: =IFERROR(VLOOKUP($C82,全データ!$C:$CI,AC$1,0)&"","") ->  | AD82: =IFERROR(VLOOKUP($C82,全データ!$C:$CI,AD$1,0)&"","") ->  | AE82: =IFERROR(VLOOKUP($C82,全データ!$C:$CI,AE$1,0)&"","") ->  | AF82: =IFERROR(VLOOKUP($C82,全データ!$C:$CI,AF$1,0)&"","") ->  | AG82: =IFERROR(VLOOKUP($C82,全データ!$C:$CI,AG$1,0)&"","") ->  | AH82: =IFERROR(VLOOKUP($C82,全データ!$C:$CI,AH$1,0)&"","") ->  | AI82: =IFERROR(VLOOKUP($C82,全データ!$C:$CI,AI$1,0)&"","") ->  | AJ82: =IFERROR(VLOOKUP($C82,全データ!$C:$CI,AJ$1,0)&"","") ->  | AK82: =IFERROR(VLOOKUP($C82,全データ!$C:$CI,AK$1,0)&"","") ->  | AL82: =IFERROR(VLOOKUP($C82,全データ!$C:$CI,AL$1,0)&"","") ->  | AM82: =IFERROR(VLOOKUP($C82,全データ!$C:$CI,AM$1,0)&"","") ->  | AN82: =IFERROR(VLOOKUP($C82,全データ!$C:$CI,AN$1,0)&"","") ->  | AO82: =IFERROR(VLOOKUP($C82,全データ!$C:$CI,AO$1,0)&"","") ->  | AP82: =IFERROR(VLOOKUP($C82,全データ!$C:$CI,AP$1,0)&"","") ->  | AQ82: =IFERROR(VLOOKUP($C82,全データ!$C:$CI,AQ$1,0)&"","") ->  | AR82: =IFERROR(VLOOKUP($C82,全データ!$C:$CI,AR$1,0)&"","") ->  | AS82: =IFERROR(VLOOKUP($C82,全データ!$C:$CI,AS$1,0)&"","") ->  | AT82: =IFERROR(VLOOKUP($C82,全データ!$C:$CI,AT$1,0)&"","") ->  | AU82: =IFERROR(VLOOKUP($C82,全データ!$C:$CI,AU$1,0)&"","") ->  | AV82: =IFERROR(VLOOKUP($C82,全データ!$C:$CI,AV$1,0)&"","") ->  | AW82: =IFERROR(VLOOKUP($C82,全データ!$C:$CI,AW$1,0)&"","") -> ○ | AX82: =COUNTIF($Z82:$AG82,"○") -> 1 | AY82: =COUNTIF($AH82:$AK82,"○") -> 0 | AZ82: =COUNTIF($AL82:$AS82,"○") -> 0 | BA82: =COUNTIF(AT82:AW82,"○")+COUNTIF(AT82:AW82,"◎") -> 1 | BB82: =SUM(AX82:BA82) -> 2 | BC82: =VLOOKUP($C82,点数集計!$C:$CL,ようこそ!$G$19,0) -> 
A83: =A82+1 -> 79 | B83: JR中央線 | C83: 国分寺 | D83: =IFERROR(VLOOKUP($C83,全データ!$C:$CI,D$1,0)&"","") -> 東京都 | E83: =IFERROR(VLOOKUP($C83,全データ!$C:$CI,E$1,0)&"","") -> 国分寺市 | F83: =VLOOKUP($C83,全データ!$C:$CI,F$1,0) -> 47.33333333 | G83: =VLOOKUP($C83,全データ!$C:$CI,G$1,0) -> 33.33333333 | H83: =(VLOOKUP($C83,全データ!$C:$CI,F$1,0)+VLOOKUP($C83,全データ!$C:$CI,G$1,0))/2 -> 40.33333333 | I83: =VLOOKUP($C83,全データ!$C:$CI,I$1,0) -> 182 | J83: =VLOOKUP($C83,全データ!$C:$CI,J$1,0) -> △ | K83: =VLOOKUP($C83,全データ!$C:$CI,K$1,0) -> 6.19 | L83: =VLOOKUP($C83,全データ!$C:$CI,L$1,0) -> 14.25 | M83: =(VLOOKUP($C83,全データ!$C:$CI,K$1,0)+VLOOKUP($C83,全データ!$C:$CI,L$1,0))/2 -> 10.22 | N83: =VLOOKUP($C83,全データ!$C:$CI,N$1,0) -> 43.46664902 | O83: =VLOOKUP($C83,全データ!$C:$CI,O$1,0) -> 10710.4712 | P83: =VLOOKUP($C83,全データ!$C:$CI,P$1,0) -> 0.4479513954 | Q83: =VLOOKUP($C83,全データ!$C:$CI,Q$1,0) -> -0.146706099 | R83: =VLOOKUP($C83,全データ!$C:$CI,R$1,0) -> 423.2190758 | S83: =VLOOKUP($C83,全データ!$C:$CI,S$1,0) -> 0.006568959756 | T83: =VLOOKUP($C83,全データ!$C:$CI,T$1,0) -> 4.951214743 | U83: =VLOOKUP($C83,全データ!$C:$CI,U$1,0) -> 0.3774526185 | V83: =VLOOKUP($C83,全データ!$C:$CI,V$1,0) -> 0.05800464037 | W83: =VLOOKUP($C83,全データ!$C:$CI,W$1,0) -> 0.01733941152 | X83: =VLOOKUP($C83,全データ!$C:$CI,X$1,0) -> - | Y83: =VLOOKUP($C83,全データ!$C:$CI,Y$1,0) -> - | Z83: =IFERROR(VLOOKUP($C83,全データ!$C:$CI,Z$1,0)&"","") -> ○ | AA83: =IFERROR(VLOOKUP($C83,全データ!$C:$CI,AA$1,0)&"","") ->  | AB83: =IFERROR(VLOOKUP($C83,全データ!$C:$CI,AB$1,0)&"","") ->  | AC83: =IFERROR(VLOOKUP($C83,全データ!$C:$CI,AC$1,0)&"","") ->  | AD83: =IFERROR(VLOOKUP($C83,全データ!$C:$CI,AD$1,0)&"","") ->  | AE83: =IFERROR(VLOOKUP($C83,全データ!$C:$CI,AE$1,0)&"","") ->  | AF83: =IFERROR(VLOOKUP($C83,全データ!$C:$CI,AF$1,0)&"","") ->  | AG83: =IFERROR(VLOOKUP($C83,全データ!$C:$CI,AG$1,0)&"","") ->  | AH83: =IFERROR(VLOOKUP($C83,全データ!$C:$CI,AH$1,0)&"","") ->  | AI83: =IFERROR(VLOOKUP($C83,全データ!$C:$CI,AI$1,0)&"","") ->  | AJ83: =IFERROR(VLOOKUP($C83,全データ!$C:$CI,AJ$1,0)&"","") ->  | AK83: =IFERROR(VLOOKUP($C83,全データ!$C:$CI,AK$1,0)&"","") ->  | AL83: =IFERROR(VLOOKUP($C83,全データ!$C:$CI,AL$1,0)&"","") ->  | AM83: =IFERROR(VLOOKUP($C83,全データ!$C:$CI,AM$1,0)&"","") ->  | AN83: =IFERROR(VLOOKUP($C83,全データ!$C:$CI,AN$1,0)&"","") ->  | AO83: =IFERROR(VLOOKUP($C83,全データ!$C:$CI,AO$1,0)&"","") ->  | AP83: =IFERROR(VLOOKUP($C83,全データ!$C:$CI,AP$1,0)&"","") -> ○ | AQ83: =IFERROR(VLOOKUP($C83,全データ!$C:$CI,AQ$1,0)&"","") ->  | AR83: =IFERROR(VLOOKUP($C83,全データ!$C:$CI,AR$1,0)&"","") -> ○ | AS83: =IFERROR(VLOOKUP($C83,全データ!$C:$CI,AS$1,0)&"","") ->  | AT83: =IFERROR(VLOOKUP($C83,全データ!$C:$CI,AT$1,0)&"","") ->  | AU83: =IFERROR(VLOOKUP($C83,全データ!$C:$CI,AU$1,0)&"","") ->  | AV83: =IFERROR(VLOOKUP($C83,全データ!$C:$CI,AV$1,0)&"","") ->  | AW83: =IFERROR(VLOOKUP($C83,全データ!$C:$CI,AW$1,0)&"","") -> ○ | AX83: =COUNTIF($Z83:$AG83,"○") -> 1 | AY83: =COUNTIF($AH83:$AK83,"○") -> 0 | AZ83: =COUNTIF($AL83:$AS83,"○") -> 2 | BA83: =COUNTIF(AT83:AW83,"○")+COUNTIF(AT83:AW83,"◎") -> 1 | BB83: =SUM(AX83:BA83) -> 4 | BC83: =VLOOKUP($C83,点数集計!$C:$CL,ようこそ!$G$19,0) -> 
A84: =A83+1 -> 80 | B84: JR中央線 | C84: 中野 | D84: =IFERROR(VLOOKUP($C84,全データ!$C:$CI,D$1,0)&"","") -> 東京都 | E84: =IFERROR(VLOOKUP($C84,全データ!$C:$CI,E$1,0)&"","") -> 中野区 | F84: =VLOOKUP($C84,全データ!$C:$CI,F$1,0) -> 20.33333333 | G84: =VLOOKUP($C84,全データ!$C:$CI,G$1,0) -> 6.333333333 | H84: =(VLOOKUP($C84,全データ!$C:$CI,F$1,0)+VLOOKUP($C84,全データ!$C:$CI,G$1,0))/2 -> 13.33333333 | I84: =VLOOKUP($C84,全データ!$C:$CI,I$1,0) -> 182 | J84: =VLOOKUP($C84,全データ!$C:$CI,J$1,0) -> △ | K84: =VLOOKUP($C84,全データ!$C:$CI,K$1,0) -> 8.34 | L84: =VLOOKUP($C84,全データ!$C:$CI,L$1,0) -> 20.13 | M84: =(VLOOKUP($C84,全データ!$C:$CI,K$1,0)+VLOOKUP($C84,全データ!$C:$CI,L$1,0))/2 -> 14.235 | N84: =VLOOKUP($C84,全データ!$C:$CI,N$1,0) -> 42.39301701 | O84: =VLOOKUP($C84,全データ!$C:$CI,O$1,0) -> 21052.91854 | P84: =VLOOKUP($C84,全データ!$C:$CI,P$1,0) -> 0.6191904354 | Q84: =VLOOKUP($C84,全データ!$C:$CI,Q$1,0) -> -0.04553417729 | R84: =VLOOKUP($C84,全データ!$C:$CI,R$1,0) -> 404.9749681 | S84: =VLOOKUP($C84,全データ!$C:$CI,S$1,0) -> 0.007460018514 | T84: =VLOOKUP($C84,全データ!$C:$CI,T$1,0) -> 2.992477492 | U84: =VLOOKUP($C84,全データ!$C:$CI,U$1,0) -> 12.08686756 | V84: =VLOOKUP($C84,全データ!$C:$CI,V$1,0) -> 0.05576602516 | W84: =VLOOKUP($C84,全データ!$C:$CI,W$1,0) -> 0.04277998411 | X84: =VLOOKUP($C84,全データ!$C:$CI,X$1,0) -> - | Y84: =VLOOKUP($C84,全データ!$C:$CI,Y$1,0) -> ○ | Z84: =IFERROR(VLOOKUP($C84,全データ!$C:$CI,Z$1,0)&"","") ->  | AA84: =IFERROR(VLOOKUP($C84,全データ!$C:$CI,AA$1,0)&"","") ->  | AB84: =IFERROR(VLOOKUP($C84,全データ!$C:$CI,AB$1,0)&"","") ->  | AC84: =IFERROR(VLOOKUP($C84,全データ!$C:$CI,AC$1,0)&"","") ->  | AD84: =IFERROR(VLOOKUP($C84,全データ!$C:$CI,AD$1,0)&"","") ->  | AE84: =IFERROR(VLOOKUP($C84,全データ!$C:$CI,AE$1,0)&"","") ->  | AF84: =IFERROR(VLOOKUP($C84,全データ!$C:$CI,AF$1,0)&"","") ->  | AG84: =IFERROR(VLOOKUP($C84,全データ!$C:$CI,AG$1,0)&"","") ->  | AH84: =IFERROR(VLOOKUP($C84,全データ!$C:$CI,AH$1,0)&"","") -> ○ | AI84: =IFERROR(VLOOKUP($C84,全データ!$C:$CI,AI$1,0)&"","") ->  | AJ84: =IFERROR(VLOOKUP($C84,全データ!$C:$CI,AJ$1,0)&"","") -> ○ | AK84: =IFERROR(VLOOKUP($C84,全データ!$C:$CI,AK$1,0)&"","") ->  | AL84: =IFERROR(VLOOKUP($C84,全データ!$C:$CI,AL$1,0)&"","") ->  | AM84: =IFERROR(VLOOKUP($C84,全データ!$C:$CI,AM$1,0)&"","") ->  | AN84: =IFERROR(VLOOKUP($C84,全データ!$C:$CI,AN$1,0)&"","") ->  | AO84: =IFERROR(VLOOKUP($C84,全データ!$C:$CI,AO$1,0)&"","") -> ○ | AP84: =IFERROR(VLOOKUP($C84,全データ!$C:$CI,AP$1,0)&"","") ->  | AQ84: =IFERROR(VLOOKUP($C84,全データ!$C:$CI,AQ$1,0)&"","") ->  | AR84: =IFERROR(VLOOKUP($C84,全データ!$C:$CI,AR$1,0)&"","") ->  | AS84: =IFERROR(VLOOKUP($C84,全データ!$C:$CI,AS$1,0)&"","") ->  | AT84: =IFERROR(VLOOKUP($C84,全データ!$C:$CI,AT$1,0)&"","") ->  | AU84: =IFERROR(VLOOKUP($C84,全データ!$C:$CI,AU$1,0)&"","") ->  | AV84: =IFERROR(VLOOKUP($C84,全データ!$C:$CI,AV$1,0)&"","") ->  | AW84: =IFERROR(VLOOKUP($C84,全データ!$C:$CI,AW$1,0)&"","") ->  | AX84: =COUNTIF($Z84:$AG84,"○") -> 0 | AY84: =COUNTIF($AH84:$AK84,"○") -> 2 | AZ84: =COUNTIF($AL84:$AS84,"○") -> 1 | BA84: =COUNTIF(AT84:AW84,"○")+COUNTIF(AT84:AW84,"◎") -> 0 | BB84: =SUM(AX84:BA84) -> 3 | BC84: =VLOOKUP($C84,点数集計!$C:$CL,ようこそ!$G$19,0) -> 
A85: =A84+1 -> 81 | B85: JR中央線 | C85: 三鷹 | D85: =IFERROR(VLOOKUP($C85,全データ!$C:$CI,D$1,0)&"","") -> 東京都 | E85: =IFERROR(VLOOKUP($C85,全データ!$C:$CI,E$1,0)&"","") -> 三鷹市 | F85: =VLOOKUP($C85,全データ!$C:$CI,F$1,0) -> 37.66666667 | G85: =VLOOKUP($C85,全データ!$C:$CI,G$1,0) -> 23.33333333 | H85: =(VLOOKUP($C85,全データ!$C:$CI,F$1,0)+VLOOKUP($C85,全データ!$C:$CI,G$1,0))/2 -> 30.5 | I85: =VLOOKUP($C85,全データ!$C:$CI,I$1,0) -> 182 | J85: =VLOOKUP($C85,全データ!$C:$CI,J$1,0) -> △ | K85: =VLOOKUP($C85,全データ!$C:$CI,K$1,0) -> 7.7 | L85: =VLOOKUP($C85,全データ!$C:$CI,L$1,0) -> 17.67 | M85: =(VLOOKUP($C85,全データ!$C:$CI,K$1,0)+VLOOKUP($C85,全データ!$C:$CI,L$1,0))/2 -> 12.685 | N85: =VLOOKUP($C85,全データ!$C:$CI,N$1,0) -> 43.04674178 | O85: =VLOOKUP($C85,全データ!$C:$CI,O$1,0) -> 11384.65286 | P85: =VLOOKUP($C85,全データ!$C:$CI,P$1,0) -> 0.4605241251 | Q85: =VLOOKUP($C85,全データ!$C:$CI,Q$1,0) -> -0.1134880387 | R85: =VLOOKUP($C85,全データ!$C:$CI,R$1,0) -> 431.0644171 | S85: =VLOOKUP($C85,全データ!$C:$CI,S$1,0) -> 0.005581670398 | T85: =VLOOKUP($C85,全データ!$C:$CI,T$1,0) -> 4.218909145 | U85: =VLOOKUP($C85,全データ!$C:$CI,U$1,0) -> 27.36686962 | V85: =VLOOKUP($C85,全データ!$C:$CI,V$1,0) -> 0.03940634596 | W85: =VLOOKUP($C85,全データ!$C:$CI,W$1,0) -> 0.004583975968 | X85: =VLOOKUP($C85,全データ!$C:$CI,X$1,0) -> - | Y85: =VLOOKUP($C85,全データ!$C:$CI,Y$1,0) -> ○ | Z85: =IFERROR(VLOOKUP($C85,全データ!$C:$CI,Z$1,0)&"","") -> ○ | AA85: =IFERROR(VLOOKUP($C85,全データ!$C:$CI,AA$1,0)&"","") ->  | AB85: =IFERROR(VLOOKUP($C85,全データ!$C:$CI,AB$1,0)&"","") ->  | AC85: =IFERROR(VLOOKUP($C85,全データ!$C:$CI,AC$1,0)&"","") ->  | AD85: =IFERROR(VLOOKUP($C85,全データ!$C:$CI,AD$1,0)&"","") ->  | AE85: =IFERROR(VLOOKUP($C85,全データ!$C:$CI,AE$1,0)&"","") ->  | AF85: =IFERROR(VLOOKUP($C85,全データ!$C:$CI,AF$1,0)&"","") ->  | AG85: =IFERROR(VLOOKUP($C85,全データ!$C:$CI,AG$1,0)&"","") ->  | AH85: =IFERROR(VLOOKUP($C85,全データ!$C:$CI,AH$1,0)&"","") ->  | AI85: =IFERROR(VLOOKUP($C85,全データ!$C:$CI,AI$1,0)&"","") ->  | AJ85: =IFERROR(VLOOKUP($C85,全データ!$C:$CI,AJ$1,0)&"","") ->  | AK85: =IFERROR(VLOOKUP($C85,全データ!$C:$CI,AK$1,0)&"","") ->  | AL85: =IFERROR(VLOOKUP($C85,全データ!$C:$CI,AL$1,0)&"","") ->  | AM85: =IFERROR(VLOOKUP($C85,全データ!$C:$CI,AM$1,0)&"","") ->  | AN85: =IFERROR(VLOOKUP($C85,全データ!$C:$CI,AN$1,0)&"","") ->  | AO85: =IFERROR(VLOOKUP($C85,全データ!$C:$CI,AO$1,0)&"","") ->  | AP85: =IFERROR(VLOOKUP($C85,全データ!$C:$CI,AP$1,0)&"","") ->  | AQ85: =IFERROR(VLOOKUP($C85,全データ!$C:$CI,AQ$1,0)&"","") ->  | AR85: =IFERROR(VLOOKUP($C85,全データ!$C:$CI,AR$1,0)&"","") ->  | AS85: =IFERROR(VLOOKUP($C85,全データ!$C:$CI,AS$1,0)&"","") ->  | AT85: =IFERROR(VLOOKUP($C85,全データ!$C:$CI,AT$1,0)&"","") ->  | AU85: =IFERROR(VLOOKUP($C85,全データ!$C:$CI,AU$1,0)&"","") ->  | AV85: =IFERROR(VLOOKUP($C85,全データ!$C:$CI,AV$1,0)&"","") ->  | AW85: =IFERROR(VLOOKUP($C85,全データ!$C:$CI,AW$1,0)&"","") -> ○ | AX85: =COUNTIF($Z85:$AG85,"○") -> 1 | AY85: =COUNTIF($AH85:$AK85,"○") -> 0 | AZ85: =COUNTIF($AL85:$AS85,"○") -> 0 | BA85: =COUNTIF(AT85:AW85,"○")+COUNTIF(AT85:AW85,"◎") -> 1 | BB85: =SUM(AX85:BA85) -> 2 | BC85: =VLOOKUP($C85,点数集計!$C:$CL,ようこそ!$G$19,0) -> 
A86: =A85+1 -> 82 | B86: JR中央線 | C86: 武蔵境 | D86: =IFERROR(VLOOKUP($C86,全データ!$C:$CI,D$1,0)&"","") -> 東京都 | E86: =IFERROR(VLOOKUP($C86,全データ!$C:$CI,E$1,0)&"","") -> 武蔵野市 | F86: =VLOOKUP($C86,全データ!$C:$CI,F$1,0) -> 41.66666667 | G86: =VLOOKUP($C86,全データ!$C:$CI,G$1,0) -> 26.66666667 | H86: =(VLOOKUP($C86,全データ!$C:$CI,F$1,0)+VLOOKUP($C86,全データ!$C:$CI,G$1,0))/2 -> 34.16666667 | I86: =VLOOKUP($C86,全データ!$C:$CI,I$1,0) -> 182 | J86: =VLOOKUP($C86,全データ!$C:$CI,J$1,0) -> × | K86: =VLOOKUP($C86,全データ!$C:$CI,K$1,0) -> 7.21 | L86: =VLOOKUP($C86,全データ!$C:$CI,L$1,0) -> 15.43 | M86: =(VLOOKUP($C86,全データ!$C:$CI,K$1,0)+VLOOKUP($C86,全データ!$C:$CI,L$1,0))/2 -> 11.32 | N86: =VLOOKUP($C86,全データ!$C:$CI,N$1,0) -> 43.16357261 | O86: =VLOOKUP($C86,全データ!$C:$CI,O$1,0) -> 13181.23862 | P86: =VLOOKUP($C86,全データ!$C:$CI,P$1,0) -> 0.4954299621 | Q86: =VLOOKUP($C86,全データ!$C:$CI,Q$1,0) -> 0.08698265736 | R86: =VLOOKUP($C86,全データ!$C:$CI,R$1,0) -> 501.2590377 | S86: =VLOOKUP($C86,全データ!$C:$CI,S$1,0) -> 0.009954296684 | T86: =VLOOKUP($C86,全データ!$C:$CI,T$1,0) -> 6.367650107 | U86: =VLOOKUP($C86,全データ!$C:$CI,U$1,0) -> 8.983530279 | V86: =VLOOKUP($C86,全データ!$C:$CI,V$1,0) -> 0.04276645506 | W86: =VLOOKUP($C86,全データ!$C:$CI,W$1,0) -> 0.04321939827 | X86: =VLOOKUP($C86,全データ!$C:$CI,X$1,0) -> - | Y86: =VLOOKUP($C86,全データ!$C:$CI,Y$1,0) -> ○ | Z86: =IFERROR(VLOOKUP($C86,全データ!$C:$CI,Z$1,0)&"","") ->  | AA86: =IFERROR(VLOOKUP($C86,全データ!$C:$CI,AA$1,0)&"","") ->  | AB86: =IFERROR(VLOOKUP($C86,全データ!$C:$CI,AB$1,0)&"","") ->  | AC86: =IFERROR(VLOOKUP($C86,全データ!$C:$CI,AC$1,0)&"","") ->  | AD86: =IFERROR(VLOOKUP($C86,全データ!$C:$CI,AD$1,0)&"","") ->  | AE86: =IFERROR(VLOOKUP($C86,全データ!$C:$CI,AE$1,0)&"","") ->  | AF86: =IFERROR(VLOOKUP($C86,全データ!$C:$CI,AF$1,0)&"","") ->  | AG86: =IFERROR(VLOOKUP($C86,全データ!$C:$CI,AG$1,0)&"","") ->  | AH86: =IFERROR(VLOOKUP($C86,全データ!$C:$CI,AH$1,0)&"","") -> ○ | AI86: =IFERROR(VLOOKUP($C86,全データ!$C:$CI,AI$1,0)&"","") ->  | AJ86: =IFERROR(VLOOKUP($C86,全データ!$C:$CI,AJ$1,0)&"","") ->  | AK86: =IFERROR(VLOOKUP($C86,全データ!$C:$CI,AK$1,0)&"","") ->  | AL86: =IFERROR(VLOOKUP($C86,全データ!$C:$CI,AL$1,0)&"","") ->  | AM86: =IFERROR(VLOOKUP($C86,全データ!$C:$CI,AM$1,0)&"","") ->  | AN86: =IFERROR(VLOOKUP($C86,全データ!$C:$CI,AN$1,0)&"","") ->  | AO86: =IFERROR(VLOOKUP($C86,全データ!$C:$CI,AO$1,0)&"","") ->  | AP86: =IFERROR(VLOOKUP($C86,全データ!$C:$CI,AP$1,0)&"","") ->  | AQ86: =IFERROR(VLOOKUP($C86,全データ!$C:$CI,AQ$1,0)&"","") ->  | AR86: =IFERROR(VLOOKUP($C86,全データ!$C:$CI,AR$1,0)&"","") -> ○ | AS86: =IFERROR(VLOOKUP($C86,全データ!$C:$CI,AS$1,0)&"","") ->  | AT86: =IFERROR(VLOOKUP($C86,全データ!$C:$CI,AT$1,0)&"","") ->  | AU86: =IFERROR(VLOOKUP($C86,全データ!$C:$CI,AU$1,0)&"","") ->  | AV86: =IFERROR(VLOOKUP($C86,全データ!$C:$CI,AV$1,0)&"","") ->  | AW86: =IFERROR(VLOOKUP($C86,全データ!$C:$CI,AW$1,0)&"","") -> ○ | AX86: =COUNTIF($Z86:$AG86,"○") -> 0 | AY86: =COUNTIF($AH86:$AK86,"○") -> 1 | AZ86: =COUNTIF($AL86:$AS86,"○") -> 1 | BA86: =COUNTIF(AT86:AW86,"○")+COUNTIF(AT86:AW86,"◎") -> 1 | BB86: =SUM(AX86:BA86) -> 3 | BC86: =VLOOKUP($C86,点数集計!$C:$CL,ようこそ!$G$19,0) -> 
A87: =A86+1 -> 83 | B87: JR中央線 | C87: 立川 | D87: =IFERROR(VLOOKUP($C87,全データ!$C:$CI,D$1,0)&"","") -> 東京都 | E87: =IFERROR(VLOOKUP($C87,全データ!$C:$CI,E$1,0)&"","") -> 立川市 | F87: =VLOOKUP($C87,全データ!$C:$CI,F$1,0) -> 55 | G87: =VLOOKUP($C87,全データ!$C:$CI,G$1,0) -> 41 | H87: =(VLOOKUP($C87,全データ!$C:$CI,F$1,0)+VLOOKUP($C87,全データ!$C:$CI,G$1,0))/2 -> 48 | I87: =VLOOKUP($C87,全データ!$C:$CI,I$1,0) -> 182 | J87: =VLOOKUP($C87,全データ!$C:$CI,J$1,0) -> △ | K87: =VLOOKUP($C87,全データ!$C:$CI,K$1,0) -> 7.1 | L87: =VLOOKUP($C87,全データ!$C:$CI,L$1,0) -> 14.76 | M87: =(VLOOKUP($C87,全データ!$C:$CI,K$1,0)+VLOOKUP($C87,全データ!$C:$CI,L$1,0))/2 -> 10.93 | N87: =VLOOKUP($C87,全データ!$C:$CI,N$1,0) -> 45.5471273 | O87: =VLOOKUP($C87,全データ!$C:$CI,O$1,0) -> 7763.458111 | P87: =VLOOKUP($C87,全データ!$C:$CI,P$1,0) -> 0.4389936048 | Q87: =VLOOKUP($C87,全データ!$C:$CI,Q$1,0) -> 0.1418020931 | R87: =VLOOKUP($C87,全データ!$C:$CI,R$1,0) -> 358.4369479 | S87: =VLOOKUP($C87,全データ!$C:$CI,S$1,0) -> 0.008355937087 | T87: =VLOOKUP($C87,全データ!$C:$CI,T$1,0) -> 5.168944099 | U87: =VLOOKUP($C87,全データ!$C:$CI,U$1,0) -> 8.475709211 | V87: =VLOOKUP($C87,全データ!$C:$CI,V$1,0) -> 0.03092281471 | W87: =VLOOKUP($C87,全データ!$C:$CI,W$1,0) -> -0.0187735156 | X87: =VLOOKUP($C87,全データ!$C:$CI,X$1,0) -> - | Y87: =VLOOKUP($C87,全データ!$C:$CI,Y$1,0) -> ○ | Z87: =IFERROR(VLOOKUP($C87,全データ!$C:$CI,Z$1,0)&"","") -> ○ | AA87: =IFERROR(VLOOKUP($C87,全データ!$C:$CI,AA$1,0)&"","") ->  | AB87: =IFERROR(VLOOKUP($C87,全データ!$C:$CI,AB$1,0)&"","") ->  | AC87: =IFERROR(VLOOKUP($C87,全データ!$C:$CI,AC$1,0)&"","") ->  | AD87: =IFERROR(VLOOKUP($C87,全データ!$C:$CI,AD$1,0)&"","") ->  | AE87: =IFERROR(VLOOKUP($C87,全データ!$C:$CI,AE$1,0)&"","") ->  | AF87: =IFERROR(VLOOKUP($C87,全データ!$C:$CI,AF$1,0)&"","") ->  | AG87: =IFERROR(VLOOKUP($C87,全データ!$C:$CI,AG$1,0)&"","") ->  | AH87: =IFERROR(VLOOKUP($C87,全データ!$C:$CI,AH$1,0)&"","") ->  | AI87: =IFERROR(VLOOKUP($C87,全データ!$C:$CI,AI$1,0)&"","") ->  | AJ87: =IFERROR(VLOOKUP($C87,全データ!$C:$CI,AJ$1,0)&"","") ->  | AK87: =IFERROR(VLOOKUP($C87,全データ!$C:$CI,AK$1,0)&"","") ->  | AL87: =IFERROR(VLOOKUP($C87,全データ!$C:$CI,AL$1,0)&"","") ->  | AM87: =IFERROR(VLOOKUP($C87,全データ!$C:$CI,AM$1,0)&"","") ->  | AN87: =IFERROR(VLOOKUP($C87,全データ!$C:$CI,AN$1,0)&"","") ->  | AO87: =IFERROR(VLOOKUP($C87,全データ!$C:$CI,AO$1,0)&"","") ->  | AP87: =IFERROR(VLOOKUP($C87,全データ!$C:$CI,AP$1,0)&"","") ->  | AQ87: =IFERROR(VLOOKUP($C87,全データ!$C:$CI,AQ$1,0)&"","") ->  | AR87: =IFERROR(VLOOKUP($C87,全データ!$C:$CI,AR$1,0)&"","") ->  | AS87: =IFERROR(VLOOKUP($C87,全データ!$C:$CI,AS$1,0)&"","") ->  | AT87: =IFERROR(VLOOKUP($C87,全データ!$C:$CI,AT$1,0)&"","") ->  | AU87: =IFERROR(VLOOKUP($C87,全データ!$C:$CI,AU$1,0)&"","") ->  | AV87: =IFERROR(VLOOKUP($C87,全データ!$C:$CI,AV$1,0)&"","") -> ◎ | AW87: =IFERROR(VLOOKUP($C87,全データ!$C:$CI,AW$1,0)&"","") -> ◎ | AX87: =COUNTIF($Z87:$AG87,"○") -> 1 | AY87: =COUNTIF($AH87:$AK87,"○") -> 0 | AZ87: =COUNTIF($AL87:$AS87,"○") -> 0 | BA87: =COUNTIF(AT87:AW87,"○")+COUNTIF(AT87:AW87,"◎") -> 2 | BB87: =SUM(AX87:BA87) -> 3 | BC87: =VLOOKUP($C87,点数集計!$C:$CL,ようこそ!$G$19,0) -> 
A88: =A87+1 -> 84 | B88: JR中央線 | C88: 国立 | D88: =IFERROR(VLOOKUP($C88,全データ!$C:$CI,D$1,0)&"","") -> 東京都 | E88: =IFERROR(VLOOKUP($C88,全データ!$C:$CI,E$1,0)&"","") -> 国立市 | F88: =VLOOKUP($C88,全データ!$C:$CI,F$1,0) -> 53.66666667 | G88: =VLOOKUP($C88,全データ!$C:$CI,G$1,0) -> 39.66666667 | H88: =(VLOOKUP($C88,全データ!$C:$CI,F$1,0)+VLOOKUP($C88,全データ!$C:$CI,G$1,0))/2 -> 46.66666667 | I88: =VLOOKUP($C88,全データ!$C:$CI,I$1,0) -> 182 | J88: =VLOOKUP($C88,全データ!$C:$CI,J$1,0) -> × | K88: =VLOOKUP($C88,全データ!$C:$CI,K$1,0) -> 6.28 | L88: =VLOOKUP($C88,全データ!$C:$CI,L$1,0) -> 12.78 | M88: =(VLOOKUP($C88,全データ!$C:$CI,K$1,0)+VLOOKUP($C88,全データ!$C:$CI,L$1,0))/2 -> 9.53 | N88: =VLOOKUP($C88,全データ!$C:$CI,N$1,0) -> 45.07921635 | O88: =VLOOKUP($C88,全データ!$C:$CI,O$1,0) -> 10567.55952 | P88: =VLOOKUP($C88,全データ!$C:$CI,P$1,0) -> 0.4087715688 | Q88: =VLOOKUP($C88,全データ!$C:$CI,Q$1,0) -> -0.02157355237 | R88: =VLOOKUP($C88,全データ!$C:$CI,R$1,0) -> 434.3482033 | S88: =VLOOKUP($C88,全データ!$C:$CI,S$1,0) -> 0.006063885882 | T88: =VLOOKUP($C88,全データ!$C:$CI,T$1,0) -> 3.499884597 | U88: =VLOOKUP($C88,全データ!$C:$CI,U$1,0) -> 0.08006161019 | V88: =VLOOKUP($C88,全データ!$C:$CI,V$1,0) -> 0.05369928401 | W88: =VLOOKUP($C88,全データ!$C:$CI,W$1,0) -> -0.02456628261 | X88: =VLOOKUP($C88,全データ!$C:$CI,X$1,0) -> - | Y88: =VLOOKUP($C88,全データ!$C:$CI,Y$1,0) -> ○ | Z88: =IFERROR(VLOOKUP($C88,全データ!$C:$CI,Z$1,0)&"","") ->  | AA88: =IFERROR(VLOOKUP($C88,全データ!$C:$CI,AA$1,0)&"","") ->  | AB88: =IFERROR(VLOOKUP($C88,全データ!$C:$CI,AB$1,0)&"","") ->  | AC88: =IFERROR(VLOOKUP($C88,全データ!$C:$CI,AC$1,0)&"","") ->  | AD88: =IFERROR(VLOOKUP($C88,全データ!$C:$CI,AD$1,0)&"","") ->  | AE88: =IFERROR(VLOOKUP($C88,全データ!$C:$CI,AE$1,0)&"","") ->  | AF88: =IFERROR(VLOOKUP($C88,全データ!$C:$CI,AF$1,0)&"","") ->  | AG88: =IFERROR(VLOOKUP($C88,全データ!$C:$CI,AG$1,0)&"","") ->  | AH88: =IFERROR(VLOOKUP($C88,全データ!$C:$CI,AH$1,0)&"","") ->  | AI88: =IFERROR(VLOOKUP($C88,全データ!$C:$CI,AI$1,0)&"","") ->  | AJ88: =IFERROR(VLOOKUP($C88,全データ!$C:$CI,AJ$1,0)&"","") -> ○ | AK88: =IFERROR(VLOOKUP($C88,全データ!$C:$CI,AK$1,0)&"","") ->  | AL88: =IFERROR(VLOOKUP($C88,全データ!$C:$CI,AL$1,0)&"","") ->  | AM88: =IFERROR(VLOOKUP($C88,全データ!$C:$CI,AM$1,0)&"","") ->  | AN88: =IFERROR(VLOOKUP($C88,全データ!$C:$CI,AN$1,0)&"","") ->  | AO88: =IFERROR(VLOOKUP($C88,全データ!$C:$CI,AO$1,0)&"","") ->  | AP88: =IFERROR(VLOOKUP($C88,全データ!$C:$CI,AP$1,0)&"","") ->  | AQ88: =IFERROR(VLOOKUP($C88,全データ!$C:$CI,AQ$1,0)&"","") ->  | AR88: =IFERROR(VLOOKUP($C88,全データ!$C:$CI,AR$1,0)&"","") ->  | AS88: =IFERROR(VLOOKUP($C88,全データ!$C:$CI,AS$1,0)&"","") ->  | AT88: =IFERROR(VLOOKUP($C88,全データ!$C:$CI,AT$1,0)&"","") ->  | AU88: =IFERROR(VLOOKUP($C88,全データ!$C:$CI,AU$1,0)&"","") ->  | AV88: =IFERROR(VLOOKUP($C88,全データ!$C:$CI,AV$1,0)&"","") ->  | AW88: =IFERROR(VLOOKUP($C88,全データ!$C:$CI,AW$1,0)&"","") -> ○ | AX88: =COUNTIF($Z88:$AG88,"○") -> 0 | AY88: =COUNTIF($AH88:$AK88,"○") -> 1 | AZ88: =COUNTIF($AL88:$AS88,"○") -> 0 | BA88: =COUNTIF(AT88:AW88,"○")+COUNTIF(AT88:AW88,"◎") -> 1 | BB88: =SUM(AX88:BA88) -> 2 | BC88: =VLOOKUP($C88,点数集計!$C:$CL,ようこそ!$G$19,0) -> 
A89: =A88+1 -> 85 | B89: JR中央線 | C89: 西荻窪 | D89: =IFERROR(VLOOKUP($C89,全データ!$C:$CI,D$1,0)&"","") -> 東京都 | E89: =IFERROR(VLOOKUP($C89,全データ!$C:$CI,E$1,0)&"","") -> 杉並区 | F89: =VLOOKUP($C89,全データ!$C:$CI,F$1,0) -> 32.33333333 | G89: =VLOOKUP($C89,全データ!$C:$CI,G$1,0) -> 18.33333333 | H89: =(VLOOKUP($C89,全データ!$C:$CI,F$1,0)+VLOOKUP($C89,全データ!$C:$CI,G$1,0))/2 -> 25.33333333 | I89: =VLOOKUP($C89,全データ!$C:$CI,I$1,0) -> 182 | J89: =VLOOKUP($C89,全データ!$C:$CI,J$1,0) -> × | K89: =VLOOKUP($C89,全データ!$C:$CI,K$1,0) -> 8.34 | L89: =VLOOKUP($C89,全データ!$C:$CI,L$1,0) -> 14.69 | M89: =(VLOOKUP($C89,全データ!$C:$CI,K$1,0)+VLOOKUP($C89,全データ!$C:$CI,L$1,0))/2 -> 11.515 | N89: =VLOOKUP($C89,全データ!$C:$CI,N$1,0) -> 43.42835283 | O89: =VLOOKUP($C89,全データ!$C:$CI,O$1,0) -> 16558.92543 | P89: =VLOOKUP($C89,全データ!$C:$CI,P$1,0) -> 0.5627553606 | Q89: =VLOOKUP($C89,全データ!$C:$CI,Q$1,0) -> -0.1489759697 | R89: =VLOOKUP($C89,全データ!$C:$CI,R$1,0) -> 448.6108315 | S89: =VLOOKUP($C89,全データ!$C:$CI,S$1,0) -> 0.006452419397 | T89: =VLOOKUP($C89,全データ!$C:$CI,T$1,0) -> 3.627652275 | U89: =VLOOKUP($C89,全データ!$C:$CI,U$1,0) -> 28.44636439 | V89: =VLOOKUP($C89,全データ!$C:$CI,V$1,0) -> 0.01859998456 | W89: =VLOOKUP($C89,全データ!$C:$CI,W$1,0) -> 0.02625330031 | X89: =VLOOKUP($C89,全データ!$C:$CI,X$1,0) -> - | Y89: =VLOOKUP($C89,全データ!$C:$CI,Y$1,0) -> - | Z89: =IFERROR(VLOOKUP($C89,全データ!$C:$CI,Z$1,0)&"","") ->  | AA89: =IFERROR(VLOOKUP($C89,全データ!$C:$CI,AA$1,0)&"","") ->  | AB89: =IFERROR(VLOOKUP($C89,全データ!$C:$CI,AB$1,0)&"","") ->  | AC89: =IFERROR(VLOOKUP($C89,全データ!$C:$CI,AC$1,0)&"","") ->  | AD89: =IFERROR(VLOOKUP($C89,全データ!$C:$CI,AD$1,0)&"","") ->  | AE89: =IFERROR(VLOOKUP($C89,全データ!$C:$CI,AE$1,0)&"","") ->  | AF89: =IFERROR(VLOOKUP($C89,全データ!$C:$CI,AF$1,0)&"","") ->  | AG89: =IFERROR(VLOOKUP($C89,全データ!$C:$CI,AG$1,0)&"","") ->  | AH89: =IFERROR(VLOOKUP($C89,全データ!$C:$CI,AH$1,0)&"","") ->  | AI89: =IFERROR(VLOOKUP($C89,全データ!$C:$CI,AI$1,0)&"","") ->  | AJ89: =IFERROR(VLOOKUP($C89,全データ!$C:$CI,AJ$1,0)&"","") -> ○ | AK89: =IFERROR(VLOOKUP($C89,全データ!$C:$CI,AK$1,0)&"","") ->  | AL89: =IFERROR(VLOOKUP($C89,全データ!$C:$CI,AL$1,0)&"","") ->  | AM89: =IFERROR(VLOOKUP($C89,全データ!$C:$CI,AM$1,0)&"","") ->  | AN89: =IFERROR(VLOOKUP($C89,全データ!$C:$CI,AN$1,0)&"","") ->  | AO89: =IFERROR(VLOOKUP($C89,全データ!$C:$CI,AO$1,0)&"","") ->  | AP89: =IFERROR(VLOOKUP($C89,全データ!$C:$CI,AP$1,0)&"","") ->  | AQ89: =IFERROR(VLOOKUP($C89,全データ!$C:$CI,AQ$1,0)&"","") ->  | AR89: =IFERROR(VLOOKUP($C89,全データ!$C:$CI,AR$1,0)&"","") ->  | AS89: =IFERROR(VLOOKUP($C89,全データ!$C:$CI,AS$1,0)&"","") ->  | AT89: =IFERROR(VLOOKUP($C89,全データ!$C:$CI,AT$1,0)&"","") ->  | AU89: =IFERROR(VLOOKUP($C89,全データ!$C:$CI,AU$1,0)&"","") ->  | AV89: =IFERROR(VLOOKUP($C89,全データ!$C:$CI,AV$1,0)&"","") ->  | AW89: =IFERROR(VLOOKUP($C89,全データ!$C:$CI,AW$1,0)&"","") ->  | AX89: =COUNTIF($Z89:$AG89,"○") -> 0 | AY89: =COUNTIF($AH89:$AK89,"○") -> 1 | AZ89: =COUNTIF($AL89:$AS89,"○") -> 0 | BA89: =COUNTIF(AT89:AW89,"○")+COUNTIF(AT89:AW89,"◎") -> 0 | BB89: =SUM(AX89:BA89) -> 1 | BC89: =VLOOKUP($C89,点数集計!$C:$CL,ようこそ!$G$19,0) -> 
A90: =A89+1 -> 86 | B90: JR南武線 | C90: 稲城長沼 | D90: =IFERROR(VLOOKUP($C90,全データ!$C:$CI,D$1,0)&"","") -> 東京都 | E90: =IFERROR(VLOOKUP($C90,全データ!$C:$CI,E$1,0)&"","") -> 稲城市 | F90: =VLOOKUP($C90,全データ!$C:$CI,F$1,0) -> 60 | G90: =VLOOKUP($C90,全データ!$C:$CI,G$1,0) -> 40.33333333 | H90: =(VLOOKUP($C90,全データ!$C:$CI,F$1,0)+VLOOKUP($C90,全データ!$C:$CI,G$1,0))/2 -> 50.16666667 | I90: =VLOOKUP($C90,全データ!$C:$CI,I$1,0) -> 80 | J90: =VLOOKUP($C90,全データ!$C:$CI,J$1,0) -> ○ | K90: =VLOOKUP($C90,全データ!$C:$CI,K$1,0) -> 4.83 | L90: =VLOOKUP($C90,全データ!$C:$CI,L$1,0) -> 9.63 | M90: =(VLOOKUP($C90,全データ!$C:$CI,K$1,0)+VLOOKUP($C90,全データ!$C:$CI,L$1,0))/2 -> 7.23 | N90: =VLOOKUP($C90,全データ!$C:$CI,N$1,0) -> 43.5382387 | O90: =VLOOKUP($C90,全データ!$C:$CI,O$1,0) -> 9334.210526 | P90: =VLOOKUP($C90,全データ!$C:$CI,P$1,0) -> 0.3276910435 | Q90: =VLOOKUP($C90,全データ!$C:$CI,Q$1,0) -> -0.2151398968 | R90: =VLOOKUP($C90,全データ!$C:$CI,R$1,0) -> 396.2699202 | S90: =VLOOKUP($C90,全データ!$C:$CI,S$1,0) -> 0.00495769242 | T90: =VLOOKUP($C90,全データ!$C:$CI,T$1,0) -> 7.350848966 | U90: =VLOOKUP($C90,全データ!$C:$CI,U$1,0) -> 1.102338402 | V90: =VLOOKUP($C90,全データ!$C:$CI,V$1,0) -> 0.0498521335 | W90: =VLOOKUP($C90,全データ!$C:$CI,W$1,0) -> 0.03301703306 | X90: =VLOOKUP($C90,全データ!$C:$CI,X$1,0) -> 稲城 | Y90: =VLOOKUP($C90,全データ!$C:$CI,Y$1,0) -> - | Z90: =IFERROR(VLOOKUP($C90,全データ!$C:$CI,Z$1,0)&"","") ->  | AA90: =IFERROR(VLOOKUP($C90,全データ!$C:$CI,AA$1,0)&"","") ->  | AB90: =IFERROR(VLOOKUP($C90,全データ!$C:$CI,AB$1,0)&"","") ->  | AC90: =IFERROR(VLOOKUP($C90,全データ!$C:$CI,AC$1,0)&"","") ->  | AD90: =IFERROR(VLOOKUP($C90,全データ!$C:$CI,AD$1,0)&"","") ->  | AE90: =IFERROR(VLOOKUP($C90,全データ!$C:$CI,AE$1,0)&"","") ->  | AF90: =IFERROR(VLOOKUP($C90,全データ!$C:$CI,AF$1,0)&"","") ->  | AG90: =IFERROR(VLOOKUP($C90,全データ!$C:$CI,AG$1,0)&"","") ->  | AH90: =IFERROR(VLOOKUP($C90,全データ!$C:$CI,AH$1,0)&"","") ->  | AI90: =IFERROR(VLOOKUP($C90,全データ!$C:$CI,AI$1,0)&"","") -> ○ | AJ90: =IFERROR(VLOOKUP($C90,全データ!$C:$CI,AJ$1,0)&"","") ->  | AK90: =IFERROR(VLOOKUP($C90,全データ!$C:$CI,AK$1,0)&"","") ->  | AL90: =IFERROR(VLOOKUP($C90,全データ!$C:$CI,AL$1,0)&"","") ->  | AM90: =IFERROR(VLOOKUP($C90,全データ!$C:$CI,AM$1,0)&"","") ->  | AN90: =IFERROR(VLOOKUP($C90,全データ!$C:$CI,AN$1,0)&"","") ->  | AO90: =IFERROR(VLOOKUP($C90,全データ!$C:$CI,AO$1,0)&"","") ->  | AP90: =IFERROR(VLOOKUP($C90,全データ!$C:$CI,AP$1,0)&"","") -> ○ | AQ90: =IFERROR(VLOOKUP($C90,全データ!$C:$CI,AQ$1,0)&"","") ->  | AR90: =IFERROR(VLOOKUP($C90,全データ!$C:$CI,AR$1,0)&"","") ->  | AS90: =IFERROR(VLOOKUP($C90,全データ!$C:$CI,AS$1,0)&"","") ->  | AT90: =IFERROR(VLOOKUP($C90,全データ!$C:$CI,AT$1,0)&"","") -> ○ | AU90: =IFERROR(VLOOKUP($C90,全データ!$C:$CI,AU$1,0)&"","") ->  | AV90: =IFERROR(VLOOKUP($C90,全データ!$C:$CI,AV$1,0)&"","") ->  | AW90: =IFERROR(VLOOKUP($C90,全データ!$C:$CI,AW$1,0)&"","") ->  | AX90: =COUNTIF($Z90:$AG90,"○") -> 0 | AY90: =COUNTIF($AH90:$AK90,"○") -> 1 | AZ90: =COUNTIF($AL90:$AS90,"○") -> 1 | BA90: =COUNTIF(AT90:AW90,"○")+COUNTIF(AT90:AW90,"◎") -> 1 | BB90: =SUM(AX90:BA90) -> 3 | BC90: =VLOOKUP($C90,点数集計!$C:$CL,ようこそ!$G$19,0) -> 
A91: =A90+1 -> 87 | B91: JR南武線 | C91: 西府 | D91: =IFERROR(VLOOKUP($C91,全データ!$C:$CI,D$1,0)&"","") -> 東京都 | E91: =IFERROR(VLOOKUP($C91,全データ!$C:$CI,E$1,0)&"","") -> 府中市 | F91: =VLOOKUP($C91,全データ!$C:$CI,F$1,0) -> 68.33333333 | G91: =VLOOKUP($C91,全データ!$C:$CI,G$1,0) -> 47.66666667 | H91: =(VLOOKUP($C91,全データ!$C:$CI,F$1,0)+VLOOKUP($C91,全データ!$C:$CI,G$1,0))/2 -> 58 | I91: =VLOOKUP($C91,全データ!$C:$CI,I$1,0) -> 184 | J91: =VLOOKUP($C91,全データ!$C:$CI,J$1,0) -> × | K91: =VLOOKUP($C91,全データ!$C:$CI,K$1,0) -> 5.39 | L91: =VLOOKUP($C91,全データ!$C:$CI,L$1,0) -> 9.89 | M91: =(VLOOKUP($C91,全データ!$C:$CI,K$1,0)+VLOOKUP($C91,全データ!$C:$CI,L$1,0))/2 -> 7.64 | N91: =VLOOKUP($C91,全データ!$C:$CI,N$1,0) -> 43.07382121 | O91: =VLOOKUP($C91,全データ!$C:$CI,O$1,0) -> 8843.832824 | P91: =VLOOKUP($C91,全データ!$C:$CI,P$1,0) -> 0.4241386528 | Q91: =VLOOKUP($C91,全データ!$C:$CI,Q$1,0) -> -0.05602173095 | R91: =VLOOKUP($C91,全データ!$C:$CI,R$1,0) -> 380.4108334 | S91: =VLOOKUP($C91,全データ!$C:$CI,S$1,0) -> 0.00586097284 | T91: =VLOOKUP($C91,全データ!$C:$CI,T$1,0) -> 5.752768237 | U91: =VLOOKUP($C91,全データ!$C:$CI,U$1,0) -> 31.62090088 | V91: =VLOOKUP($C91,全データ!$C:$CI,V$1,0) -> 0.04565563617 | W91: =VLOOKUP($C91,全データ!$C:$CI,W$1,0) -> 0.01866100992 | X91: =VLOOKUP($C91,全データ!$C:$CI,X$1,0) -> 国立府中 | Y91: =VLOOKUP($C91,全データ!$C:$CI,Y$1,0) -> ◎ | Z91: =IFERROR(VLOOKUP($C91,全データ!$C:$CI,Z$1,0)&"","") -> ○ | AA91: =IFERROR(VLOOKUP($C91,全データ!$C:$CI,AA$1,0)&"","") ->  | AB91: =IFERROR(VLOOKUP($C91,全データ!$C:$CI,AB$1,0)&"","") ->  | AC91: =IFERROR(VLOOKUP($C91,全データ!$C:$CI,AC$1,0)&"","") ->  | AD91: =IFERROR(VLOOKUP($C91,全データ!$C:$CI,AD$1,0)&"","") ->  | AE91: =IFERROR(VLOOKUP($C91,全データ!$C:$CI,AE$1,0)&"","") ->  | AF91: =IFERROR(VLOOKUP($C91,全データ!$C:$CI,AF$1,0)&"","") ->  | AG91: =IFERROR(VLOOKUP($C91,全データ!$C:$CI,AG$1,0)&"","") ->  | AH91: =IFERROR(VLOOKUP($C91,全データ!$C:$CI,AH$1,0)&"","") ->  | AI91: =IFERROR(VLOOKUP($C91,全データ!$C:$CI,AI$1,0)&"","") ->  | AJ91: =IFERROR(VLOOKUP($C91,全データ!$C:$CI,AJ$1,0)&"","") -> ○ | AK91: =IFERROR(VLOOKUP($C91,全データ!$C:$CI,AK$1,0)&"","") ->  | AL91: =IFERROR(VLOOKUP($C91,全データ!$C:$CI,AL$1,0)&"","") ->  | AM91: =IFERROR(VLOOKUP($C91,全データ!$C:$CI,AM$1,0)&"","") ->  | AN91: =IFERROR(VLOOKUP($C91,全データ!$C:$CI,AN$1,0)&"","") ->  | AO91: =IFERROR(VLOOKUP($C91,全データ!$C:$CI,AO$1,0)&"","") ->  | AP91: =IFERROR(VLOOKUP($C91,全データ!$C:$CI,AP$1,0)&"","") ->  | AQ91: =IFERROR(VLOOKUP($C91,全データ!$C:$CI,AQ$1,0)&"","") -> ○ | AR91: =IFERROR(VLOOKUP($C91,全データ!$C:$CI,AR$1,0)&"","") -> ○ | AS91: =IFERROR(VLOOKUP($C91,全データ!$C:$CI,AS$1,0)&"","") ->  | AT91: =IFERROR(VLOOKUP($C91,全データ!$C:$CI,AT$1,0)&"","") ->  | AU91: =IFERROR(VLOOKUP($C91,全データ!$C:$CI,AU$1,0)&"","") ->  | AV91: =IFERROR(VLOOKUP($C91,全データ!$C:$CI,AV$1,0)&"","") ->  | AW91: =IFERROR(VLOOKUP($C91,全データ!$C:$CI,AW$1,0)&"","") ->  | AX91: =COUNTIF($Z91:$AG91,"○") -> 1 | AY91: =COUNTIF($AH91:$AK91,"○") -> 1 | AZ91: =COUNTIF($AL91:$AS91,"○") -> 2 | BA91: =COUNTIF(AT91:AW91,"○")+COUNTIF(AT91:AW91,"◎") -> 0 | BB91: =SUM(AX91:BA91) -> 4 | BC91: =VLOOKUP($C91,点数集計!$C:$CL,ようこそ!$G$19,0) -> 
A92: =A91+1 -> 88 | B92: JR南武線 | C92: 小田栄 | D92: =IFERROR(VLOOKUP($C92,全データ!$C:$CI,D$1,0)&"","") -> 神奈川県 | E92: =IFERROR(VLOOKUP($C92,全データ!$C:$CI,E$1,0)&"","") -> 川崎市川崎区 | F92: =VLOOKUP($C92,全データ!$C:$CI,F$1,0) -> 44.33333333 | G92: =VLOOKUP($C92,全データ!$C:$CI,G$1,0) -> 60.33333333 | H92: =(VLOOKUP($C92,全データ!$C:$CI,F$1,0)+VLOOKUP($C92,全データ!$C:$CI,G$1,0))/2 -> 52.33333333 | I92: =VLOOKUP($C92,全データ!$C:$CI,I$1,0) -> 184 | J92: =VLOOKUP($C92,全データ!$C:$CI,J$1,0) -> × | K92: =VLOOKUP($C92,全データ!$C:$CI,K$1,0) -> 5.79 | L92: =VLOOKUP($C92,全データ!$C:$CI,L$1,0) -> 11 | M92: =(VLOOKUP($C92,全データ!$C:$CI,K$1,0)+VLOOKUP($C92,全データ!$C:$CI,L$1,0))/2 -> 8.395 | N92: =VLOOKUP($C92,全データ!$C:$CI,N$1,0) -> 43.42266734 | O92: =VLOOKUP($C92,全データ!$C:$CI,O$1,0) -> 5650.847458 | P92: =VLOOKUP($C92,全データ!$C:$CI,P$1,0) -> 0.4773238243 | Q92: =VLOOKUP($C92,全データ!$C:$CI,Q$1,0) -> 0.1868715809 | R92: =VLOOKUP($C92,全データ!$C:$CI,R$1,0) -> 391.4043623 | S92: =VLOOKUP($C92,全データ!$C:$CI,S$1,0) -> 0.007879421095 | T92: =VLOOKUP($C92,全データ!$C:$CI,T$1,0) -> 1.223996992 | U92: =VLOOKUP($C92,全データ!$C:$CI,U$1,0) -> 13.10843698 | V92: =VLOOKUP($C92,全データ!$C:$CI,V$1,0) -> 0.04439664187 | W92: =VLOOKUP($C92,全データ!$C:$CI,W$1,0) -> 0.02783810646 | X92: =VLOOKUP($C92,全データ!$C:$CI,X$1,0) -> - | Y92: =VLOOKUP($C92,全データ!$C:$CI,Y$1,0) -> - | Z92: =IFERROR(VLOOKUP($C92,全データ!$C:$CI,Z$1,0)&"","") ->  | AA92: =IFERROR(VLOOKUP($C92,全データ!$C:$CI,AA$1,0)&"","") -> ○ | AB92: =IFERROR(VLOOKUP($C92,全データ!$C:$CI,AB$1,0)&"","") ->  | AC92: =IFERROR(VLOOKUP($C92,全データ!$C:$CI,AC$1,0)&"","") ->  | AD92: =IFERROR(VLOOKUP($C92,全データ!$C:$CI,AD$1,0)&"","") ->  | AE92: =IFERROR(VLOOKUP($C92,全データ!$C:$CI,AE$1,0)&"","") ->  | AF92: =IFERROR(VLOOKUP($C92,全データ!$C:$CI,AF$1,0)&"","") ->  | AG92: =IFERROR(VLOOKUP($C92,全データ!$C:$CI,AG$1,0)&"","") ->  | AH92: =IFERROR(VLOOKUP($C92,全データ!$C:$CI,AH$1,0)&"","") -> ○ | AI92: =IFERROR(VLOOKUP($C92,全データ!$C:$CI,AI$1,0)&"","") ->  | AJ92: =IFERROR(VLOOKUP($C92,全データ!$C:$CI,AJ$1,0)&"","") ->  | AK92: =IFERROR(VLOOKUP($C92,全データ!$C:$CI,AK$1,0)&"","") ->  | AL92: =IFERROR(VLOOKUP($C92,全データ!$C:$CI,AL$1,0)&"","") ->  | AM92: =IFERROR(VLOOKUP($C92,全データ!$C:$CI,AM$1,0)&"","") ->  | AN92: =IFERROR(VLOOKUP($C92,全データ!$C:$CI,AN$1,0)&"","") ->  | AO92: =IFERROR(VLOOKUP($C92,全データ!$C:$CI,AO$1,0)&"","") ->  | AP92: =IFERROR(VLOOKUP($C92,全データ!$C:$CI,AP$1,0)&"","") ->  | AQ92: =IFERROR(VLOOKUP($C92,全データ!$C:$CI,AQ$1,0)&"","") ->  | AR92: =IFERROR(VLOOKUP($C92,全データ!$C:$CI,AR$1,0)&"","") -> ○ | AS92: =IFERROR(VLOOKUP($C92,全データ!$C:$CI,AS$1,0)&"","") ->  | AT92: =IFERROR(VLOOKUP($C92,全データ!$C:$CI,AT$1,0)&"","") ->  | AU92: =IFERROR(VLOOKUP($C92,全データ!$C:$CI,AU$1,0)&"","") ->  | AV92: =IFERROR(VLOOKUP($C92,全データ!$C:$CI,AV$1,0)&"","") ->  | AW92: =IFERROR(VLOOKUP($C92,全データ!$C:$CI,AW$1,0)&"","") ->  | AX92: =COUNTIF($Z92:$AG92,"○") -> 1 | AY92: =COUNTIF($AH92:$AK92,"○") -> 1 | AZ92: =COUNTIF($AL92:$AS92,"○") -> 1 | BA92: =COUNTIF(AT92:AW92,"○")+COUNTIF(AT92:AW92,"◎") -> 0 | BB92: =SUM(AX92:BA92) -> 3 | BC92: =VLOOKUP($C92,点数集計!$C:$CL,ようこそ!$G$19,0) -> 
A93: =A92+1 -> 89 | B93: JR南武線 | C93: 矢向 | D93: =IFERROR(VLOOKUP($C93,全データ!$C:$CI,D$1,0)&"","") -> 神奈川県 | E93: =IFERROR(VLOOKUP($C93,全データ!$C:$CI,E$1,0)&"","") -> 横浜市鶴見区 | F93: =VLOOKUP($C93,全データ!$C:$CI,F$1,0) -> 32.66666667 | G93: =VLOOKUP($C93,全データ!$C:$CI,G$1,0) -> 45.33333333 | H93: =(VLOOKUP($C93,全データ!$C:$CI,F$1,0)+VLOOKUP($C93,全データ!$C:$CI,G$1,0))/2 -> 39 | I93: =VLOOKUP($C93,全データ!$C:$CI,I$1,0) -> 184 | J93: =VLOOKUP($C93,全データ!$C:$CI,J$1,0) -> × | K93: =VLOOKUP($C93,全データ!$C:$CI,K$1,0) -> 6.4 | L93: =VLOOKUP($C93,全データ!$C:$CI,L$1,0) -> 11.6 | M93: =(VLOOKUP($C93,全データ!$C:$CI,K$1,0)+VLOOKUP($C93,全データ!$C:$CI,L$1,0))/2 -> 9 | N93: =VLOOKUP($C93,全データ!$C:$CI,N$1,0) -> 43.10574584 | O93: =VLOOKUP($C93,全データ!$C:$CI,O$1,0) -> 8587.300632 | P93: =VLOOKUP($C93,全データ!$C:$CI,P$1,0) -> 0.4178474957 | Q93: =VLOOKUP($C93,全データ!$C:$CI,Q$1,0) -> -0.1020760033 | R93: =VLOOKUP($C93,全データ!$C:$CI,R$1,0) -> 398.5368083 | S93: =VLOOKUP($C93,全データ!$C:$CI,S$1,0) -> 0.004542829043 | T93: =VLOOKUP($C93,全データ!$C:$CI,T$1,0) -> 0.3927550148 | U93: =VLOOKUP($C93,全データ!$C:$CI,U$1,0) -> 7.50657914 | V93: =VLOOKUP($C93,全データ!$C:$CI,V$1,0) -> 0.03524703047 | W93: =VLOOKUP($C93,全データ!$C:$CI,W$1,0) -> 0.04841684486 | X93: =VLOOKUP($C93,全データ!$C:$CI,X$1,0) -> - | Y93: =VLOOKUP($C93,全データ!$C:$CI,Y$1,0) -> - | Z93: =IFERROR(VLOOKUP($C93,全データ!$C:$CI,Z$1,0)&"","") ->  | AA93: =IFERROR(VLOOKUP($C93,全データ!$C:$CI,AA$1,0)&"","") ->  | AB93: =IFERROR(VLOOKUP($C93,全データ!$C:$CI,AB$1,0)&"","") ->  | AC93: =IFERROR(VLOOKUP($C93,全データ!$C:$CI,AC$1,0)&"","") ->  | AD93: =IFERROR(VLOOKUP($C93,全データ!$C:$CI,AD$1,0)&"","") ->  | AE93: =IFERROR(VLOOKUP($C93,全データ!$C:$CI,AE$1,0)&"","") ->  | AF93: =IFERROR(VLOOKUP($C93,全データ!$C:$CI,AF$1,0)&"","") ->  | AG93: =IFERROR(VLOOKUP($C93,全データ!$C:$CI,AG$1,0)&"","") ->  | AH93: =IFERROR(VLOOKUP($C93,全データ!$C:$CI,AH$1,0)&"","") ->  | AI93: =IFERROR(VLOOKUP($C93,全データ!$C:$CI,AI$1,0)&"","") ->  | AJ93: =IFERROR(VLOOKUP($C93,全データ!$C:$CI,AJ$1,0)&"","") ->  | AK93: =IFERROR(VLOOKUP($C93,全データ!$C:$CI,AK$1,0)&"","") -> ○ | AL93: =IFERROR(VLOOKUP($C93,全データ!$C:$CI,AL$1,0)&"","") ->  | AM93: =IFERROR(VLOOKUP($C93,全データ!$C:$CI,AM$1,0)&"","") ->  | AN93: =IFERROR(VLOOKUP($C93,全データ!$C:$CI,AN$1,0)&"","") ->  | AO93: =IFERROR(VLOOKUP($C93,全データ!$C:$CI,AO$1,0)&"","") ->  | AP93: =IFERROR(VLOOKUP($C93,全データ!$C:$CI,AP$1,0)&"","") ->  | AQ93: =IFERROR(VLOOKUP($C93,全データ!$C:$CI,AQ$1,0)&"","") ->  | AR93: =IFERROR(VLOOKUP($C93,全データ!$C:$CI,AR$1,0)&"","") -> ○ | AS93: =IFERROR(VLOOKUP($C93,全データ!$C:$CI,AS$1,0)&"","") ->  | AT93: =IFERROR(VLOOKUP($C93,全データ!$C:$CI,AT$1,0)&"","") ->  | AU93: =IFERROR(VLOOKUP($C93,全データ!$C:$CI,AU$1,0)&"","") ->  | AV93: =IFERROR(VLOOKUP($C93,全データ!$C:$CI,AV$1,0)&"","") ->  | AW93: =IFERROR(VLOOKUP($C93,全データ!$C:$CI,AW$1,0)&"","") ->  | AX93: =COUNTIF($Z93:$AG93,"○") -> 0 | AY93: =COUNTIF($AH93:$AK93,"○") -> 1 | AZ93: =COUNTIF($AL93:$AS93,"○") -> 1 | BA93: =COUNTIF(AT93:AW93,"○")+COUNTIF(AT93:AW93,"◎") -> 0 | BB93: =SUM(AX93:BA93) -> 2 | BC93: =VLOOKUP($C93,点数集計!$C:$CL,ようこそ!$G$19,0) -> 
A94: =A93+1 -> 90 | B94: JR南武線 | C94: 武蔵新城 | D94: =IFERROR(VLOOKUP($C94,全データ!$C:$CI,D$1,0)&"","") -> 神奈川県 | E94: =IFERROR(VLOOKUP($C94,全データ!$C:$CI,E$1,0)&"","") -> 川崎市中原区 | F94: =VLOOKUP($C94,全データ!$C:$CI,F$1,0) -> 41.66666667 | G94: =VLOOKUP($C94,全データ!$C:$CI,G$1,0) -> 41.66666667 | H94: =(VLOOKUP($C94,全データ!$C:$CI,F$1,0)+VLOOKUP($C94,全データ!$C:$CI,G$1,0))/2 -> 41.66666667 | I94: =VLOOKUP($C94,全データ!$C:$CI,I$1,0) -> 184 | J94: =VLOOKUP($C94,全データ!$C:$CI,J$1,0) -> × | K94: =VLOOKUP($C94,全データ!$C:$CI,K$1,0) -> 7.12 | L94: =VLOOKUP($C94,全データ!$C:$CI,L$1,0) -> 11.99 | M94: =(VLOOKUP($C94,全データ!$C:$CI,K$1,0)+VLOOKUP($C94,全データ!$C:$CI,L$1,0))/2 -> 9.555 | N94: =VLOOKUP($C94,全データ!$C:$CI,N$1,0) -> 39.57667364 | O94: =VLOOKUP($C94,全データ!$C:$CI,O$1,0) -> 16793.01221 | P94: =VLOOKUP($C94,全データ!$C:$CI,P$1,0) -> 0.4810747285 | Q94: =VLOOKUP($C94,全データ!$C:$CI,Q$1,0) -> -0.1449729123 | R94: =VLOOKUP($C94,全データ!$C:$CI,R$1,0) -> 391.4043623 | S94: =VLOOKUP($C94,全データ!$C:$CI,S$1,0) -> 0.004483944737 | T94: =VLOOKUP($C94,全データ!$C:$CI,T$1,0) -> 1.597222952 | U94: =VLOOKUP($C94,全データ!$C:$CI,U$1,0) -> 11.2477826 | V94: =VLOOKUP($C94,全データ!$C:$CI,V$1,0) -> 0.04439664187 | W94: =VLOOKUP($C94,全データ!$C:$CI,W$1,0) -> 0.05815539169 | X94: =VLOOKUP($C94,全データ!$C:$CI,X$1,0) -> 京浜川崎 | Y94: =VLOOKUP($C94,全データ!$C:$CI,Y$1,0) -> - | Z94: =IFERROR(VLOOKUP($C94,全データ!$C:$CI,Z$1,0)&"","") ->  | AA94: =IFERROR(VLOOKUP($C94,全データ!$C:$CI,AA$1,0)&"","") ->  | AB94: =IFERROR(VLOOKUP($C94,全データ!$C:$CI,AB$1,0)&"","") ->  | AC94: =IFERROR(VLOOKUP($C94,全データ!$C:$CI,AC$1,0)&"","") ->  | AD94: =IFERROR(VLOOKUP($C94,全データ!$C:$CI,AD$1,0)&"","") ->  | AE94: =IFERROR(VLOOKUP($C94,全データ!$C:$CI,AE$1,0)&"","") ->  | AF94: =IFERROR(VLOOKUP($C94,全データ!$C:$CI,AF$1,0)&"","") ->  | AG94: =IFERROR(VLOOKUP($C94,全データ!$C:$CI,AG$1,0)&"","") ->  | AH94: =IFERROR(VLOOKUP($C94,全データ!$C:$CI,AH$1,0)&"","") ->  | AI94: =IFERROR(VLOOKUP($C94,全データ!$C:$CI,AI$1,0)&"","") ->  | AJ94: =IFERROR(VLOOKUP($C94,全データ!$C:$CI,AJ$1,0)&"","") -> ○ | AK94: =IFERROR(VLOOKUP($C94,全データ!$C:$CI,AK$1,0)&"","") ->  | AL94: =IFERROR(VLOOKUP($C94,全データ!$C:$CI,AL$1,0)&"","") ->  | AM94: =IFERROR(VLOOKUP($C94,全データ!$C:$CI,AM$1,0)&"","") ->  | AN94: =IFERROR(VLOOKUP($C94,全データ!$C:$CI,AN$1,0)&"","") ->  | AO94: =IFERROR(VLOOKUP($C94,全データ!$C:$CI,AO$1,0)&"","") ->  | AP94: =IFERROR(VLOOKUP($C94,全データ!$C:$CI,AP$1,0)&"","") ->  | AQ94: =IFERROR(VLOOKUP($C94,全データ!$C:$CI,AQ$1,0)&"","") ->  | AR94: =IFERROR(VLOOKUP($C94,全データ!$C:$CI,AR$1,0)&"","") ->  | AS94: =IFERROR(VLOOKUP($C94,全データ!$C:$CI,AS$1,0)&"","") ->  | AT94: =IFERROR(VLOOKUP($C94,全データ!$C:$CI,AT$1,0)&"","") ->  | AU94: =IFERROR(VLOOKUP($C94,全データ!$C:$CI,AU$1,0)&"","") ->  | AV94: =IFERROR(VLOOKUP($C94,全データ!$C:$CI,AV$1,0)&"","") ->  | AW94: =IFERROR(VLOOKUP($C94,全データ!$C:$CI,AW$1,0)&"","") -> ○ | AX94: =COUNTIF($Z94:$AG94,"○") -> 0 | AY94: =COUNTIF($AH94:$AK94,"○") -> 1 | AZ94: =COUNTIF($AL94:$AS94,"○") -> 0 | BA94: =COUNTIF(AT94:AW94,"○")+COUNTIF(AT94:AW94,"◎") -> 1 | BB94: =SUM(AX94:BA94) -> 2 | BC94: =VLOOKUP($C94,点数集計!$C:$CL,ようこそ!$G$19,0) -> 
A95: =A94+1 -> 91 | B95: JR南武線 | C95: 尻手 | D95: =IFERROR(VLOOKUP($C95,全データ!$C:$CI,D$1,0)&"","") -> 神奈川県 | E95: =IFERROR(VLOOKUP($C95,全データ!$C:$CI,E$1,0)&"","") -> 川崎市幸区 | F95: =VLOOKUP($C95,全データ!$C:$CI,F$1,0) -> 31.33333333 | G95: =VLOOKUP($C95,全データ!$C:$CI,G$1,0) -> 48 | H95: =(VLOOKUP($C95,全データ!$C:$CI,F$1,0)+VLOOKUP($C95,全データ!$C:$CI,G$1,0))/2 -> 39.66666667 | I95: =VLOOKUP($C95,全データ!$C:$CI,I$1,0) -> 184 | J95: =VLOOKUP($C95,全データ!$C:$CI,J$1,0) -> △ | K95: =VLOOKUP($C95,全データ!$C:$CI,K$1,0) -> 7.05 | L95: =VLOOKUP($C95,全データ!$C:$CI,L$1,0) -> 13.59 | M95: =(VLOOKUP($C95,全データ!$C:$CI,K$1,0)+VLOOKUP($C95,全データ!$C:$CI,L$1,0))/2 -> 10.32 | N95: =VLOOKUP($C95,全データ!$C:$CI,N$1,0) -> 43.47921676 | O95: =VLOOKUP($C95,全データ!$C:$CI,O$1,0) -> 16072.92707 | P95: =VLOOKUP($C95,全データ!$C:$CI,P$1,0) -> 0.4236360003 | Q95: =VLOOKUP($C95,全データ!$C:$CI,Q$1,0) -> -0.007352849773 | R95: =VLOOKUP($C95,全データ!$C:$CI,R$1,0) -> 391.4043623 | S95: =VLOOKUP($C95,全データ!$C:$CI,S$1,0) -> 0.004439379614 | T95: =VLOOKUP($C95,全データ!$C:$CI,T$1,0) -> 1.154503077 | U95: =VLOOKUP($C95,全データ!$C:$CI,U$1,0) -> 1.437150219 | V95: =VLOOKUP($C95,全データ!$C:$CI,V$1,0) -> 0.04439664187 | W95: =VLOOKUP($C95,全データ!$C:$CI,W$1,0) -> 0.04330402303 | X95: =VLOOKUP($C95,全データ!$C:$CI,X$1,0) -> - | Y95: =VLOOKUP($C95,全データ!$C:$CI,Y$1,0) -> - | Z95: =IFERROR(VLOOKUP($C95,全データ!$C:$CI,Z$1,0)&"","") ->  | AA95: =IFERROR(VLOOKUP($C95,全データ!$C:$CI,AA$1,0)&"","") ->  | AB95: =IFERROR(VLOOKUP($C95,全データ!$C:$CI,AB$1,0)&"","") ->  | AC95: =IFERROR(VLOOKUP($C95,全データ!$C:$CI,AC$1,0)&"","") ->  | AD95: =IFERROR(VLOOKUP($C95,全データ!$C:$CI,AD$1,0)&"","") ->  | AE95: =IFERROR(VLOOKUP($C95,全データ!$C:$CI,AE$1,0)&"","") ->  | AF95: =IFERROR(VLOOKUP($C95,全データ!$C:$CI,AF$1,0)&"","") ->  | AG95: =IFERROR(VLOOKUP($C95,全データ!$C:$CI,AG$1,0)&"","") ->  | AH95: =IFERROR(VLOOKUP($C95,全データ!$C:$CI,AH$1,0)&"","") ->  | AI95: =IFERROR(VLOOKUP($C95,全データ!$C:$CI,AI$1,0)&"","") ->  | AJ95: =IFERROR(VLOOKUP($C95,全データ!$C:$CI,AJ$1,0)&"","") -> ○ | AK95: =IFERROR(VLOOKUP($C95,全データ!$C:$CI,AK$1,0)&"","") ->  | AL95: =IFERROR(VLOOKUP($C95,全データ!$C:$CI,AL$1,0)&"","") ->  | AM95: =IFERROR(VLOOKUP($C95,全データ!$C:$CI,AM$1,0)&"","") ->  | AN95: =IFERROR(VLOOKUP($C95,全データ!$C:$CI,AN$1,0)&"","") ->  | AO95: =IFERROR(VLOOKUP($C95,全データ!$C:$CI,AO$1,0)&"","") ->  | AP95: =IFERROR(VLOOKUP($C95,全データ!$C:$CI,AP$1,0)&"","") ->  | AQ95: =IFERROR(VLOOKUP($C95,全データ!$C:$CI,AQ$1,0)&"","") ->  | AR95: =IFERROR(VLOOKUP($C95,全データ!$C:$CI,AR$1,0)&"","") -> ○ | AS95: =IFERROR(VLOOKUP($C95,全データ!$C:$CI,AS$1,0)&"","") ->  | AT95: =IFERROR(VLOOKUP($C95,全データ!$C:$CI,AT$1,0)&"","") ->  | AU95: =IFERROR(VLOOKUP($C95,全データ!$C:$CI,AU$1,0)&"","") ->  | AV95: =IFERROR(VLOOKUP($C95,全データ!$C:$CI,AV$1,0)&"","") ->  | AW95: =IFERROR(VLOOKUP($C95,全データ!$C:$CI,AW$1,0)&"","") ->  | AX95: =COUNTIF($Z95:$AG95,"○") -> 0 | AY95: =COUNTIF($AH95:$AK95,"○") -> 1 | AZ95: =COUNTIF($AL95:$AS95,"○") -> 1 | BA95: =COUNTIF(AT95:AW95,"○")+COUNTIF(AT95:AW95,"◎") -> 0 | BB95: =SUM(AX95:BA95) -> 2 | BC95: =VLOOKUP($C95,点数集計!$C:$CL,ようこそ!$G$19,0) -> 
A96: =A95+1 -> 92 | B96: JR南武線 | C96: 西国立 | D96: =IFERROR(VLOOKUP($C96,全データ!$C:$CI,D$1,0)&"","") -> 東京都 | E96: =IFERROR(VLOOKUP($C96,全データ!$C:$CI,E$1,0)&"","") -> 立川市 | F96: =VLOOKUP($C96,全データ!$C:$CI,F$1,0) -> 62 | G96: =VLOOKUP($C96,全データ!$C:$CI,G$1,0) -> 49.33333333 | H96: =(VLOOKUP($C96,全データ!$C:$CI,F$1,0)+VLOOKUP($C96,全データ!$C:$CI,G$1,0))/2 -> 55.66666667 | I96: =VLOOKUP($C96,全データ!$C:$CI,I$1,0) -> 184 | J96: =VLOOKUP($C96,全データ!$C:$CI,J$1,0) -> × | K96: =VLOOKUP($C96,全データ!$C:$CI,K$1,0) -> 5.51 | L96: =VLOOKUP($C96,全データ!$C:$CI,L$1,0) -> 9.96 | M96: =(VLOOKUP($C96,全データ!$C:$CI,K$1,0)+VLOOKUP($C96,全データ!$C:$CI,L$1,0))/2 -> 7.735 | N96: =VLOOKUP($C96,全データ!$C:$CI,N$1,0) -> 45.5471273 | O96: =VLOOKUP($C96,全データ!$C:$CI,O$1,0) -> 7763.458111 | P96: =VLOOKUP($C96,全データ!$C:$CI,P$1,0) -> 0.4389936048 | Q96: =VLOOKUP($C96,全データ!$C:$CI,Q$1,0) -> 0.1418020931 | R96: =VLOOKUP($C96,全データ!$C:$CI,R$1,0) -> 358.4369479 | S96: =VLOOKUP($C96,全データ!$C:$CI,S$1,0) -> 0.008355937087 | T96: =VLOOKUP($C96,全データ!$C:$CI,T$1,0) -> 5.168944099 | U96: =VLOOKUP($C96,全データ!$C:$CI,U$1,0) -> 8.475709211 | V96: =VLOOKUP($C96,全データ!$C:$CI,V$1,0) -> 0.03092281471 | W96: =VLOOKUP($C96,全データ!$C:$CI,W$1,0) -> -0.0187735156 | X96: =VLOOKUP($C96,全データ!$C:$CI,X$1,0) -> - | Y96: =VLOOKUP($C96,全データ!$C:$CI,Y$1,0) -> - | Z96: =IFERROR(VLOOKUP($C96,全データ!$C:$CI,Z$1,0)&"","") ->  | AA96: =IFERROR(VLOOKUP($C96,全データ!$C:$CI,AA$1,0)&"","") ->  | AB96: =IFERROR(VLOOKUP($C96,全データ!$C:$CI,AB$1,0)&"","") ->  | AC96: =IFERROR(VLOOKUP($C96,全データ!$C:$CI,AC$1,0)&"","") ->  | AD96: =IFERROR(VLOOKUP($C96,全データ!$C:$CI,AD$1,0)&"","") ->  | AE96: =IFERROR(VLOOKUP($C96,全データ!$C:$CI,AE$1,0)&"","") ->  | AF96: =IFERROR(VLOOKUP($C96,全データ!$C:$CI,AF$1,0)&"","") ->  | AG96: =IFERROR(VLOOKUP($C96,全データ!$C:$CI,AG$1,0)&"","") ->  | AH96: =IFERROR(VLOOKUP($C96,全データ!$C:$CI,AH$1,0)&"","") ->  | AI96: =IFERROR(VLOOKUP($C96,全データ!$C:$CI,AI$1,0)&"","") ->  | AJ96: =IFERROR(VLOOKUP($C96,全データ!$C:$CI,AJ$1,0)&"","") -> ○ | AK96: =IFERROR(VLOOKUP($C96,全データ!$C:$CI,AK$1,0)&"","") ->  | AL96: =IFERROR(VLOOKUP($C96,全データ!$C:$CI,AL$1,0)&"","") ->  | AM96: =IFERROR(VLOOKUP($C96,全データ!$C:$CI,AM$1,0)&"","") ->  | AN96: =IFERROR(VLOOKUP($C96,全データ!$C:$CI,AN$1,0)&"","") ->  | AO96: =IFERROR(VLOOKUP($C96,全データ!$C:$CI,AO$1,0)&"","") ->  | AP96: =IFERROR(VLOOKUP($C96,全データ!$C:$CI,AP$1,0)&"","") -> ○ | AQ96: =IFERROR(VLOOKUP($C96,全データ!$C:$CI,AQ$1,0)&"","") ->  | AR96: =IFERROR(VLOOKUP($C96,全データ!$C:$CI,AR$1,0)&"","") ->  | AS96: =IFERROR(VLOOKUP($C96,全データ!$C:$CI,AS$1,0)&"","") ->  | AT96: =IFERROR(VLOOKUP($C96,全データ!$C:$CI,AT$1,0)&"","") ->  | AU96: =IFERROR(VLOOKUP($C96,全データ!$C:$CI,AU$1,0)&"","") ->  | AV96: =IFERROR(VLOOKUP($C96,全データ!$C:$CI,AV$1,0)&"","") ->  | AW96: =IFERROR(VLOOKUP($C96,全データ!$C:$CI,AW$1,0)&"","") ->  | AX96: =COUNTIF($Z96:$AG96,"○") -> 0 | AY96: =COUNTIF($AH96:$AK96,"○") -> 1 | AZ96: =COUNTIF($AL96:$AS96,"○") -> 1 | BA96: =COUNTIF(AT96:AW96,"○")+COUNTIF(AT96:AW96,"◎") -> 0 | BB96: =SUM(AX96:BA96) -> 2 | BC96: =VLOOKUP($C96,点数集計!$C:$CL,ようこそ!$G$19,0) -> 
A97: =A96+1 -> 93 | B97: JR根岸線 | C97: 港南台 | D97: =IFERROR(VLOOKUP($C97,全データ!$C:$CI,D$1,0)&"","") -> 神奈川県 | E97: =IFERROR(VLOOKUP($C97,全データ!$C:$CI,E$1,0)&"","") -> 横浜市港南区 | F97: =VLOOKUP($C97,全データ!$C:$CI,F$1,0) -> 63 | G97: =VLOOKUP($C97,全データ!$C:$CI,G$1,0) -> 68 | H97: =(VLOOKUP($C97,全データ!$C:$CI,F$1,0)+VLOOKUP($C97,全データ!$C:$CI,G$1,0))/2 -> 65.5 | I97: =VLOOKUP($C97,全データ!$C:$CI,I$1,0) -> 148 | J97: =VLOOKUP($C97,全データ!$C:$CI,J$1,0) -> × | K97: =VLOOKUP($C97,全データ!$C:$CI,K$1,0) -> 5.43 | L97: =VLOOKUP($C97,全データ!$C:$CI,L$1,0) -> 9.95 | M97: =(VLOOKUP($C97,全データ!$C:$CI,K$1,0)+VLOOKUP($C97,全データ!$C:$CI,L$1,0))/2 -> 7.69 | N97: =VLOOKUP($C97,全データ!$C:$CI,N$1,0) -> 47.22043317 | O97: =VLOOKUP($C97,全データ!$C:$CI,O$1,0) -> 11397.71155 | P97: =VLOOKUP($C97,全データ!$C:$CI,P$1,0) -> 0.2982249692 | Q97: =VLOOKUP($C97,全データ!$C:$CI,Q$1,0) -> -0.2006480142 | R97: =VLOOKUP($C97,全データ!$C:$CI,R$1,0) -> 398.5368083 | S97: =VLOOKUP($C97,全データ!$C:$CI,S$1,0) -> 0.006175738914 | T97: =VLOOKUP($C97,全データ!$C:$CI,T$1,0) -> 0.5095904253 | U97: =VLOOKUP($C97,全データ!$C:$CI,U$1,0) -> 7.65530609 | V97: =VLOOKUP($C97,全データ!$C:$CI,V$1,0) -> 0.03524703047 | W97: =VLOOKUP($C97,全データ!$C:$CI,W$1,0) -> -0.02563106621 | X97: =VLOOKUP($C97,全データ!$C:$CI,X$1,0) -> 日野 | Y97: =VLOOKUP($C97,全データ!$C:$CI,Y$1,0) -> ○ | Z97: =IFERROR(VLOOKUP($C97,全データ!$C:$CI,Z$1,0)&"","") ->  | AA97: =IFERROR(VLOOKUP($C97,全データ!$C:$CI,AA$1,0)&"","") -> ○ | AB97: =IFERROR(VLOOKUP($C97,全データ!$C:$CI,AB$1,0)&"","") ->  | AC97: =IFERROR(VLOOKUP($C97,全データ!$C:$CI,AC$1,0)&"","") ->  | AD97: =IFERROR(VLOOKUP($C97,全データ!$C:$CI,AD$1,0)&"","") ->  | AE97: =IFERROR(VLOOKUP($C97,全データ!$C:$CI,AE$1,0)&"","") ->  | AF97: =IFERROR(VLOOKUP($C97,全データ!$C:$CI,AF$1,0)&"","") ->  | AG97: =IFERROR(VLOOKUP($C97,全データ!$C:$CI,AG$1,0)&"","") ->  | AH97: =IFERROR(VLOOKUP($C97,全データ!$C:$CI,AH$1,0)&"","") ->  | AI97: =IFERROR(VLOOKUP($C97,全データ!$C:$CI,AI$1,0)&"","") -> ○ | AJ97: =IFERROR(VLOOKUP($C97,全データ!$C:$CI,AJ$1,0)&"","") ->  | AK97: =IFERROR(VLOOKUP($C97,全データ!$C:$CI,AK$1,0)&"","") ->  | AL97: =IFERROR(VLOOKUP($C97,全データ!$C:$CI,AL$1,0)&"","") ->  | AM97: =IFERROR(VLOOKUP($C97,全データ!$C:$CI,AM$1,0)&"","") ->  | AN97: =IFERROR(VLOOKUP($C97,全データ!$C:$CI,AN$1,0)&"","") ->  | AO97: =IFERROR(VLOOKUP($C97,全データ!$C:$CI,AO$1,0)&"","") ->  | AP97: =IFERROR(VLOOKUP($C97,全データ!$C:$CI,AP$1,0)&"","") ->  | AQ97: =IFERROR(VLOOKUP($C97,全データ!$C:$CI,AQ$1,0)&"","") ->  | AR97: =IFERROR(VLOOKUP($C97,全データ!$C:$CI,AR$1,0)&"","") ->  | AS97: =IFERROR(VLOOKUP($C97,全データ!$C:$CI,AS$1,0)&"","") ->  | AT97: =IFERROR(VLOOKUP($C97,全データ!$C:$CI,AT$1,0)&"","") ->  | AU97: =IFERROR(VLOOKUP($C97,全データ!$C:$CI,AU$1,0)&"","") ->  | AV97: =IFERROR(VLOOKUP($C97,全データ!$C:$CI,AV$1,0)&"","") -> ◎ | AW97: =IFERROR(VLOOKUP($C97,全データ!$C:$CI,AW$1,0)&"","") ->  | AX97: =COUNTIF($Z97:$AG97,"○") -> 1 | AY97: =COUNTIF($AH97:$AK97,"○") -> 1 | AZ97: =COUNTIF($AL97:$AS97,"○") -> 0 | BA97: =COUNTIF(AT97:AW97,"○")+COUNTIF(AT97:AW97,"◎") -> 1 | BB97: =SUM(AX97:BA97) -> 3 | BC97: =VLOOKUP($C97,点数集計!$C:$CL,ようこそ!$G$19,0) -> 
A98: =A97+1 -> 94 | B98: JR根岸線 | C98: 洋光台 | D98: =IFERROR(VLOOKUP($C98,全データ!$C:$CI,D$1,0)&"","") -> 神奈川県 | E98: =IFERROR(VLOOKUP($C98,全データ!$C:$CI,E$1,0)&"","") -> 横浜市磯子区 | F98: =VLOOKUP($C98,全データ!$C:$CI,F$1,0) -> 62 | G98: =VLOOKUP($C98,全データ!$C:$CI,G$1,0) -> 65.66666667 | H98: =(VLOOKUP($C98,全データ!$C:$CI,F$1,0)+VLOOKUP($C98,全データ!$C:$CI,G$1,0))/2 -> 63.83333333 | I98: =VLOOKUP($C98,全データ!$C:$CI,I$1,0) -> 148 | J98: =VLOOKUP($C98,全データ!$C:$CI,J$1,0) -> × | K98: =VLOOKUP($C98,全データ!$C:$CI,K$1,0) -> 5.19 | L98: =VLOOKUP($C98,全データ!$C:$CI,L$1,0) -> 8.66 | M98: =(VLOOKUP($C98,全データ!$C:$CI,K$1,0)+VLOOKUP($C98,全データ!$C:$CI,L$1,0))/2 -> 6.925 | N98: =VLOOKUP($C98,全データ!$C:$CI,N$1,0) -> 46.66691958 | O98: =VLOOKUP($C98,全データ!$C:$CI,O$1,0) -> 9708.716418 | P98: =VLOOKUP($C98,全データ!$C:$CI,P$1,0) -> 0.3565856082 | Q98: =VLOOKUP($C98,全データ!$C:$CI,Q$1,0) -> -0.1677805918 | R98: =VLOOKUP($C98,全データ!$C:$CI,R$1,0) -> 398.5368083 | S98: =VLOOKUP($C98,全データ!$C:$CI,S$1,0) -> 0.00402634109 | T98: =VLOOKUP($C98,全データ!$C:$CI,T$1,0) -> 0.9463691654 | U98: =VLOOKUP($C98,全データ!$C:$CI,U$1,0) -> 1.815135862 | V98: =VLOOKUP($C98,全データ!$C:$CI,V$1,0) -> 0.03524703047 | W98: =VLOOKUP($C98,全データ!$C:$CI,W$1,0) -> 0.01832917782 | X98: =VLOOKUP($C98,全データ!$C:$CI,X$1,0) -> - | Y98: =VLOOKUP($C98,全データ!$C:$CI,Y$1,0) -> - | Z98: =IFERROR(VLOOKUP($C98,全データ!$C:$CI,Z$1,0)&"","") ->  | AA98: =IFERROR(VLOOKUP($C98,全データ!$C:$CI,AA$1,0)&"","") ->  | AB98: =IFERROR(VLOOKUP($C98,全データ!$C:$CI,AB$1,0)&"","") ->  | AC98: =IFERROR(VLOOKUP($C98,全データ!$C:$CI,AC$1,0)&"","") ->  | AD98: =IFERROR(VLOOKUP($C98,全データ!$C:$CI,AD$1,0)&"","") ->  | AE98: =IFERROR(VLOOKUP($C98,全データ!$C:$CI,AE$1,0)&"","") ->  | AF98: =IFERROR(VLOOKUP($C98,全データ!$C:$CI,AF$1,0)&"","") ->  | AG98: =IFERROR(VLOOKUP($C98,全データ!$C:$CI,AG$1,0)&"","") ->  | AH98: =IFERROR(VLOOKUP($C98,全データ!$C:$CI,AH$1,0)&"","") ->  | AI98: =IFERROR(VLOOKUP($C98,全データ!$C:$CI,AI$1,0)&"","") ->  | AJ98: =IFERROR(VLOOKUP($C98,全データ!$C:$CI,AJ$1,0)&"","") ->  | AK98: =IFERROR(VLOOKUP($C98,全データ!$C:$CI,AK$1,0)&"","") ->  | AL98: =IFERROR(VLOOKUP($C98,全データ!$C:$CI,AL$1,0)&"","") ->  | AM98: =IFERROR(VLOOKUP($C98,全データ!$C:$CI,AM$1,0)&"","") ->  | AN98: =IFERROR(VLOOKUP($C98,全データ!$C:$CI,AN$1,0)&"","") ->  | AO98: =IFERROR(VLOOKUP($C98,全データ!$C:$CI,AO$1,0)&"","") ->  | AP98: =IFERROR(VLOOKUP($C98,全データ!$C:$CI,AP$1,0)&"","") -> ○ | AQ98: =IFERROR(VLOOKUP($C98,全データ!$C:$CI,AQ$1,0)&"","") ->  | AR98: =IFERROR(VLOOKUP($C98,全データ!$C:$CI,AR$1,0)&"","") ->  | AS98: =IFERROR(VLOOKUP($C98,全データ!$C:$CI,AS$1,0)&"","") ->  | AT98: =IFERROR(VLOOKUP($C98,全データ!$C:$CI,AT$1,0)&"","") ->  | AU98: =IFERROR(VLOOKUP($C98,全データ!$C:$CI,AU$1,0)&"","") ->  | AV98: =IFERROR(VLOOKUP($C98,全データ!$C:$CI,AV$1,0)&"","") ->  | AW98: =IFERROR(VLOOKUP($C98,全データ!$C:$CI,AW$1,0)&"","") ->  | AX98: =COUNTIF($Z98:$AG98,"○") -> 0 | AY98: =COUNTIF($AH98:$AK98,"○") -> 0 | AZ98: =COUNTIF($AL98:$AS98,"○") -> 1 | BA98: =COUNTIF(AT98:AW98,"○")+COUNTIF(AT98:AW98,"◎") -> 0 | BB98: =SUM(AX98:BA98) -> 1 | BC98: =VLOOKUP($C98,点数集計!$C:$CL,ようこそ!$G$19,0) -> 
A99: =A98+1 -> 95 | B99: JR武蔵野線 | C99: 新三郷 | D99: =IFERROR(VLOOKUP($C99,全データ!$C:$CI,D$1,0)&"","") -> 埼玉県 | E99: =IFERROR(VLOOKUP($C99,全データ!$C:$CI,E$1,0)&"","") -> 三郷市 | F99: =VLOOKUP($C99,全データ!$C:$CI,F$1,0) -> 58.33333333 | G99: =VLOOKUP($C99,全データ!$C:$CI,G$1,0) -> 64.66666667 | H99: =(VLOOKUP($C99,全データ!$C:$CI,F$1,0)+VLOOKUP($C99,全データ!$C:$CI,G$1,0))/2 -> 61.5 | I99: =VLOOKUP($C99,全データ!$C:$CI,I$1,0) -> 173 | J99: =VLOOKUP($C99,全データ!$C:$CI,J$1,0) -> × | K99: =VLOOKUP($C99,全データ!$C:$CI,K$1,0) -> 5.4 | L99: =VLOOKUP($C99,全データ!$C:$CI,L$1,0) -> 8 | M99: =(VLOOKUP($C99,全データ!$C:$CI,K$1,0)+VLOOKUP($C99,全データ!$C:$CI,L$1,0))/2 -> 6.7 | N99: =VLOOKUP($C99,全データ!$C:$CI,N$1,0) -> 45.21168052 | O99: =VLOOKUP($C99,全データ!$C:$CI,O$1,0) -> 6650.297137 | P99: =VLOOKUP($C99,全データ!$C:$CI,P$1,0) -> 0.2820930654 | Q99: =VLOOKUP($C99,全データ!$C:$CI,Q$1,0) -> -0.1156305623 | R99: =VLOOKUP($C99,全データ!$C:$CI,R$1,0) -> 316.0418809 | S99: =VLOOKUP($C99,全データ!$C:$CI,S$1,0) -> 0.01087505694 | T99: =VLOOKUP($C99,全データ!$C:$CI,T$1,0) -> 3.483229686 | U99: =VLOOKUP($C99,全データ!$C:$CI,U$1,0) -> 2.284623349 | V99: =VLOOKUP($C99,全データ!$C:$CI,V$1,0) -> 0.1403508772 | W99: =VLOOKUP($C99,全データ!$C:$CI,W$1,0) -> 0.0388540121 | X99: =VLOOKUP($C99,全データ!$C:$CI,X$1,0) -> 外環三郷西 | Y99: =VLOOKUP($C99,全データ!$C:$CI,Y$1,0) -> ○ | Z99: =IFERROR(VLOOKUP($C99,全データ!$C:$CI,Z$1,0)&"","") ->  | AA99: =IFERROR(VLOOKUP($C99,全データ!$C:$CI,AA$1,0)&"","") ->  | AB99: =IFERROR(VLOOKUP($C99,全データ!$C:$CI,AB$1,0)&"","") ->  | AC99: =IFERROR(VLOOKUP($C99,全データ!$C:$CI,AC$1,0)&"","") ->  | AD99: =IFERROR(VLOOKUP($C99,全データ!$C:$CI,AD$1,0)&"","") ->  | AE99: =IFERROR(VLOOKUP($C99,全データ!$C:$CI,AE$1,0)&"","") ->  | AF99: =IFERROR(VLOOKUP($C99,全データ!$C:$CI,AF$1,0)&"","") ->  | AG99: =IFERROR(VLOOKUP($C99,全データ!$C:$CI,AG$1,0)&"","") ->  | AH99: =IFERROR(VLOOKUP($C99,全データ!$C:$CI,AH$1,0)&"","") -> ○ | AI99: =IFERROR(VLOOKUP($C99,全データ!$C:$CI,AI$1,0)&"","") ->  | AJ99: =IFERROR(VLOOKUP($C99,全データ!$C:$CI,AJ$1,0)&"","") ->  | AK99: =IFERROR(VLOOKUP($C99,全データ!$C:$CI,AK$1,0)&"","") -> ○ | AL99: =IFERROR(VLOOKUP($C99,全データ!$C:$CI,AL$1,0)&"","") ->  | AM99: =IFERROR(VLOOKUP($C99,全データ!$C:$CI,AM$1,0)&"","") ->  | AN99: =IFERROR(VLOOKUP($C99,全データ!$C:$CI,AN$1,0)&"","") ->  | AO99: =IFERROR(VLOOKUP($C99,全データ!$C:$CI,AO$1,0)&"","") ->  | AP99: =IFERROR(VLOOKUP($C99,全データ!$C:$CI,AP$1,0)&"","") ->  | AQ99: =IFERROR(VLOOKUP($C99,全データ!$C:$CI,AQ$1,0)&"","") ->  | AR99: =IFERROR(VLOOKUP($C99,全データ!$C:$CI,AR$1,0)&"","") ->  | AS99: =IFERROR(VLOOKUP($C99,全データ!$C:$CI,AS$1,0)&"","") ->  | AT99: =IFERROR(VLOOKUP($C99,全データ!$C:$CI,AT$1,0)&"","") ->  | AU99: =IFERROR(VLOOKUP($C99,全データ!$C:$CI,AU$1,0)&"","") ->  | AV99: =IFERROR(VLOOKUP($C99,全データ!$C:$CI,AV$1,0)&"","") -> ◎ | AW99: =IFERROR(VLOOKUP($C99,全データ!$C:$CI,AW$1,0)&"","") ->  | AX99: =COUNTIF($Z99:$AG99,"○") -> 0 | AY99: =COUNTIF($AH99:$AK99,"○") -> 2 | AZ99: =COUNTIF($AL99:$AS99,"○") -> 0 | BA99: =COUNTIF(AT99:AW99,"○")+COUNTIF(AT99:AW99,"◎") -> 1 | BB99: =SUM(AX99:BA99) -> 3 | BC99: =VLOOKUP($C99,点数集計!$C:$CL,ようこそ!$G$19,0) -> 
A100: =A99+1 -> 96 | B100: JR武蔵野線 | C100: 新八柱 | D100: =IFERROR(VLOOKUP($C100,全データ!$C:$CI,D$1,0)&"","") -> 千葉県 | E100: =IFERROR(VLOOKUP($C100,全データ!$C:$CI,E$1,0)&"","") -> 松戸市 | F100: =VLOOKUP($C100,全データ!$C:$CI,F$1,0) -> 47.33333333 | G100: =VLOOKUP($C100,全データ!$C:$CI,G$1,0) -> 61 | H100: =(VLOOKUP($C100,全データ!$C:$CI,F$1,0)+VLOOKUP($C100,全データ!$C:$CI,G$1,0))/2 -> 54.16666667 | I100: =VLOOKUP($C100,全データ!$C:$CI,I$1,0) -> 173 | J100: =VLOOKUP($C100,全データ!$C:$CI,J$1,0) -> × | K100: =VLOOKUP($C100,全データ!$C:$CI,K$1,0) -> 4.63 | L100: =VLOOKUP($C100,全データ!$C:$CI,L$1,0) -> 7.53 | M100: =(VLOOKUP($C100,全データ!$C:$CI,K$1,0)+VLOOKUP($C100,全データ!$C:$CI,L$1,0))/2 -> 6.08 | N100: =VLOOKUP($C100,全データ!$C:$CI,N$1,0) -> 46.04313059 | O100: =VLOOKUP($C100,全データ!$C:$CI,O$1,0) -> 9741.755709 | P100: =VLOOKUP($C100,全データ!$C:$CI,P$1,0) -> 0.3718384559 | Q100: =VLOOKUP($C100,全データ!$C:$CI,Q$1,0) -> -0.1796248035 | R100: =VLOOKUP($C100,全データ!$C:$CI,R$1,0) -> 347.4131944 | S100: =VLOOKUP($C100,全データ!$C:$CI,S$1,0) -> 0.008599846206 | T100: =VLOOKUP($C100,全データ!$C:$CI,T$1,0) -> 0.3643604699 | U100: =VLOOKUP($C100,全データ!$C:$CI,U$1,0) -> 26.53732147 | V100: =VLOOKUP($C100,全データ!$C:$CI,V$1,0) -> 0.02367608372 | W100: =VLOOKUP($C100,全データ!$C:$CI,W$1,0) -> -0.002016690852 | X100: =VLOOKUP($C100,全データ!$C:$CI,X$1,0) -> - | Y100: =VLOOKUP($C100,全データ!$C:$CI,Y$1,0) -> ○ | Z100: =IFERROR(VLOOKUP($C100,全データ!$C:$CI,Z$1,0)&"","") ->  | AA100: =IFERROR(VLOOKUP($C100,全データ!$C:$CI,AA$1,0)&"","") ->  | AB100: =IFERROR(VLOOKUP($C100,全データ!$C:$CI,AB$1,0)&"","") ->  | AC100: =IFERROR(VLOOKUP($C100,全データ!$C:$CI,AC$1,0)&"","") ->  | AD100: =IFERROR(VLOOKUP($C100,全データ!$C:$CI,AD$1,0)&"","") ->  | AE100: =IFERROR(VLOOKUP($C100,全データ!$C:$CI,AE$1,0)&"","") ->  | AF100: =IFERROR(VLOOKUP($C100,全データ!$C:$CI,AF$1,0)&"","") ->  | AG100: =IFERROR(VLOOKUP($C100,全データ!$C:$CI,AG$1,0)&"","") ->  | AH100: =IFERROR(VLOOKUP($C100,全データ!$C:$CI,AH$1,0)&"","") -> ○ | AI100: =IFERROR(VLOOKUP($C100,全データ!$C:$CI,AI$1,0)&"","") ->  | AJ100: =IFERROR(VLOOKUP($C100,全データ!$C:$CI,AJ$1,0)&"","") ->  | AK100: =IFERROR(VLOOKUP($C100,全データ!$C:$CI,AK$1,0)&"","") ->  | AL100: =IFERROR(VLOOKUP($C100,全データ!$C:$CI,AL$1,0)&"","") ->  | AM100: =IFERROR(VLOOKUP($C100,全データ!$C:$CI,AM$1,0)&"","") ->  | AN100: =IFERROR(VLOOKUP($C100,全データ!$C:$CI,AN$1,0)&"","") ->  | AO100: =IFERROR(VLOOKUP($C100,全データ!$C:$CI,AO$1,0)&"","") ->  | AP100: =IFERROR(VLOOKUP($C100,全データ!$C:$CI,AP$1,0)&"","") ->  | AQ100: =IFERROR(VLOOKUP($C100,全データ!$C:$CI,AQ$1,0)&"","") ->  | AR100: =IFERROR(VLOOKUP($C100,全データ!$C:$CI,AR$1,0)&"","") ->  | AS100: =IFERROR(VLOOKUP($C100,全データ!$C:$CI,AS$1,0)&"","") ->  | AT100: =IFERROR(VLOOKUP($C100,全データ!$C:$CI,AT$1,0)&"","") ->  | AU100: =IFERROR(VLOOKUP($C100,全データ!$C:$CI,AU$1,0)&"","") ->  | AV100: =IFERROR(VLOOKUP($C100,全データ!$C:$CI,AV$1,0)&"","") ->  | AW100: =IFERROR(VLOOKUP($C100,全データ!$C:$CI,AW$1,0)&"","") -> ○ | AX100: =COUNTIF($Z100:$AG100,"○") -> 0 | AY100: =COUNTIF($AH100:$AK100,"○") -> 1 | AZ100: =COUNTIF($AL100:$AS100,"○") -> 0 | BA100: =COUNTIF(AT100:AW100,"○")+COUNTIF(AT100:AW100,"◎") -> 1 | BB100: =SUM(AX100:BA100) -> 2 | BC100: =VLOOKUP($C100,点数集計!$C:$CL,ようこそ!$G$19,0) -> 
